Workbook

Sheet Simulador Valora
S1: . | BX1: .
C3: SIMULADOR CREDITO HIPOTECARIO | X3: =IF(AN76=1,0,5) -> 0
C4: FINANCIAMIENTO PARA ADQUISICION EN PREVENTA SCOTIABANK
C5: VALORA
C7: =TODAY() -> 2025-04-10
C9: Lugar | G9: Sucursal | J9: Sucursal
G10: Princiapl
C12: Nombre del cliente / Conyuge en su caso. | J12: Ejecutivo que le atendió
AV13: .
C15: Telefonos del cliente | J15: Teléfonos del ejecutivo
C18: Paso 1 | J18: =IF(AN76=1,"Paso 4","") -> Paso 4 | O18: =IF(AN76=1,"Paso 7","Paso 6") -> Paso 7
C19: Escoja su base de cálculo | J19: =IF(AN76=1,"Escoja la opción de su interés:","") -> Escoja la opción de su interés: | O19: Con Apoyo Infonavit:
C20: Campaña
C21: Paso 2
C22: Escriba los datos solicitados: | J22: =IF(AN76=1,"Comisión Manual por Apertura","") -> Comisión Manual por Apertura | O22: =IF(AND(AD46=1,AH45=2),"Paso 8","") -> Paso 8
E23: =IF(AD46=1,"Valor proyectado del inmueble","Ingresos brutos mensuales") -> Valor proyectado del inmueble | F23: =IF($AD$46=1,"(valor final)",IF($C$23="","",IF($C$23<$Y$72,"menores al mínimo",""))) -> (valor final) | O23: =IF(AND(AD46=1,AH45=2),"Teclee su sueldo bruto:","") -> Teclee su sueldo bruto:
E24: =IF(AD46=1,"Enganche","") -> Enganche | J24: =IF(AN76=1,"Paso 5","Paso 4") -> Paso 5
C25: =IFERROR(IF(AND($AD$46=1,$C$24/$C$23<1-(IF(X41=1,$AQ$72,IF(X41=2,$AL$72,$AG$72)))),"Se requiere un enganche mínimo del "&IF(X41=1,1-$AQ$72,IF(X41=2,1-$AL$72,1-$AG$72))*100&"%"," "),"") ->  | J25: Escoja el plazo y la tasa aplicable:
C26: Paso 3 | J26: Plazo 10 años Plazo 15 años Plazo 20 años
C27: El cliente opta por seguros externos
C28: =IF(AND(AD46=1,C23=0,C24=0),"",IF(AND(AD46=1,C24>=C23),"El enganche es más alto o igual que el valor del inmueble","")) ->  | J28: =IF(AN76=1,"Paso 6","Paso 5") -> Paso 6
C29: =IF(C23="","","Línea máxima a otorgar puede ser menor por perfil del cliente") ->  | J29: Actividad Económica
C30: =IF(AND(AD46=2,C23<$Y$72,C23>0),"Los ingresos mínimos requeridos son $"&TEXT($Y$72,"#,##0"),"") -> 
C31: =IF(OR(C23=0,C24=0),"",IF($AD$46=1,IF(($C$23-$C$24)>$C$23*IF(AC85=1,$AT$67,$AU$67),"Para el monto solicitado el porcentaje máximo de financiamiento es del "&TEXT(IF(X41=1,$AQ$72,IF(X41=2,$AL$72,$AG$72)),"#,##0%"),""),"")) -> 
E33: Valor Destructible del Inmueble (si conoce el dato) | J33: =IF(AND(AD46=2,C23>0,T36=1),"Revisar los valores mínimos de vivienda para cada plaza",IF(AND(C23=0,C24=0),"",IF(AND(AD46=1,C23<500000),"Revisar los valores mínimos de vivienda para cada plaza",""))) -> 
AB34: maximo monto | AC34: =MAX(F49:P49) -> 0
AB35: LTV | AC35: =IFERROR(O49/O47,0) -> 0 | AD35: =IFERROR(K49/K47,0) -> 0 | AE35: =IFERROR(E49/E47,0) -> 0
C36: SIMULADOR CREDITO HIPOTECARIO | T36: =IF(OR(O47<500000,K47<500000,E47<500000),1,0) -> 1
C37: FINANCIAMIENTO PARA ADQUISICION EN PREVENTA SCOTIABANK
T38: =IF(OR(O49<250000,E49<250000,K49<250000),1,0) -> 1
E39: VALORA | AC39: Calculo de credito construcción
Z40: =450+750 -> 1200 | AC40: =(C23+C24)*0.5 -> 0 | AE40: =IF(AND(AD46=1,C23>0,C24>0),C23-AC43,"") ->  | AG40: capital invertido
C41: Plazo | E41: 10 AÑOS | G41: 20 AÑOS | K41: 15 AÑOS | O41: 20 AÑOS | U41: Esquemas | V41: Plazo | X41: 1 | AC41: =C23*0.75 -> 0
V42: Tasa Fija Pago Red 15 | AC42: =IF(AC40<AC41,AC40,AC41) -> 0 | AE42: =IFERROR(IF((C25+C24)<((C23+C24)*0.5),"Se necesita mayor capital invertido",""),0) -> 0 | AH42: 1
C43: Tasa de Interés | E43: =IF($AN$76=1,BD76,IF($AN$76=3,BJ76,IF($AN$76=4,BP76,"Error"))) -> Mínima 12.00% y Máxima 14.00% | J43: =IF($AN$76=1,BD76,IF($AN$76=3,BJ76,IF($AN$76=4,BP76,"Error"))) -> Mínima 12.00% y Máxima 14.00% | O43: =IF($AN$76=1,BD76,IF($AN$76=3,BJ76,IF($AN$76=4,BP76,"Error"))) -> Mínima 12.00% y Máxima 14.00% | U43: =IFERROR(O49/O47,0) -> 0 | V43: Pagos reducidos 20 años | AC43: =IFERROR(IF(C25+AC42<=C23,AC42,IF(C25>C23,0,IF(AC42+C25>C23,C23-C25,""))),0) -> 0 | AD43: 1 | AM43: C/apoyo | AN43: S/apoyo | AO43: Independiente
C44: % máximo de financiamiento | E44: =TEXT($AQ$72,"#,##0%")&IF($AC$85=2,"",IF($AH$45=1," sin apoyo"," con apoyo")) -> 95% con apoyo | G44: 0.8 | K44: =TEXT($AL$72,"#,##0%")&IF($AC$85=2,"",IF($AH$45=1," sin apoyo"," con apoyo")) -> 95% con apoyo | O44: =TEXT($AG$72,"#,##0%")&IF($AC$85=2,"",IF($AH$45=1," sin apoyo"," con apoyo")) -> 95% con apoyo | V44: Pago 9.9 | Y44: Cambio de etiqueta | Z44: =IF(AD46=1,"Valor del inmueble","Ingresos Brutos Mensuales") -> Valor del inmueble | AA44: =IF($C$24>0,$C$23-$C$24,$C$23-$C$23*$Y$46) -> 0 | AG44: Apoyo Infonavit | AL44: 1 | AM44: 0.95 | AN44: 0.95 | AO44: 0.9
V45: Tasa 1234 | AF45: 0.05 | AG45: NO | AH45: 2 | AI45: =IF(AC85=1,IF(AH45=1,IF(AG66=1,AN44,IF(AG66=2,AN45,IF(AG66=3,AN46,IF(AG66=4,AN47,IF(AG66=5,AN48,"NA"))))),IF(AG66=1,AM44,IF(AG66=2,AM45,IF(AG66=3,AM46,IF(AG66=4,AM47,IF(AG66=5,AM48,"NA")))))),IF(AG66=1,AO44,IF(AG66=2,AO45,IF(AG66=3,AO46,IF(AG66=4,AO47,IF(AG66=5,AO48,"NA")))))) -> 0.95 | AL45: 2 | AM45: 0.95 | AN45: 0.95 | AO45: 0.9
U46: Adquisición | V46: 1 | X46: % de enganche | Y46: =IF(IF(C23=0,0,IF(C24>0,C24,IF(C24/C23>1,0,C24/C23)))>0,IF(C23=0,0,IF(C24>0,C24,IF(C24/C23>1,0,C24/C23))),IF($AH$45=1,$AF$45,$AF$46)) -> 0.05 | Z46: =IF(V46=2," ","Monto a Financiar") -> Monto a Financiar | AB46: Pago por mil | AC46: Por Valor del Inmueble | AD46: 1 | AE46: 1 | AF46: 0.05 | AG46: SI | AI46: =IF(AC85=1,IF(AH45=1,IF(AG66=1,AN44,IF(AG66=2,AN45,IF(AG66=3,AN46,IF(AG66=4,AN47,IF(AG66=5,AN48,"NA"))))),IF(AG66=1,AM44,IF(AG66=2,AM45,IF(AG66=3,AM46,IF(AG66=4,AM47,IF(AG66=5,AM48,"NA")))))),IF(AG66=2,AO44,IF(AG66=1,AO45,IF(AG66=3,AO46,IF(AG66=4,AO47,IF(AG66=5,AO48,"NA")))))) -> 0.95 | AJ46: 1 | AL46: 3 | AM46: 0.95 | AN46: 0.9 | AO46: 0.85
C47: Valor de la vivienda | E47: =IF($AD$46=1,$C$23,E49/$AQ$72) -> 0 | G47: =IF($AD$46=1,$C$23,G49/0.75) -> 0 | K47: =IF($AD$46=1,$C$23,K49/$AL$72) -> 0 | O47: =IF($AD$46=1,$C$23,O49/$AG$72) -> 0 | U47: Pasivo Hipotecario | W47: Cambio de pasivo o adquisi | Y47: =IF(AND(V46=1,AD46=1),"Enganche",IF(AND(V46=2,AD46=1),"Saldo actual","")) -> Enganche | Z47: =IF($X$41=1,O49,IF($X$41=2,K49,IF($X$41=3,E49,E49))) -> 0 | AB47: =IF($X$41=1,AG68,IF($X$41=2,AL68,IF($X$41=3,AQ68,0))) -> 10.36 | AC47: Por Ingresos | AL47: 4 | AM47: 0.85 | AN47: 0.85 | AO47: 0.75
AG48: Ingresos | AH48: =IFERROR(IF(AND(AH45=2,AD46=1),O24,C23),0) -> 0 | AL48: R | AM48: 0.85 | AN48: 0.85 | AO48: 0.75
C49: Monto del crédito | E49: =AB62 -> 0 | G49: =Y62 -> 0 | K49: =AD62 -> 0 | O49: =AE62 -> 0 | W49: Pag Red 10.90 | Y49: Pag Red 10.90 | AA49: Pagos oportunos | AB49: Pagos oportunos | AD49: Pagos oportunos | AE49: Pagos oportunos | AF49: Pagos oportunos
T50: Plazo | W50: 15 | Y50: 20 | AA50: 7 | AB50: 10 | AD50: 15 | AE50: 20 | AF50: 30
C51: Erogación inicial | E51: =IF($AD$46=1,E49/1000*$AQ$68,$C$23*$AQ$73) -> 0 | G51: =IF($AD$46=1,G49/1000*Y52,$C$23/3.33) -> 0 | K51: =IF($AD$46=1,K49/1000*AL68,$C$23*$AL$73) -> 0 | O51: =IF($AD$46=1,O49/1000*AG68,$C$23*$AG$73) -> 0
T52: Pago x mil | W52: =AG68 -> 10.36 | Y52: 9.76 | AA52: 17.22 | AB52: 13.87 | AD52: 11.47 | AE52: 10.44 | AI52: =IF(X41=1,O51,IF(X41=2,K51,E51)) -> 0
C53: Seguro de vida | E53: =E49*IF($AC$81=1,0,$Y$75) -> 0 | G53: =+G49*0.0005 -> 0 | K53: =K49*IF($AC$81=1,0,$Y$75) -> 0 | O53: =O49*IF($AC$81=1,0,$Y$75) -> 0
T54: Incremento anual | AA54: 0 | AB54: 0 | AD54: 0 | AE54: 0 | AF54: 0 | AI54: =IF(X41=1,O59,IF(X41=2,K59,E59)) -> 0.02
C55: Seguro de daños | E55: =IF($C$33>0,$C$33,E47)*IF($AC$81=1,0,$Y$76) -> 0 | G55: =G47*0.0003016 -> 0 | K55: =IF($C$33>0,$C$33,K47)*IF($AC$81=1,0,$Y$76) -> 0 | O55: =IF($C$33>0,$C$33,O47)*IF($AC$81=1,0,$Y$76) -> 0 | T55: Tasa de int. | AA55: 0.11 | AB55: 0.11 | AD55: 0.11 | AE55: 0.11 | AF55: 0
W56: VAL 20 AÑOS | AA56: VAL 7 AÑOS | AB56: VAL 10 AÑOS | AD56: VAL 15 AÑOS | AE56: VAL 20 AÑOS
C57: Total mensualidad inicial | E57: =E55+E53+E51 -> 0 | G57: =G55+G53+G51 -> 0 | K57: =K55+K53+K51 -> 0 | O57: =O55+O53+O51 -> 0 | T57: Monto a financiar adquisición | W57: =IF(AND($AH$45=1,$AD$46=1,$Y$46>=0.1),IF($C$24>0,$C$23-$C$24,$C$23-$C$23*$Y$46),IF(AND($AH$45=2,$AD$46=1,$Y$46>=0.05),IF($C$24>0,$C$23-$C$24,$C$23-$C$23*$Y$46),IF($AD$46=2,$O$51/W52*1000,0))) -> 0 | Y57: =IF(AND($AD$46=1,$Y$46>=0.2),$C$23-$C$24,IF($AD$46=2,G51/Y52*1000,0)) -> 0 | AA57: =IF(AND($AH$45=1,$AD$46=1,$Y$46>=$AF$45),IF($C$24>0,$C$23-$C$24,$C$23-$C$23*$Y$46),IF(AND($AH$45=2,$AD$46=1,$Y$46>=$AF$46),IF($C$24>0,$C$23-$C$24,$C$23-$C$23*$Y$46),IF($AD$46=2,$E$51/AA52*1000,0))) -> 0 | AB57: =IF($AD$46=1,IF($C$24>0,$C$23-$C$24,$C$23-$C$23*(1-$AQ$72)),$E$51/$AQ$68*1000) -> 0 | AD57: =IF($AD$46=1,IF($C$24>0,$C$23-$C$24,$C$23-$C$23*(1-$AL$72)),$K$51/$AL$68*1000) -> 0 | AE57: =IF($AD$46=1,IF($C$24>0,$C$23-$C$24,$C$23-$C$23*(1-$AG$72)),$K$51/$AG$68*1000) -> 0 | AF57: =IF(AND($AD$46=1,$Y$46>=0.2),$C$23-$C$24,IF($AD$46=2,#REF!/AF52*1000,0)) -> 0
T58: Monto a financiar adquisición | W58: =IF(W57>4000000,4000000,W57) -> 0 | Y58: =IF(Y57>4000000,4000000,Y57) -> 0 | AA58: =IF(AA57>4000000,4000000,AA57) -> 0 | AB58: =IF(AB57>4000000,4000000,AB57) -> 0 | AD58: =IF(AD57>4000000,4000000,AD57) -> 0 | AE58: =IF(AE57>4000000,4000000,AE57) -> 0 | AF58: =IF(AF57>4000000,4000000,AF57) -> 0 | AU58: Rango | AV58: =VLOOKUP($X$41,$AU$59:$AX$61,2,0) -> 136571.4559 | AW58: =VLOOKUP($X$41,$AU$59:$AX$61,3,0) -> 152100.0234 | AX58: =VLOOKUP($X$41,$AU$59:$AX$61,4,0) -> 177542.8845
C59: Incremento anual del pago | E59: =AQ69 -> 0.02 | G59: =Y54 -> 0 | K59: =AL69 -> 0.02 | O59: =AG69 -> 0.02 | T59: erogación adquisición | W59: =W58/1000*W52 -> 0 | Y59: =Y58/1000*Y52 -> 0 | AA59: =AA58/1000*AA52 -> 0 | AB59: =AB58/1000*AQ68 -> 0 | AD59: =AD58/1000*AL68 -> 0 | AE59: =AE58/1000*AG68 -> 0 | AF59: =AF58/1000*AF52 -> 0 | AU59: 1 | AV59: 136571.4559 | AW59: 152100.0234 | AX59: 177542.8845
T60: Monto a financiar pasivo | W60: =IF(AND($AD$46=1,$Y$46>=0.2),#REF!,IF($AD$46=2,$O$51/W52*1000,0)) -> 0 | Y60: =IF(AND($AD$46=1,$Y$46>=0.2),#REF!,IF($AD$46=2,#REF!/Y52*1000,0)) -> 0 | AA60: =IF(AND($AD$46=1,$Y$46>=0.25),#REF!,IF($AD$46=2,#REF!/AA52*1000,0)) -> 0 | AB60: =IF(AND($AD$46=1,$Y$46>=0.25),#REF!,IF($AD$46=2,#REF!/AB52*1000,0)) -> 0 | AD60: =IF(AND($AD$46=1,$Y$46>=0.2),#REF!,IF($AD$46=2,$G$51/AD52*1000,0)) -> 0 | AE60: =IF(AND($AD$46=1,$Y$46>=0.2),#REF!,IF($AD$46=2,#REF!/AE52*1000,0)) -> 0 | AF60: =IF(AND($AD$46=1,$Y$46>=0.2),#REF!,IF($AD$46=2,#REF!/AF52*1000,0)) -> 0 | AU60: 2 | AV60: 108000.0216 | AW60: 119340.0015 | AX60: 140400.0216
C61: Ingresos brutos por comprobar | E61: =IF(AND($AD$46=1,E49/1000*AQ68/$AQ$73>$Y$72),E49/1000*AQ68/$AQ$73,IF(AND($AD$46=1,E49/1000*AQ68/$AQ$73<$Y$72),$Y$72,$C$23)) -> 10000 | G61: =IF(AND($AD$46=1,G51*3.33>$Y$72),G51*3.33,IF(AND($AD$46=1,G51*3.33<$Y$72),$Y$72,$C$23)) -> 10000 | K61: =IF(AND($AD$46=1,K49/1000*AL68/$AL$73>$Y$72),K49/1000*AL68/$AL$73,IF(AND($AD$46=1,K49/1000*AL68/$AL$73<$Y$72),$Y$72,$C$23)) -> 10000 | O61: =IF(AND($AD$46=1,O49/1000*AG68/$AG$73>$Y$72),O49/1000*AG68/$AG$73,IF(AND($AD$46=1,O49/1000*AG68/$AG$73<$Y$72),$Y$72,$C$23)) -> 10000 | T61: Monto a financiar pasivo | W61: =IF(W60>4000000,4000000,W60) -> 0 | Y61: =IF(Y60>4000000,4000000,Y60) -> 0 | AA61: =IF(AA60>4000000,4000000,AA60) -> 0 | AB61: =IF(AB60>4000000,4000000,AB60) -> 0 | AD61: =IF(AD60>4000000,4000000,AD60) -> 0 | AE61: =IF(AE60>4000000,4000000,AE60) -> 0 | AF61: =IF(AF60>4000000,4000000,AF60) -> 0 | AU61: 3 | AV61: 94971.44757 | AW61: 123462.8761 | AX61: 123462.8761
T62: Decsisión de monto a financiar | W62: =IF(AND($AH$45=2,$AD$46=1,$C$23<0),0,IF(AND($AD$46=2,$C$23<$Y$72),0,W57)) -> 0 | Y62: =IF(AND($AH$45=2,$AD$46=1,$C$23<0),0,IF(AND($AD$46=2,$C$23<$Y$72),0,Y57)) -> 0 | AA62: =IF(AND($AH$45=2,$AD$46=1,$C$23<0),0,IF(AND($AD$46=2,$C$23<$Y$72),0,AA57)) -> 0 | AB62: =IF(AND($AH$45=2,$AD$46=1,$C$23<0),0,IF(AND($AD$46=2,$C$23<$Y$72),0,AB57)) -> 0 | AD62: =IF(AND($AH$45=2,$AD$46=1,$C$23<0),0,IF(AND($AD$46=2,$C$23<$Y$72),0,AD57)) -> 0 | AE62: =IF(AND($AH$45=2,$AD$46=1,$C$23<0),0,IF(AND($AD$46=2,$C$23<$Y$72),0,AE57)) -> 0 | AF62: =IF(AND($AH$45=2,$AD$46=1,$C$23<0),0,IF(AND($AD$46=2,$C$23<$Y$72),0,AF57)) -> 0
C63: Comisión por apertura | E63: =IF(OR(AN76=3,AN76=4),0,IF($V$66=1,E49*MIN(1%,M22),0)) -> 0 | G63: =IF($V$66=1,G49*0.025,0) -> 0 | K63: =IF(OR(AN76=3,AN76=4),0,IF($V$66=1,K49*MIN(1%,M22),0)) -> 0 | O63: =IF(OR(AN76=3,AN76=4),0,IF($V$66=1,O49*MIN(1%,M22),0)) -> 0 | AV63: 5000000 | AW63: 6500000 | AX63: 8000000
T64: Frontera | U64: NO | AV64: 1 | AW64: 2 | AX64: 3
C65: ="Avalúo "&IF(OR(AND($AD$46=1,$C$23>$U$91),AND($AD$46=2,E47>$U$91)),"'Favor de Cotizar.' - Val. apróx.","") -> Avalúo | E65: =IF(AN76=3,0,IFERROR(IF(AND($AD$46=1,$C$23<=$U$91),VLOOKUP($C$23,$T$71:$V$92,3),IF(AND($AD$46=2,E47<=$U$91),VLOOKUP(E47,$T$71:$V$92,3),$V$92)),0)) -> 0 | G65: =IF(AND($AD$46=1,$C$23<=21000000),VLOOKUP($C$23,$T$71:$V$101,3),IF(AND($AD$46=2,G47<=21000000),VLOOKUP(G47,$T$71:$V$101,3),"Cotización especial")) ->  | K65: =IF(AN76=3,0,IFERROR(IF(AND($AD$46=1,$C$23<=$U$91),VLOOKUP($C$23,$T$71:$V$92,3),IF(AND($AD$46=2,K47<=$U$91),VLOOKUP(K47,$T$71:$V$92,3),$V$92)),0)) -> 0 | O65: =IF(AN76=3,0,IFERROR(IF(AND($AD$46=1,$C$23<=$U$91),VLOOKUP($C$23,$T$71:$V$92,3),IF(AND($AD$46=2,O47<=$U$91),VLOOKUP(O47,$T$71:$V$92,3),$V$92)),0)) -> 0 | T65: IVA | U65: SI | V65: 1 | W65: =IF(V65=1,1.16,1.16) -> 1.16 | AS65: Aforo para créditos <= $5'000,000 Valora y Pagos Oportunos | AV65: Aforo p/créd > $5'000,000 VA y PO | BD65: 1 | BJ65: 3 | BP65: 4
T66: Comisión de apertura | V66: 1 | W66: =IF(AN76=1,"Comisión por apertura "&TEXT($Y$82,"##.00%")&" y comisión por prepago 0%","Comisión por apertura 0% y comisión por prepago 0% ") -> Comisión por apertura 1.00% y comisión por prepago 0% | AD66: Tasas Valora 20 años | AG66: =AQ66 -> 1 | AI66: Tasas Valora 15 años | AL66: =AQ66 -> 1 | AN66: Tasas Valora 10 años | AQ66: 1 | AS66: Emp. con apoyo | AT66: Emp. Sin apoyo | AU66: Independientes | AV66: <= $6.5mdp | AW66: <= $8mdp | AX66: > $8 mdp | AY66: PTI | BD66: VALORA | BE66: ppm 20 | BF66: ppm 15 | BG66: ppm 10 | BH66: Inc. Anual | BJ66: VALORA 15 | BK66: ppm 20 | BL66: ppm 15 | BM66: ppm 10 | BN66: Inc. Anual | BP66: VALORA 10 | BQ66: ppm 20 | BR66: ppm 15 | BS66: ppm 10 | BT66: Inc. Anual
C67: Dictamen técnico | E67: =IF(E47*$Y$85>$Z$85,$Z$85,E47*$Y$85) -> 0 | G67: =IF(G49*0.01<4500,4500,IF(G49*0.01>12000,12000,G49*0.01)) -> 4500 | K67: =IF(K47*$Y$85>$Z$85,$Z$85,K47*$Y$85) -> 0 | O67: =IF(O47*$Y$85>$Z$85,$Z$85,O47*$Y$85) -> 0 | T67: Comisión por prepago | V67: =IF(V66=2,3%,"NO APLICA") -> NO APLICA | W67: =IF(AN76=1,"Comisión por apertura 0% y comisión por prepago 3% más IVA","") -> Comisión por apertura 0% y comisión por prepago 3% más IVA | AB67: 1+ | AC67: 1 | AD67: =IF(IF($AN$76=1,BD67,IF($AN$76=3,BJ67,IF($AN$76=4,BP67,"")))=0,"",IF($AN$76=1,BD67,IF($AN$76=3,BJ67,IF($AN$76=4,BP67,"")))) -> 0.12 | AE67: =IF(IF($AN$76=1,BE67,IF($AN$76=3,BK67,IF($AN$76=4,BQ67,"")))=0,"",IF($AN$76=1,BE67,IF($AN$76=3,BK67,IF($AN$76=4,BQ67,"")))) -> 10.36 | AF67: =IF(IF($AN$76=1,BH67,IF($AN$76=3,BN67,IF($AN$76=4,BT67,"")))=0,"",IF($AN$76=1,BH67,IF($AN$76=3,BN67,IF($AN$76=4,BT67,"")))) -> 0.02 | AG67: =AG66 -> 1 | AH67: 1 | AI67: =AD67 -> 0.12 | AJ67: =IF(IF($AN$76=1,BF67,IF($AN$76=3,BL67,IF($AN$76=4,BR67,"")))=0,"",IF($AN$76=1,BF67,IF($AN$76=3,BL67,IF($AN$76=4,BR67,"")))) -> 11.32 | AK67: =AF67 -> 0.02 | AL67: =AL66 -> 1 | AM67: 1 | AN67: =AI67 -> 0.12 | AO67: =IF(IF($AN$76=1,BG67,IF($AN$76=3,BM67,IF($AN$76=4,BS67,"")))=0,"",IF($AN$76=1,BG67,IF($AN$76=3,BM67,IF($AN$76=4,BS67,"")))) -> 13.63 | AP67: =AF67 -> 0.02 | AQ67: =AQ66 -> 1 | AS67: 0.95 | AT67: 0.95 | AU67: 0.9 | AV67: 0.8 | AW67: 0.8 | AX67: 0.65 | AY67: =IF(AC85=1,IF(AH45=2,65%,55%),55%) -> 0.65 | BC67: 1 | BD67: 0.12 | BE67: 10.36 | BF67: 11.32 | BG67: 13.63 | BH67: 0.02 | BI67: 1+,2+,3+,4+,R | BJ67: 0.0975 | BK67: 8.54 | BL67: 9.64 | BM67: 12.12 | BN67: 0.026 | BO67: 1,2,3,4,R, EA | BP67: 0.1075 | BQ67: 9.3 | BR67: 10.33 | BS67: 12.75 | BT67: 0.024
T68: Com Aut Dif | U68: 250 | V68: 250 | W68: 250 | X68: 250 | Y68: 250 | AB68: 1 | AC68: 2 | AD68: =IF(IF($AN$76=1,BD68,IF($AN$76=3,BJ68,IF($AN$76=4,BP68,"")))=0,"",IF($AN$76=1,BD68,IF($AN$76=3,BJ68,IF($AN$76=4,BP68,"")))) -> 0.125 | AE68: =IF(IF($AN$76=1,BE68,IF($AN$76=3,BK68,IF($AN$76=4,BQ68,"")))=0,"",IF($AN$76=1,BE68,IF($AN$76=3,BK68,IF($AN$76=4,BQ68,"")))) -> 10.84 | AF68: =IF(IF($AN$76=1,BH68,IF($AN$76=3,BN68,IF($AN$76=4,BT68,"")))=0,"",IF($AN$76=1,BH68,IF($AN$76=3,BN68,IF($AN$76=4,BT68,"")))) -> 0.017 | AG68: =VLOOKUP(AG67,AC67:AF73,3,0) -> 10.36 | AH68: 2 | AI68: =AD68 -> 0.125 | AJ68: =IF(IF($AN$76=1,BF68,IF($AN$76=3,BL68,IF($AN$76=4,BR68,"")))=0,"",IF($AN$76=1,BF68,IF($AN$76=3,BL68,IF($AN$76=4,BR68,"")))) -> 11.78 | AK68: =AF68 -> 0.017 | AL68: =VLOOKUP(AL67,AH67:AK73,3,0) -> 11.32 | AM68: 2 | AN68: =AI68 -> 0.125 | AO68: =IF(IF($AN$76=1,BG68,IF($AN$76=3,BM68,IF($AN$76=4,BS68,"")))=0,"",IF($AN$76=1,BG68,IF($AN$76=3,BM68,IF($AN$76=4,BS68,"")))) -> 14.06 | AP68: =AF68 -> 0.017 | AQ68: =VLOOKUP(AQ67,AM67:AP73,3,0) -> 13.63 | AS68: 0.95 | AT68: 0.95 | AU68: 0.9 | AV68: 0.8 | AW68: 0.8 | AX68: 0.65 | AY68: =IF(AC85=1,IF(AH45=2,65%,55%),55%) -> 0.65 | BC68: 2 | BD68: 0.125 | BE68: 10.84 | BF68: 11.78 | BG68: 14.06 | BH68: 0.017
C69: Comisión por pagos anticipados | E69: =$V$67 -> NO APLICA | G69: =$V$67 -> NO APLICA | K69: =$V$67 -> NO APLICA | O69: =$V$67 -> NO APLICA | T69: Avalúo | U69: =IFERROR(IF(C23<$U$91,VLOOKUP(C23,$T$71:$V$92,3),"Cotización especial"),0) -> 0 | AB69: 2 | AC69: 3 | AD69: 0.13 | AE69: 11.28 | AF69: 0.014 | AG69: =VLOOKUP(AG67,AC67:AF73,4,0) -> 0.02 | AH69: 3 | AI69: 0.13 | AJ69: 12.22 | AK69: 0.014 | AL69: =VLOOKUP(AL67,AH67:AK73,4,0) -> 0.02 | AM69: 3 | AN69: 0.13 | AO69: 14.5 | AP69: 0.014 | AQ69: =VLOOKUP(AQ67,AM67:AP73,4,0) -> 0.02 | AS69: 0.95 | AT69: 0.9 | AU69: 0.85 | AV69: 0.8 | AW69: 0.8 | AX69: 0.65 | AY69: =IF(AC85=1,IF(AH45=2,65%,55%),55%) -> 0.65 | BC69: 3 | BD69: 0.13 | BE69: 11.28 | BF69: 12.22 | BG69: 14.5 | BH69: 0.014
T70: Mayor a | U70: Hasta a | V70: Importe | AB70: 3 | AC70: 4 | AD70: 0.135 | AE70: 11.7 | AF70: 0.011 | AG70: =VLOOKUP(AG67,AC67:AF73,2,0) -> 0.12 | AH70: 4 | AI70: 0.135 | AJ70: 12.63 | AK70: 0.011 | AL70: =VLOOKUP(AL67,AH67:AK73,2,0) -> 0.12 | AM70: 4 | AN70: 0.135 | AO70: 14.9 | AP70: 0.011 | AQ70: =VLOOKUP(AQ67,AM67:AP73,2,0) -> 0.12 | AS70: 0.85 | AT70: 0.85 | AU70: 0.75 | AV70: 0.7 | AW70: 0.7 | AX70: 0.55 | AY70: =IF(AC85=1,IF(AH45=2,65%,55%),55%) -> 0.65 | BC70: 4 | BD70: 0.135 | BE70: 11.7 | BF70: 12.63 | BG70: 14.9 | BH70: 0.011
T71: 0.01 | U71: 500000 | V71: 1900 | X71: Aforo | Y71: Ingresos Mínimos | Z71: RPI | AB71: 4 | AC71: 5 | AD71: 0.14 | AE71: 12.13 | AF71: 0.007 | AG71: =VLOOKUP(AG67,AC67:AF73,3,0) -> 10.36 | AH71: 5 | AI71: 0.14 | AJ71: 13.04 | AK71: 0.007 | AL71: =VLOOKUP(AL67,AH67:AK73,3,0) -> 11.32 | AM71: 5 | AN71: 0.14 | AO71: 15.3 | AP71: 0.007 | AQ71: =VLOOKUP(AQ67,AM67:AP73,3,0) -> 13.63 | AS71: 0.85 | AT71: 0.85 | AU71: 0.75 | AV71: 0.65 | AW71: 0.55 | AX71: 0.55 | AY71: =IF(AC85=1,IF(AH45=2,65%,55%),55%) -> 0.65 | BC71: R | BD71: 0.14 | BE71: 12.13 | BF71: 13.04 | BG71: 15.3 | BH71: 0.007
C72: Ver tabla de amortización | T72: 500001 | U72: 1000000 | V72: 3300 | X72: =IF(AH45=1,AI45,AI46) -> 0.95 | Y72: 10000 | Z72: 0.5 | AB72: R | AC72: 6 | AG72: =AI45 -> 0.95 | AH72: 6 | AL72: =AI45 -> 0.95 | AM72: 6 | AQ72: =AI45 -> 0.95 | AS72: 0.8 | AT72: 0.7 | AU72: 0.5 | AV72: 0.5 | AW72: 0.5 | AX72: 0.5 | AY72: =IF(AC85=1,IF(AH45=2,65%,55%),55%) -> 0.65 | BC72: Piso | BD72: 0.12 | BI72: Piso | BJ72: 0.0975 | BO72: Piso | BP72: 0.1075
C73: Observaciones: | T73: 1000001 | U73: 1500000 | V73: 4500 | AG73: =AY67 -> 0.65 | AL73: =AY67 -> 0.65 | AQ73: =AY67 -> 0.65 | BC73: Techo | BD73: 0.14 | BI73: Techo | BJ73: 0.1175 | BO73: Techo | BP73: 0.1275
C74: -No se incluyen los gastos notariales, los cuales se pagaran al momento de la firma del crédito | T74: 1500001 | U74: 2000000 | V74: 5750 | X74: Seguros | AB74: Valor del inmueble | AC74: =IF($X$41=1,O47,IF($X$41=2,K47,E47)) -> 0 | AV74: =IF($AD$46=2,IF($C$23>AX58,3,IF($C$23>AW58,2,IF($C$23>AV58,1,0))),IF($C$23>AX63,3,IF($C$23>AW63,2,IF($C$23>AV63,1,0)))) -> 0
C75: - El crédito solicitado dependerá de la capacidad de pago de cada cliente | T75: 2000001 | U75: 2500000 | V75: 7000 | X75: Vida | Y75: 0.0006 | Z75: =Y75 -> 0.0006 | AB75: Pago por mil | AC75: =IF($X$41=1,AG68,IF($X$41=2,AL68,AQ68)) -> 10.36
C76: - Para obtener la tasa del 8.75% en el plazo de 10, 15 o 20 años, el porcentaje máximo de financiamiento deberá ser del 65%, | T76: 2500001 | U76: 3000000 | V76: 8200 | X76: Daños | Y76: 0.00031 | Z76: =Y76 -> 0.00031 | AB76: Plazo | AC76: =IF($X$41=1,"20 Años",IF($X$41=2,"15 Años","10 Años")) -> 20 Años | AN76: 1 | AO76: Tasa | BD76: Mínima 12.00% y Máxima 14.00% | BJ76: Mínima 9.75% y Máxima 11.75% | BP76: Mínima 10.75% y Máxima 12.75%
C77: - Scotiabank se reserva el derecho de solicitar información adicional y/o restringir parámetros de enganche, monto, plazo o tasa en función de las características específicas | T77: 3000001 | U77: 4000000 | V77: 11000 | AB77: Tasa | AC77: =IF($X$41=1,AG70,IF($X$41=2,AL70,AQ70)) -> 0.12 | AF77: CALCULO PARA EL IMPORTE MAXIMO DE APORTACION PATRONAL | AN77: Ninguna | AO77: =IF(IF(AN76=1,BD72,IF(AN76=3,BJ72,IF(AN76=4,BP72,"")))=0,"",IF(AN76=1,BD72,IF(AN76=3,BJ72,IF(AN76=4,BP72,"")))) -> 0.12
C78: del solicitante y del inmueble objeto de la operación. | T78: 4000001 | U78: 5000000 | V78: 13900 | AB78: Monto Crédito | AC78: =IF($X$41=1,O49,IF($X$41=2,K49,E49)) -> 0 | AF78: Salario diario nominal (UMA enero 2024) | AH78: 108.57
C79: - En caso de que aplique, la comisión por pagos anticipados causa I.V.A. | T79: 5000001 | U79: 6000000 | V79: 15500 | AF79: Tope de aportación patronal | AH79: 25 | AN79: Premium
C80: - Esta cotización tiene carácter informativo, Scotiabank se reserva el derecho de cambiar cualquier condición sin previo aviso. | T80: 6000001 | U80: 7000000 | V80: 19000 | AB80: Contratación de Seguros | AF80: Aportación patronal | AH80: =+AH78*AH79 -> 2714.25 | AN80: Vinculación
C81: - Este documento NO implica que el crédito ha sido autorizado, ni establece obligación alguna para Scotiabank. | T81: 7000001 | U81: 8000000 | V81: 20000 | X81: Comisión por aut difer = | Y81: 1 | AB81: SI | AC81: 2 | AF81: Aportación Patronal 5% | AH81: =AH80*AG82 -> 135.7125
C82: - Para los esquemas de "Pagos Oportunos" y "Valora" se deberá cumplir con las reglas establecidas en los programas para la disminución de la tasa de interés | T82: 8000001 | U82: 9000000 | V82: 20100 | X82: Comisión por Apertura = | Y82: =IFERROR(IF($M$22<>"",$M$22,1%),0) -> 0.01 | AB82: NO | AG82: 0.05
O83: v2025.04 | T83: 9000001 | U83: 10000000 | V83: 22500 | X83: Comisión por Prepago = | Y83: 0.03 | AF83: No. de días del bimestre (promedio 60 días) | AH83: 60.8
T84: 10000001 | U84: 11000000 | V84: 27000 | X84: Avalúo | Y84: 0.001 | AB84: Actividad Económca | AF84: Aportación Patronal bimestral | AH84: =+AH81*AH83 -> 8251.32
T85: 11000001 | U85: 12000000 | V85: 28000 | X85: Dictamen técnico | Y85: 0.01 | Z85: 18000 | AB85: Empleado | AC85: 1 | AF85: Incremento anual promedio para las aportaciones = | AH85: 0.03
T86: 12000001 | U86: 13000000 | V86: 30000 | Z86: Máximo | AB86: =IF($AH$45=2,"","Independiente") -> 
T87: 13000001 | U87: 14000000 | V87: 32000 | Z87: Ya no hay minimo
T88: 14000001 | U88: 15000000 | V88: 34000
T89: 15000001 | U89: 20000000 | V89: 37000
T90: 20000001 | U90: 25000000 | V90: 39000
T91: 25000001 | U91: 30000000 | V91: 40000
T92: 30000001 | U92: 30000000 | V92: 40000

Sheet Tabla Valora
A1: Scotiabank Inverlat, S.A., Institución de Banca Múltiple, Grupo Financiero Scotiabank Inverlat | AB1: - | BP1: -
A2: SIMULADOR CREDITO HIPOTECARIO
A3: FINANCIAMIENTO PARA ADQUISICION EN PREVENTA SCOTIABANK | AI3: Comision por apertura | AK3: =IF('Simulador Valora'!$X$41=1,'Simulador Valora'!O63,IF('Simulador Valora'!$X$41=2,'Simulador Valora'!K63,'Simulador Valora'!E63)) -> 0 | AM3: 2
A4: =IF('Simulador Valora'!X41=1,"VALORA 20 AÑOS",IF('Simulador Valora'!X41=2,"VALORA 15 AÑOS","VALORA 10 AÑOS")) -> VALORA 20 AÑOS | AC4: Piso | AI4: Avalúo | AK4: =IF('Simulador Valora'!$X$41=1,'Simulador Valora'!O65,IF('Simulador Valora'!$X$41=2,'Simulador Valora'!K65,'Simulador Valora'!E65)) -> 0 | AM4: Disminución de plazo
N5: Observaciones | AC5: ='Simulador Valora'!AO77 -> 0.12 | AI5: Dictámen Técnico | AK5: =IF('Simulador Valora'!$X$41=1,'Simulador Valora'!O67,IF('Simulador Valora'!$X$41=2,'Simulador Valora'!K67,'Simulador Valora'!E67)) -> 0 | AM5: Disminución de pago
B6: Teclear los datos con las celdas en blanco | N6: - La comisión por prepagos causa IVA y en la corrida ya lo incluye | X6: ='Simulador Valora'!C7 -> 2025-04-10 | AC6: ='Simulador Valora'!AO77 -> 0.12
B7: Período | D7: Monto | F7: Erogación | N7: - El escenario que se presenta en la tabla de amortización siempre es considerando que se paga de manera puntual. | AI7: Total | AK7: =SUM(AK3:AK5) -> 0
B8: 1 | D8: ='Simulador Valora'!$AC$78 -> 0 | F8: =(D8/1000)*'Simulador Valora'!AB47 -> 0 | H8: Linea máxima de crédito | N8: - Esta cotización tiene carácter informativo, Scotiabank se reserva el derecho de cambiar cualquier condición sin previo aviso.
F9: =IF(B9>12,((D9+D8)/1000*'Simulador Valora'!AB47*Z29)+((D9+D8)/1000*'Simulador Valora'!AB47),(D9+D8)/1000*'Simulador Valora'!AB47) -> 0 | H9: ='Simulador Valora'!AC78 -> 0 | N9: - Este documento NO implica que el crédito ha sido autorizado, ni establece obligación alguna para Scotiabank. | AK9: =AK12*12 -> 0
D10: =IF('Simulador Valora'!AC78-D8-D9<0,0,'Simulador Valora'!AC78-D8-D9) -> 0 | F10: =IF(B10>12,((D10+D9+D8)/1000*'Simulador Valora'!AB47*Z29)+((D10+D9+D8)/1000*'Simulador Valora'!AB47),(D10+D9+D8)/1000*'Simulador Valora'!AB47) -> 0 | H10: =IF((D9+D8)>H9,"Se excede de la línea autorizada","") ->  | N10: - Para los esquemas "Pagos Oportunos" y "Valora" se deberá cumplir con las reglas establecidas en los programas | AK10: TIR
N11: para la disminución de la tasa de interés. | AK11: =((1+AK12)^12)-1 -> 0
AB12: =IFERROR(IRR(AB16:AB256,0),0) -> 0 | AC12: =AB12*12 -> 0 | AD12: =((1+AB12)^12)-1 -> 0 | AK12: =IFERROR(IRR(AK13:AK256,0),0) -> 0
H13: El crédito se liquida | J13: =AQ16 -> 0 | K13: Años | N13: - CAT =. | P13: =AK11 -> 0 | Q13: "Para fines informativos de comparación exclusivamente sin IVA" | AK13: =AK7-H9 -> 0
H14: por pago puntual en: | J14: =AR16 -> 0 | K14: Meses | N14: - En caso de anticipos a capital escoja la opción:
A16: Período | B16: Saldo Inicial | D16: Erogación | F16: Interés | H16: Amortización | J16: Aportación Bimestral | L16: Prepagos a capital | N16: Comisión por prepagos | P16: Tasa aplicada | R16: Saldo Final | T16: Seguro de vida y desempleo | V16: Seguro de daños | X16: Pago Mensual | Z16: Inc. Pago | AB16: =AK7-H9 -> 0 | AC16: Tasa Aplic. | AD16: Saldo Inicial | AE16: Erogación | AF16: Interés | AG16: Amortización | AH16: Saldo Final | AI16: Seguros | AJ16: Incremento Pago | AK16: Pago Mensual | AL16: factor de pago | AN16: años | AO16: meses | AP16: =SUM(AP17:AP256) -> 1 | AQ16: =SUM(AQ17:AQ256) -> 0 | AR16: =SUM(AR17:AR256) -> 0 | AS16: Plazo | AT16: Fecha | AU16: Dias | AW16: Año actual | AX16: Mes actual | AY16: Día actual | AZ16: Dia/corte | BA16: sumar
A17: 1 | B17: =IFERROR(VLOOKUP(A17,$B$8:$F$10,3,FALSE),0) -> 0 | D17: =F8 -> 0 | F17: =IF(B17=0,0,P17/360*AU17*B17) -> 0 | H17: =D17-F17 -> 0 | N17: =IF('Simulador Valora'!$V$66=1,0,L17*'Simulador Valora'!$O$69*'Simulador Valora'!$W$65) -> 0 | P17: =IF(B17=0,0,AC17) -> 0 | R17: =B17-H17-J17-L17+N17 -> 0 | T17: =IF(B17<=0,0,B17*IF('Simulador Valora'!$AC$81=1,0,'Simulador Valora'!$Y$75)) -> 0 | V17: =IF(B17<=0,0,IF('Simulador Valora'!$X$41=1,'Simulador Valora'!$O$55,IF('Simulador Valora'!$X$41=2,'Simulador Valora'!$K$55,'Simulador Valora'!$E$55))) -> 0 | X17: =IF(B17<=0,0,(D17+L17+T17+V17)) -> 0 | AB17: =X17 -> 0 | AC17: =IF('Simulador Valora'!$X$41=1,'Simulador Valora'!$AG$70,IF('Simulador Valora'!$X$41=2,'Simulador Valora'!$AL$70,'Simulador Valora'!$AQ$70)) -> 0.12 | AD17: =IFERROR(VLOOKUP(A17,$B$8:$F$10,3,FALSE),0) -> 0 | AE17: =(AD17/1000)*'Simulador Valora'!AB47 -> 0 | AF17: =IFERROR(AC17/360*AU17*AD17,0) -> 0 | AG17: =+AE17-AF17 -> 0 | AH17: =+AD17-AG17 -> 0 | AI17: =IF(AD17<=0,0,AD17*IF('Simulador Valora'!$AC$81=1,0,'Simulador Valora'!$Y$75))+IF(AD17<=0,0,IF('Simulador Valora'!$X$41=1,'Simulador Valora'!$O$55,IF('Simulador Valora'!$X$41=2,'Simulador Valora'!$K$55,'Simulador Valora'!$E$55))) -> 0 | AK17: =IF(AD17<=0,0,AE17+AI17) -> 0 | AL17: =IFERROR(AE17/AD17,0) -> 0 | AN17: 0 | AO17: =IF(B17=0,0,1) -> 0 | AP17: =+IF(R17<=0,IF(R16>0,+A17,0),0) -> 1 | AQ17: =+IF(AP17>0,+AN17,0) -> 0 | AR17: =+IF(AP17>0,+AO17,0) -> 0 | AS17: =IF('Simulador Valora'!$X$41=3,120,IF('Simulador Valora'!$X$41=2,180,240)) -> 240 | AT17: =IF(AD17=0,"",DATE(AW17,AX17+BA17,AZ17)) ->  | AU17: =IFERROR(DAY(DATE(YEAR(AT17),MONTH(AT17)+1,0)),0) -> 0 | AV17: 1 | AW17: =IFERROR(YEAR('Simulador Valora'!C7),YEAR('Simulador Valora'!C7)) -> 2025 | AX17: =IFERROR(MONTH('Simulador Valora'!C7),MONTH('Simulador Valora'!C7)) -> 4 | AY17: =IFERROR(DAY('Simulador Valora'!C7),DAY('Simulador Valora'!C7)) -> 10 | AZ17: =IF(AND(DAY('Simulador Valora'!C7)>=3,DAY('Simulador Valora'!C7)<=16),3,17) -> 3 | BA17: =IF(AY17>AZ17,1,0) -> 1
A18: 2 | B18: =IF(R17<0,0,IF(A18=$B$9,R17+$D$9,IF(A18=$B$10,R17+$D$10,R17))) -> 0 | D18: =IF(B18+F18-D17<=0,B18+F18,IF(A18=$B$9,$F$9,IF(A18=$B$10,$F$10,IF(AND('Simulador Valora'!$AH$45=2,L17=0),D17*(1+Z18),IF($AM$3=2,B18*AL18,D17*(1+Z18)))))) -> 0 | F18: 0 | H18: =D18-F18 -> 0 | J18: =IF(B18=0,0,IF('Simulador Valora'!$AH$45=1,0,IF('Simulador Valora'!$AH$48*'Simulador Valora'!$AG$82*2>'Simulador Valora'!$AH$84,'Simulador Valora'!$AH$84,IF(B18=0,0,'Simulador Valora'!$AH$48*'Simulador Valora'!$AG$82*2)))) -> 0 | N18: =IF('Simulador Valora'!$V$66=1,0,L18*'Simulador Valora'!$O$69*'Simulador Valora'!$W$65) -> 0 | P18: =IF(B18=0,0,AC18) -> 0 | R18: =B18-H18-J18-L18+N18 -> 0 | T18: =IF(B18<=0,0,B18*IF('Simulador Valora'!$AC$81=1,0,'Simulador Valora'!$Y$75)) -> 0 | V18: =IF(B18<=0,0,IF('Simulador Valora'!$X$41=1,'Simulador Valora'!$O$55,IF('Simulador Valora'!$X$41=2,'Simulador Valora'!$K$55,'Simulador Valora'!$E$55))) -> 0 | X18: =IF(B18<=0,0,(D18+L18+T18+V18)) -> 0 | AB18: =X18 -> 0 | AC18: =IF('Simulador Valora'!$X$41=1,'Simulador Valora'!$AG$70,IF('Simulador Valora'!$X$41=2,'Simulador Valora'!$AL$70,'Simulador Valora'!$AQ$70)) -> 0.12 | AD18: =IF(AH17<0,0,IF($A18=$B$9,AH17+$D$9,IF($A18=$B$10,AH17+$D$10,AH17))) -> 0 | AE18: =IF(AD18+AF18-AE17<=0,AD18+AF18,IF($A18=$B$9,$F$9,IF($A18=$B$10,$F$10,AE17*(1+Z18)))) -> 0 | AF18: 0 | AG18: =+AE18-AF18 -> 0 | AH18: =+AD18-AG18 -> 0 | AI18: =IF(AD18<=0,0,AD18*IF('Simulador Valora'!$AC$81=1,0,'Simulador Valora'!$Y$75))+IF(AD18<=0,0,IF('Simulador Valora'!$X$41=1,'Simulador Valora'!$O$55,IF('Simulador Valora'!$X$41=2,'Simulador Valora'!$K$55,'Simulador Valora'!$E$55))) -> 0 | AK18: 0 | AL18: 0 | AN18: 0 | AO18: 2 | AP18: 0 | AQ18: =+IF(AP18>0,+AN18,0) -> 0 | AR18: =+IF(AP18>0,+AO18,0) -> 0 | AS18: =IFERROR(IF(AC18<=0.01,0,AS17-1),0) -> 239 | AT18: =IF(AD18=0,"",DATE(YEAR(AT17),MONTH(AT17)+1,1)) ->  | AU18: =IFERROR(DAY(DATE(YEAR(AT18),MONTH(AT18)+1,0)),0) -> 0 | AV18: 2
A19: 3 | B19: 0 | D19: =IF(B19+F19-D18<=0,B19+F19,IF(A19=$B$9,$F$9,IF(A19=$B$10,$F$10,IF(AND('Simulador Valora'!$AH$45=2,L18=0),D18*(1+Z19),IF($AM$3=2,B19*AL19,D18*(1+Z19)))))) -> 0 | F19: 0 | H19: =D19-F19 -> 0 | N19: =IF('Simulador Valora'!$V$66=1,0,L19*'Simulador Valora'!$O$69*'Simulador Valora'!$W$65) -> 0 | P19: 0 | R19: 0 | T19: =IF(B19<=0,0,B19*IF('Simulador Valora'!$AC$81=1,0,'Simulador Valora'!$Y$75)) -> 0 | V19: =IF(B19<=0,0,IF('Simulador Valora'!$X$41=1,'Simulador Valora'!$O$55,IF('Simulador Valora'!$X$41=2,'Simulador Valora'!$K$55,'Simulador Valora'!$E$55))) -> 0 | X19: 0 | AB19: 0 | AC19: =IF('Simulador Valora'!$X$41=1,'Simulador Valora'!$AG$70,IF('Simulador Valora'!$X$41=2,'Simulador Valora'!$AL$70,'Simulador Valora'!$AQ$70)) -> 0.12 | AD19: =IF(AH18<0,0,IF($A19=$B$9,AH18+$D$9,IF($A19=$B$10,AH18+$D$10,AH18))) -> 0 | AE19: =IF(AD19+AF19-AE18<=0,AD19+AF19,IF($A19=$B$9,$F$9,IF($A19=$B$10,$F$10,AE18*(1+Z19)))) -> 0 | AF19: 0 | AG19: =+AE19-AF19 -> 0 | AH19: 0 | AI19: =IF(AD19<=0,0,AD19*IF('Simulador Valora'!$AC$81=1,0,'Simulador Valora'!$Y$75))+IF(AD19<=0,0,IF('Simulador Valora'!$X$41=1,'Simulador Valora'!$O$55,IF('Simulador Valora'!$X$41=2,'Simulador Valora'!$K$55,'Simulador Valora'!$E$55))) -> 0 | AK19: 0 | AL19: 0 | AN19: 0 | AO19: 3 | AP19: 0 | AQ19: 0 | AR19: 0 | AS19: 238 | AT19: =IF(AD19=0,"",DATE(YEAR(AT18),MONTH(AT18)+1,1)) ->  | AU19: 0 | AV19: 3 | AW19: Días/Mes | AX19: 30.4375 | AY19: =SUM(AU77:AU256) -> 0 | AZ19: =IF(AS77=0,0,AY19/AS77) -> 0
A20: 4 | B20: 0 | D20: =IF(B20+F20-D19<=0,B20+F20,IF(A20=$B$9,$F$9,IF(A20=$B$10,$F$10,IF(AND('Simulador Valora'!$AH$45=2,L19=0),D19*(1+Z20),IF($AM$3=2,B20*AL20,D19*(1+Z20)))))) -> 0 | F20: 0 | H20: 0 | J20: =IF(B20-H20=0,0,J18) -> 0 | N20: =IF('Simulador Valora'!$V$66=1,0,L20*'Simulador Valora'!$O$69*'Simulador Valora'!$W$65) -> 0 | P20: 0 | R20: 0 | T20: =IF(B20<=0,0,B20*IF('Simulador Valora'!$AC$81=1,0,'Simulador Valora'!$Y$75)) -> 0 | V20: =IF(B20<=0,0,IF('Simulador Valora'!$X$41=1,'Simulador Valora'!$O$55,IF('Simulador Valora'!$X$41=2,'Simulador Valora'!$K$55,'Simulador Valora'!$E$55))) -> 0 | X20: 0 | AB20: 0 | AC20: =IF('Simulador Valora'!$X$41=1,'Simulador Valora'!$AG$70,IF('Simulador Valora'!$X$41=2,'Simulador Valora'!$AL$70,'Simulador Valora'!$AQ$70)) -> 0.12 | AD20: 0 | AE20: 0 | AF20: 0 | AG20: 0 | AH20: 0 | AI20: =IF(AD20<=0,0,AD20*IF('Simulador Valora'!$AC$81=1,0,'Simulador Valora'!$Y$75))+IF(AD20<=0,0,IF('Simulador Valora'!$X$41=1,'Simulador Valora'!$O$55,IF('Simulador Valora'!$X$41=2,'Simulador Valora'!$K$55,'Simulador Valora'!$E$55))) -> 0 | AK20: 0 | AL20: 0 | AN20: 0 | AO20: 4 | AP20: 0 | AQ20: 0 | AR20: 0 | AS20: 237 | AU20: 0 | AV20: 4 | AX20: Interés mensual = Sdo inicial x tasa / 360 x # días del mes
A21: 5 | B21: 0 | D21: =IF(B21+F21-D20<=0,B21+F21,IF(A21=$B$9,$F$9,IF(A21=$B$10,$F$10,IF(AND('Simulador Valora'!$AH$45=2,L20=0),D20*(1+Z21),IF($AM$3=2,B21*AL21,D20*(1+Z21)))))) -> 0 | F21: 0 | H21: 0 | N21: =IF('Simulador Valora'!$V$66=1,0,L21*'Simulador Valora'!$O$69*'Simulador Valora'!$W$65) -> 0 | P21: 0 | R21: 0 | T21: =IF(B21<=0,0,B21*IF('Simulador Valora'!$AC$81=1,0,'Simulador Valora'!$Y$75)) -> 0 | V21: =IF(B21<=0,0,IF('Simulador Valora'!$X$41=1,'Simulador Valora'!$O$55,IF('Simulador Valora'!$X$41=2,'Simulador Valora'!$K$55,'Simulador Valora'!$E$55))) -> 0 | X21: 0 | AB21: 0 | AC21: =IF('Simulador Valora'!$X$41=1,'Simulador Valora'!$AG$70,IF('Simulador Valora'!$X$41=2,'Simulador Valora'!$AL$70,'Simulador Valora'!$AQ$70)) -> 0.12 | AD21: 0 | AE21: 0 | AF21: 0 | AG21: 0 | AH21: 0 | AI21: =IF(AD21<=0,0,AD21*IF('Simulador Valora'!$AC$81=1,0,'Simulador Valora'!$Y$75))+IF(AD21<=0,0,IF('Simulador Valora'!$X$41=1,'Simulador Valora'!$O$55,IF('Simulador Valora'!$X$41=2,'Simulador Valora'!$K$55,'Simulador Valora'!$E$55))) -> 0 | AK21: 0 | AL21: 0 | AN21: 0 | AO21: 5 | AP21: 0 | AQ21: 0 | AR21: 0 | AS21: 236 | AU21: 0 | AV21: 5
A22: 6 | B22: 0 | D22: =IF(B22+F22-D21<=0,B22+F22,IF(A22=$B$9,$F$9,IF(A22=$B$10,$F$10,IF(AND('Simulador Valora'!$AH$45=2,L21=0),D21*(1+Z22),IF($AM$3=2,B22*AL22,D21*(1+Z22)))))) -> 0 | F22: 0 | H22: 0 | J22: =IF(B22-H22=0,0,J20) -> 0 | N22: =IF('Simulador Valora'!$V$66=1,0,L22*'Simulador Valora'!$O$69*'Simulador Valora'!$W$65) -> 0 | P22: 0 | R22: 0 | T22: =IF(B22<=0,0,B22*IF('Simulador Valora'!$AC$81=1,0,'Simulador Valora'!$Y$75)) -> 0 | V22: =IF(B22<=0,0,IF('Simulador Valora'!$X$41=1,'Simulador Valora'!$O$55,IF('Simulador Valora'!$X$41=2,'Simulador Valora'!$K$55,'Simulador Valora'!$E$55))) -> 0 | X22: 0 | AB22: 0 | AC22: =IF('Simulador Valora'!$X$41=1,'Simulador Valora'!$AG$70,IF('Simulador Valora'!$X$41=2,'Simulador Valora'!$AL$70,'Simulador Valora'!$AQ$70)) -> 0.12 | AD22: 0 | AE22: 0 | AF22: 0 | AG22: 0 | AH22: 0 | AI22: =IF(AD22<=0,0,AD22*IF('Simulador Valora'!$AC$81=1,0,'Simulador Valora'!$Y$75))+IF(AD22<=0,0,IF('Simulador Valora'!$X$41=1,'Simulador Valora'!$O$55,IF('Simulador Valora'!$X$41=2,'Simulador Valora'!$K$55,'Simulador Valora'!$E$55))) -> 0 | AK22: 0 | AL22: 0 | AN22: 0 | AO22: 6 | AP22: 0 | AQ22: 0 | AR22: 0 | AS22: 235 | AU22: 0 | AV22: 6
A23: 7 | B23: 0 | D23: =IF(B23+F23-D22<=0,B23+F23,IF(A23=$B$9,$F$9,IF(A23=$B$10,$F$10,IF(AND('Simulador Valora'!$AH$45=2,L22=0),D22*(1+Z23),IF($AM$3=2,B23*AL23,D22*(1+Z23)))))) -> 0 | F23: 0 | H23: 0 | N23: =IF('Simulador Valora'!$V$66=1,0,L23*'Simulador Valora'!$O$69*'Simulador Valora'!$W$65) -> 0 | P23: 0 | R23: 0 | T23: =IF(B23<=0,0,B23*IF('Simulador Valora'!$AC$81=1,0,'Simulador Valora'!$Y$75)) -> 0 | V23: =IF(B23<=0,0,IF('Simulador Valora'!$X$41=1,'Simulador Valora'!$O$55,IF('Simulador Valora'!$X$41=2,'Simulador Valora'!$K$55,'Simulador Valora'!$E$55))) -> 0 | X23: 0 | AB23: 0 | AC23: =IF('Simulador Valora'!$X$41=1,'Simulador Valora'!$AG$70,IF('Simulador Valora'!$X$41=2,'Simulador Valora'!$AL$70,'Simulador Valora'!$AQ$70)) -> 0.12 | AD23: 0 | AE23: 0 | AF23: 0 | AG23: 0 | AH23: 0 | AI23: =IF(AD23<=0,0,AD23*IF('Simulador Valora'!$AC$81=1,0,'Simulador Valora'!$Y$75))+IF(AD23<=0,0,IF('Simulador Valora'!$X$41=1,'Simulador Valora'!$O$55,IF('Simulador Valora'!$X$41=2,'Simulador Valora'!$K$55,'Simulador Valora'!$E$55))) -> 0 | AK23: 0 | AL23: 0 | AN23: 0 | AO23: 7 | AP23: 0 | AQ23: 0 | AR23: 0 | AS23: 234 | AU23: 0 | AV23: 7
A24: 8 | B24: 0 | D24: =IF(B24+F24-D23<=0,B24+F24,IF(A24=$B$9,$F$9,IF(A24=$B$10,$F$10,IF(AND('Simulador Valora'!$AH$45=2,L23=0),D23*(1+Z24),IF($AM$3=2,B24*AL24,D23*(1+Z24)))))) -> 0 | F24: 0 | H24: 0 | J24: =IF(B24-H24=0,0,J22) -> 0 | N24: =IF('Simulador Valora'!$V$66=1,0,L24*'Simulador Valora'!$O$69*'Simulador Valora'!$W$65) -> 0 | P24: 0 | R24: 0 | T24: =IF(B24<=0,0,B24*IF('Simulador Valora'!$AC$81=1,0,'Simulador Valora'!$Y$75)) -> 0 | V24: =IF(B24<=0,0,IF('Simulador Valora'!$X$41=1,'Simulador Valora'!$O$55,IF('Simulador Valora'!$X$41=2,'Simulador Valora'!$K$55,'Simulador Valora'!$E$55))) -> 0 | X24: 0 | AB24: 0 | AC24: =IF('Simulador Valora'!$X$41=1,'Simulador Valora'!$AG$70,IF('Simulador Valora'!$X$41=2,'Simulador Valora'!$AL$70,'Simulador Valora'!$AQ$70)) -> 0.12 | AD24: 0 | AE24: 0 | AF24: 0 | AG24: 0 | AH24: 0 | AI24: =IF(AD24<=0,0,AD24*IF('Simulador Valora'!$AC$81=1,0,'Simulador Valora'!$Y$75))+IF(AD24<=0,0,IF('Simulador Valora'!$X$41=1,'Simulador Valora'!$O$55,IF('Simulador Valora'!$X$41=2,'Simulador Valora'!$K$55,'Simulador Valora'!$E$55))) -> 0 | AK24: 0 | AL24: 0 | AN24: 0 | AO24: 8 | AP24: 0 | AQ24: 0 | AR24: 0 | AS24: 233 | AU24: 0 | AV24: 8
A25: 9 | B25: 0 | D25: =IF(B25+F25-D24<=0,B25+F25,IF(A25=$B$9,$F$9,IF(A25=$B$10,$F$10,IF(AND('Simulador Valora'!$AH$45=2,L24=0),D24*(1+Z25),IF($AM$3=2,B25*AL25,D24*(1+Z25)))))) -> 0 | F25: 0 | H25: 0 | N25: =IF('Simulador Valora'!$V$66=1,0,L25*'Simulador Valora'!$O$69*'Simulador Valora'!$W$65) -> 0 | P25: 0 | R25: 0 | T25: =IF(B25<=0,0,B25*IF('Simulador Valora'!$AC$81=1,0,'Simulador Valora'!$Y$75)) -> 0 | V25: =IF(B25<=0,0,IF('Simulador Valora'!$X$41=1,'Simulador Valora'!$O$55,IF('Simulador Valora'!$X$41=2,'Simulador Valora'!$K$55,'Simulador Valora'!$E$55))) -> 0 | X25: 0 | AB25: 0 | AC25: =IF('Simulador Valora'!$X$41=1,'Simulador Valora'!$AG$70,IF('Simulador Valora'!$X$41=2,'Simulador Valora'!$AL$70,'Simulador Valora'!$AQ$70)) -> 0.12 | AD25: 0 | AE25: 0 | AF25: 0 | AG25: 0 | AH25: 0 | AI25: =IF(AD25<=0,0,AD25*IF('Simulador Valora'!$AC$81=1,0,'Simulador Valora'!$Y$75))+IF(AD25<=0,0,IF('Simulador Valora'!$X$41=1,'Simulador Valora'!$O$55,IF('Simulador Valora'!$X$41=2,'Simulador Valora'!$K$55,'Simulador Valora'!$E$55))) -> 0 | AK25: 0 | AL25: 0 | AN25: 0 | AO25: 9 | AP25: 0 | AQ25: 0 | AR25: 0 | AS25: 232 | AU25: 0 | AV25: 9
A26: 10 | B26: 0 | D26: =IF(B26+F26-D25<=0,B26+F26,IF(A26=$B$9,$F$9,IF(A26=$B$10,$F$10,IF(AND('Simulador Valora'!$AH$45=2,L25=0),D25*(1+Z26),IF($AM$3=2,B26*AL26,D25*(1+Z26)))))) -> 0 | F26: 0 | H26: 0 | J26: =IF(B26-H26=0,0,J24) -> 0 | N26: =IF('Simulador Valora'!$V$66=1,0,L26*'Simulador Valora'!$O$69*'Simulador Valora'!$W$65) -> 0 | P26: 0 | R26: 0 | T26: =IF(B26<=0,0,B26*IF('Simulador Valora'!$AC$81=1,0,'Simulador Valora'!$Y$75)) -> 0 | V26: =IF(B26<=0,0,IF('Simulador Valora'!$X$41=1,'Simulador Valora'!$O$55,IF('Simulador Valora'!$X$41=2,'Simulador Valora'!$K$55,'Simulador Valora'!$E$55))) -> 0 | X26: 0 | AB26: 0 | AC26: =IF('Simulador Valora'!$X$41=1,'Simulador Valora'!$AG$70,IF('Simulador Valora'!$X$41=2,'Simulador Valora'!$AL$70,'Simulador Valora'!$AQ$70)) -> 0.12 | AD26: 0 | AE26: 0 | AF26: 0 | AG26: 0 | AH26: 0 | AI26: =IF(AD26<=0,0,AD26*IF('Simulador Valora'!$AC$81=1,0,'Simulador Valora'!$Y$75))+IF(AD26<=0,0,IF('Simulador Valora'!$X$41=1,'Simulador Valora'!$O$55,IF('Simulador Valora'!$X$41=2,'Simulador Valora'!$K$55,'Simulador Valora'!$E$55))) -> 0 | AK26: 0 | AL26: 0 | AN26: 0 | AO26: 10 | AP26: 0 | AQ26: 0 | AR26: 0 | AS26: 231 | AU26: 0 | AV26: 10
A27: 11 | B27: 0 | D27: =IF(B27+F27-D26<=0,B27+F27,IF(A27=$B$9,$F$9,IF(A27=$B$10,$F$10,IF(AND('Simulador Valora'!$AH$45=2,L26=0),D26*(1+Z27),IF($AM$3=2,B27*AL27,D26*(1+Z27)))))) -> 0 | F27: 0 | H27: 0 | N27: =IF('Simulador Valora'!$V$66=1,0,L27*'Simulador Valora'!$O$69*'Simulador Valora'!$W$65) -> 0 | P27: 0 | R27: 0 | T27: =IF(B27<=0,0,B27*IF('Simulador Valora'!$AC$81=1,0,'Simulador Valora'!$Y$75)) -> 0 | V27: =IF(B27<=0,0,IF('Simulador Valora'!$X$41=1,'Simulador Valora'!$O$55,IF('Simulador Valora'!$X$41=2,'Simulador Valora'!$K$55,'Simulador Valora'!$E$55))) -> 0 | X27: 0 | AB27: 0 | AC27: =IF('Simulador Valora'!$X$41=1,'Simulador Valora'!$AG$70,IF('Simulador Valora'!$X$41=2,'Simulador Valora'!$AL$70,'Simulador Valora'!$AQ$70)) -> 0.12 | AD27: 0 | AE27: 0 | AF27: 0 | AG27: 0 | AH27: 0 | AI27: =IF(AD27<=0,0,AD27*IF('Simulador Valora'!$AC$81=1,0,'Simulador Valora'!$Y$75))+IF(AD27<=0,0,IF('Simulador Valora'!$X$41=1,'Simulador Valora'!$O$55,IF('Simulador Valora'!$X$41=2,'Simulador Valora'!$K$55,'Simulador Valora'!$E$55))) -> 0 | AK27: 0 | AL27: 0 | AN27: 0 | AO27: 11 | AP27: 0 | AQ27: 0 | AR27: 0 | AS27: 230 | AU27: 0 | AV27: 11
A28: 12 | B28: 0 | D28: =IF(B28+F28-D27<=0,B28+F28,IF(A28=$B$9,$F$9,IF(A28=$B$10,$F$10,IF(AND('Simulador Valora'!$AH$45=2,L27=0),D27*(1+Z28),IF($AM$3=2,B28*AL28,D27*(1+Z28)))))) -> 0 | F28: 0 | H28: 0 | J28: =IF(B28-H28=0,0,J26) -> 0 | N28: =IF('Simulador Valora'!$V$66=1,0,L28*'Simulador Valora'!$O$69*'Simulador Valora'!$W$65) -> 0 | P28: 0 | R28: 0 | T28: =IF(B28<=0,0,B28*IF('Simulador Valora'!$AC$81=1,0,'Simulador Valora'!$Y$75)) -> 0 | V28: =IF(B28<=0,0,IF('Simulador Valora'!$X$41=1,'Simulador Valora'!$O$55,IF('Simulador Valora'!$X$41=2,'Simulador Valora'!$K$55,'Simulador Valora'!$E$55))) -> 0 | X28: 0 | AB28: 0 | AC28: =IF('Simulador Valora'!$X$41=1,'Simulador Valora'!$AG$70,IF('Simulador Valora'!$X$41=2,'Simulador Valora'!$AL$70,'Simulador Valora'!$AQ$70)) -> 0.12 | AD28: 0 | AE28: 0 | AF28: 0 | AG28: 0 | AH28: 0 | AI28: =IF(AD28<=0,0,AD28*IF('Simulador Valora'!$AC$81=1,0,'Simulador Valora'!$Y$75))+IF(AD28<=0,0,IF('Simulador Valora'!$X$41=1,'Simulador Valora'!$O$55,IF('Simulador Valora'!$X$41=2,'Simulador Valora'!$K$55,'Simulador Valora'!$E$55))) -> 0 | AK28: 0 | AL28: 0 | AN28: 1 | AO28: 0 | AP28: 0 | AQ28: 0 | AR28: 0 | AS28: 229 | AU28: 0 | AV28: 12
A29: 13 | B29: 0 | D29: =IF(B29+F29-D28<=0,B29+F29,IF(A29=$B$9,$F$9,IF(A29=$B$10,$F$10,IF(AND('Simulador Valora'!$AH$45=2,L28=0),D28*(1+Z29),IF($AM$3=2,B29*AL29,D28*(1+Z29)))))) -> 0 | F29: 0 | H29: 0 | N29: =IF('Simulador Valora'!$V$66=1,0,L29*'Simulador Valora'!$O$69*'Simulador Valora'!$W$65) -> 0 | P29: 0 | R29: 0 | T29: =IF(B29<=0,0,B29*IF('Simulador Valora'!$AC$81=1,0,'Simulador Valora'!$Y$75)) -> 0 | V29: =IF(B29<=0,0,IF('Simulador Valora'!$X$41=1,'Simulador Valora'!$O$55,IF('Simulador Valora'!$X$41=2,'Simulador Valora'!$K$55,'Simulador Valora'!$E$55))) -> 0 | X29: 0 | Z29: =IF(B29<=0,0,'Simulador Valora'!$AI$54) -> 0 | AB29: 0 | AC29: =IF('Simulador Valora'!$X$41=1,'Simulador Valora'!$AG$70,IF('Simulador Valora'!$X$41=2,'Simulador Valora'!$AL$70,'Simulador Valora'!$AQ$70)) -> 0.12 | AD29: 0 | AE29: 0 | AF29: 0 | AG29: 0 | AH29: 0 | AI29: =IF(AD29<=0,0,AD29*IF('Simulador Valora'!$AC$81=1,0,'Simulador Valora'!$Y$75))+IF(AD29<=0,0,IF('Simulador Valora'!$X$41=1,'Simulador Valora'!$O$55,IF('Simulador Valora'!$X$41=2,'Simulador Valora'!$K$55,'Simulador Valora'!$E$55))) -> 0 | AJ29: =IF(B29<=0,0,'Simulador Valora'!$AI$54) -> 0 | AK29: 0 | AL29: 0 | AN29: 1 | AO29: 1 | AP29: 0 | AQ29: 0 | AR29: 0 | AS29: 228 | AU29: 0 | AV29: 13
A30: 14 | B30: 0 | D30: =IF(B30+F30-D29<=0,B30+F30,IF(A30=$B$9,$F$9,IF(A30=$B$10,$F$10,IF(AND('Simulador Valora'!$AH$45=2,L29=0),D29*(1+Z30),IF($AM$3=2,B30*AL30,D29*(1+Z30)))))) -> 0 | F30: 0 | H30: 0 | J30: =IF(B30-H30=0,0,J28*(1+(3%))) -> 0 | N30: =IF('Simulador Valora'!$V$66=1,0,L30*'Simulador Valora'!$O$69*'Simulador Valora'!$W$65) -> 0 | P30: 0 | R30: 0 | T30: =IF(B30<=0,0,B30*IF('Simulador Valora'!$AC$81=1,0,'Simulador Valora'!$Y$75)) -> 0 | V30: =IF(B30<=0,0,IF('Simulador Valora'!$X$41=1,'Simulador Valora'!$O$55,IF('Simulador Valora'!$X$41=2,'Simulador Valora'!$K$55,'Simulador Valora'!$E$55))) -> 0 | X30: 0 | AB30: 0 | AC30: =IF('Simulador Valora'!$X$41=1,'Simulador Valora'!$AG$70,IF('Simulador Valora'!$X$41=2,'Simulador Valora'!$AL$70,'Simulador Valora'!$AQ$70)) -> 0.12 | AD30: 0 | AE30: 0 | AF30: 0 | AG30: 0 | AH30: 0 | AI30: =IF(AD30<=0,0,AD30*IF('Simulador Valora'!$AC$81=1,0,'Simulador Valora'!$Y$75))+IF(AD30<=0,0,IF('Simulador Valora'!$X$41=1,'Simulador Valora'!$O$55,IF('Simulador Valora'!$X$41=2,'Simulador Valora'!$K$55,'Simulador Valora'!$E$55))) -> 0 | AK30: 0 | AL30: 0 | AN30: 1 | AO30: 2 | AP30: 0 | AQ30: 0 | AR30: 0 | AS30: 227 | AU30: 0 | AV30: 14
A31: 15 | B31: 0 | D31: =IF(B31+F31-D30<=0,B31+F31,IF(A31=$B$9,$F$9,IF(A31=$B$10,$F$10,IF(AND('Simulador Valora'!$AH$45=2,L30=0),D30*(1+Z31),IF($AM$3=2,B31*AL31,D30*(1+Z31)))))) -> 0 | F31: 0 | H31: 0 | N31: =IF('Simulador Valora'!$V$66=1,0,L31*'Simulador Valora'!$O$69*'Simulador Valora'!$W$65) -> 0 | P31: 0 | R31: 0 | T31: =IF(B31<=0,0,B31*IF('Simulador Valora'!$AC$81=1,0,'Simulador Valora'!$Y$75)) -> 0 | V31: =IF(B31<=0,0,IF('Simulador Valora'!$X$41=1,'Simulador Valora'!$O$55,IF('Simulador Valora'!$X$41=2,'Simulador Valora'!$K$55,'Simulador Valora'!$E$55))) -> 0 | X31: 0 | AB31: 0 | AC31: =IF('Simulador Valora'!$X$41=1,'Simulador Valora'!$AG$70,IF('Simulador Valora'!$X$41=2,'Simulador Valora'!$AL$70,'Simulador Valora'!$AQ$70)) -> 0.12 | AD31: 0 | AE31: 0 | AF31: 0 | AG31: 0 | AH31: 0 | AI31: =IF(AD31<=0,0,AD31*IF('Simulador Valora'!$AC$81=1,0,'Simulador Valora'!$Y$75))+IF(AD31<=0,0,IF('Simulador Valora'!$X$41=1,'Simulador Valora'!$O$55,IF('Simulador Valora'!$X$41=2,'Simulador Valora'!$K$55,'Simulador Valora'!$E$55))) -> 0 | AK31: 0 | AL31: 0 | AN31: 1 | AO31: 3 | AP31: 0 | AQ31: 0 | AR31: 0 | AS31: 226 | AU31: 0 | AV31: 15
A32: 16 | B32: 0 | D32: =IF(B32+F32-D31<=0,B32+F32,IF(A32=$B$9,$F$9,IF(A32=$B$10,$F$10,IF(AND('Simulador Valora'!$AH$45=2,L31=0),D31*(1+Z32),IF($AM$3=2,B32*AL32,D31*(1+Z32)))))) -> 0 | F32: 0 | H32: 0 | J32: =IF(B32-H32=0,0,J30) -> 0 | N32: =IF('Simulador Valora'!$V$66=1,0,L32*'Simulador Valora'!$O$69*'Simulador Valora'!$W$65) -> 0 | P32: 0 | R32: 0 | T32: =IF(B32<=0,0,B32*IF('Simulador Valora'!$AC$81=1,0,'Simulador Valora'!$Y$75)) -> 0 | V32: =IF(B32<=0,0,IF('Simulador Valora'!$X$41=1,'Simulador Valora'!$O$55,IF('Simulador Valora'!$X$41=2,'Simulador Valora'!$K$55,'Simulador Valora'!$E$55))) -> 0 | X32: 0 | AB32: 0 | AC32: =IF('Simulador Valora'!$X$41=1,'Simulador Valora'!$AG$70,IF('Simulador Valora'!$X$41=2,'Simulador Valora'!$AL$70,'Simulador Valora'!$AQ$70)) -> 0.12 | AD32: 0 | AE32: 0 | AF32: 0 | AG32: 0 | AH32: 0 | AI32: =IF(AD32<=0,0,AD32*IF('Simulador Valora'!$AC$81=1,0,'Simulador Valora'!$Y$75))+IF(AD32<=0,0,IF('Simulador Valora'!$X$41=1,'Simulador Valora'!$O$55,IF('Simulador Valora'!$X$41=2,'Simulador Valora'!$K$55,'Simulador Valora'!$E$55))) -> 0 | AK32: 0 | AL32: 0 | AN32: 1 | AO32: 4 | AP32: 0 | AQ32: 0 | AR32: 0 | AS32: 225 | AU32: 0 | AV32: 16
A33: 17 | B33: 0 | D33: =IF(B33+F33-D32<=0,B33+F33,IF(A33=$B$9,$F$9,IF(A33=$B$10,$F$10,IF(AND('Simulador Valora'!$AH$45=2,L32=0),D32*(1+Z33),IF($AM$3=2,B33*AL33,D32*(1+Z33)))))) -> 0 | F33: 0 | H33: 0 | N33: =IF('Simulador Valora'!$V$66=1,0,L33*'Simulador Valora'!$O$69*'Simulador Valora'!$W$65) -> 0 | P33: 0 | R33: 0 | T33: =IF(B33<=0,0,B33*IF('Simulador Valora'!$AC$81=1,0,'Simulador Valora'!$Y$75)) -> 0 | V33: =IF(B33<=0,0,IF('Simulador Valora'!$X$41=1,'Simulador Valora'!$O$55,IF('Simulador Valora'!$X$41=2,'Simulador Valora'!$K$55,'Simulador Valora'!$E$55))) -> 0 | X33: 0 | AB33: 0 | AC33: =IF('Simulador Valora'!$X$41=1,'Simulador Valora'!$AG$70,IF('Simulador Valora'!$X$41=2,'Simulador Valora'!$AL$70,'Simulador Valora'!$AQ$70)) -> 0.12 | AD33: 0 | AE33: 0 | AF33: 0 | AG33: 0 | AH33: 0 | AI33: =IF(AD33<=0,0,AD33*IF('Simulador Valora'!$AC$81=1,0,'Simulador Valora'!$Y$75))+IF(AD33<=0,0,IF('Simulador Valora'!$X$41=1,'Simulador Valora'!$O$55,IF('Simulador Valora'!$X$41=2,'Simulador Valora'!$K$55,'Simulador Valora'!$E$55))) -> 0 | AK33: 0 | AL33: 0 | AN33: 1 | AO33: 5 | AP33: 0 | AQ33: 0 | AR33: 0 | AS33: 224 | AU33: 0 | AV33: 17
A34: 18 | B34: 0 | D34: =IF(B34+F34-D33<=0,B34+F34,IF(A34=$B$9,$F$9,IF(A34=$B$10,$F$10,IF(AND('Simulador Valora'!$AH$45=2,L33=0),D33*(1+Z34),IF($AM$3=2,B34*AL34,D33*(1+Z34)))))) -> 0 | F34: 0 | H34: 0 | J34: =IF(B34-H34=0,0,J32) -> 0 | N34: =IF('Simulador Valora'!$V$66=1,0,L34*'Simulador Valora'!$O$69*'Simulador Valora'!$W$65) -> 0 | P34: 0 | R34: 0 | T34: =IF(B34<=0,0,B34*IF('Simulador Valora'!$AC$81=1,0,'Simulador Valora'!$Y$75)) -> 0 | V34: =IF(B34<=0,0,IF('Simulador Valora'!$X$41=1,'Simulador Valora'!$O$55,IF('Simulador Valora'!$X$41=2,'Simulador Valora'!$K$55,'Simulador Valora'!$E$55))) -> 0 | X34: 0 | AB34: 0 | AC34: =IF('Simulador Valora'!$X$41=1,'Simulador Valora'!$AG$70,IF('Simulador Valora'!$X$41=2,'Simulador Valora'!$AL$70,'Simulador Valora'!$AQ$70)) -> 0.12 | AD34: 0 | AE34: 0 | AF34: 0 | AG34: 0 | AH34: 0 | AI34: =IF(AD34<=0,0,AD34*IF('Simulador Valora'!$AC$81=1,0,'Simulador Valora'!$Y$75))+IF(AD34<=0,0,IF('Simulador Valora'!$X$41=1,'Simulador Valora'!$O$55,IF('Simulador Valora'!$X$41=2,'Simulador Valora'!$K$55,'Simulador Valora'!$E$55))) -> 0 | AK34: 0 | AL34: 0 | AN34: 1 | AO34: 6 | AP34: 0 | AQ34: 0 | AR34: 0 | AS34: 223 | AU34: 0 | AV34: 18
A35: 19 | B35: 0 | D35: =IF(B35+F35-D34<=0,B35+F35,IF(A35=$B$9,$F$9,IF(A35=$B$10,$F$10,IF(AND('Simulador Valora'!$AH$45=2,L34=0),D34*(1+Z35),IF($AM$3=2,B35*AL35,D34*(1+Z35)))))) -> 0 | F35: 0 | H35: 0 | N35: =IF('Simulador Valora'!$V$66=1,0,L35*'Simulador Valora'!$O$69*'Simulador Valora'!$W$65) -> 0 | P35: 0 | R35: 0 | T35: =IF(B35<=0,0,B35*IF('Simulador Valora'!$AC$81=1,0,'Simulador Valora'!$Y$75)) -> 0 | V35: =IF(B35<=0,0,IF('Simulador Valora'!$X$41=1,'Simulador Valora'!$O$55,IF('Simulador Valora'!$X$41=2,'Simulador Valora'!$K$55,'Simulador Valora'!$E$55))) -> 0 | X35: 0 | AB35: 0 | AC35: =IF('Simulador Valora'!$X$41=1,'Simulador Valora'!$AG$70,IF('Simulador Valora'!$X$41=2,'Simulador Valora'!$AL$70,'Simulador Valora'!$AQ$70)) -> 0.12 | AD35: 0 | AE35: 0 | AF35: 0 | AG35: 0 | AH35: 0 | AI35: =IF(AD35<=0,0,AD35*IF('Simulador Valora'!$AC$81=1,0,'Simulador Valora'!$Y$75))+IF(AD35<=0,0,IF('Simulador Valora'!$X$41=1,'Simulador Valora'!$O$55,IF('Simulador Valora'!$X$41=2,'Simulador Valora'!$K$55,'Simulador Valora'!$E$55))) -> 0 | AK35: 0 | AL35: 0 | AN35: 1 | AO35: 7 | AP35: 0 | AQ35: 0 | AR35: 0 | AS35: 222 | AU35: 0 | AV35: 19
A36: 20 | B36: 0 | D36: =IF(B36+F36-D35<=0,B36+F36,IF(A36=$B$9,$F$9,IF(A36=$B$10,$F$10,IF(AND('Simulador Valora'!$AH$45=2,L35=0),D35*(1+Z36),IF($AM$3=2,B36*AL36,D35*(1+Z36)))))) -> 0 | F36: 0 | H36: 0 | J36: =IF(B36-H36=0,0,J34) -> 0 | N36: =IF('Simulador Valora'!$V$66=1,0,L36*'Simulador Valora'!$O$69*'Simulador Valora'!$W$65) -> 0 | P36: 0 | R36: 0 | T36: =IF(B36<=0,0,B36*IF('Simulador Valora'!$AC$81=1,0,'Simulador Valora'!$Y$75)) -> 0 | V36: =IF(B36<=0,0,IF('Simulador Valora'!$X$41=1,'Simulador Valora'!$O$55,IF('Simulador Valora'!$X$41=2,'Simulador Valora'!$K$55,'Simulador Valora'!$E$55))) -> 0 | X36: 0 | AB36: 0 | AC36: =IF('Simulador Valora'!$X$41=1,'Simulador Valora'!$AG$70,IF('Simulador Valora'!$X$41=2,'Simulador Valora'!$AL$70,'Simulador Valora'!$AQ$70)) -> 0.12 | AD36: 0 | AE36: 0 | AF36: 0 | AG36: 0 | AH36: 0 | AI36: =IF(AD36<=0,0,AD36*IF('Simulador Valora'!$AC$81=1,0,'Simulador Valora'!$Y$75))+IF(AD36<=0,0,IF('Simulador Valora'!$X$41=1,'Simulador Valora'!$O$55,IF('Simulador Valora'!$X$41=2,'Simulador Valora'!$K$55,'Simulador Valora'!$E$55))) -> 0 | AK36: 0 | AL36: 0 | AN36: 1 | AO36: 8 | AP36: 0 | AQ36: 0 | AR36: 0 | AS36: 221 | AU36: 0 | AV36: 20
A37: 21 | B37: 0 | D37: =IF(B37+F37-D36<=0,B37+F37,IF(A37=$B$9,$F$9,IF(A37=$B$10,$F$10,IF(AND('Simulador Valora'!$AH$45=2,L36=0),D36*(1+Z37),IF($AM$3=2,B37*AL37,D36*(1+Z37)))))) -> 0 | F37: 0 | H37: 0 | N37: =IF('Simulador Valora'!$V$66=1,0,L37*'Simulador Valora'!$O$69*'Simulador Valora'!$W$65) -> 0 | P37: 0 | R37: 0 | T37: =IF(B37<=0,0,B37*IF('Simulador Valora'!$AC$81=1,0,'Simulador Valora'!$Y$75)) -> 0 | V37: =IF(B37<=0,0,IF('Simulador Valora'!$X$41=1,'Simulador Valora'!$O$55,IF('Simulador Valora'!$X$41=2,'Simulador Valora'!$K$55,'Simulador Valora'!$E$55))) -> 0 | X37: 0 | AB37: 0 | AC37: =IF('Simulador Valora'!$X$41=1,'Simulador Valora'!$AG$70,IF('Simulador Valora'!$X$41=2,'Simulador Valora'!$AL$70,'Simulador Valora'!$AQ$70)) -> 0.12 | AD37: 0 | AE37: 0 | AF37: 0 | AG37: 0 | AH37: 0 | AI37: =IF(AD37<=0,0,AD37*IF('Simulador Valora'!$AC$81=1,0,'Simulador Valora'!$Y$75))+IF(AD37<=0,0,IF('Simulador Valora'!$X$41=1,'Simulador Valora'!$O$55,IF('Simulador Valora'!$X$41=2,'Simulador Valora'!$K$55,'Simulador Valora'!$E$55))) -> 0 | AK37: 0 | AL37: 0 | AN37: 1 | AO37: 9 | AP37: 0 | AQ37: 0 | AR37: 0 | AS37: 220 | AU37: 0 | AV37: 21
A38: 22 | B38: 0 | D38: =IF(B38+F38-D37<=0,B38+F38,IF(A38=$B$9,$F$9,IF(A38=$B$10,$F$10,IF(AND('Simulador Valora'!$AH$45=2,L37=0),D37*(1+Z38),IF($AM$3=2,B38*AL38,D37*(1+Z38)))))) -> 0 | F38: 0 | H38: 0 | J38: =IF(B38-H38=0,0,J36) -> 0 | N38: =IF('Simulador Valora'!$V$66=1,0,L38*'Simulador Valora'!$O$69*'Simulador Valora'!$W$65) -> 0 | P38: 0 | R38: 0 | T38: =IF(B38<=0,0,B38*IF('Simulador Valora'!$AC$81=1,0,'Simulador Valora'!$Y$75)) -> 0 | V38: =IF(B38<=0,0,IF('Simulador Valora'!$X$41=1,'Simulador Valora'!$O$55,IF('Simulador Valora'!$X$41=2,'Simulador Valora'!$K$55,'Simulador Valora'!$E$55))) -> 0 | X38: 0 | AB38: 0 | AC38: =IF('Simulador Valora'!$X$41=1,'Simulador Valora'!$AG$70,IF('Simulador Valora'!$X$41=2,'Simulador Valora'!$AL$70,'Simulador Valora'!$AQ$70)) -> 0.12 | AD38: 0 | AE38: 0 | AF38: 0 | AG38: 0 | AH38: 0 | AI38: =IF(AD38<=0,0,AD38*IF('Simulador Valora'!$AC$81=1,0,'Simulador Valora'!$Y$75))+IF(AD38<=0,0,IF('Simulador Valora'!$X$41=1,'Simulador Valora'!$O$55,IF('Simulador Valora'!$X$41=2,'Simulador Valora'!$K$55,'Simulador Valora'!$E$55))) -> 0 | AK38: 0 | AL38: 0 | AN38: 1 | AO38: 10 | AP38: 0 | AQ38: 0 | AR38: 0 | AS38: 219 | AU38: 0 | AV38: 22
A39: 23 | B39: 0 | D39: =IF(B39+F39-D38<=0,B39+F39,IF(A39=$B$9,$F$9,IF(A39=$B$10,$F$10,IF(AND('Simulador Valora'!$AH$45=2,L38=0),D38*(1+Z39),IF($AM$3=2,B39*AL39,D38*(1+Z39)))))) -> 0 | F39: 0 | H39: 0 | N39: =IF('Simulador Valora'!$V$66=1,0,L39*'Simulador Valora'!$O$69*'Simulador Valora'!$W$65) -> 0 | P39: 0 | R39: 0 | T39: =IF(B39<=0,0,B39*IF('Simulador Valora'!$AC$81=1,0,'Simulador Valora'!$Y$75)) -> 0 | V39: =IF(B39<=0,0,IF('Simulador Valora'!$X$41=1,'Simulador Valora'!$O$55,IF('Simulador Valora'!$X$41=2,'Simulador Valora'!$K$55,'Simulador Valora'!$E$55))) -> 0 | X39: 0 | AB39: 0 | AC39: =IF('Simulador Valora'!$X$41=1,'Simulador Valora'!$AG$70,IF('Simulador Valora'!$X$41=2,'Simulador Valora'!$AL$70,'Simulador Valora'!$AQ$70)) -> 0.12 | AD39: 0 | AE39: 0 | AF39: 0 | AG39: 0 | AH39: 0 | AI39: =IF(AD39<=0,0,AD39*IF('Simulador Valora'!$AC$81=1,0,'Simulador Valora'!$Y$75))+IF(AD39<=0,0,IF('Simulador Valora'!$X$41=1,'Simulador Valora'!$O$55,IF('Simulador Valora'!$X$41=2,'Simulador Valora'!$K$55,'Simulador Valora'!$E$55))) -> 0 | AK39: 0 | AL39: 0 | AN39: 1 | AO39: 11 | AP39: 0 | AQ39: 0 | AR39: 0 | AS39: 218 | AU39: 0 | AV39: 23
A40: 24 | B40: 0 | D40: =IF(B40+F40-D39<=0,B40+F40,IF(A40=$B$9,$F$9,IF(A40=$B$10,$F$10,IF(AND('Simulador Valora'!$AH$45=2,L39=0),D39*(1+Z40),IF($AM$3=2,B40*AL40,D39*(1+Z40)))))) -> 0 | F40: 0 | H40: 0 | J40: =IF(B40-H40=0,0,J38) -> 0 | N40: =IF('Simulador Valora'!$V$66=1,0,L40*'Simulador Valora'!$O$69*'Simulador Valora'!$W$65) -> 0 | P40: 0 | R40: 0 | T40: =IF(B40<=0,0,B40*IF('Simulador Valora'!$AC$81=1,0,'Simulador Valora'!$Y$75)) -> 0 | V40: =IF(B40<=0,0,IF('Simulador Valora'!$X$41=1,'Simulador Valora'!$O$55,IF('Simulador Valora'!$X$41=2,'Simulador Valora'!$K$55,'Simulador Valora'!$E$55))) -> 0 | X40: 0 | AB40: 0 | AC40: =IF('Simulador Valora'!$X$41=1,'Simulador Valora'!$AG$70,IF('Simulador Valora'!$X$41=2,'Simulador Valora'!$AL$70,'Simulador Valora'!$AQ$70)) -> 0.12 | AD40: 0 | AE40: 0 | AF40: 0 | AG40: 0 | AH40: 0 | AI40: =IF(AD40<=0,0,AD40*IF('Simulador Valora'!$AC$81=1,0,'Simulador Valora'!$Y$75))+IF(AD40<=0,0,IF('Simulador Valora'!$X$41=1,'Simulador Valora'!$O$55,IF('Simulador Valora'!$X$41=2,'Simulador Valora'!$K$55,'Simulador Valora'!$E$55))) -> 0 | AK40: 0 | AL40: 0 | AN40: 2 | AO40: 0 | AP40: 0 | AQ40: 0 | AR40: 0 | AS40: 217 | AU40: 0 | AV40: 24
A41: 25 | B41: 0 | D41: =IF(B41+F41-D40<=0,B41+F41,IF(A41=$B$9,$F$9,IF(A41=$B$10,$F$10,IF(AND('Simulador Valora'!$AH$45=2,L40=0),D40*(1+Z41),IF($AM$3=2,B41*AL41,D40*(1+Z41)))))) -> 0 | F41: 0 | H41: 0 | N41: =IF('Simulador Valora'!$V$66=1,0,L41*'Simulador Valora'!$O$69*'Simulador Valora'!$W$65) -> 0 | P41: 0 | R41: 0 | T41: =IF(B41<=0,0,B41*IF('Simulador Valora'!$AC$81=1,0,'Simulador Valora'!$Y$75)) -> 0 | V41: =IF(B41<=0,0,IF('Simulador Valora'!$X$41=1,'Simulador Valora'!$O$55,IF('Simulador Valora'!$X$41=2,'Simulador Valora'!$K$55,'Simulador Valora'!$E$55))) -> 0 | X41: 0 | Z41: =IF(B41<=0,0,'Simulador Valora'!$AI$54) -> 0 | AB41: 0 | AC41: =IF('Simulador Valora'!$X$41=1,'Simulador Valora'!$AG$70,IF('Simulador Valora'!$X$41=2,'Simulador Valora'!$AL$70,'Simulador Valora'!$AQ$70)) -> 0.12 | AD41: 0 | AE41: 0 | AF41: 0 | AG41: 0 | AH41: 0 | AI41: =IF(AD41<=0,0,AD41*IF('Simulador Valora'!$AC$81=1,0,'Simulador Valora'!$Y$75))+IF(AD41<=0,0,IF('Simulador Valora'!$X$41=1,'Simulador Valora'!$O$55,IF('Simulador Valora'!$X$41=2,'Simulador Valora'!$K$55,'Simulador Valora'!$E$55))) -> 0 | AJ41: =IF(AC41<=0,0,$AJ$29) -> 0 | AK41: 0 | AL41: 0 | AN41: 2 | AO41: 1 | AP41: 0 | AQ41: 0 | AR41: 0 | AS41: 216 | AU41: 0 | AV41: 25
A42: 26 | B42: 0 | D42: =IF(B42+F42-D41<=0,B42+F42,IF(A42=$B$9,$F$9,IF(A42=$B$10,$F$10,IF(AND('Simulador Valora'!$AH$45=2,L41=0),D41*(1+Z42),IF($AM$3=2,B42*AL42,D41*(1+Z42)))))) -> 0 | F42: 0 | H42: 0 | J42: =IF(B42-H42=0,0,J40*(1+(3%))) -> 0 | N42: =IF('Simulador Valora'!$V$66=1,0,L42*'Simulador Valora'!$O$69*'Simulador Valora'!$W$65) -> 0 | P42: 0 | R42: 0 | T42: =IF(B42<=0,0,B42*IF('Simulador Valora'!$AC$81=1,0,'Simulador Valora'!$Y$75)) -> 0 | V42: =IF(B42<=0,0,IF('Simulador Valora'!$X$41=1,'Simulador Valora'!$O$55,IF('Simulador Valora'!$X$41=2,'Simulador Valora'!$K$55,'Simulador Valora'!$E$55))) -> 0 | X42: 0 | AB42: 0 | AC42: =IF('Simulador Valora'!$X$41=1,'Simulador Valora'!$AG$70,IF('Simulador Valora'!$X$41=2,'Simulador Valora'!$AL$70,'Simulador Valora'!$AQ$70)) -> 0.12 | AD42: 0 | AE42: 0 | AF42: 0 | AG42: 0 | AH42: 0 | AI42: =IF(AD42<=0,0,AD42*IF('Simulador Valora'!$AC$81=1,0,'Simulador Valora'!$Y$75))+IF(AD42<=0,0,IF('Simulador Valora'!$X$41=1,'Simulador Valora'!$O$55,IF('Simulador Valora'!$X$41=2,'Simulador Valora'!$K$55,'Simulador Valora'!$E$55))) -> 0 | AK42: 0 | AL42: 0 | AN42: 2 | AO42: 2 | AP42: 0 | AQ42: 0 | AR42: 0 | AS42: 215 | AU42: 0 | AV42: 26
A43: 27 | B43: 0 | D43: =IF(B43+F43-D42<=0,B43+F43,IF(A43=$B$9,$F$9,IF(A43=$B$10,$F$10,IF(AND('Simulador Valora'!$AH$45=2,L42=0),D42*(1+Z43),IF($AM$3=2,B43*AL43,D42*(1+Z43)))))) -> 0 | F43: 0 | H43: 0 | N43: =IF('Simulador Valora'!$V$66=1,0,L43*'Simulador Valora'!$O$69*'Simulador Valora'!$W$65) -> 0 | P43: 0 | R43: 0 | T43: =IF(B43<=0,0,B43*IF('Simulador Valora'!$AC$81=1,0,'Simulador Valora'!$Y$75)) -> 0 | V43: =IF(B43<=0,0,IF('Simulador Valora'!$X$41=1,'Simulador Valora'!$O$55,IF('Simulador Valora'!$X$41=2,'Simulador Valora'!$K$55,'Simulador Valora'!$E$55))) -> 0 | X43: 0 | AB43: 0 | AC43: =IF('Simulador Valora'!$X$41=1,'Simulador Valora'!$AG$70,IF('Simulador Valora'!$X$41=2,'Simulador Valora'!$AL$70,'Simulador Valora'!$AQ$70)) -> 0.12 | AD43: 0 | AE43: 0 | AF43: 0 | AG43: 0 | AH43: 0 | AI43: =IF(AD43<=0,0,AD43*IF('Simulador Valora'!$AC$81=1,0,'Simulador Valora'!$Y$75))+IF(AD43<=0,0,IF('Simulador Valora'!$X$41=1,'Simulador Valora'!$O$55,IF('Simulador Valora'!$X$41=2,'Simulador Valora'!$K$55,'Simulador Valora'!$E$55))) -> 0 | AK43: 0 | AL43: 0 | AN43: 2 | AO43: 3 | AP43: 0 | AQ43: 0 | AR43: 0 | AS43: 214 | AU43: 0 | AV43: 27
A44: 28 | B44: 0 | D44: =IF(B44+F44-D43<=0,B44+F44,IF(A44=$B$9,$F$9,IF(A44=$B$10,$F$10,IF(AND('Simulador Valora'!$AH$45=2,L43=0),D43*(1+Z44),IF($AM$3=2,B44*AL44,D43*(1+Z44)))))) -> 0 | F44: 0 | H44: 0 | J44: =IF(B44-H44=0,0,J42) -> 0 | N44: =IF('Simulador Valora'!$V$66=1,0,L44*'Simulador Valora'!$O$69*'Simulador Valora'!$W$65) -> 0 | P44: 0 | R44: 0 | T44: =IF(B44<=0,0,B44*IF('Simulador Valora'!$AC$81=1,0,'Simulador Valora'!$Y$75)) -> 0 | V44: =IF(B44<=0,0,IF('Simulador Valora'!$X$41=1,'Simulador Valora'!$O$55,IF('Simulador Valora'!$X$41=2,'Simulador Valora'!$K$55,'Simulador Valora'!$E$55))) -> 0 | X44: 0 | AB44: 0 | AC44: =IF('Simulador Valora'!$X$41=1,'Simulador Valora'!$AG$70,IF('Simulador Valora'!$X$41=2,'Simulador Valora'!$AL$70,'Simulador Valora'!$AQ$70)) -> 0.12 | AD44: 0 | AE44: 0 | AF44: 0 | AG44: 0 | AH44: 0 | AI44: =IF(AD44<=0,0,AD44*IF('Simulador Valora'!$AC$81=1,0,'Simulador Valora'!$Y$75))+IF(AD44<=0,0,IF('Simulador Valora'!$X$41=1,'Simulador Valora'!$O$55,IF('Simulador Valora'!$X$41=2,'Simulador Valora'!$K$55,'Simulador Valora'!$E$55))) -> 0 | AK44: 0 | AL44: 0 | AN44: 2 | AO44: 4 | AP44: 0 | AQ44: 0 | AR44: 0 | AS44: 213 | AU44: 0 | AV44: 28
A45: 29 | B45: 0 | D45: =IF(B45+F45-D44<=0,B45+F45,IF(A45=$B$9,$F$9,IF(A45=$B$10,$F$10,IF(AND('Simulador Valora'!$AH$45=2,L44=0),D44*(1+Z45),IF($AM$3=2,B45*AL45,D44*(1+Z45)))))) -> 0 | F45: 0 | H45: 0 | N45: =IF('Simulador Valora'!$V$66=1,0,L45*'Simulador Valora'!$O$69*'Simulador Valora'!$W$65) -> 0 | P45: 0 | R45: 0 | T45: =IF(B45<=0,0,B45*IF('Simulador Valora'!$AC$81=1,0,'Simulador Valora'!$Y$75)) -> 0 | V45: =IF(B45<=0,0,IF('Simulador Valora'!$X$41=1,'Simulador Valora'!$O$55,IF('Simulador Valora'!$X$41=2,'Simulador Valora'!$K$55,'Simulador Valora'!$E$55))) -> 0 | X45: 0 | AB45: 0 | AC45: =IF('Simulador Valora'!$X$41=1,'Simulador Valora'!$AG$70,IF('Simulador Valora'!$X$41=2,'Simulador Valora'!$AL$70,'Simulador Valora'!$AQ$70)) -> 0.12 | AD45: 0 | AE45: 0 | AF45: 0 | AG45: 0 | AH45: 0 | AI45: =IF(AD45<=0,0,AD45*IF('Simulador Valora'!$AC$81=1,0,'Simulador Valora'!$Y$75))+IF(AD45<=0,0,IF('Simulador Valora'!$X$41=1,'Simulador Valora'!$O$55,IF('Simulador Valora'!$X$41=2,'Simulador Valora'!$K$55,'Simulador Valora'!$E$55))) -> 0 | AK45: 0 | AL45: 0 | AN45: 2 | AO45: 5 | AP45: 0 | AQ45: 0 | AR45: 0 | AS45: 212 | AU45: 0 | AV45: 29
A46: 30 | B46: 0 | D46: =IF(B46+F46-D45<=0,B46+F46,IF(A46=$B$9,$F$9,IF(A46=$B$10,$F$10,IF(AND('Simulador Valora'!$AH$45=2,L45=0),D45*(1+Z46),IF($AM$3=2,B46*AL46,D45*(1+Z46)))))) -> 0 | F46: 0 | H46: 0 | J46: =IF(B46-H46=0,0,J44) -> 0 | N46: =IF('Simulador Valora'!$V$66=1,0,L46*'Simulador Valora'!$O$69*'Simulador Valora'!$W$65) -> 0 | P46: 0 | R46: 0 | T46: =IF(B46<=0,0,B46*IF('Simulador Valora'!$AC$81=1,0,'Simulador Valora'!$Y$75)) -> 0 | V46: =IF(B46<=0,0,IF('Simulador Valora'!$X$41=1,'Simulador Valora'!$O$55,IF('Simulador Valora'!$X$41=2,'Simulador Valora'!$K$55,'Simulador Valora'!$E$55))) -> 0 | X46: 0 | AB46: 0 | AC46: =IF('Simulador Valora'!$X$41=1,'Simulador Valora'!$AG$70,IF('Simulador Valora'!$X$41=2,'Simulador Valora'!$AL$70,'Simulador Valora'!$AQ$70)) -> 0.12 | AD46: 0 | AE46: 0 | AF46: 0 | AG46: 0 | AH46: 0 | AI46: =IF(AD46<=0,0,AD46*IF('Simulador Valora'!$AC$81=1,0,'Simulador Valora'!$Y$75))+IF(AD46<=0,0,IF('Simulador Valora'!$X$41=1,'Simulador Valora'!$O$55,IF('Simulador Valora'!$X$41=2,'Simulador Valora'!$K$55,'Simulador Valora'!$E$55))) -> 0 | AK46: 0 | AL46: 0 | AN46: 2 | AO46: 6 | AP46: 0 | AQ46: 0 | AR46: 0 | AS46: 211 | AU46: 0 | AV46: 30
A47: 31 | B47: 0 | D47: =IF(B47+F47-D46<=0,B47+F47,IF(A47=$B$9,$F$9,IF(A47=$B$10,$F$10,IF(AND('Simulador Valora'!$AH$45=2,L46=0),D46*(1+Z47),IF($AM$3=2,B47*AL47,D46*(1+Z47)))))) -> 0 | F47: 0 | H47: 0 | N47: =IF('Simulador Valora'!$V$66=1,0,L47*'Simulador Valora'!$O$69*'Simulador Valora'!$W$65) -> 0 | P47: 0 | R47: 0 | T47: =IF(B47<=0,0,B47*IF('Simulador Valora'!$AC$81=1,0,'Simulador Valora'!$Y$75)) -> 0 | V47: =IF(B47<=0,0,IF('Simulador Valora'!$X$41=1,'Simulador Valora'!$O$55,IF('Simulador Valora'!$X$41=2,'Simulador Valora'!$K$55,'Simulador Valora'!$E$55))) -> 0 | X47: 0 | AB47: 0 | AC47: =IF('Simulador Valora'!$X$41=1,'Simulador Valora'!$AG$70,IF('Simulador Valora'!$X$41=2,'Simulador Valora'!$AL$70,'Simulador Valora'!$AQ$70)) -> 0.12 | AD47: 0 | AE47: 0 | AF47: 0 | AG47: 0 | AH47: 0 | AI47: =IF(AD47<=0,0,AD47*IF('Simulador Valora'!$AC$81=1,0,'Simulador Valora'!$Y$75))+IF(AD47<=0,0,IF('Simulador Valora'!$X$41=1,'Simulador Valora'!$O$55,IF('Simulador Valora'!$X$41=2,'Simulador Valora'!$K$55,'Simulador Valora'!$E$55))) -> 0 | AK47: 0 | AL47: 0 | AN47: 2 | AO47: 7 | AP47: 0 | AQ47: 0 | AR47: 0 | AS47: 210 | AU47: 0 | AV47: 31
A48: 32 | B48: 0 | D48: =IF(B48+F48-D47<=0,B48+F48,IF(A48=$B$9,$F$9,IF(A48=$B$10,$F$10,IF(AND('Simulador Valora'!$AH$45=2,L47=0),D47*(1+Z48),IF($AM$3=2,B48*AL48,D47*(1+Z48)))))) -> 0 | F48: 0 | H48: 0 | J48: =IF(B48-H48=0,0,J46) -> 0 | N48: =IF('Simulador Valora'!$V$66=1,0,L48*'Simulador Valora'!$O$69*'Simulador Valora'!$W$65) -> 0 | P48: 0 | R48: 0 | T48: =IF(B48<=0,0,B48*IF('Simulador Valora'!$AC$81=1,0,'Simulador Valora'!$Y$75)) -> 0 | V48: =IF(B48<=0,0,IF('Simulador Valora'!$X$41=1,'Simulador Valora'!$O$55,IF('Simulador Valora'!$X$41=2,'Simulador Valora'!$K$55,'Simulador Valora'!$E$55))) -> 0 | X48: 0 | AB48: 0 | AC48: =IF('Simulador Valora'!$X$41=1,'Simulador Valora'!$AG$70,IF('Simulador Valora'!$X$41=2,'Simulador Valora'!$AL$70,'Simulador Valora'!$AQ$70)) -> 0.12 | AD48: 0 | AE48: 0 | AF48: 0 | AG48: 0 | AH48: 0 | AI48: =IF(AD48<=0,0,AD48*IF('Simulador Valora'!$AC$81=1,0,'Simulador Valora'!$Y$75))+IF(AD48<=0,0,IF('Simulador Valora'!$X$41=1,'Simulador Valora'!$O$55,IF('Simulador Valora'!$X$41=2,'Simulador Valora'!$K$55,'Simulador Valora'!$E$55))) -> 0 | AK48: 0 | AL48: 0 | AN48: 2 | AO48: 8 | AP48: 0 | AQ48: 0 | AR48: 0 | AS48: 209 | AU48: 0 | AV48: 32
A49: 33 | B49: 0 | D49: =IF(B49+F49-D48<=0,B49+F49,IF(A49=$B$9,$F$9,IF(A49=$B$10,$F$10,IF(AND('Simulador Valora'!$AH$45=2,L48=0),D48*(1+Z49),IF($AM$3=2,B49*AL49,D48*(1+Z49)))))) -> 0 | F49: 0 | H49: 0 | N49: =IF('Simulador Valora'!$V$66=1,0,L49*'Simulador Valora'!$O$69*'Simulador Valora'!$W$65) -> 0 | P49: 0 | R49: 0 | T49: =IF(B49<=0,0,B49*IF('Simulador Valora'!$AC$81=1,0,'Simulador Valora'!$Y$75)) -> 0 | V49: =IF(B49<=0,0,IF('Simulador Valora'!$X$41=1,'Simulador Valora'!$O$55,IF('Simulador Valora'!$X$41=2,'Simulador Valora'!$K$55,'Simulador Valora'!$E$55))) -> 0 | X49: 0 | AB49: 0 | AC49: =IF('Simulador Valora'!$X$41=1,'Simulador Valora'!$AG$70,IF('Simulador Valora'!$X$41=2,'Simulador Valora'!$AL$70,'Simulador Valora'!$AQ$70)) -> 0.12 | AD49: 0 | AE49: 0 | AF49: 0 | AG49: 0 | AH49: 0 | AI49: =IF(AD49<=0,0,AD49*IF('Simulador Valora'!$AC$81=1,0,'Simulador Valora'!$Y$75))+IF(AD49<=0,0,IF('Simulador Valora'!$X$41=1,'Simulador Valora'!$O$55,IF('Simulador Valora'!$X$41=2,'Simulador Valora'!$K$55,'Simulador Valora'!$E$55))) -> 0 | AK49: 0 | AL49: 0 | AN49: 2 | AO49: 9 | AP49: 0 | AQ49: 0 | AR49: 0 | AS49: 208 | AU49: 0 | AV49: 33
A50: 34 | B50: 0 | D50: =IF(B50+F50-D49<=0,B50+F50,IF(A50=$B$9,$F$9,IF(A50=$B$10,$F$10,IF(AND('Simulador Valora'!$AH$45=2,L49=0),D49*(1+Z50),IF($AM$3=2,B50*AL50,D49*(1+Z50)))))) -> 0 | F50: 0 | H50: 0 | J50: =IF(B50-H50=0,0,J48) -> 0 | N50: =IF('Simulador Valora'!$V$66=1,0,L50*'Simulador Valora'!$O$69*'Simulador Valora'!$W$65) -> 0 | P50: 0 | R50: 0 | T50: =IF(B50<=0,0,B50*IF('Simulador Valora'!$AC$81=1,0,'Simulador Valora'!$Y$75)) -> 0 | V50: =IF(B50<=0,0,IF('Simulador Valora'!$X$41=1,'Simulador Valora'!$O$55,IF('Simulador Valora'!$X$41=2,'Simulador Valora'!$K$55,'Simulador Valora'!$E$55))) -> 0 | X50: 0 | AB50: 0 | AC50: =IF('Simulador Valora'!$X$41=1,'Simulador Valora'!$AG$70,IF('Simulador Valora'!$X$41=2,'Simulador Valora'!$AL$70,'Simulador Valora'!$AQ$70)) -> 0.12 | AD50: 0 | AE50: 0 | AF50: 0 | AG50: 0 | AH50: 0 | AI50: =IF(AD50<=0,0,AD50*IF('Simulador Valora'!$AC$81=1,0,'Simulador Valora'!$Y$75))+IF(AD50<=0,0,IF('Simulador Valora'!$X$41=1,'Simulador Valora'!$O$55,IF('Simulador Valora'!$X$41=2,'Simulador Valora'!$K$55,'Simulador Valora'!$E$55))) -> 0 | AK50: 0 | AL50: 0 | AN50: 2 | AO50: 10 | AP50: 0 | AQ50: 0 | AR50: 0 | AS50: =IFERROR(IF(AC50<=0.01,0,AS49-1),0) -> 207 | AU50: 0 | AV50: 34
A51: 35 | B51: 0 | D51: =IF(B51+F51-D50<=0,B51+F51,IF(A51=$B$9,$F$9,IF(A51=$B$10,$F$10,IF(AND('Simulador Valora'!$AH$45=2,L50=0),D50*(1+Z51),IF($AM$3=2,B51*AL51,D50*(1+Z51)))))) -> 0 | F51: 0 | H51: 0 | N51: =IF('Simulador Valora'!$V$66=1,0,L51*'Simulador Valora'!$O$69*'Simulador Valora'!$W$65) -> 0 | P51: 0 | R51: 0 | T51: =IF(B51<=0,0,B51*IF('Simulador Valora'!$AC$81=1,0,'Simulador Valora'!$Y$75)) -> 0 | V51: =IF(B51<=0,0,IF('Simulador Valora'!$X$41=1,'Simulador Valora'!$O$55,IF('Simulador Valora'!$X$41=2,'Simulador Valora'!$K$55,'Simulador Valora'!$E$55))) -> 0 | X51: 0 | AB51: 0 | AC51: =IF('Simulador Valora'!$X$41=1,'Simulador Valora'!$AG$70,IF('Simulador Valora'!$X$41=2,'Simulador Valora'!$AL$70,'Simulador Valora'!$AQ$70)) -> 0.12 | AD51: 0 | AE51: 0 | AF51: 0 | AG51: 0 | AH51: 0 | AI51: =IF(AD51<=0,0,AD51*IF('Simulador Valora'!$AC$81=1,0,'Simulador Valora'!$Y$75))+IF(AD51<=0,0,IF('Simulador Valora'!$X$41=1,'Simulador Valora'!$O$55,IF('Simulador Valora'!$X$41=2,'Simulador Valora'!$K$55,'Simulador Valora'!$E$55))) -> 0 | AK51: 0 | AL51: 0 | AN51: 2 | AO51: 11 | AP51: 0 | AQ51: 0 | AR51: 0 | AS51: 206 | AU51: 0 | AV51: 35
A52: 36 | B52: 0 | D52: =IF(B52+F52-D51<=0,B52+F52,IF(A52=$B$9,$F$9,IF(A52=$B$10,$F$10,IF(AND('Simulador Valora'!$AH$45=2,L51=0),D51*(1+Z52),IF($AM$3=2,B52*AL52,D51*(1+Z52)))))) -> 0 | F52: 0 | H52: 0 | J52: =IF(B52-H52=0,0,J50) -> 0 | N52: =IF('Simulador Valora'!$V$66=1,0,L52*'Simulador Valora'!$O$69*'Simulador Valora'!$W$65) -> 0 | P52: 0 | R52: 0 | T52: =IF(B52<=0,0,B52*IF('Simulador Valora'!$AC$81=1,0,'Simulador Valora'!$Y$75)) -> 0 | V52: =IF(B52<=0,0,IF('Simulador Valora'!$X$41=1,'Simulador Valora'!$O$55,IF('Simulador Valora'!$X$41=2,'Simulador Valora'!$K$55,'Simulador Valora'!$E$55))) -> 0 | X52: 0 | AB52: 0 | AC52: =IF('Simulador Valora'!$X$41=1,'Simulador Valora'!$AG$70,IF('Simulador Valora'!$X$41=2,'Simulador Valora'!$AL$70,'Simulador Valora'!$AQ$70)) -> 0.12 | AD52: 0 | AE52: 0 | AF52: 0 | AG52: 0 | AH52: 0 | AI52: =IF(AD52<=0,0,AD52*IF('Simulador Valora'!$AC$81=1,0,'Simulador Valora'!$Y$75))+IF(AD52<=0,0,IF('Simulador Valora'!$X$41=1,'Simulador Valora'!$O$55,IF('Simulador Valora'!$X$41=2,'Simulador Valora'!$K$55,'Simulador Valora'!$E$55))) -> 0 | AK52: 0 | AL52: 0 | AN52: 3 | AO52: 0 | AP52: 0 | AQ52: 0 | AR52: 0 | AS52: 205 | AU52: 0 | AV52: 36
A53: 37 | B53: 0 | D53: =IF(B53+F53-D52<=0,B53+F53,IF(A53=$B$9,$F$9,IF(A53=$B$10,$F$10,IF(AND('Simulador Valora'!$AH$45=2,L52=0),D52*(1+Z53),IF($AM$3=2,B53*AL53,D52*(1+Z53)))))) -> 0 | F53: 0 | H53: 0 | N53: =IF('Simulador Valora'!$V$66=1,0,L53*'Simulador Valora'!$O$69*'Simulador Valora'!$W$65) -> 0 | P53: 0 | R53: 0 | T53: =IF(B53<=0,0,B53*IF('Simulador Valora'!$AC$81=1,0,'Simulador Valora'!$Y$75)) -> 0 | V53: =IF(B53<=0,0,IF('Simulador Valora'!$X$41=1,'Simulador Valora'!$O$55,IF('Simulador Valora'!$X$41=2,'Simulador Valora'!$K$55,'Simulador Valora'!$E$55))) -> 0 | X53: 0 | Z53: =IF(B53<=0,0,'Simulador Valora'!$AI$54) -> 0 | AB53: 0 | AC53: =IF(AC52=$AC$6,AC52,IF(AC52-0.25%<=$AC$6,$AC$6,AC52-0.25%)) -> 0.12 | AD53: 0 | AE53: 0 | AF53: 0 | AG53: 0 | AH53: 0 | AI53: =IF(AD53<=0,0,AD53*IF('Simulador Valora'!$AC$81=1,0,'Simulador Valora'!$Y$75))+IF(AD53<=0,0,IF('Simulador Valora'!$X$41=1,'Simulador Valora'!$O$55,IF('Simulador Valora'!$X$41=2,'Simulador Valora'!$K$55,'Simulador Valora'!$E$55))) -> 0 | AJ53: =IF(AC53<=0,0,$AJ$29) -> 0 | AK53: 0 | AL53: 0 | AN53: 3 | AO53: 1 | AP53: 0 | AQ53: 0 | AR53: 0 | AS53: 204 | AU53: 0 | AV53: 37
A54: 38 | B54: 0 | D54: =IF(B54+F54-D53<=0,B54+F54,IF(A54=$B$9,$F$9,IF(A54=$B$10,$F$10,IF(AND('Simulador Valora'!$AH$45=2,L53=0),D53*(1+Z54),IF($AM$3=2,B54*AL54,D53*(1+Z54)))))) -> 0 | F54: 0 | H54: 0 | J54: =IF(B54-H54=0,0,J52*(1+(3%))) -> 0 | N54: =IF('Simulador Valora'!$V$66=1,0,L54*'Simulador Valora'!$O$69*'Simulador Valora'!$W$65) -> 0 | P54: 0 | R54: 0 | T54: =IF(B54<=0,0,B54*IF('Simulador Valora'!$AC$81=1,0,'Simulador Valora'!$Y$75)) -> 0 | V54: =IF(B54<=0,0,IF('Simulador Valora'!$X$41=1,'Simulador Valora'!$O$55,IF('Simulador Valora'!$X$41=2,'Simulador Valora'!$K$55,'Simulador Valora'!$E$55))) -> 0 | X54: 0 | AB54: 0 | AC54: =AC53 -> 0.12 | AD54: 0 | AE54: 0 | AF54: 0 | AG54: 0 | AH54: 0 | AI54: =IF(AD54<=0,0,AD54*IF('Simulador Valora'!$AC$81=1,0,'Simulador Valora'!$Y$75))+IF(AD54<=0,0,IF('Simulador Valora'!$X$41=1,'Simulador Valora'!$O$55,IF('Simulador Valora'!$X$41=2,'Simulador Valora'!$K$55,'Simulador Valora'!$E$55))) -> 0 | AK54: 0 | AL54: 0 | AN54: 3 | AO54: 2 | AP54: 0 | AQ54: 0 | AR54: 0 | AS54: 203 | AU54: 0 | AV54: 38
A55: 39 | B55: 0 | D55: =IF(B55+F55-D54<=0,B55+F55,IF(A55=$B$9,$F$9,IF(A55=$B$10,$F$10,IF(AND('Simulador Valora'!$AH$45=2,L54=0),D54*(1+Z55),IF($AM$3=2,B55*AL55,D54*(1+Z55)))))) -> 0 | F55: 0 | H55: 0 | N55: =IF('Simulador Valora'!$V$66=1,0,L55*'Simulador Valora'!$O$69*'Simulador Valora'!$W$65) -> 0 | P55: 0 | R55: 0 | T55: =IF(B55<=0,0,B55*IF('Simulador Valora'!$AC$81=1,0,'Simulador Valora'!$Y$75)) -> 0 | V55: =IF(B55<=0,0,IF('Simulador Valora'!$X$41=1,'Simulador Valora'!$O$55,IF('Simulador Valora'!$X$41=2,'Simulador Valora'!$K$55,'Simulador Valora'!$E$55))) -> 0 | X55: 0 | AB55: 0 | AC55: =AC54 -> 0.12 | AD55: 0 | AE55: 0 | AF55: 0 | AG55: 0 | AH55: 0 | AI55: =IF(AD55<=0,0,AD55*IF('Simulador Valora'!$AC$81=1,0,'Simulador Valora'!$Y$75))+IF(AD55<=0,0,IF('Simulador Valora'!$X$41=1,'Simulador Valora'!$O$55,IF('Simulador Valora'!$X$41=2,'Simulador Valora'!$K$55,'Simulador Valora'!$E$55))) -> 0 | AK55: 0 | AL55: 0 | AN55: 3 | AO55: 3 | AP55: 0 | AQ55: 0 | AR55: 0 | AS55: 202 | AU55: 0 | AV55: 39
A56: 40 | B56: 0 | D56: =IF(B56+F56-D55<=0,B56+F56,IF(A56=$B$9,$F$9,IF(A56=$B$10,$F$10,IF(AND('Simulador Valora'!$AH$45=2,L55=0),D55*(1+Z56),IF($AM$3=2,B56*AL56,D55*(1+Z56)))))) -> 0 | F56: 0 | H56: 0 | J56: =IF(B56-H56=0,0,J54) -> 0 | N56: =IF('Simulador Valora'!$V$66=1,0,L56*'Simulador Valora'!$O$69*'Simulador Valora'!$W$65) -> 0 | P56: 0 | R56: 0 | T56: =IF(B56<=0,0,B56*IF('Simulador Valora'!$AC$81=1,0,'Simulador Valora'!$Y$75)) -> 0 | V56: =IF(B56<=0,0,IF('Simulador Valora'!$X$41=1,'Simulador Valora'!$O$55,IF('Simulador Valora'!$X$41=2,'Simulador Valora'!$K$55,'Simulador Valora'!$E$55))) -> 0 | X56: 0 | AB56: 0 | AC56: 0.12 | AD56: 0 | AE56: 0 | AF56: 0 | AG56: 0 | AH56: 0 | AI56: =IF(AD56<=0,0,AD56*IF('Simulador Valora'!$AC$81=1,0,'Simulador Valora'!$Y$75))+IF(AD56<=0,0,IF('Simulador Valora'!$X$41=1,'Simulador Valora'!$O$55,IF('Simulador Valora'!$X$41=2,'Simulador Valora'!$K$55,'Simulador Valora'!$E$55))) -> 0 | AK56: 0 | AL56: 0 | AN56: 3 | AO56: 4 | AP56: 0 | AQ56: 0 | AR56: 0 | AS56: 201 | AU56: 0 | AV56: 40
A57: 41 | B57: 0 | D57: =IF(B57+F57-D56<=0,B57+F57,IF(A57=$B$9,$F$9,IF(A57=$B$10,$F$10,IF(AND('Simulador Valora'!$AH$45=2,L56=0),D56*(1+Z57),IF($AM$3=2,B57*AL57,D56*(1+Z57)))))) -> 0 | F57: 0 | H57: 0 | N57: =IF('Simulador Valora'!$V$66=1,0,L57*'Simulador Valora'!$O$69*'Simulador Valora'!$W$65) -> 0 | P57: 0 | R57: 0 | T57: =IF(B57<=0,0,B57*IF('Simulador Valora'!$AC$81=1,0,'Simulador Valora'!$Y$75)) -> 0 | V57: =IF(B57<=0,0,IF('Simulador Valora'!$X$41=1,'Simulador Valora'!$O$55,IF('Simulador Valora'!$X$41=2,'Simulador Valora'!$K$55,'Simulador Valora'!$E$55))) -> 0 | X57: 0 | AB57: 0 | AC57: 0.12 | AD57: 0 | AE57: 0 | AF57: 0 | AG57: 0 | AH57: 0 | AI57: =IF(AD57<=0,0,AD57*IF('Simulador Valora'!$AC$81=1,0,'Simulador Valora'!$Y$75))+IF(AD57<=0,0,IF('Simulador Valora'!$X$41=1,'Simulador Valora'!$O$55,IF('Simulador Valora'!$X$41=2,'Simulador Valora'!$K$55,'Simulador Valora'!$E$55))) -> 0 | AK57: 0 | AL57: 0 | AN57: 3 | AO57: 5 | AP57: 0 | AQ57: 0 | AR57: 0 | AS57: 200 | AU57: 0 | AV57: 41
A58: 42 | B58: 0 | D58: =IF(B58+F58-D57<=0,B58+F58,IF(A58=$B$9,$F$9,IF(A58=$B$10,$F$10,IF(AND('Simulador Valora'!$AH$45=2,L57=0),D57*(1+Z58),IF($AM$3=2,B58*AL58,D57*(1+Z58)))))) -> 0 | F58: 0 | H58: 0 | J58: =IF(B58-H58=0,0,J56) -> 0 | N58: =IF('Simulador Valora'!$V$66=1,0,L58*'Simulador Valora'!$O$69*'Simulador Valora'!$W$65) -> 0 | P58: 0 | R58: 0 | T58: =IF(B58<=0,0,B58*IF('Simulador Valora'!$AC$81=1,0,'Simulador Valora'!$Y$75)) -> 0 | V58: =IF(B58<=0,0,IF('Simulador Valora'!$X$41=1,'Simulador Valora'!$O$55,IF('Simulador Valora'!$X$41=2,'Simulador Valora'!$K$55,'Simulador Valora'!$E$55))) -> 0 | X58: 0 | AB58: 0 | AC58: 0.12 | AD58: 0 | AE58: 0 | AF58: 0 | AG58: 0 | AH58: 0 | AI58: =IF(AD58<=0,0,AD58*IF('Simulador Valora'!$AC$81=1,0,'Simulador Valora'!$Y$75))+IF(AD58<=0,0,IF('Simulador Valora'!$X$41=1,'Simulador Valora'!$O$55,IF('Simulador Valora'!$X$41=2,'Simulador Valora'!$K$55,'Simulador Valora'!$E$55))) -> 0 | AK58: 0 | AL58: 0 | AN58: 3 | AO58: 6 | AP58: 0 | AQ58: 0 | AR58: 0 | AS58: 199 | AU58: 0 | AV58: 42
A59: 43 | B59: 0 | D59: =IF(B59+F59-D58<=0,B59+F59,IF(A59=$B$9,$F$9,IF(A59=$B$10,$F$10,IF(AND('Simulador Valora'!$AH$45=2,L58=0),D58*(1+Z59),IF($AM$3=2,B59*AL59,D58*(1+Z59)))))) -> 0 | F59: 0 | H59: 0 | N59: =IF('Simulador Valora'!$V$66=1,0,L59*'Simulador Valora'!$O$69*'Simulador Valora'!$W$65) -> 0 | P59: 0 | R59: 0 | T59: =IF(B59<=0,0,B59*IF('Simulador Valora'!$AC$81=1,0,'Simulador Valora'!$Y$75)) -> 0 | V59: =IF(B59<=0,0,IF('Simulador Valora'!$X$41=1,'Simulador Valora'!$O$55,IF('Simulador Valora'!$X$41=2,'Simulador Valora'!$K$55,'Simulador Valora'!$E$55))) -> 0 | X59: 0 | AB59: 0 | AC59: 0.12 | AD59: 0 | AE59: 0 | AF59: 0 | AG59: 0 | AH59: 0 | AI59: =IF(AD59<=0,0,AD59*IF('Simulador Valora'!$AC$81=1,0,'Simulador Valora'!$Y$75))+IF(AD59<=0,0,IF('Simulador Valora'!$X$41=1,'Simulador Valora'!$O$55,IF('Simulador Valora'!$X$41=2,'Simulador Valora'!$K$55,'Simulador Valora'!$E$55))) -> 0 | AK59: 0 | AL59: 0 | AN59: 3 | AO59: 7 | AP59: 0 | AQ59: 0 | AR59: 0 | AS59: 198 | AU59: 0 | AV59: 43
A60: 44 | B60: 0 | D60: =IF(B60+F60-D59<=0,B60+F60,IF(A60=$B$9,$F$9,IF(A60=$B$10,$F$10,IF(AND('Simulador Valora'!$AH$45=2,L59=0),D59*(1+Z60),IF($AM$3=2,B60*AL60,D59*(1+Z60)))))) -> 0 | F60: 0 | H60: 0 | J60: =IF(B60-H60=0,0,J58) -> 0 | N60: =IF('Simulador Valora'!$V$66=1,0,L60*'Simulador Valora'!$O$69*'Simulador Valora'!$W$65) -> 0 | P60: 0 | R60: 0 | T60: =IF(B60<=0,0,B60*IF('Simulador Valora'!$AC$81=1,0,'Simulador Valora'!$Y$75)) -> 0 | V60: =IF(B60<=0,0,IF('Simulador Valora'!$X$41=1,'Simulador Valora'!$O$55,IF('Simulador Valora'!$X$41=2,'Simulador Valora'!$K$55,'Simulador Valora'!$E$55))) -> 0 | X60: 0 | AB60: 0 | AC60: 0.12 | AD60: 0 | AE60: 0 | AF60: 0 | AG60: 0 | AH60: 0 | AI60: =IF(AD60<=0,0,AD60*IF('Simulador Valora'!$AC$81=1,0,'Simulador Valora'!$Y$75))+IF(AD60<=0,0,IF('Simulador Valora'!$X$41=1,'Simulador Valora'!$O$55,IF('Simulador Valora'!$X$41=2,'Simulador Valora'!$K$55,'Simulador Valora'!$E$55))) -> 0 | AK60: 0 | AL60: 0 | AN60: 3 | AO60: 8 | AP60: 0 | AQ60: 0 | AR60: 0 | AS60: 197 | AU60: 0 | AV60: 44
A61: 45 | B61: 0 | D61: =IF(B61+F61-D60<=0,B61+F61,IF(A61=$B$9,$F$9,IF(A61=$B$10,$F$10,IF(AND('Simulador Valora'!$AH$45=2,L60=0),D60*(1+Z61),IF($AM$3=2,B61*AL61,D60*(1+Z61)))))) -> 0 | F61: 0 | H61: 0 | N61: =IF('Simulador Valora'!$V$66=1,0,L61*'Simulador Valora'!$O$69*'Simulador Valora'!$W$65) -> 0 | P61: 0 | R61: 0 | T61: =IF(B61<=0,0,B61*IF('Simulador Valora'!$AC$81=1,0,'Simulador Valora'!$Y$75)) -> 0 | V61: =IF(B61<=0,0,IF('Simulador Valora'!$X$41=1,'Simulador Valora'!$O$55,IF('Simulador Valora'!$X$41=2,'Simulador Valora'!$K$55,'Simulador Valora'!$E$55))) -> 0 | X61: 0 | AB61: 0 | AC61: 0.12 | AD61: 0 | AE61: 0 | AF61: 0 | AG61: 0 | AH61: 0 | AI61: =IF(AD61<=0,0,AD61*IF('Simulador Valora'!$AC$81=1,0,'Simulador Valora'!$Y$75))+IF(AD61<=0,0,IF('Simulador Valora'!$X$41=1,'Simulador Valora'!$O$55,IF('Simulador Valora'!$X$41=2,'Simulador Valora'!$K$55,'Simulador Valora'!$E$55))) -> 0 | AK61: 0 | AL61: 0 | AN61: 3 | AO61: 9 | AP61: 0 | AQ61: 0 | AR61: 0 | AS61: 196 | AU61: 0 | AV61: 45
A62: 46 | B62: 0 | D62: =IF(B62+F62-D61<=0,B62+F62,IF(A62=$B$9,$F$9,IF(A62=$B$10,$F$10,IF(AND('Simulador Valora'!$AH$45=2,L61=0),D61*(1+Z62),IF($AM$3=2,B62*AL62,D61*(1+Z62)))))) -> 0 | F62: 0 | H62: 0 | J62: =IF(B62-H62=0,0,J60) -> 0 | N62: =IF('Simulador Valora'!$V$66=1,0,L62*'Simulador Valora'!$O$69*'Simulador Valora'!$W$65) -> 0 | P62: 0 | R62: 0 | T62: =IF(B62<=0,0,B62*IF('Simulador Valora'!$AC$81=1,0,'Simulador Valora'!$Y$75)) -> 0 | V62: =IF(B62<=0,0,IF('Simulador Valora'!$X$41=1,'Simulador Valora'!$O$55,IF('Simulador Valora'!$X$41=2,'Simulador Valora'!$K$55,'Simulador Valora'!$E$55))) -> 0 | X62: 0 | AB62: 0 | AC62: 0.12 | AD62: 0 | AE62: 0 | AF62: 0 | AG62: 0 | AH62: 0 | AI62: =IF(AD62<=0,0,AD62*IF('Simulador Valora'!$AC$81=1,0,'Simulador Valora'!$Y$75))+IF(AD62<=0,0,IF('Simulador Valora'!$X$41=1,'Simulador Valora'!$O$55,IF('Simulador Valora'!$X$41=2,'Simulador Valora'!$K$55,'Simulador Valora'!$E$55))) -> 0 | AK62: 0 | AL62: 0 | AN62: 3 | AO62: 10 | AP62: 0 | AQ62: 0 | AR62: 0 | AS62: 195 | AU62: 0 | AV62: 46
A63: 47 | B63: 0 | D63: =IF(B63+F63-D62<=0,B63+F63,IF(A63=$B$9,$F$9,IF(A63=$B$10,$F$10,IF(AND('Simulador Valora'!$AH$45=2,L62=0),D62*(1+Z63),IF($AM$3=2,B63*AL63,D62*(1+Z63)))))) -> 0 | F63: 0 | H63: 0 | N63: =IF('Simulador Valora'!$V$66=1,0,L63*'Simulador Valora'!$O$69*'Simulador Valora'!$W$65) -> 0 | P63: 0 | R63: 0 | T63: =IF(B63<=0,0,B63*IF('Simulador Valora'!$AC$81=1,0,'Simulador Valora'!$Y$75)) -> 0 | V63: =IF(B63<=0,0,IF('Simulador Valora'!$X$41=1,'Simulador Valora'!$O$55,IF('Simulador Valora'!$X$41=2,'Simulador Valora'!$K$55,'Simulador Valora'!$E$55))) -> 0 | X63: 0 | AB63: 0 | AC63: 0.12 | AD63: 0 | AE63: 0 | AF63: 0 | AG63: 0 | AH63: 0 | AI63: =IF(AD63<=0,0,AD63*IF('Simulador Valora'!$AC$81=1,0,'Simulador Valora'!$Y$75))+IF(AD63<=0,0,IF('Simulador Valora'!$X$41=1,'Simulador Valora'!$O$55,IF('Simulador Valora'!$X$41=2,'Simulador Valora'!$K$55,'Simulador Valora'!$E$55))) -> 0 | AK63: 0 | AL63: 0 | AN63: 3 | AO63: 11 | AP63: 0 | AQ63: 0 | AR63: 0 | AS63: 194 | AU63: 0 | AV63: 47
A64: 48 | B64: 0 | D64: =IF(B64+F64-D63<=0,B64+F64,IF(A64=$B$9,$F$9,IF(A64=$B$10,$F$10,IF(AND('Simulador Valora'!$AH$45=2,L63=0),D63*(1+Z64),IF($AM$3=2,B64*AL64,D63*(1+Z64)))))) -> 0 | F64: 0 | H64: 0 | J64: =IF(B64-H64=0,0,J62) -> 0 | N64: =IF('Simulador Valora'!$V$66=1,0,L64*'Simulador Valora'!$O$69*'Simulador Valora'!$W$65) -> 0 | P64: 0 | R64: 0 | T64: =IF(B64<=0,0,B64*IF('Simulador Valora'!$AC$81=1,0,'Simulador Valora'!$Y$75)) -> 0 | V64: =IF(B64<=0,0,IF('Simulador Valora'!$X$41=1,'Simulador Valora'!$O$55,IF('Simulador Valora'!$X$41=2,'Simulador Valora'!$K$55,'Simulador Valora'!$E$55))) -> 0 | X64: 0 | AB64: 0 | AC64: 0.12 | AD64: 0 | AE64: 0 | AF64: 0 | AG64: 0 | AH64: 0 | AI64: =IF(AD64<=0,0,AD64*IF('Simulador Valora'!$AC$81=1,0,'Simulador Valora'!$Y$75))+IF(AD64<=0,0,IF('Simulador Valora'!$X$41=1,'Simulador Valora'!$O$55,IF('Simulador Valora'!$X$41=2,'Simulador Valora'!$K$55,'Simulador Valora'!$E$55))) -> 0 | AK64: 0 | AL64: 0 | AN64: 4 | AO64: 0 | AP64: 0 | AQ64: 0 | AR64: 0 | AS64: 193 | AU64: 0 | AV64: 48
A65: 49 | B65: 0 | D65: =IF(B65+F65-D64<=0,B65+F65,IF(A65=$B$9,$F$9,IF(A65=$B$10,$F$10,IF(AND('Simulador Valora'!$AH$45=2,L64=0),D64*(1+Z65),IF($AM$3=2,B65*AL65,D64*(1+Z65)))))) -> 0 | F65: 0 | H65: 0 | N65: =IF('Simulador Valora'!$V$66=1,0,L65*'Simulador Valora'!$O$69*'Simulador Valora'!$W$65) -> 0 | P65: 0 | R65: 0 | T65: =IF(B65<=0,0,B65*IF('Simulador Valora'!$AC$81=1,0,'Simulador Valora'!$Y$75)) -> 0 | V65: =IF(B65<=0,0,IF('Simulador Valora'!$X$41=1,'Simulador Valora'!$O$55,IF('Simulador Valora'!$X$41=2,'Simulador Valora'!$K$55,'Simulador Valora'!$E$55))) -> 0 | X65: 0 | Z65: =IF(B65<=0,0,'Simulador Valora'!$AI$54) -> 0 | AB65: 0 | AC65: =IF(AC64=$AC$6,AC64,IF(AC64-0.25%<=$AC$6,$AC$6,AC64-0.25%)) -> 0.12 | AD65: 0 | AE65: 0 | AF65: 0 | AG65: 0 | AH65: 0 | AI65: =IF(AD65<=0,0,AD65*IF('Simulador Valora'!$AC$81=1,0,'Simulador Valora'!$Y$75))+IF(AD65<=0,0,IF('Simulador Valora'!$X$41=1,'Simulador Valora'!$O$55,IF('Simulador Valora'!$X$41=2,'Simulador Valora'!$K$55,'Simulador Valora'!$E$55))) -> 0 | AJ65: =IF(AC65<=0,0,$AJ$29) -> 0 | AK65: 0 | AL65: 0 | AN65: 4 | AO65: 1 | AP65: 0 | AQ65: 0 | AR65: 0 | AS65: 192 | AU65: 0 | AV65: 49
A66: 50 | B66: 0 | D66: =IF(B66+F66-D65<=0,B66+F66,IF(A66=$B$9,$F$9,IF(A66=$B$10,$F$10,IF(AND('Simulador Valora'!$AH$45=2,L65=0),D65*(1+Z66),IF($AM$3=2,B66*AL66,D65*(1+Z66)))))) -> 0 | F66: 0 | H66: 0 | J66: =IF(B66-H66=0,0,J64*(1+(3%))) -> 0 | N66: =IF('Simulador Valora'!$V$66=1,0,L66*'Simulador Valora'!$O$69*'Simulador Valora'!$W$65) -> 0 | P66: 0 | R66: 0 | T66: =IF(B66<=0,0,B66*IF('Simulador Valora'!$AC$81=1,0,'Simulador Valora'!$Y$75)) -> 0 | V66: =IF(B66<=0,0,IF('Simulador Valora'!$X$41=1,'Simulador Valora'!$O$55,IF('Simulador Valora'!$X$41=2,'Simulador Valora'!$K$55,'Simulador Valora'!$E$55))) -> 0 | X66: 0 | AB66: 0 | AC66: =AC65 -> 0.12 | AD66: 0 | AE66: 0 | AF66: 0 | AG66: 0 | AH66: 0 | AI66: =IF(AD66<=0,0,AD66*IF('Simulador Valora'!$AC$81=1,0,'Simulador Valora'!$Y$75))+IF(AD66<=0,0,IF('Simulador Valora'!$X$41=1,'Simulador Valora'!$O$55,IF('Simulador Valora'!$X$41=2,'Simulador Valora'!$K$55,'Simulador Valora'!$E$55))) -> 0 | AK66: 0 | AL66: 0 | AN66: 4 | AO66: 2 | AP66: 0 | AQ66: 0 | AR66: 0 | AS66: 191 | AU66: 0 | AV66: 50
A67: 51 | B67: 0 | D67: =IF(B67+F67-D66<=0,B67+F67,IF(A67=$B$9,$F$9,IF(A67=$B$10,$F$10,IF(AND('Simulador Valora'!$AH$45=2,L66=0),D66*(1+Z67),IF($AM$3=2,B67*AL67,D66*(1+Z67)))))) -> 0 | F67: 0 | H67: 0 | N67: =IF('Simulador Valora'!$V$66=1,0,L67*'Simulador Valora'!$O$69*'Simulador Valora'!$W$65) -> 0 | P67: 0 | R67: 0 | T67: =IF(B67<=0,0,B67*IF('Simulador Valora'!$AC$81=1,0,'Simulador Valora'!$Y$75)) -> 0 | V67: =IF(B67<=0,0,IF('Simulador Valora'!$X$41=1,'Simulador Valora'!$O$55,IF('Simulador Valora'!$X$41=2,'Simulador Valora'!$K$55,'Simulador Valora'!$E$55))) -> 0 | X67: 0 | AB67: 0 | AC67: =AC66 -> 0.12 | AD67: 0 | AE67: 0 | AF67: 0 | AG67: 0 | AH67: 0 | AI67: =IF(AD67<=0,0,AD67*IF('Simulador Valora'!$AC$81=1,0,'Simulador Valora'!$Y$75))+IF(AD67<=0,0,IF('Simulador Valora'!$X$41=1,'Simulador Valora'!$O$55,IF('Simulador Valora'!$X$41=2,'Simulador Valora'!$K$55,'Simulador Valora'!$E$55))) -> 0 | AK67: 0 | AL67: 0 | AN67: 4 | AO67: 3 | AP67: 0 | AQ67: 0 | AR67: 0 | AS67: 190 | AU67: 0 | AV67: 51
A68: 52 | B68: 0 | D68: =IF(B68+F68-D67<=0,B68+F68,IF(A68=$B$9,$F$9,IF(A68=$B$10,$F$10,IF(AND('Simulador Valora'!$AH$45=2,L67=0),D67*(1+Z68),IF($AM$3=2,B68*AL68,D67*(1+Z68)))))) -> 0 | F68: 0 | H68: 0 | J68: =IF(B68-H68=0,0,J66) -> 0 | N68: =IF('Simulador Valora'!$V$66=1,0,L68*'Simulador Valora'!$O$69*'Simulador Valora'!$W$65) -> 0 | P68: 0 | R68: 0 | T68: =IF(B68<=0,0,B68*IF('Simulador Valora'!$AC$81=1,0,'Simulador Valora'!$Y$75)) -> 0 | V68: =IF(B68<=0,0,IF('Simulador Valora'!$X$41=1,'Simulador Valora'!$O$55,IF('Simulador Valora'!$X$41=2,'Simulador Valora'!$K$55,'Simulador Valora'!$E$55))) -> 0 | X68: 0 | AB68: 0 | AC68: 0.12 | AD68: 0 | AE68: 0 | AF68: 0 | AG68: 0 | AH68: 0 | AI68: =IF(AD68<=0,0,AD68*IF('Simulador Valora'!$AC$81=1,0,'Simulador Valora'!$Y$75))+IF(AD68<=0,0,IF('Simulador Valora'!$X$41=1,'Simulador Valora'!$O$55,IF('Simulador Valora'!$X$41=2,'Simulador Valora'!$K$55,'Simulador Valora'!$E$55))) -> 0 | AK68: 0 | AL68: 0 | AN68: 4 | AO68: 4 | AP68: 0 | AQ68: 0 | AR68: 0 | AS68: 189 | AU68: 0 | AV68: 52
A69: 53 | B69: 0 | D69: =IF(B69+F69-D68<=0,B69+F69,IF(A69=$B$9,$F$9,IF(A69=$B$10,$F$10,IF(AND('Simulador Valora'!$AH$45=2,L68=0),D68*(1+Z69),IF($AM$3=2,B69*AL69,D68*(1+Z69)))))) -> 0 | F69: 0 | H69: 0 | N69: =IF('Simulador Valora'!$V$66=1,0,L69*'Simulador Valora'!$O$69*'Simulador Valora'!$W$65) -> 0 | P69: 0 | R69: 0 | T69: =IF(B69<=0,0,B69*IF('Simulador Valora'!$AC$81=1,0,'Simulador Valora'!$Y$75)) -> 0 | V69: =IF(B69<=0,0,IF('Simulador Valora'!$X$41=1,'Simulador Valora'!$O$55,IF('Simulador Valora'!$X$41=2,'Simulador Valora'!$K$55,'Simulador Valora'!$E$55))) -> 0 | X69: 0 | AB69: 0 | AC69: 0.12 | AD69: 0 | AE69: 0 | AF69: 0 | AG69: 0 | AH69: 0 | AI69: =IF(AD69<=0,0,AD69*IF('Simulador Valora'!$AC$81=1,0,'Simulador Valora'!$Y$75))+IF(AD69<=0,0,IF('Simulador Valora'!$X$41=1,'Simulador Valora'!$O$55,IF('Simulador Valora'!$X$41=2,'Simulador Valora'!$K$55,'Simulador Valora'!$E$55))) -> 0 | AK69: 0 | AL69: 0 | AN69: 4 | AO69: 5 | AP69: 0 | AQ69: 0 | AR69: 0 | AS69: 188 | AU69: 0 | AV69: 53
A70: 54 | B70: 0 | D70: =IF(B70+F70-D69<=0,B70+F70,IF(A70=$B$9,$F$9,IF(A70=$B$10,$F$10,IF(AND('Simulador Valora'!$AH$45=2,L69=0),D69*(1+Z70),IF($AM$3=2,B70*AL70,D69*(1+Z70)))))) -> 0 | F70: 0 | H70: 0 | J70: =IF(B70-H70=0,0,J68) -> 0 | N70: =IF('Simulador Valora'!$V$66=1,0,L70*'Simulador Valora'!$O$69*'Simulador Valora'!$W$65) -> 0 | P70: 0 | R70: 0 | T70: =IF(B70<=0,0,B70*IF('Simulador Valora'!$AC$81=1,0,'Simulador Valora'!$Y$75)) -> 0 | V70: =IF(B70<=0,0,IF('Simulador Valora'!$X$41=1,'Simulador Valora'!$O$55,IF('Simulador Valora'!$X$41=2,'Simulador Valora'!$K$55,'Simulador Valora'!$E$55))) -> 0 | X70: 0 | AB70: 0 | AC70: 0.12 | AD70: 0 | AE70: 0 | AF70: 0 | AG70: 0 | AH70: 0 | AI70: =IF(AD70<=0,0,AD70*IF('Simulador Valora'!$AC$81=1,0,'Simulador Valora'!$Y$75))+IF(AD70<=0,0,IF('Simulador Valora'!$X$41=1,'Simulador Valora'!$O$55,IF('Simulador Valora'!$X$41=2,'Simulador Valora'!$K$55,'Simulador Valora'!$E$55))) -> 0 | AK70: 0 | AL70: 0 | AN70: 4 | AO70: 6 | AP70: 0 | AQ70: 0 | AR70: 0 | AS70: 187 | AU70: 0 | AV70: 54
A71: 55 | B71: 0 | D71: =IF(B71+F71-D70<=0,B71+F71,IF(A71=$B$9,$F$9,IF(A71=$B$10,$F$10,IF(AND('Simulador Valora'!$AH$45=2,L70=0),D70*(1+Z71),IF($AM$3=2,B71*AL71,D70*(1+Z71)))))) -> 0 | F71: 0 | H71: 0 | N71: =IF('Simulador Valora'!$V$66=1,0,L71*'Simulador Valora'!$O$69*'Simulador Valora'!$W$65) -> 0 | P71: 0 | R71: 0 | T71: =IF(B71<=0,0,B71*IF('Simulador Valora'!$AC$81=1,0,'Simulador Valora'!$Y$75)) -> 0 | V71: =IF(B71<=0,0,IF('Simulador Valora'!$X$41=1,'Simulador Valora'!$O$55,IF('Simulador Valora'!$X$41=2,'Simulador Valora'!$K$55,'Simulador Valora'!$E$55))) -> 0 | X71: 0 | AB71: 0 | AC71: 0.12 | AD71: 0 | AE71: 0 | AF71: 0 | AG71: 0 | AH71: 0 | AI71: =IF(AD71<=0,0,AD71*IF('Simulador Valora'!$AC$81=1,0,'Simulador Valora'!$Y$75))+IF(AD71<=0,0,IF('Simulador Valora'!$X$41=1,'Simulador Valora'!$O$55,IF('Simulador Valora'!$X$41=2,'Simulador Valora'!$K$55,'Simulador Valora'!$E$55))) -> 0 | AK71: 0 | AL71: 0 | AN71: 4 | AO71: 7 | AP71: 0 | AQ71: 0 | AR71: 0 | AS71: 186 | AU71: 0 | AV71: 55
A72: 56 | B72: 0 | D72: =IF(B72+F72-D71<=0,B72+F72,IF(A72=$B$9,$F$9,IF(A72=$B$10,$F$10,IF(AND('Simulador Valora'!$AH$45=2,L71=0),D71*(1+Z72),IF($AM$3=2,B72*AL72,D71*(1+Z72)))))) -> 0 | F72: 0 | H72: 0 | J72: =IF(B72-H72=0,0,J70) -> 0 | N72: =IF('Simulador Valora'!$V$66=1,0,L72*'Simulador Valora'!$O$69*'Simulador Valora'!$W$65) -> 0 | P72: 0 | R72: 0 | T72: =IF(B72<=0,0,B72*IF('Simulador Valora'!$AC$81=1,0,'Simulador Valora'!$Y$75)) -> 0 | V72: =IF(B72<=0,0,IF('Simulador Valora'!$X$41=1,'Simulador Valora'!$O$55,IF('Simulador Valora'!$X$41=2,'Simulador Valora'!$K$55,'Simulador Valora'!$E$55))) -> 0 | X72: 0 | AB72: 0 | AC72: 0.12 | AD72: 0 | AE72: 0 | AF72: 0 | AG72: 0 | AH72: 0 | AI72: =IF(AD72<=0,0,AD72*IF('Simulador Valora'!$AC$81=1,0,'Simulador Valora'!$Y$75))+IF(AD72<=0,0,IF('Simulador Valora'!$X$41=1,'Simulador Valora'!$O$55,IF('Simulador Valora'!$X$41=2,'Simulador Valora'!$K$55,'Simulador Valora'!$E$55))) -> 0 | AK72: 0 | AL72: 0 | AN72: 4 | AO72: 8 | AP72: 0 | AQ72: 0 | AR72: 0 | AS72: 185 | AU72: 0 | AV72: 56
A73: 57 | B73: 0 | D73: =IF(B73+F73-D72<=0,B73+F73,IF(A73=$B$9,$F$9,IF(A73=$B$10,$F$10,IF(AND('Simulador Valora'!$AH$45=2,L72=0),D72*(1+Z73),IF($AM$3=2,B73*AL73,D72*(1+Z73)))))) -> 0 | F73: 0 | H73: 0 | N73: =IF('Simulador Valora'!$V$66=1,0,L73*'Simulador Valora'!$O$69*'Simulador Valora'!$W$65) -> 0 | P73: 0 | R73: 0 | T73: =IF(B73<=0,0,B73*IF('Simulador Valora'!$AC$81=1,0,'Simulador Valora'!$Y$75)) -> 0 | V73: =IF(B73<=0,0,IF('Simulador Valora'!$X$41=1,'Simulador Valora'!$O$55,IF('Simulador Valora'!$X$41=2,'Simulador Valora'!$K$55,'Simulador Valora'!$E$55))) -> 0 | X73: 0 | AB73: 0 | AC73: 0.12 | AD73: 0 | AE73: 0 | AF73: 0 | AG73: 0 | AH73: 0 | AI73: =IF(AD73<=0,0,AD73*IF('Simulador Valora'!$AC$81=1,0,'Simulador Valora'!$Y$75))+IF(AD73<=0,0,IF('Simulador Valora'!$X$41=1,'Simulador Valora'!$O$55,IF('Simulador Valora'!$X$41=2,'Simulador Valora'!$K$55,'Simulador Valora'!$E$55))) -> 0 | AK73: 0 | AL73: 0 | AN73: 4 | AO73: 9 | AP73: 0 | AQ73: 0 | AR73: 0 | AS73: 184 | AU73: 0 | AV73: 57
A74: 58 | B74: 0 | D74: =IF(B74+F74-D73<=0,B74+F74,IF(A74=$B$9,$F$9,IF(A74=$B$10,$F$10,IF(AND('Simulador Valora'!$AH$45=2,L73=0),D73*(1+Z74),IF($AM$3=2,B74*AL74,D73*(1+Z74)))))) -> 0 | F74: 0 | H74: 0 | J74: =IF(B74-H74=0,0,J72) -> 0 | N74: =IF('Simulador Valora'!$V$66=1,0,L74*'Simulador Valora'!$O$69*'Simulador Valora'!$W$65) -> 0 | P74: 0 | R74: 0 | T74: =IF(B74<=0,0,B74*IF('Simulador Valora'!$AC$81=1,0,'Simulador Valora'!$Y$75)) -> 0 | V74: =IF(B74<=0,0,IF('Simulador Valora'!$X$41=1,'Simulador Valora'!$O$55,IF('Simulador Valora'!$X$41=2,'Simulador Valora'!$K$55,'Simulador Valora'!$E$55))) -> 0 | X74: 0 | AB74: 0 | AC74: 0.12 | AD74: 0 | AE74: 0 | AF74: 0 | AG74: 0 | AH74: 0 | AI74: =IF(AD74<=0,0,AD74*IF('Simulador Valora'!$AC$81=1,0,'Simulador Valora'!$Y$75))+IF(AD74<=0,0,IF('Simulador Valora'!$X$41=1,'Simulador Valora'!$O$55,IF('Simulador Valora'!$X$41=2,'Simulador Valora'!$K$55,'Simulador Valora'!$E$55))) -> 0 | AK74: 0 | AL74: 0 | AN74: 4 | AO74: 10 | AP74: 0 | AQ74: 0 | AR74: 0 | AS74: 183 | AU74: 0 | AV74: 58
A75: 59 | B75: 0 | D75: =IF(B75+F75-D74<=0,B75+F75,IF(A75=$B$9,$F$9,IF(A75=$B$10,$F$10,IF(AND('Simulador Valora'!$AH$45=2,L74=0),D74*(1+Z75),IF($AM$3=2,B75*AL75,D74*(1+Z75)))))) -> 0 | F75: 0 | H75: 0 | N75: =IF('Simulador Valora'!$V$66=1,0,L75*'Simulador Valora'!$O$69*'Simulador Valora'!$W$65) -> 0 | P75: 0 | R75: 0 | T75: =IF(B75<=0,0,B75*IF('Simulador Valora'!$AC$81=1,0,'Simulador Valora'!$Y$75)) -> 0 | V75: =IF(B75<=0,0,IF('Simulador Valora'!$X$41=1,'Simulador Valora'!$O$55,IF('Simulador Valora'!$X$41=2,'Simulador Valora'!$K$55,'Simulador Valora'!$E$55))) -> 0 | X75: 0 | AB75: 0 | AC75: 0.12 | AD75: 0 | AE75: 0 | AF75: 0 | AG75: 0 | AH75: 0 | AI75: =IF(AD75<=0,0,AD75*IF('Simulador Valora'!$AC$81=1,0,'Simulador Valora'!$Y$75))+IF(AD75<=0,0,IF('Simulador Valora'!$X$41=1,'Simulador Valora'!$O$55,IF('Simulador Valora'!$X$41=2,'Simulador Valora'!$K$55,'Simulador Valora'!$E$55))) -> 0 | AK75: 0 | AL75: 0 | AN75: 4 | AO75: 11 | AP75: 0 | AQ75: 0 | AR75: 0 | AS75: =IFERROR(IF(AC77<=0.01,0,AS74-1),0) -> 182 | AU75: 0 | AV75: 59
A76: 60 | B76: 0 | D76: =IF(B76+F76-D75<=0,B76+F76,IF(A76=$B$9,$F$9,IF(A76=$B$10,$F$10,IF(AND('Simulador Valora'!$AH$45=2,L75=0),D75*(1+Z76),IF($AM$3=2,B76*AL76,D75*(1+Z76)))))) -> 0 | F76: 0 | H76: 0 | J76: =IF(B76-H76=0,0,J74) -> 0 | N76: =IF('Simulador Valora'!$V$66=1,0,L76*'Simulador Valora'!$O$69*'Simulador Valora'!$W$65) -> 0 | P76: 0 | R76: 0 | T76: =IF(B76<=0,0,B76*IF('Simulador Valora'!$AC$81=1,0,'Simulador Valora'!$Y$75)) -> 0 | V76: =IF(B76<=0,0,IF('Simulador Valora'!$X$41=1,'Simulador Valora'!$O$55,IF('Simulador Valora'!$X$41=2,'Simulador Valora'!$K$55,'Simulador Valora'!$E$55))) -> 0 | X76: 0 | AB76: 0 | AC76: 0.12 | AD76: 0 | AE76: 0 | AF76: 0 | AG76: 0 | AH76: 0 | AI76: =IF(AD76<=0,0,AD76*IF('Simulador Valora'!$AC$81=1,0,'Simulador Valora'!$Y$75))+IF(AD76<=0,0,IF('Simulador Valora'!$X$41=1,'Simulador Valora'!$O$55,IF('Simulador Valora'!$X$41=2,'Simulador Valora'!$K$55,'Simulador Valora'!$E$55))) -> 0 | AK76: 0 | AL76: 0 | AN76: 5 | AO76: 0 | AP76: 0 | AQ76: 0 | AR76: 0 | AS76: =IFERROR(IF(AC76<=0.01,0,AS75-1),0) -> 181 | AU76: 0 | AV76: 60
A77: 61 | B77: 0 | D77: =IF(B77+F77-D76<=0,B77+F77,IF(A77=$B$9,$F$9,IF(A77=$B$10,$F$10,IF(AND('Simulador Valora'!$AH$45=2,L76=0),D76*(1+Z77),IF($AM$3=2,B77*AL77,D76*(1+Z77)))))) -> 0 | F77: 0 | H77: 0 | N77: =IF('Simulador Valora'!$V$66=1,0,L77*'Simulador Valora'!$O$69*'Simulador Valora'!$W$65) -> 0 | P77: 0 | R77: 0 | T77: =IF(B77<=0,0,B77*IF('Simulador Valora'!$AC$81=1,0,'Simulador Valora'!$Y$75)) -> 0 | V77: =IF(B77<=0,0,IF('Simulador Valora'!$X$41=1,'Simulador Valora'!$O$55,IF('Simulador Valora'!$X$41=2,'Simulador Valora'!$K$55,'Simulador Valora'!$E$55))) -> 0 | X77: 0 | Z77: =IF(B77<=0,0,'Simulador Valora'!$AI$54) -> 0 | AB77: 0 | AC77: =IF(AC76=$AC$6,AC76,IF(AC76=$AC$5,AC76,AC76-0.25%)) -> 0.12 | AD77: 0 | AE77: 0 | AF77: 0 | AG77: 0 | AH77: 0 | AI77: =IF(AD77<=0,0,AD77*IF('Simulador Valora'!$AC$81=1,0,'Simulador Valora'!$Y$75))+IF(AD77<=0,0,IF('Simulador Valora'!$X$41=1,'Simulador Valora'!$O$55,IF('Simulador Valora'!$X$41=2,'Simulador Valora'!$K$55,'Simulador Valora'!$E$55))) -> 0 | AJ77: =IF(AC77<=0,0,$AJ$29) -> 0 | AK77: 0 | AL77: 0 | AN77: 5 | AO77: 1 | AP77: 0 | AQ77: 0 | AR77: 0 | AS77: 180 | AU77: 0 | AV77: 61
A78: 62 | B78: 0 | D78: =IF(B78+F78-D77<=0,B78+F78,IF(A78=$B$9,$F$9,IF(A78=$B$10,$F$10,IF(AND('Simulador Valora'!$AH$45=2,L77=0),D77*(1+Z78),IF($AM$3=2,B78*AL78,D77*(1+Z78)))))) -> 0 | F78: 0 | H78: 0 | J78: =IF(B78-H78=0,0,J76*(1+(3%))) -> 0 | N78: =IF('Simulador Valora'!$V$66=1,0,L78*'Simulador Valora'!$O$69*'Simulador Valora'!$W$65) -> 0 | P78: 0 | R78: 0 | T78: =IF(B78<=0,0,B78*IF('Simulador Valora'!$AC$81=1,0,'Simulador Valora'!$Y$75)) -> 0 | V78: =IF(B78<=0,0,IF('Simulador Valora'!$X$41=1,'Simulador Valora'!$O$55,IF('Simulador Valora'!$X$41=2,'Simulador Valora'!$K$55,'Simulador Valora'!$E$55))) -> 0 | X78: 0 | AB78: 0 | AC78: =AC77 -> 0.12 | AD78: 0 | AE78: 0 | AF78: 0 | AG78: 0 | AH78: 0 | AI78: =IF(AD78<=0,0,AD78*IF('Simulador Valora'!$AC$81=1,0,'Simulador Valora'!$Y$75))+IF(AD78<=0,0,IF('Simulador Valora'!$X$41=1,'Simulador Valora'!$O$55,IF('Simulador Valora'!$X$41=2,'Simulador Valora'!$K$55,'Simulador Valora'!$E$55))) -> 0 | AK78: 0 | AL78: 0 | AN78: 5 | AO78: 2 | AP78: 0 | AQ78: 0 | AR78: 0 | AS78: 179 | AU78: 0 | AV78: 62
A79: 63 | B79: 0 | D79: =IF(B79+F79-D78<=0,B79+F79,IF(A79=$B$9,$F$9,IF(A79=$B$10,$F$10,IF(AND('Simulador Valora'!$AH$45=2,L78=0),D78*(1+Z79),IF($AM$3=2,B79*AL79,D78*(1+Z79)))))) -> 0 | F79: 0 | H79: 0 | N79: =IF('Simulador Valora'!$V$66=1,0,L79*'Simulador Valora'!$O$69*'Simulador Valora'!$W$65) -> 0 | P79: 0 | R79: 0 | T79: =IF(B79<=0,0,B79*IF('Simulador Valora'!$AC$81=1,0,'Simulador Valora'!$Y$75)) -> 0 | V79: =IF(B79<=0,0,IF('Simulador Valora'!$X$41=1,'Simulador Valora'!$O$55,IF('Simulador Valora'!$X$41=2,'Simulador Valora'!$K$55,'Simulador Valora'!$E$55))) -> 0 | X79: 0 | AB79: 0 | AC79: =AC78 -> 0.12 | AD79: 0 | AE79: 0 | AF79: 0 | AG79: 0 | AH79: 0 | AI79: =IF(AD79<=0,0,AD79*IF('Simulador Valora'!$AC$81=1,0,'Simulador Valora'!$Y$75))+IF(AD79<=0,0,IF('Simulador Valora'!$X$41=1,'Simulador Valora'!$O$55,IF('Simulador Valora'!$X$41=2,'Simulador Valora'!$K$55,'Simulador Valora'!$E$55))) -> 0 | AK79: 0 | AL79: 0 | AN79: 5 | AO79: 3 | AP79: 0 | AQ79: 0 | AR79: 0 | AS79: 178 | AU79: 0 | AV79: 63
A80: 64 | B80: 0 | D80: =IF(B80+F80-D79<=0,B80+F80,IF(A80=$B$9,$F$9,IF(A80=$B$10,$F$10,IF(AND('Simulador Valora'!$AH$45=2,L79=0),D79*(1+Z80),IF($AM$3=2,B80*AL80,D79*(1+Z80)))))) -> 0 | F80: 0 | H80: 0 | J80: =IF(B80-H80=0,0,J78) -> 0 | N80: =IF('Simulador Valora'!$V$66=1,0,L80*'Simulador Valora'!$O$69*'Simulador Valora'!$W$65) -> 0 | P80: 0 | R80: 0 | T80: =IF(B80<=0,0,B80*IF('Simulador Valora'!$AC$81=1,0,'Simulador Valora'!$Y$75)) -> 0 | V80: =IF(B80<=0,0,IF('Simulador Valora'!$X$41=1,'Simulador Valora'!$O$55,IF('Simulador Valora'!$X$41=2,'Simulador Valora'!$K$55,'Simulador Valora'!$E$55))) -> 0 | X80: 0 | AB80: 0 | AC80: 0.12 | AD80: 0 | AE80: 0 | AF80: 0 | AG80: 0 | AH80: 0 | AI80: =IF(AD80<=0,0,AD80*IF('Simulador Valora'!$AC$81=1,0,'Simulador Valora'!$Y$75))+IF(AD80<=0,0,IF('Simulador Valora'!$X$41=1,'Simulador Valora'!$O$55,IF('Simulador Valora'!$X$41=2,'Simulador Valora'!$K$55,'Simulador Valora'!$E$55))) -> 0 | AK80: 0 | AL80: 0 | AN80: 5 | AO80: 4 | AP80: 0 | AQ80: 0 | AR80: 0 | AS80: 177 | AU80: 0 | AV80: 64
A81: 65 | B81: 0 | D81: =IF(B81+F81-D80<=0,B81+F81,IF(A81=$B$9,$F$9,IF(A81=$B$10,$F$10,IF(AND('Simulador Valora'!$AH$45=2,L80=0),D80*(1+Z81),IF($AM$3=2,B81*AL81,D80*(1+Z81)))))) -> 0 | F81: =IF(B81=0,0,P81/360*AU81*B81) -> 0 | H81: 0 | N81: =IF('Simulador Valora'!$V$66=1,0,L81*'Simulador Valora'!$O$69*'Simulador Valora'!$W$65) -> 0 | P81: 0 | R81: 0 | T81: =IF(B81<=0,0,B81*IF('Simulador Valora'!$AC$81=1,0,'Simulador Valora'!$Y$75)) -> 0 | V81: =IF(B81<=0,0,IF('Simulador Valora'!$X$41=1,'Simulador Valora'!$O$55,IF('Simulador Valora'!$X$41=2,'Simulador Valora'!$K$55,'Simulador Valora'!$E$55))) -> 0 | X81: 0 | AB81: 0 | AC81: 0.12 | AD81: 0 | AE81: 0 | AF81: =IFERROR(AC81/360*AU81*AD81,0) -> 0 | AG81: 0 | AH81: 0 | AI81: =IF(AD81<=0,0,AD81*IF('Simulador Valora'!$AC$81=1,0,'Simulador Valora'!$Y$75))+IF(AD81<=0,0,IF('Simulador Valora'!$X$41=1,'Simulador Valora'!$O$55,IF('Simulador Valora'!$X$41=2,'Simulador Valora'!$K$55,'Simulador Valora'!$E$55))) -> 0 | AK81: =IF(AD81<=0,0,AE81+AI81) -> 0 | AL81: =IFERROR(AE81/AD81,0) -> 0 | AN81: 5 | AO81: 5 | AP81: =+IF(R81<=0,IF(R80>0,+A81,0),0) -> 0 | AQ81: 0 | AR81: 0 | AS81: 176 | AU81: 0 | AV81: 65
A82: 66 | B82: =IF(R81<0,0,IF(A82=$B$9,R81+$D$9,IF(A82=$B$10,R81+$D$10,R81))) -> 0 | D82: =IF(B82+F82-D81<=0,B82+F82,IF(A82=$B$9,$F$9,IF(A82=$B$10,$F$10,IF(AND('Simulador Valora'!$AH$45=2,L81=0),D81*(1+Z82),IF($AM$3=2,B82*AL82,D81*(1+Z82)))))) -> 0 | F82: 0 | H82: 0 | J82: =IF(B82-H82=0,0,J80) -> 0 | N82: =IF('Simulador Valora'!$V$66=1,0,L82*'Simulador Valora'!$O$69*'Simulador Valora'!$W$65) -> 0 | P82: =IF(B82=0,0,AC82) -> 0 | R82: =B82-H82-J82-L82+N82 -> 0 | T82: =IF(B82<=0,0,B82*IF('Simulador Valora'!$AC$81=1,0,'Simulador Valora'!$Y$75)) -> 0 | V82: =IF(B82<=0,0,IF('Simulador Valora'!$X$41=1,'Simulador Valora'!$O$55,IF('Simulador Valora'!$X$41=2,'Simulador Valora'!$K$55,'Simulador Valora'!$E$55))) -> 0 | X82: =IF(B82<=0,0,(D82+L82+T82+V82)) -> 0 | AB82: =X82 -> 0 | AC82: 0.12 | AD82: 0 | AE82: 0 | AF82: 0 | AG82: 0 | AH82: =+AD82-AG82 -> 0 | AI82: =IF(AD82<=0,0,AD82*IF('Simulador Valora'!$AC$81=1,0,'Simulador Valora'!$Y$75))+IF(AD82<=0,0,IF('Simulador Valora'!$X$41=1,'Simulador Valora'!$O$55,IF('Simulador Valora'!$X$41=2,'Simulador Valora'!$K$55,'Simulador Valora'!$E$55))) -> 0 | AK82: 0 | AL82: 0 | AN82: 5 | AO82: 6 | AP82: 0 | AQ82: =+IF(AP82>0,+AN82,0) -> 0 | AR82: =+IF(AP82>0,+AO82,0) -> 0 | AS82: 175 | AU82: =IFERROR(DAY(DATE(YEAR(AT82),MONTH(AT82)+1,0)),0) -> 0 | AV82: 66
A83: 67 | B83: 0 | D83: =IF(B83+F83-D82<=0,B83+F83,IF(A83=$B$9,$F$9,IF(A83=$B$10,$F$10,IF(AND('Simulador Valora'!$AH$45=2,L82=0),D82*(1+Z83),IF($AM$3=2,B83*AL83,D82*(1+Z83)))))) -> 0 | F83: 0 | H83: =D83-F83 -> 0 | N83: =IF('Simulador Valora'!$V$66=1,0,L83*'Simulador Valora'!$O$69*'Simulador Valora'!$W$65) -> 0 | P83: 0 | R83: 0 | T83: =IF(B83<=0,0,B83*IF('Simulador Valora'!$AC$81=1,0,'Simulador Valora'!$Y$75)) -> 0 | V83: =IF(B83<=0,0,IF('Simulador Valora'!$X$41=1,'Simulador Valora'!$O$55,IF('Simulador Valora'!$X$41=2,'Simulador Valora'!$K$55,'Simulador Valora'!$E$55))) -> 0 | X83: 0 | AB83: 0 | AC83: 0.12 | AD83: =IF(AH82<0,0,IF($A83=$B$9,AH82+$D$9,IF($A83=$B$10,AH82+$D$10,AH82))) -> 0 | AE83: =IF(AD83+AF83-AE82<=0,AD83+AF83,IF($A83=$B$9,$F$9,IF($A83=$B$10,$F$10,AE82*(1+Z83)))) -> 0 | AF83: 0 | AG83: =+AE83-AF83 -> 0 | AH83: 0 | AI83: =IF(AD83<=0,0,AD83*IF('Simulador Valora'!$AC$81=1,0,'Simulador Valora'!$Y$75))+IF(AD83<=0,0,IF('Simulador Valora'!$X$41=1,'Simulador Valora'!$O$55,IF('Simulador Valora'!$X$41=2,'Simulador Valora'!$K$55,'Simulador Valora'!$E$55))) -> 0 | AK83: 0 | AL83: 0 | AN83: 5 | AO83: 7 | AP83: 0 | AQ83: 0 | AR83: 0 | AS83: 174 | AT83: =IF(AD83=0,"",DATE(YEAR(AT82),MONTH(AT82)+1,1)) ->  | AU83: 0 | AV83: 67
A84: 68 | B84: 0 | D84: =IF(B84+F84-D83<=0,B84+F84,IF(A84=$B$9,$F$9,IF(A84=$B$10,$F$10,IF(AND('Simulador Valora'!$AH$45=2,L83=0),D83*(1+Z84),IF($AM$3=2,B84*AL84,D83*(1+Z84)))))) -> 0 | F84: 0 | H84: 0 | J84: =IF(B84-H84=0,0,J82) -> 0 | N84: =IF('Simulador Valora'!$V$66=1,0,L84*'Simulador Valora'!$O$69*'Simulador Valora'!$W$65) -> 0 | P84: 0 | R84: 0 | T84: =IF(B84<=0,0,B84*IF('Simulador Valora'!$AC$81=1,0,'Simulador Valora'!$Y$75)) -> 0 | V84: =IF(B84<=0,0,IF('Simulador Valora'!$X$41=1,'Simulador Valora'!$O$55,IF('Simulador Valora'!$X$41=2,'Simulador Valora'!$K$55,'Simulador Valora'!$E$55))) -> 0 | X84: 0 | AB84: 0 | AC84: 0.12 | AD84: 0 | AE84: 0 | AF84: 0 | AG84: 0 | AH84: 0 | AI84: =IF(AD84<=0,0,AD84*IF('Simulador Valora'!$AC$81=1,0,'Simulador Valora'!$Y$75))+IF(AD84<=0,0,IF('Simulador Valora'!$X$41=1,'Simulador Valora'!$O$55,IF('Simulador Valora'!$X$41=2,'Simulador Valora'!$K$55,'Simulador Valora'!$E$55))) -> 0 | AK84: 0 | AL84: 0 | AN84: 5 | AO84: 8 | AP84: 0 | AQ84: 0 | AR84: 0 | AS84: 173 | AU84: 0 | AV84: 68
A85: 69 | B85: 0 | D85: =IF(B85+F85-D84<=0,B85+F85,IF(A85=$B$9,$F$9,IF(A85=$B$10,$F$10,IF(AND('Simulador Valora'!$AH$45=2,L84=0),D84*(1+Z85),IF($AM$3=2,B85*AL85,D84*(1+Z85)))))) -> 0 | F85: 0 | H85: 0 | N85: =IF('Simulador Valora'!$V$66=1,0,L85*'Simulador Valora'!$O$69*'Simulador Valora'!$W$65) -> 0 | P85: 0 | R85: 0 | T85: =IF(B85<=0,0,B85*IF('Simulador Valora'!$AC$81=1,0,'Simulador Valora'!$Y$75)) -> 0 | V85: =IF(B85<=0,0,IF('Simulador Valora'!$X$41=1,'Simulador Valora'!$O$55,IF('Simulador Valora'!$X$41=2,'Simulador Valora'!$K$55,'Simulador Valora'!$E$55))) -> 0 | X85: 0 | AB85: 0 | AC85: 0.12 | AD85: 0 | AE85: 0 | AF85: 0 | AG85: 0 | AH85: 0 | AI85: =IF(AD85<=0,0,AD85*IF('Simulador Valora'!$AC$81=1,0,'Simulador Valora'!$Y$75))+IF(AD85<=0,0,IF('Simulador Valora'!$X$41=1,'Simulador Valora'!$O$55,IF('Simulador Valora'!$X$41=2,'Simulador Valora'!$K$55,'Simulador Valora'!$E$55))) -> 0 | AK85: 0 | AL85: 0 | AN85: 5 | AO85: 9 | AP85: 0 | AQ85: 0 | AR85: 0 | AS85: 172 | AU85: 0 | AV85: 69
A86: 70 | B86: 0 | D86: =IF(B86+F86-D85<=0,B86+F86,IF(A86=$B$9,$F$9,IF(A86=$B$10,$F$10,IF(AND('Simulador Valora'!$AH$45=2,L85=0),D85*(1+Z86),IF($AM$3=2,B86*AL86,D85*(1+Z86)))))) -> 0 | F86: 0 | H86: 0 | J86: =IF(B86-H86=0,0,J84) -> 0 | N86: =IF('Simulador Valora'!$V$66=1,0,L86*'Simulador Valora'!$O$69*'Simulador Valora'!$W$65) -> 0 | P86: 0 | R86: 0 | T86: =IF(B86<=0,0,B86*IF('Simulador Valora'!$AC$81=1,0,'Simulador Valora'!$Y$75)) -> 0 | V86: =IF(B86<=0,0,IF('Simulador Valora'!$X$41=1,'Simulador Valora'!$O$55,IF('Simulador Valora'!$X$41=2,'Simulador Valora'!$K$55,'Simulador Valora'!$E$55))) -> 0 | X86: 0 | AB86: 0 | AC86: 0.12 | AD86: 0 | AE86: 0 | AF86: 0 | AG86: 0 | AH86: 0 | AI86: =IF(AD86<=0,0,AD86*IF('Simulador Valora'!$AC$81=1,0,'Simulador Valora'!$Y$75))+IF(AD86<=0,0,IF('Simulador Valora'!$X$41=1,'Simulador Valora'!$O$55,IF('Simulador Valora'!$X$41=2,'Simulador Valora'!$K$55,'Simulador Valora'!$E$55))) -> 0 | AK86: 0 | AL86: 0 | AN86: 5 | AO86: 10 | AP86: 0 | AQ86: 0 | AR86: 0 | AS86: 171 | AU86: 0 | AV86: 70
A87: 71 | B87: 0 | D87: =IF(B87+F87-D86<=0,B87+F87,IF(A87=$B$9,$F$9,IF(A87=$B$10,$F$10,IF(AND('Simulador Valora'!$AH$45=2,L86=0),D86*(1+Z87),IF($AM$3=2,B87*AL87,D86*(1+Z87)))))) -> 0 | F87: 0 | H87: 0 | N87: =IF('Simulador Valora'!$V$66=1,0,L87*'Simulador Valora'!$O$69*'Simulador Valora'!$W$65) -> 0 | P87: 0 | R87: 0 | T87: =IF(B87<=0,0,B87*IF('Simulador Valora'!$AC$81=1,0,'Simulador Valora'!$Y$75)) -> 0 | V87: =IF(B87<=0,0,IF('Simulador Valora'!$X$41=1,'Simulador Valora'!$O$55,IF('Simulador Valora'!$X$41=2,'Simulador Valora'!$K$55,'Simulador Valora'!$E$55))) -> 0 | X87: 0 | AB87: 0 | AC87: 0.12 | AD87: 0 | AE87: 0 | AF87: 0 | AG87: 0 | AH87: 0 | AI87: =IF(AD87<=0,0,AD87*IF('Simulador Valora'!$AC$81=1,0,'Simulador Valora'!$Y$75))+IF(AD87<=0,0,IF('Simulador Valora'!$X$41=1,'Simulador Valora'!$O$55,IF('Simulador Valora'!$X$41=2,'Simulador Valora'!$K$55,'Simulador Valora'!$E$55))) -> 0 | AK87: 0 | AL87: 0 | AN87: 5 | AO87: 11 | AP87: 0 | AQ87: 0 | AR87: 0 | AS87: 170 | AU87: 0 | AV87: 71
A88: 72 | B88: 0 | D88: =IF(B88+F88-D87<=0,B88+F88,IF(A88=$B$9,$F$9,IF(A88=$B$10,$F$10,IF(AND('Simulador Valora'!$AH$45=2,L87=0),D87*(1+Z88),IF($AM$3=2,B88*AL88,D87*(1+Z88)))))) -> 0 | F88: 0 | H88: 0 | J88: =IF(B88-H88=0,0,J86) -> 0 | N88: =IF('Simulador Valora'!$V$66=1,0,L88*'Simulador Valora'!$O$69*'Simulador Valora'!$W$65) -> 0 | P88: 0 | R88: 0 | T88: =IF(B88<=0,0,B88*IF('Simulador Valora'!$AC$81=1,0,'Simulador Valora'!$Y$75)) -> 0 | V88: =IF(B88<=0,0,IF('Simulador Valora'!$X$41=1,'Simulador Valora'!$O$55,IF('Simulador Valora'!$X$41=2,'Simulador Valora'!$K$55,'Simulador Valora'!$E$55))) -> 0 | X88: 0 | AB88: 0 | AC88: 0.12 | AD88: 0 | AE88: 0 | AF88: 0 | AG88: 0 | AH88: 0 | AI88: =IF(AD88<=0,0,AD88*IF('Simulador Valora'!$AC$81=1,0,'Simulador Valora'!$Y$75))+IF(AD88<=0,0,IF('Simulador Valora'!$X$41=1,'Simulador Valora'!$O$55,IF('Simulador Valora'!$X$41=2,'Simulador Valora'!$K$55,'Simulador Valora'!$E$55))) -> 0 | AK88: 0 | AL88: 0 | AN88: 6 | AO88: 0 | AP88: 0 | AQ88: 0 | AR88: 0 | AS88: 169 | AU88: 0 | AV88: 72
A89: 73 | B89: 0 | D89: =IF(B89+F89-D88<=0,B89+F89,IF(A89=$B$9,$F$9,IF(A89=$B$10,$F$10,IF(AND('Simulador Valora'!$AH$45=2,L88=0),D88*(1+Z89),IF($AM$3=2,B89*AL89,D88*(1+Z89)))))) -> 0 | F89: 0 | H89: 0 | N89: =IF('Simulador Valora'!$V$66=1,0,L89*'Simulador Valora'!$O$69*'Simulador Valora'!$W$65) -> 0 | P89: 0 | R89: 0 | T89: =IF(B89<=0,0,B89*IF('Simulador Valora'!$AC$81=1,0,'Simulador Valora'!$Y$75)) -> 0 | V89: =IF(B89<=0,0,IF('Simulador Valora'!$X$41=1,'Simulador Valora'!$O$55,IF('Simulador Valora'!$X$41=2,'Simulador Valora'!$K$55,'Simulador Valora'!$E$55))) -> 0 | X89: 0 | Z89: =IF(B89<=0,0,'Simulador Valora'!$AI$54) -> 0 | AB89: 0 | AC89: =IF(AC88=$AC$6,AC88,IF(AC88=$AC$5,AC88,AC88-0.25%)) -> 0.12 | AD89: 0 | AE89: 0 | AF89: 0 | AG89: 0 | AH89: 0 | AI89: =IF(AD89<=0,0,AD89*IF('Simulador Valora'!$AC$81=1,0,'Simulador Valora'!$Y$75))+IF(AD89<=0,0,IF('Simulador Valora'!$X$41=1,'Simulador Valora'!$O$55,IF('Simulador Valora'!$X$41=2,'Simulador Valora'!$K$55,'Simulador Valora'!$E$55))) -> 0 | AJ89: =IF(AC89<=0,0,$AJ$29) -> 0 | AK89: 0 | AL89: 0 | AN89: 6 | AO89: 1 | AP89: 0 | AQ89: 0 | AR89: 0 | AS89: 168 | AU89: 0 | AV89: 73
A90: 74 | B90: 0 | D90: =IF(B90+F90-D89<=0,B90+F90,IF(A90=$B$9,$F$9,IF(A90=$B$10,$F$10,IF(AND('Simulador Valora'!$AH$45=2,L89=0),D89*(1+Z90),IF($AM$3=2,B90*AL90,D89*(1+Z90)))))) -> 0 | F90: 0 | H90: 0 | J90: =IF(B90-H90=0,0,J88*(1+(3%))) -> 0 | N90: =IF('Simulador Valora'!$V$66=1,0,L90*'Simulador Valora'!$O$69*'Simulador Valora'!$W$65) -> 0 | P90: 0 | R90: 0 | T90: =IF(B90<=0,0,B90*IF('Simulador Valora'!$AC$81=1,0,'Simulador Valora'!$Y$75)) -> 0 | V90: =IF(B90<=0,0,IF('Simulador Valora'!$X$41=1,'Simulador Valora'!$O$55,IF('Simulador Valora'!$X$41=2,'Simulador Valora'!$K$55,'Simulador Valora'!$E$55))) -> 0 | X90: 0 | AB90: 0 | AC90: =AC89 -> 0.12 | AD90: 0 | AE90: 0 | AF90: 0 | AG90: 0 | AH90: 0 | AI90: =IF(AD90<=0,0,AD90*IF('Simulador Valora'!$AC$81=1,0,'Simulador Valora'!$Y$75))+IF(AD90<=0,0,IF('Simulador Valora'!$X$41=1,'Simulador Valora'!$O$55,IF('Simulador Valora'!$X$41=2,'Simulador Valora'!$K$55,'Simulador Valora'!$E$55))) -> 0 | AK90: 0 | AL90: 0 | AN90: 6 | AO90: 2 | AP90: 0 | AQ90: 0 | AR90: 0 | AS90: 167 | AU90: 0 | AV90: 74
A91: 75 | B91: 0 | D91: =IF(B91+F91-D90<=0,B91+F91,IF(A91=$B$9,$F$9,IF(A91=$B$10,$F$10,IF(AND('Simulador Valora'!$AH$45=2,L90=0),D90*(1+Z91),IF($AM$3=2,B91*AL91,D90*(1+Z91)))))) -> 0 | F91: 0 | H91: 0 | N91: =IF('Simulador Valora'!$V$66=1,0,L91*'Simulador Valora'!$O$69*'Simulador Valora'!$W$65) -> 0 | P91: 0 | R91: 0 | T91: =IF(B91<=0,0,B91*IF('Simulador Valora'!$AC$81=1,0,'Simulador Valora'!$Y$75)) -> 0 | V91: =IF(B91<=0,0,IF('Simulador Valora'!$X$41=1,'Simulador Valora'!$O$55,IF('Simulador Valora'!$X$41=2,'Simulador Valora'!$K$55,'Simulador Valora'!$E$55))) -> 0 | X91: 0 | AB91: 0 | AC91: =AC90 -> 0.12 | AD91: 0 | AE91: 0 | AF91: 0 | AG91: 0 | AH91: 0 | AI91: =IF(AD91<=0,0,AD91*IF('Simulador Valora'!$AC$81=1,0,'Simulador Valora'!$Y$75))+IF(AD91<=0,0,IF('Simulador Valora'!$X$41=1,'Simulador Valora'!$O$55,IF('Simulador Valora'!$X$41=2,'Simulador Valora'!$K$55,'Simulador Valora'!$E$55))) -> 0 | AK91: 0 | AL91: 0 | AN91: 6 | AO91: 3 | AP91: 0 | AQ91: 0 | AR91: 0 | AS91: 166 | AU91: 0 | AV91: 75
A92: 76 | B92: 0 | D92: =IF(B92+F92-D91<=0,B92+F92,IF(A92=$B$9,$F$9,IF(A92=$B$10,$F$10,IF(AND('Simulador Valora'!$AH$45=2,L91=0),D91*(1+Z92),IF($AM$3=2,B92*AL92,D91*(1+Z92)))))) -> 0 | F92: 0 | H92: 0 | J92: =IF(B92-H92=0,0,J90) -> 0 | N92: =IF('Simulador Valora'!$V$66=1,0,L92*'Simulador Valora'!$O$69*'Simulador Valora'!$W$65) -> 0 | P92: 0 | R92: 0 | T92: =IF(B92<=0,0,B92*IF('Simulador Valora'!$AC$81=1,0,'Simulador Valora'!$Y$75)) -> 0 | V92: =IF(B92<=0,0,IF('Simulador Valora'!$X$41=1,'Simulador Valora'!$O$55,IF('Simulador Valora'!$X$41=2,'Simulador Valora'!$K$55,'Simulador Valora'!$E$55))) -> 0 | X92: 0 | AB92: 0 | AC92: 0.12 | AD92: 0 | AE92: 0 | AF92: 0 | AG92: 0 | AH92: 0 | AI92: =IF(AD92<=0,0,AD92*IF('Simulador Valora'!$AC$81=1,0,'Simulador Valora'!$Y$75))+IF(AD92<=0,0,IF('Simulador Valora'!$X$41=1,'Simulador Valora'!$O$55,IF('Simulador Valora'!$X$41=2,'Simulador Valora'!$K$55,'Simulador Valora'!$E$55))) -> 0 | AK92: 0 | AL92: 0 | AN92: 6 | AO92: 4 | AP92: 0 | AQ92: 0 | AR92: 0 | AS92: 165 | AU92: 0 | AV92: 76
A93: 77 | B93: 0 | D93: =IF(B93+F93-D92<=0,B93+F93,IF(A93=$B$9,$F$9,IF(A93=$B$10,$F$10,IF(AND('Simulador Valora'!$AH$45=2,L92=0),D92*(1+Z93),IF($AM$3=2,B93*AL93,D92*(1+Z93)))))) -> 0 | F93: 0 | H93: 0 | N93: =IF('Simulador Valora'!$V$66=1,0,L93*'Simulador Valora'!$O$69*'Simulador Valora'!$W$65) -> 0 | P93: 0 | R93: 0 | T93: =IF(B93<=0,0,B93*IF('Simulador Valora'!$AC$81=1,0,'Simulador Valora'!$Y$75)) -> 0 | V93: =IF(B93<=0,0,IF('Simulador Valora'!$X$41=1,'Simulador Valora'!$O$55,IF('Simulador Valora'!$X$41=2,'Simulador Valora'!$K$55,'Simulador Valora'!$E$55))) -> 0 | X93: 0 | AB93: 0 | AC93: 0.12 | AD93: 0 | AE93: 0 | AF93: 0 | AG93: 0 | AH93: 0 | AI93: =IF(AD93<=0,0,AD93*IF('Simulador Valora'!$AC$81=1,0,'Simulador Valora'!$Y$75))+IF(AD93<=0,0,IF('Simulador Valora'!$X$41=1,'Simulador Valora'!$O$55,IF('Simulador Valora'!$X$41=2,'Simulador Valora'!$K$55,'Simulador Valora'!$E$55))) -> 0 | AK93: 0 | AL93: 0 | AN93: 6 | AO93: 5 | AP93: 0 | AQ93: 0 | AR93: 0 | AS93: 164 | AU93: 0 | AV93: 77
A94: 78 | B94: 0 | D94: =IF(B94+F94-D93<=0,B94+F94,IF(A94=$B$9,$F$9,IF(A94=$B$10,$F$10,IF(AND('Simulador Valora'!$AH$45=2,L93=0),D93*(1+Z94),IF($AM$3=2,B94*AL94,D93*(1+Z94)))))) -> 0 | F94: 0 | H94: 0 | J94: =IF(B94-H94=0,0,J92) -> 0 | N94: =IF('Simulador Valora'!$V$66=1,0,L94*'Simulador Valora'!$O$69*'Simulador Valora'!$W$65) -> 0 | P94: 0 | R94: 0 | T94: =IF(B94<=0,0,B94*IF('Simulador Valora'!$AC$81=1,0,'Simulador Valora'!$Y$75)) -> 0 | V94: =IF(B94<=0,0,IF('Simulador Valora'!$X$41=1,'Simulador Valora'!$O$55,IF('Simulador Valora'!$X$41=2,'Simulador Valora'!$K$55,'Simulador Valora'!$E$55))) -> 0 | X94: 0 | AB94: 0 | AC94: 0.12 | AD94: 0 | AE94: 0 | AF94: 0 | AG94: 0 | AH94: 0 | AI94: =IF(AD94<=0,0,AD94*IF('Simulador Valora'!$AC$81=1,0,'Simulador Valora'!$Y$75))+IF(AD94<=0,0,IF('Simulador Valora'!$X$41=1,'Simulador Valora'!$O$55,IF('Simulador Valora'!$X$41=2,'Simulador Valora'!$K$55,'Simulador Valora'!$E$55))) -> 0 | AK94: 0 | AL94: 0 | AN94: 6 | AO94: 6 | AP94: 0 | AQ94: 0 | AR94: 0 | AS94: 163 | AU94: 0 | AV94: 78
A95: 79 | B95: 0 | D95: =IF(B95+F95-D94<=0,B95+F95,IF(A95=$B$9,$F$9,IF(A95=$B$10,$F$10,IF(AND('Simulador Valora'!$AH$45=2,L94=0),D94*(1+Z95),IF($AM$3=2,B95*AL95,D94*(1+Z95)))))) -> 0 | F95: 0 | H95: 0 | N95: =IF('Simulador Valora'!$V$66=1,0,L95*'Simulador Valora'!$O$69*'Simulador Valora'!$W$65) -> 0 | P95: 0 | R95: 0 | T95: =IF(B95<=0,0,B95*IF('Simulador Valora'!$AC$81=1,0,'Simulador Valora'!$Y$75)) -> 0 | V95: =IF(B95<=0,0,IF('Simulador Valora'!$X$41=1,'Simulador Valora'!$O$55,IF('Simulador Valora'!$X$41=2,'Simulador Valora'!$K$55,'Simulador Valora'!$E$55))) -> 0 | X95: 0 | AB95: 0 | AC95: 0.12 | AD95: 0 | AE95: 0 | AF95: 0 | AG95: 0 | AH95: 0 | AI95: =IF(AD95<=0,0,AD95*IF('Simulador Valora'!$AC$81=1,0,'Simulador Valora'!$Y$75))+IF(AD95<=0,0,IF('Simulador Valora'!$X$41=1,'Simulador Valora'!$O$55,IF('Simulador Valora'!$X$41=2,'Simulador Valora'!$K$55,'Simulador Valora'!$E$55))) -> 0 | AK95: 0 | AL95: 0 | AN95: 6 | AO95: 7 | AP95: 0 | AQ95: 0 | AR95: 0 | AS95: 162 | AU95: 0 | AV95: 79
A96: 80 | B96: 0 | D96: =IF(B96+F96-D95<=0,B96+F96,IF(A96=$B$9,$F$9,IF(A96=$B$10,$F$10,IF(AND('Simulador Valora'!$AH$45=2,L95=0),D95*(1+Z96),IF($AM$3=2,B96*AL96,D95*(1+Z96)))))) -> 0 | F96: 0 | H96: 0 | J96: =IF(B96-H96=0,0,J94) -> 0 | N96: =IF('Simulador Valora'!$V$66=1,0,L96*'Simulador Valora'!$O$69*'Simulador Valora'!$W$65) -> 0 | P96: 0 | R96: 0 | T96: =IF(B96<=0,0,B96*IF('Simulador Valora'!$AC$81=1,0,'Simulador Valora'!$Y$75)) -> 0 | V96: =IF(B96<=0,0,IF('Simulador Valora'!$X$41=1,'Simulador Valora'!$O$55,IF('Simulador Valora'!$X$41=2,'Simulador Valora'!$K$55,'Simulador Valora'!$E$55))) -> 0 | X96: 0 | AB96: 0 | AC96: 0.12 | AD96: 0 | AE96: 0 | AF96: 0 | AG96: 0 | AH96: 0 | AI96: =IF(AD96<=0,0,AD96*IF('Simulador Valora'!$AC$81=1,0,'Simulador Valora'!$Y$75))+IF(AD96<=0,0,IF('Simulador Valora'!$X$41=1,'Simulador Valora'!$O$55,IF('Simulador Valora'!$X$41=2,'Simulador Valora'!$K$55,'Simulador Valora'!$E$55))) -> 0 | AK96: 0 | AL96: 0 | AN96: 6 | AO96: 8 | AP96: 0 | AQ96: 0 | AR96: 0 | AS96: 161 | AU96: 0 | AV96: 80
A97: 81 | B97: 0 | D97: =IF(B97+F97-D96<=0,B97+F97,IF(A97=$B$9,$F$9,IF(A97=$B$10,$F$10,IF(AND('Simulador Valora'!$AH$45=2,L96=0),D96*(1+Z97),IF($AM$3=2,B97*AL97,D96*(1+Z97)))))) -> 0 | F97: 0 | H97: 0 | N97: =IF('Simulador Valora'!$V$66=1,0,L97*'Simulador Valora'!$O$69*'Simulador Valora'!$W$65) -> 0 | P97: 0 | R97: 0 | T97: =IF(B97<=0,0,B97*IF('Simulador Valora'!$AC$81=1,0,'Simulador Valora'!$Y$75)) -> 0 | V97: =IF(B97<=0,0,IF('Simulador Valora'!$X$41=1,'Simulador Valora'!$O$55,IF('Simulador Valora'!$X$41=2,'Simulador Valora'!$K$55,'Simulador Valora'!$E$55))) -> 0 | X97: 0 | AB97: 0 | AC97: 0.12 | AD97: 0 | AE97: 0 | AF97: 0 | AG97: 0 | AH97: 0 | AI97: =IF(AD97<=0,0,AD97*IF('Simulador Valora'!$AC$81=1,0,'Simulador Valora'!$Y$75))+IF(AD97<=0,0,IF('Simulador Valora'!$X$41=1,'Simulador Valora'!$O$55,IF('Simulador Valora'!$X$41=2,'Simulador Valora'!$K$55,'Simulador Valora'!$E$55))) -> 0 | AK97: 0 | AL97: 0 | AN97: 6 | AO97: 9 | AP97: 0 | AQ97: 0 | AR97: 0 | AS97: 160 | AU97: 0 | AV97: 81
A98: 82 | B98: 0 | D98: =IF(B98+F98-D97<=0,B98+F98,IF(A98=$B$9,$F$9,IF(A98=$B$10,$F$10,IF(AND('Simulador Valora'!$AH$45=2,L97=0),D97*(1+Z98),IF($AM$3=2,B98*AL98,D97*(1+Z98)))))) -> 0 | F98: 0 | H98: 0 | J98: =IF(B98-H98=0,0,J96) -> 0 | N98: =IF('Simulador Valora'!$V$66=1,0,L98*'Simulador Valora'!$O$69*'Simulador Valora'!$W$65) -> 0 | P98: 0 | R98: 0 | T98: =IF(B98<=0,0,B98*IF('Simulador Valora'!$AC$81=1,0,'Simulador Valora'!$Y$75)) -> 0 | V98: =IF(B98<=0,0,IF('Simulador Valora'!$X$41=1,'Simulador Valora'!$O$55,IF('Simulador Valora'!$X$41=2,'Simulador Valora'!$K$55,'Simulador Valora'!$E$55))) -> 0 | X98: 0 | AB98: 0 | AC98: 0.12 | AD98: 0 | AE98: 0 | AF98: 0 | AG98: 0 | AH98: 0 | AI98: =IF(AD98<=0,0,AD98*IF('Simulador Valora'!$AC$81=1,0,'Simulador Valora'!$Y$75))+IF(AD98<=0,0,IF('Simulador Valora'!$X$41=1,'Simulador Valora'!$O$55,IF('Simulador Valora'!$X$41=2,'Simulador Valora'!$K$55,'Simulador Valora'!$E$55))) -> 0 | AK98: 0 | AL98: 0 | AN98: 6 | AO98: 10 | AP98: 0 | AQ98: 0 | AR98: 0 | AS98: 159 | AU98: 0 | AV98: 82
A99: 83 | B99: 0 | D99: =IF(B99+F99-D98<=0,B99+F99,IF(A99=$B$9,$F$9,IF(A99=$B$10,$F$10,IF(AND('Simulador Valora'!$AH$45=2,L98=0),D98*(1+Z99),IF($AM$3=2,B99*AL99,D98*(1+Z99)))))) -> 0 | F99: 0 | H99: 0 | N99: =IF('Simulador Valora'!$V$66=1,0,L99*'Simulador Valora'!$O$69*'Simulador Valora'!$W$65) -> 0 | P99: 0 | R99: 0 | T99: =IF(B99<=0,0,B99*IF('Simulador Valora'!$AC$81=1,0,'Simulador Valora'!$Y$75)) -> 0 | V99: =IF(B99<=0,0,IF('Simulador Valora'!$X$41=1,'Simulador Valora'!$O$55,IF('Simulador Valora'!$X$41=2,'Simulador Valora'!$K$55,'Simulador Valora'!$E$55))) -> 0 | X99: 0 | AB99: 0 | AC99: 0.12 | AD99: 0 | AE99: 0 | AF99: 0 | AG99: 0 | AH99: 0 | AI99: =IF(AD99<=0,0,AD99*IF('Simulador Valora'!$AC$81=1,0,'Simulador Valora'!$Y$75))+IF(AD99<=0,0,IF('Simulador Valora'!$X$41=1,'Simulador Valora'!$O$55,IF('Simulador Valora'!$X$41=2,'Simulador Valora'!$K$55,'Simulador Valora'!$E$55))) -> 0 | AK99: 0 | AL99: 0 | AN99: 6 | AO99: 11 | AP99: 0 | AQ99: 0 | AR99: 0 | AS99: 158 | AU99: 0 | AV99: 83
A100: 84 | B100: 0 | D100: =IF(B100+F100-D99<=0,B100+F100,IF(A100=$B$9,$F$9,IF(A100=$B$10,$F$10,IF(AND('Simulador Valora'!$AH$45=2,L99=0),D99*(1+Z100),IF($AM$3=2,B100*AL100,D99*(1+Z100)))))) -> 0 | F100: 0 | H100: 0 | J100: =IF(B100-H100=0,0,J98) -> 0 | N100: =IF('Simulador Valora'!$V$66=1,0,L100*'Simulador Valora'!$O$69*'Simulador Valora'!$W$65) -> 0 | P100: 0 | R100: 0 | T100: =IF(B100<=0,0,B100*IF('Simulador Valora'!$AC$81=1,0,'Simulador Valora'!$Y$75)) -> 0 | V100: =IF(B100<=0,0,IF('Simulador Valora'!$X$41=1,'Simulador Valora'!$O$55,IF('Simulador Valora'!$X$41=2,'Simulador Valora'!$K$55,'Simulador Valora'!$E$55))) -> 0 | X100: 0 | AB100: 0 | AC100: 0.12 | AD100: 0 | AE100: 0 | AF100: 0 | AG100: 0 | AH100: 0 | AI100: =IF(AD100<=0,0,AD100*IF('Simulador Valora'!$AC$81=1,0,'Simulador Valora'!$Y$75))+IF(AD100<=0,0,IF('Simulador Valora'!$X$41=1,'Simulador Valora'!$O$55,IF('Simulador Valora'!$X$41=2,'Simulador Valora'!$K$55,'Simulador Valora'!$E$55))) -> 0 | AK100: 0 | AL100: 0 | AN100: 7 | AO100: 0 | AP100: 0 | AQ100: 0 | AR100: 0 | AS100: 157 | AU100: 0 | AV100: 84
A101: 85 | B101: 0 | D101: =IF(B101+F101-D100<=0,B101+F101,IF(A101=$B$9,$F$9,IF(A101=$B$10,$F$10,IF(AND('Simulador Valora'!$AH$45=2,L100=0),D100*(1+Z101),IF($AM$3=2,B101*AL101,D100*(1+Z101)))))) -> 0 | F101: 0 | H101: 0 | N101: =IF('Simulador Valora'!$V$66=1,0,L101*'Simulador Valora'!$O$69*'Simulador Valora'!$W$65) -> 0 | P101: 0 | R101: 0 | T101: =IF(B101<=0,0,B101*IF('Simulador Valora'!$AC$81=1,0,'Simulador Valora'!$Y$75)) -> 0 | V101: =IF(B101<=0,0,IF('Simulador Valora'!$X$41=1,'Simulador Valora'!$O$55,IF('Simulador Valora'!$X$41=2,'Simulador Valora'!$K$55,'Simulador Valora'!$E$55))) -> 0 | X101: 0 | Z101: =IF(B101<=0,0,'Simulador Valora'!$AI$54) -> 0 | AB101: 0 | AC101: =IF(AC100=$AC$6,AC100,IF(AC100=$AC$5,AC100,AC100-0.25%)) -> 0.12 | AD101: 0 | AE101: 0 | AF101: 0 | AG101: 0 | AH101: 0 | AI101: =IF(AD101<=0,0,AD101*IF('Simulador Valora'!$AC$81=1,0,'Simulador Valora'!$Y$75))+IF(AD101<=0,0,IF('Simulador Valora'!$X$41=1,'Simulador Valora'!$O$55,IF('Simulador Valora'!$X$41=2,'Simulador Valora'!$K$55,'Simulador Valora'!$E$55))) -> 0 | AJ101: =IF(AC101<=0,0,$AJ$29) -> 0 | AK101: 0 | AL101: 0 | AN101: 7 | AO101: 1 | AP101: 0 | AQ101: 0 | AR101: 0 | AS101: 156 | AU101: 0 | AV101: 85
A102: 86 | B102: 0 | D102: =IF(B102+F102-D101<=0,B102+F102,IF(A102=$B$9,$F$9,IF(A102=$B$10,$F$10,IF(AND('Simulador Valora'!$AH$45=2,L101=0),D101*(1+Z102),IF($AM$3=2,B102*AL102,D101*(1+Z102)))))) -> 0 | F102: 0 | H102: 0 | J102: =IF(B102-H102=0,0,J100*(1+(3%))) -> 0 | N102: =IF('Simulador Valora'!$V$66=1,0,L102*'Simulador Valora'!$O$69*'Simulador Valora'!$W$65) -> 0 | P102: 0 | R102: 0 | T102: =IF(B102<=0,0,B102*IF('Simulador Valora'!$AC$81=1,0,'Simulador Valora'!$Y$75)) -> 0 | V102: =IF(B102<=0,0,IF('Simulador Valora'!$X$41=1,'Simulador Valora'!$O$55,IF('Simulador Valora'!$X$41=2,'Simulador Valora'!$K$55,'Simulador Valora'!$E$55))) -> 0 | X102: 0 | AB102: 0 | AC102: =AC101 -> 0.12 | AD102: 0 | AE102: 0 | AF102: 0 | AG102: 0 | AH102: 0 | AI102: =IF(AD102<=0,0,AD102*IF('Simulador Valora'!$AC$81=1,0,'Simulador Valora'!$Y$75))+IF(AD102<=0,0,IF('Simulador Valora'!$X$41=1,'Simulador Valora'!$O$55,IF('Simulador Valora'!$X$41=2,'Simulador Valora'!$K$55,'Simulador Valora'!$E$55))) -> 0 | AK102: 0 | AL102: 0 | AN102: 7 | AO102: 2 | AP102: 0 | AQ102: 0 | AR102: 0 | AS102: 155 | AU102: 0 | AV102: 86
A103: 87 | B103: 0 | D103: =IF(B103+F103-D102<=0,B103+F103,IF(A103=$B$9,$F$9,IF(A103=$B$10,$F$10,IF(AND('Simulador Valora'!$AH$45=2,L102=0),D102*(1+Z103),IF($AM$3=2,B103*AL103,D102*(1+Z103)))))) -> 0 | F103: 0 | H103: 0 | N103: =IF('Simulador Valora'!$V$66=1,0,L103*'Simulador Valora'!$O$69*'Simulador Valora'!$W$65) -> 0 | P103: 0 | R103: 0 | T103: =IF(B103<=0,0,B103*IF('Simulador Valora'!$AC$81=1,0,'Simulador Valora'!$Y$75)) -> 0 | V103: =IF(B103<=0,0,IF('Simulador Valora'!$X$41=1,'Simulador Valora'!$O$55,IF('Simulador Valora'!$X$41=2,'Simulador Valora'!$K$55,'Simulador Valora'!$E$55))) -> 0 | X103: 0 | AB103: 0 | AC103: =AC102 -> 0.12 | AD103: 0 | AE103: 0 | AF103: 0 | AG103: 0 | AH103: 0 | AI103: =IF(AD103<=0,0,AD103*IF('Simulador Valora'!$AC$81=1,0,'Simulador Valora'!$Y$75))+IF(AD103<=0,0,IF('Simulador Valora'!$X$41=1,'Simulador Valora'!$O$55,IF('Simulador Valora'!$X$41=2,'Simulador Valora'!$K$55,'Simulador Valora'!$E$55))) -> 0 | AK103: 0 | AL103: 0 | AN103: 7 | AO103: 3 | AP103: 0 | AQ103: 0 | AR103: 0 | AS103: 154 | AU103: 0 | AV103: 87
A104: 88 | B104: 0 | D104: =IF(B104+F104-D103<=0,B104+F104,IF(A104=$B$9,$F$9,IF(A104=$B$10,$F$10,IF(AND('Simulador Valora'!$AH$45=2,L103=0),D103*(1+Z104),IF($AM$3=2,B104*AL104,D103*(1+Z104)))))) -> 0 | F104: 0 | H104: 0 | J104: =IF(B104-H104=0,0,J102) -> 0 | N104: =IF('Simulador Valora'!$V$66=1,0,L104*'Simulador Valora'!$O$69*'Simulador Valora'!$W$65) -> 0 | P104: 0 | R104: 0 | T104: =IF(B104<=0,0,B104*IF('Simulador Valora'!$AC$81=1,0,'Simulador Valora'!$Y$75)) -> 0 | V104: =IF(B104<=0,0,IF('Simulador Valora'!$X$41=1,'Simulador Valora'!$O$55,IF('Simulador Valora'!$X$41=2,'Simulador Valora'!$K$55,'Simulador Valora'!$E$55))) -> 0 | X104: 0 | AB104: 0 | AC104: 0.12 | AD104: 0 | AE104: 0 | AF104: 0 | AG104: 0 | AH104: 0 | AI104: =IF(AD104<=0,0,AD104*IF('Simulador Valora'!$AC$81=1,0,'Simulador Valora'!$Y$75))+IF(AD104<=0,0,IF('Simulador Valora'!$X$41=1,'Simulador Valora'!$O$55,IF('Simulador Valora'!$X$41=2,'Simulador Valora'!$K$55,'Simulador Valora'!$E$55))) -> 0 | AK104: 0 | AL104: 0 | AN104: 7 | AO104: 4 | AP104: 0 | AQ104: 0 | AR104: 0 | AS104: 153 | AU104: 0 | AV104: 88
A105: 89 | B105: 0 | D105: =IF(B105+F105-D104<=0,B105+F105,IF(A105=$B$9,$F$9,IF(A105=$B$10,$F$10,IF(AND('Simulador Valora'!$AH$45=2,L104=0),D104*(1+Z105),IF($AM$3=2,B105*AL105,D104*(1+Z105)))))) -> 0 | F105: 0 | H105: 0 | N105: =IF('Simulador Valora'!$V$66=1,0,L105*'Simulador Valora'!$O$69*'Simulador Valora'!$W$65) -> 0 | P105: 0 | R105: 0 | T105: =IF(B105<=0,0,B105*IF('Simulador Valora'!$AC$81=1,0,'Simulador Valora'!$Y$75)) -> 0 | V105: =IF(B105<=0,0,IF('Simulador Valora'!$X$41=1,'Simulador Valora'!$O$55,IF('Simulador Valora'!$X$41=2,'Simulador Valora'!$K$55,'Simulador Valora'!$E$55))) -> 0 | X105: 0 | AB105: 0 | AC105: 0.12 | AD105: 0 | AE105: 0 | AF105: 0 | AG105: 0 | AH105: 0 | AI105: =IF(AD105<=0,0,AD105*IF('Simulador Valora'!$AC$81=1,0,'Simulador Valora'!$Y$75))+IF(AD105<=0,0,IF('Simulador Valora'!$X$41=1,'Simulador Valora'!$O$55,IF('Simulador Valora'!$X$41=2,'Simulador Valora'!$K$55,'Simulador Valora'!$E$55))) -> 0 | AK105: 0 | AL105: 0 | AN105: 7 | AO105: 5 | AP105: 0 | AQ105: 0 | AR105: 0 | AS105: 152 | AU105: 0 | AV105: 89
A106: 90 | B106: 0 | D106: =IF(B106+F106-D105<=0,B106+F106,IF(A106=$B$9,$F$9,IF(A106=$B$10,$F$10,IF(AND('Simulador Valora'!$AH$45=2,L105=0),D105*(1+Z106),IF($AM$3=2,B106*AL106,D105*(1+Z106)))))) -> 0 | F106: 0 | H106: 0 | J106: =IF(B106-H106=0,0,J104) -> 0 | N106: =IF('Simulador Valora'!$V$66=1,0,L106*'Simulador Valora'!$O$69*'Simulador Valora'!$W$65) -> 0 | P106: 0 | R106: 0 | T106: =IF(B106<=0,0,B106*IF('Simulador Valora'!$AC$81=1,0,'Simulador Valora'!$Y$75)) -> 0 | V106: =IF(B106<=0,0,IF('Simulador Valora'!$X$41=1,'Simulador Valora'!$O$55,IF('Simulador Valora'!$X$41=2,'Simulador Valora'!$K$55,'Simulador Valora'!$E$55))) -> 0 | X106: 0 | AB106: 0 | AC106: 0.12 | AD106: 0 | AE106: 0 | AF106: 0 | AG106: 0 | AH106: 0 | AI106: =IF(AD106<=0,0,AD106*IF('Simulador Valora'!$AC$81=1,0,'Simulador Valora'!$Y$75))+IF(AD106<=0,0,IF('Simulador Valora'!$X$41=1,'Simulador Valora'!$O$55,IF('Simulador Valora'!$X$41=2,'Simulador Valora'!$K$55,'Simulador Valora'!$E$55))) -> 0 | AK106: 0 | AL106: 0 | AN106: 7 | AO106: 6 | AP106: 0 | AQ106: 0 | AR106: 0 | AS106: 151 | AU106: 0 | AV106: 90
A107: 91 | B107: 0 | D107: =IF(B107+F107-D106<=0,B107+F107,IF(A107=$B$9,$F$9,IF(A107=$B$10,$F$10,IF(AND('Simulador Valora'!$AH$45=2,L106=0),D106*(1+Z107),IF($AM$3=2,B107*AL107,D106*(1+Z107)))))) -> 0 | F107: 0 | H107: 0 | N107: =IF('Simulador Valora'!$V$66=1,0,L107*'Simulador Valora'!$O$69*'Simulador Valora'!$W$65) -> 0 | P107: 0 | R107: 0 | T107: =IF(B107<=0,0,B107*IF('Simulador Valora'!$AC$81=1,0,'Simulador Valora'!$Y$75)) -> 0 | V107: =IF(B107<=0,0,IF('Simulador Valora'!$X$41=1,'Simulador Valora'!$O$55,IF('Simulador Valora'!$X$41=2,'Simulador Valora'!$K$55,'Simulador Valora'!$E$55))) -> 0 | X107: 0 | AB107: 0 | AC107: 0.12 | AD107: 0 | AE107: 0 | AF107: 0 | AG107: 0 | AH107: 0 | AI107: =IF(AD107<=0,0,AD107*IF('Simulador Valora'!$AC$81=1,0,'Simulador Valora'!$Y$75))+IF(AD107<=0,0,IF('Simulador Valora'!$X$41=1,'Simulador Valora'!$O$55,IF('Simulador Valora'!$X$41=2,'Simulador Valora'!$K$55,'Simulador Valora'!$E$55))) -> 0 | AK107: 0 | AL107: 0 | AN107: 7 | AO107: 7 | AP107: 0 | AQ107: 0 | AR107: 0 | AS107: 150 | AU107: 0 | AV107: 91
A108: 92 | B108: 0 | D108: =IF(B108+F108-D107<=0,B108+F108,IF(A108=$B$9,$F$9,IF(A108=$B$10,$F$10,IF(AND('Simulador Valora'!$AH$45=2,L107=0),D107*(1+Z108),IF($AM$3=2,B108*AL108,D107*(1+Z108)))))) -> 0 | F108: 0 | H108: 0 | J108: =IF(B108-H108=0,0,J106) -> 0 | N108: =IF('Simulador Valora'!$V$66=1,0,L108*'Simulador Valora'!$O$69*'Simulador Valora'!$W$65) -> 0 | P108: 0 | R108: 0 | T108: =IF(B108<=0,0,B108*IF('Simulador Valora'!$AC$81=1,0,'Simulador Valora'!$Y$75)) -> 0 | V108: =IF(B108<=0,0,IF('Simulador Valora'!$X$41=1,'Simulador Valora'!$O$55,IF('Simulador Valora'!$X$41=2,'Simulador Valora'!$K$55,'Simulador Valora'!$E$55))) -> 0 | X108: 0 | AB108: 0 | AC108: 0.12 | AD108: 0 | AE108: 0 | AF108: 0 | AG108: 0 | AH108: 0 | AI108: =IF(AD108<=0,0,AD108*IF('Simulador Valora'!$AC$81=1,0,'Simulador Valora'!$Y$75))+IF(AD108<=0,0,IF('Simulador Valora'!$X$41=1,'Simulador Valora'!$O$55,IF('Simulador Valora'!$X$41=2,'Simulador Valora'!$K$55,'Simulador Valora'!$E$55))) -> 0 | AK108: 0 | AL108: 0 | AN108: 7 | AO108: 8 | AP108: 0 | AQ108: 0 | AR108: 0 | AS108: =IFERROR(IF(AC108<=0.01,0,AS107-1),0) -> 149 | AU108: 0 | AV108: 92
A109: 93 | B109: 0 | D109: =IF(B109+F109-D108<=0,B109+F109,IF(A109=$B$9,$F$9,IF(A109=$B$10,$F$10,IF(AND('Simulador Valora'!$AH$45=2,L108=0),D108*(1+Z109),IF($AM$3=2,B109*AL109,D108*(1+Z109)))))) -> 0 | F109: 0 | H109: 0 | N109: =IF('Simulador Valora'!$V$66=1,0,L109*'Simulador Valora'!$O$69*'Simulador Valora'!$W$65) -> 0 | P109: 0 | R109: 0 | T109: =IF(B109<=0,0,B109*IF('Simulador Valora'!$AC$81=1,0,'Simulador Valora'!$Y$75)) -> 0 | V109: =IF(B109<=0,0,IF('Simulador Valora'!$X$41=1,'Simulador Valora'!$O$55,IF('Simulador Valora'!$X$41=2,'Simulador Valora'!$K$55,'Simulador Valora'!$E$55))) -> 0 | X109: 0 | AB109: 0 | AC109: 0.12 | AD109: 0 | AE109: 0 | AF109: 0 | AG109: 0 | AH109: 0 | AI109: =IF(AD109<=0,0,AD109*IF('Simulador Valora'!$AC$81=1,0,'Simulador Valora'!$Y$75))+IF(AD109<=0,0,IF('Simulador Valora'!$X$41=1,'Simulador Valora'!$O$55,IF('Simulador Valora'!$X$41=2,'Simulador Valora'!$K$55,'Simulador Valora'!$E$55))) -> 0 | AK109: 0 | AL109: 0 | AN109: 7 | AO109: 9 | AP109: 0 | AQ109: 0 | AR109: 0 | AS109: 148 | AU109: 0 | AV109: 93
A110: 94 | B110: 0 | D110: =IF(B110+F110-D109<=0,B110+F110,IF(A110=$B$9,$F$9,IF(A110=$B$10,$F$10,IF(AND('Simulador Valora'!$AH$45=2,L109=0),D109*(1+Z110),IF($AM$3=2,B110*AL110,D109*(1+Z110)))))) -> 0 | F110: 0 | H110: 0 | J110: =IF(B110-H110=0,0,J108) -> 0 | N110: =IF('Simulador Valora'!$V$66=1,0,L110*'Simulador Valora'!$O$69*'Simulador Valora'!$W$65) -> 0 | P110: 0 | R110: 0 | T110: =IF(B110<=0,0,B110*IF('Simulador Valora'!$AC$81=1,0,'Simulador Valora'!$Y$75)) -> 0 | V110: =IF(B110<=0,0,IF('Simulador Valora'!$X$41=1,'Simulador Valora'!$O$55,IF('Simulador Valora'!$X$41=2,'Simulador Valora'!$K$55,'Simulador Valora'!$E$55))) -> 0 | X110: 0 | AB110: 0 | AC110: 0.12 | AD110: 0 | AE110: 0 | AF110: 0 | AG110: 0 | AH110: 0 | AI110: =IF(AD110<=0,0,AD110*IF('Simulador Valora'!$AC$81=1,0,'Simulador Valora'!$Y$75))+IF(AD110<=0,0,IF('Simulador Valora'!$X$41=1,'Simulador Valora'!$O$55,IF('Simulador Valora'!$X$41=2,'Simulador Valora'!$K$55,'Simulador Valora'!$E$55))) -> 0 | AK110: 0 | AL110: 0 | AN110: 7 | AO110: 10 | AP110: 0 | AQ110: 0 | AR110: 0 | AS110: 147 | AU110: 0 | AV110: 94
A111: 95 | B111: 0 | D111: =IF(B111+F111-D110<=0,B111+F111,IF(A111=$B$9,$F$9,IF(A111=$B$10,$F$10,IF(AND('Simulador Valora'!$AH$45=2,L110=0),D110*(1+Z111),IF($AM$3=2,B111*AL111,D110*(1+Z111)))))) -> 0 | F111: 0 | H111: 0 | N111: =IF('Simulador Valora'!$V$66=1,0,L111*'Simulador Valora'!$O$69*'Simulador Valora'!$W$65) -> 0 | P111: 0 | R111: 0 | T111: =IF(B111<=0,0,B111*IF('Simulador Valora'!$AC$81=1,0,'Simulador Valora'!$Y$75)) -> 0 | V111: =IF(B111<=0,0,IF('Simulador Valora'!$X$41=1,'Simulador Valora'!$O$55,IF('Simulador Valora'!$X$41=2,'Simulador Valora'!$K$55,'Simulador Valora'!$E$55))) -> 0 | X111: 0 | AB111: 0 | AC111: 0.12 | AD111: 0 | AE111: 0 | AF111: 0 | AG111: 0 | AH111: 0 | AI111: =IF(AD111<=0,0,AD111*IF('Simulador Valora'!$AC$81=1,0,'Simulador Valora'!$Y$75))+IF(AD111<=0,0,IF('Simulador Valora'!$X$41=1,'Simulador Valora'!$O$55,IF('Simulador Valora'!$X$41=2,'Simulador Valora'!$K$55,'Simulador Valora'!$E$55))) -> 0 | AK111: 0 | AL111: 0 | AN111: 7 | AO111: 11 | AP111: 0 | AQ111: 0 | AR111: 0 | AS111: 146 | AU111: 0 | AV111: 95
A112: 96 | B112: 0 | D112: =IF(B112+F112-D111<=0,B112+F112,IF(A112=$B$9,$F$9,IF(A112=$B$10,$F$10,IF(AND('Simulador Valora'!$AH$45=2,L111=0),D111*(1+Z112),IF($AM$3=2,B112*AL112,D111*(1+Z112)))))) -> 0 | F112: 0 | H112: 0 | J112: =IF(B112-H112=0,0,J110) -> 0 | N112: =IF('Simulador Valora'!$V$66=1,0,L112*'Simulador Valora'!$O$69*'Simulador Valora'!$W$65) -> 0 | P112: 0 | R112: 0 | T112: =IF(B112<=0,0,B112*IF('Simulador Valora'!$AC$81=1,0,'Simulador Valora'!$Y$75)) -> 0 | V112: =IF(B112<=0,0,IF('Simulador Valora'!$X$41=1,'Simulador Valora'!$O$55,IF('Simulador Valora'!$X$41=2,'Simulador Valora'!$K$55,'Simulador Valora'!$E$55))) -> 0 | X112: 0 | AB112: 0 | AC112: 0.12 | AD112: 0 | AE112: 0 | AF112: 0 | AG112: 0 | AH112: 0 | AI112: =IF(AD112<=0,0,AD112*IF('Simulador Valora'!$AC$81=1,0,'Simulador Valora'!$Y$75))+IF(AD112<=0,0,IF('Simulador Valora'!$X$41=1,'Simulador Valora'!$O$55,IF('Simulador Valora'!$X$41=2,'Simulador Valora'!$K$55,'Simulador Valora'!$E$55))) -> 0 | AK112: 0 | AL112: 0 | AN112: 8 | AO112: 0 | AP112: 0 | AQ112: 0 | AR112: 0 | AS112: 145 | AU112: 0 | AV112: 96
A113: 97 | B113: 0 | D113: =IF(B113+F113-D112<=0,B113+F113,IF(A113=$B$9,$F$9,IF(A113=$B$10,$F$10,IF(AND('Simulador Valora'!$AH$45=2,L112=0),D112*(1+Z113),IF($AM$3=2,B113*AL113,D112*(1+Z113)))))) -> 0 | F113: 0 | H113: 0 | N113: =IF('Simulador Valora'!$V$66=1,0,L113*'Simulador Valora'!$O$69*'Simulador Valora'!$W$65) -> 0 | P113: 0 | R113: 0 | T113: =IF(B113<=0,0,B113*IF('Simulador Valora'!$AC$81=1,0,'Simulador Valora'!$Y$75)) -> 0 | V113: =IF(B113<=0,0,IF('Simulador Valora'!$X$41=1,'Simulador Valora'!$O$55,IF('Simulador Valora'!$X$41=2,'Simulador Valora'!$K$55,'Simulador Valora'!$E$55))) -> 0 | X113: 0 | Z113: =IF(B113<=0,0,'Simulador Valora'!$AI$54) -> 0 | AB113: 0 | AC113: =IF(AC112=$AC$6,AC112,IF(AC112=$AC$5,AC112,AC112-0.25%)) -> 0.12 | AD113: 0 | AE113: 0 | AF113: 0 | AG113: 0 | AH113: 0 | AI113: =IF(AD113<=0,0,AD113*IF('Simulador Valora'!$AC$81=1,0,'Simulador Valora'!$Y$75))+IF(AD113<=0,0,IF('Simulador Valora'!$X$41=1,'Simulador Valora'!$O$55,IF('Simulador Valora'!$X$41=2,'Simulador Valora'!$K$55,'Simulador Valora'!$E$55))) -> 0 | AJ113: =IF(AC113<=0,0,$AJ$29) -> 0 | AK113: 0 | AL113: 0 | AN113: 8 | AO113: 1 | AP113: 0 | AQ113: 0 | AR113: 0 | AS113: 144 | AU113: 0 | AV113: 97
A114: 98 | B114: 0 | D114: =IF(B114+F114-D113<=0,B114+F114,IF(A114=$B$9,$F$9,IF(A114=$B$10,$F$10,IF(AND('Simulador Valora'!$AH$45=2,L113=0),D113*(1+Z114),IF($AM$3=2,B114*AL114,D113*(1+Z114)))))) -> 0 | F114: 0 | H114: 0 | J114: =IF(B114-H114=0,0,J112*(1+(3%))) -> 0 | N114: =IF('Simulador Valora'!$V$66=1,0,L114*'Simulador Valora'!$O$69*'Simulador Valora'!$W$65) -> 0 | P114: 0 | R114: 0 | T114: =IF(B114<=0,0,B114*IF('Simulador Valora'!$AC$81=1,0,'Simulador Valora'!$Y$75)) -> 0 | V114: =IF(B114<=0,0,IF('Simulador Valora'!$X$41=1,'Simulador Valora'!$O$55,IF('Simulador Valora'!$X$41=2,'Simulador Valora'!$K$55,'Simulador Valora'!$E$55))) -> 0 | X114: 0 | AB114: 0 | AC114: =AC113 -> 0.12 | AD114: 0 | AE114: 0 | AF114: 0 | AG114: 0 | AH114: 0 | AI114: =IF(AD114<=0,0,AD114*IF('Simulador Valora'!$AC$81=1,0,'Simulador Valora'!$Y$75))+IF(AD114<=0,0,IF('Simulador Valora'!$X$41=1,'Simulador Valora'!$O$55,IF('Simulador Valora'!$X$41=2,'Simulador Valora'!$K$55,'Simulador Valora'!$E$55))) -> 0 | AK114: 0 | AL114: 0 | AN114: 8 | AO114: 2 | AP114: 0 | AQ114: 0 | AR114: 0 | AS114: 143 | AU114: 0 | AV114: 98
A115: 99 | B115: 0 | D115: =IF(B115+F115-D114<=0,B115+F115,IF(A115=$B$9,$F$9,IF(A115=$B$10,$F$10,IF(AND('Simulador Valora'!$AH$45=2,L114=0),D114*(1+Z115),IF($AM$3=2,B115*AL115,D114*(1+Z115)))))) -> 0 | F115: 0 | H115: 0 | N115: =IF('Simulador Valora'!$V$66=1,0,L115*'Simulador Valora'!$O$69*'Simulador Valora'!$W$65) -> 0 | P115: 0 | R115: 0 | T115: =IF(B115<=0,0,B115*IF('Simulador Valora'!$AC$81=1,0,'Simulador Valora'!$Y$75)) -> 0 | V115: =IF(B115<=0,0,IF('Simulador Valora'!$X$41=1,'Simulador Valora'!$O$55,IF('Simulador Valora'!$X$41=2,'Simulador Valora'!$K$55,'Simulador Valora'!$E$55))) -> 0 | X115: 0 | AB115: 0 | AC115: =AC114 -> 0.12 | AD115: 0 | AE115: 0 | AF115: 0 | AG115: 0 | AH115: 0 | AI115: =IF(AD115<=0,0,AD115*IF('Simulador Valora'!$AC$81=1,0,'Simulador Valora'!$Y$75))+IF(AD115<=0,0,IF('Simulador Valora'!$X$41=1,'Simulador Valora'!$O$55,IF('Simulador Valora'!$X$41=2,'Simulador Valora'!$K$55,'Simulador Valora'!$E$55))) -> 0 | AK115: 0 | AL115: 0 | AN115: 8 | AO115: 3 | AP115: 0 | AQ115: 0 | AR115: 0 | AS115: 142 | AU115: 0 | AV115: 99
A116: 100 | B116: 0 | D116: =IF(B116+F116-D115<=0,B116+F116,IF(A116=$B$9,$F$9,IF(A116=$B$10,$F$10,IF(AND('Simulador Valora'!$AH$45=2,L115=0),D115*(1+Z116),IF($AM$3=2,B116*AL116,D115*(1+Z116)))))) -> 0 | F116: 0 | H116: 0 | J116: =IF(B116-H116=0,0,J114) -> 0 | N116: =IF('Simulador Valora'!$V$66=1,0,L116*'Simulador Valora'!$O$69*'Simulador Valora'!$W$65) -> 0 | P116: 0 | R116: 0 | T116: =IF(B116<=0,0,B116*IF('Simulador Valora'!$AC$81=1,0,'Simulador Valora'!$Y$75)) -> 0 | V116: =IF(B116<=0,0,IF('Simulador Valora'!$X$41=1,'Simulador Valora'!$O$55,IF('Simulador Valora'!$X$41=2,'Simulador Valora'!$K$55,'Simulador Valora'!$E$55))) -> 0 | X116: 0 | AB116: 0 | AC116: 0.12 | AD116: 0 | AE116: 0 | AF116: 0 | AG116: 0 | AH116: 0 | AI116: =IF(AD116<=0,0,AD116*IF('Simulador Valora'!$AC$81=1,0,'Simulador Valora'!$Y$75))+IF(AD116<=0,0,IF('Simulador Valora'!$X$41=1,'Simulador Valora'!$O$55,IF('Simulador Valora'!$X$41=2,'Simulador Valora'!$K$55,'Simulador Valora'!$E$55))) -> 0 | AK116: 0 | AL116: 0 | AN116: 8 | AO116: 4 | AP116: 0 | AQ116: 0 | AR116: 0 | AS116: 141 | AU116: 0 | AV116: 100
A117: 101 | B117: 0 | D117: =IF(B117+F117-D116<=0,B117+F117,IF(A117=$B$9,$F$9,IF(A117=$B$10,$F$10,IF(AND('Simulador Valora'!$AH$45=2,L116=0),D116*(1+Z117),IF($AM$3=2,B117*AL117,D116*(1+Z117)))))) -> 0 | F117: 0 | H117: 0 | N117: =IF('Simulador Valora'!$V$66=1,0,L117*'Simulador Valora'!$O$69*'Simulador Valora'!$W$65) -> 0 | P117: 0 | R117: 0 | T117: =IF(B117<=0,0,B117*IF('Simulador Valora'!$AC$81=1,0,'Simulador Valora'!$Y$75)) -> 0 | V117: =IF(B117<=0,0,IF('Simulador Valora'!$X$41=1,'Simulador Valora'!$O$55,IF('Simulador Valora'!$X$41=2,'Simulador Valora'!$K$55,'Simulador Valora'!$E$55))) -> 0 | X117: 0 | AB117: 0 | AC117: 0.12 | AD117: 0 | AE117: 0 | AF117: 0 | AG117: 0 | AH117: 0 | AI117: =IF(AD117<=0,0,AD117*IF('Simulador Valora'!$AC$81=1,0,'Simulador Valora'!$Y$75))+IF(AD117<=0,0,IF('Simulador Valora'!$X$41=1,'Simulador Valora'!$O$55,IF('Simulador Valora'!$X$41=2,'Simulador Valora'!$K$55,'Simulador Valora'!$E$55))) -> 0 | AK117: 0 | AL117: 0 | AN117: 8 | AO117: 5 | AP117: 0 | AQ117: 0 | AR117: 0 | AS117: 140 | AU117: 0 | AV117: 101
A118: 102 | B118: 0 | D118: =IF(B118+F118-D117<=0,B118+F118,IF(A118=$B$9,$F$9,IF(A118=$B$10,$F$10,IF(AND('Simulador Valora'!$AH$45=2,L117=0),D117*(1+Z118),IF($AM$3=2,B118*AL118,D117*(1+Z118)))))) -> 0 | F118: 0 | H118: 0 | J118: =IF(B118-H118=0,0,J116) -> 0 | N118: =IF('Simulador Valora'!$V$66=1,0,L118*'Simulador Valora'!$O$69*'Simulador Valora'!$W$65) -> 0 | P118: 0 | R118: 0 | T118: =IF(B118<=0,0,B118*IF('Simulador Valora'!$AC$81=1,0,'Simulador Valora'!$Y$75)) -> 0 | V118: =IF(B118<=0,0,IF('Simulador Valora'!$X$41=1,'Simulador Valora'!$O$55,IF('Simulador Valora'!$X$41=2,'Simulador Valora'!$K$55,'Simulador Valora'!$E$55))) -> 0 | X118: 0 | AB118: 0 | AC118: 0.12 | AD118: 0 | AE118: 0 | AF118: 0 | AG118: 0 | AH118: 0 | AI118: =IF(AD118<=0,0,AD118*IF('Simulador Valora'!$AC$81=1,0,'Simulador Valora'!$Y$75))+IF(AD118<=0,0,IF('Simulador Valora'!$X$41=1,'Simulador Valora'!$O$55,IF('Simulador Valora'!$X$41=2,'Simulador Valora'!$K$55,'Simulador Valora'!$E$55))) -> 0 | AK118: 0 | AL118: 0 | AN118: 8 | AO118: 6 | AP118: 0 | AQ118: 0 | AR118: 0 | AS118: 139 | AU118: 0 | AV118: 102
A119: 103 | B119: 0 | D119: =IF(B119+F119-D118<=0,B119+F119,IF(A119=$B$9,$F$9,IF(A119=$B$10,$F$10,IF(AND('Simulador Valora'!$AH$45=2,L118=0),D118*(1+Z119),IF($AM$3=2,B119*AL119,D118*(1+Z119)))))) -> 0 | F119: 0 | H119: 0 | N119: =IF('Simulador Valora'!$V$66=1,0,L119*'Simulador Valora'!$O$69*'Simulador Valora'!$W$65) -> 0 | P119: 0 | R119: 0 | T119: =IF(B119<=0,0,B119*IF('Simulador Valora'!$AC$81=1,0,'Simulador Valora'!$Y$75)) -> 0 | V119: =IF(B119<=0,0,IF('Simulador Valora'!$X$41=1,'Simulador Valora'!$O$55,IF('Simulador Valora'!$X$41=2,'Simulador Valora'!$K$55,'Simulador Valora'!$E$55))) -> 0 | X119: 0 | AB119: 0 | AC119: 0.12 | AD119: 0 | AE119: 0 | AF119: 0 | AG119: 0 | AH119: 0 | AI119: =IF(AD119<=0,0,AD119*IF('Simulador Valora'!$AC$81=1,0,'Simulador Valora'!$Y$75))+IF(AD119<=0,0,IF('Simulador Valora'!$X$41=1,'Simulador Valora'!$O$55,IF('Simulador Valora'!$X$41=2,'Simulador Valora'!$K$55,'Simulador Valora'!$E$55))) -> 0 | AK119: 0 | AL119: 0 | AN119: 8 | AO119: 7 | AP119: 0 | AQ119: 0 | AR119: 0 | AS119: 138 | AU119: 0 | AV119: 103
A120: 104 | B120: 0 | D120: =IF(B120+F120-D119<=0,B120+F120,IF(A120=$B$9,$F$9,IF(A120=$B$10,$F$10,IF(AND('Simulador Valora'!$AH$45=2,L119=0),D119*(1+Z120),IF($AM$3=2,B120*AL120,D119*(1+Z120)))))) -> 0 | F120: 0 | H120: 0 | J120: =IF(B120-H120=0,0,J118) -> 0 | N120: =IF('Simulador Valora'!$V$66=1,0,L120*'Simulador Valora'!$O$69*'Simulador Valora'!$W$65) -> 0 | P120: 0 | R120: 0 | T120: =IF(B120<=0,0,B120*IF('Simulador Valora'!$AC$81=1,0,'Simulador Valora'!$Y$75)) -> 0 | V120: =IF(B120<=0,0,IF('Simulador Valora'!$X$41=1,'Simulador Valora'!$O$55,IF('Simulador Valora'!$X$41=2,'Simulador Valora'!$K$55,'Simulador Valora'!$E$55))) -> 0 | X120: 0 | AB120: 0 | AC120: 0.12 | AD120: 0 | AE120: 0 | AF120: 0 | AG120: 0 | AH120: 0 | AI120: =IF(AD120<=0,0,AD120*IF('Simulador Valora'!$AC$81=1,0,'Simulador Valora'!$Y$75))+IF(AD120<=0,0,IF('Simulador Valora'!$X$41=1,'Simulador Valora'!$O$55,IF('Simulador Valora'!$X$41=2,'Simulador Valora'!$K$55,'Simulador Valora'!$E$55))) -> 0 | AK120: 0 | AL120: 0 | AN120: 8 | AO120: 8 | AP120: 0 | AQ120: 0 | AR120: 0 | AS120: 137 | AU120: 0 | AV120: 104
A121: 105 | B121: 0 | D121: =IF(B121+F121-D120<=0,B121+F121,IF(A121=$B$9,$F$9,IF(A121=$B$10,$F$10,IF(AND('Simulador Valora'!$AH$45=2,L120=0),D120*(1+Z121),IF($AM$3=2,B121*AL121,D120*(1+Z121)))))) -> 0 | F121: 0 | H121: 0 | N121: =IF('Simulador Valora'!$V$66=1,0,L121*'Simulador Valora'!$O$69*'Simulador Valora'!$W$65) -> 0 | P121: 0 | R121: 0 | T121: =IF(B121<=0,0,B121*IF('Simulador Valora'!$AC$81=1,0,'Simulador Valora'!$Y$75)) -> 0 | V121: =IF(B121<=0,0,IF('Simulador Valora'!$X$41=1,'Simulador Valora'!$O$55,IF('Simulador Valora'!$X$41=2,'Simulador Valora'!$K$55,'Simulador Valora'!$E$55))) -> 0 | X121: 0 | AB121: 0 | AC121: 0.12 | AD121: 0 | AE121: 0 | AF121: 0 | AG121: 0 | AH121: 0 | AI121: =IF(AD121<=0,0,AD121*IF('Simulador Valora'!$AC$81=1,0,'Simulador Valora'!$Y$75))+IF(AD121<=0,0,IF('Simulador Valora'!$X$41=1,'Simulador Valora'!$O$55,IF('Simulador Valora'!$X$41=2,'Simulador Valora'!$K$55,'Simulador Valora'!$E$55))) -> 0 | AK121: 0 | AL121: 0 | AN121: 8 | AO121: 9 | AP121: 0 | AQ121: 0 | AR121: 0 | AS121: 136 | AU121: 0 | AV121: 105
A122: 106 | B122: 0 | D122: =IF(B122+F122-D121<=0,B122+F122,IF(A122=$B$9,$F$9,IF(A122=$B$10,$F$10,IF(AND('Simulador Valora'!$AH$45=2,L121=0),D121*(1+Z122),IF($AM$3=2,B122*AL122,D121*(1+Z122)))))) -> 0 | F122: 0 | H122: 0 | J122: =IF(B122-H122=0,0,J120) -> 0 | N122: =IF('Simulador Valora'!$V$66=1,0,L122*'Simulador Valora'!$O$69*'Simulador Valora'!$W$65) -> 0 | P122: 0 | R122: 0 | T122: =IF(B122<=0,0,B122*IF('Simulador Valora'!$AC$81=1,0,'Simulador Valora'!$Y$75)) -> 0 | V122: =IF(B122<=0,0,IF('Simulador Valora'!$X$41=1,'Simulador Valora'!$O$55,IF('Simulador Valora'!$X$41=2,'Simulador Valora'!$K$55,'Simulador Valora'!$E$55))) -> 0 | X122: 0 | AB122: 0 | AC122: 0.12 | AD122: 0 | AE122: 0 | AF122: 0 | AG122: 0 | AH122: 0 | AI122: =IF(AD122<=0,0,AD122*IF('Simulador Valora'!$AC$81=1,0,'Simulador Valora'!$Y$75))+IF(AD122<=0,0,IF('Simulador Valora'!$X$41=1,'Simulador Valora'!$O$55,IF('Simulador Valora'!$X$41=2,'Simulador Valora'!$K$55,'Simulador Valora'!$E$55))) -> 0 | AK122: 0 | AL122: 0 | AN122: 8 | AO122: 10 | AP122: 0 | AQ122: 0 | AR122: 0 | AS122: 135 | AU122: 0 | AV122: 106
A123: 107 | B123: 0 | D123: =IF(B123+F123-D122<=0,B123+F123,IF(A123=$B$9,$F$9,IF(A123=$B$10,$F$10,IF(AND('Simulador Valora'!$AH$45=2,L122=0),D122*(1+Z123),IF($AM$3=2,B123*AL123,D122*(1+Z123)))))) -> 0 | F123: 0 | H123: 0 | N123: =IF('Simulador Valora'!$V$66=1,0,L123*'Simulador Valora'!$O$69*'Simulador Valora'!$W$65) -> 0 | P123: 0 | R123: 0 | T123: =IF(B123<=0,0,B123*IF('Simulador Valora'!$AC$81=1,0,'Simulador Valora'!$Y$75)) -> 0 | V123: =IF(B123<=0,0,IF('Simulador Valora'!$X$41=1,'Simulador Valora'!$O$55,IF('Simulador Valora'!$X$41=2,'Simulador Valora'!$K$55,'Simulador Valora'!$E$55))) -> 0 | X123: 0 | AB123: 0 | AC123: 0.12 | AD123: 0 | AE123: 0 | AF123: 0 | AG123: 0 | AH123: 0 | AI123: =IF(AD123<=0,0,AD123*IF('Simulador Valora'!$AC$81=1,0,'Simulador Valora'!$Y$75))+IF(AD123<=0,0,IF('Simulador Valora'!$X$41=1,'Simulador Valora'!$O$55,IF('Simulador Valora'!$X$41=2,'Simulador Valora'!$K$55,'Simulador Valora'!$E$55))) -> 0 | AK123: 0 | AL123: 0 | AN123: 8 | AO123: 11 | AP123: 0 | AQ123: 0 | AR123: 0 | AS123: 134 | AU123: 0 | AV123: 107
A124: 108 | B124: 0 | D124: =IF(B124+F124-D123<=0,B124+F124,IF(A124=$B$9,$F$9,IF(A124=$B$10,$F$10,IF(AND('Simulador Valora'!$AH$45=2,L123=0),D123*(1+Z124),IF($AM$3=2,B124*AL124,D123*(1+Z124)))))) -> 0 | F124: 0 | H124: 0 | J124: =IF(B124-H124=0,0,J122) -> 0 | N124: =IF('Simulador Valora'!$V$66=1,0,L124*'Simulador Valora'!$O$69*'Simulador Valora'!$W$65) -> 0 | P124: 0 | R124: 0 | T124: =IF(B124<=0,0,B124*IF('Simulador Valora'!$AC$81=1,0,'Simulador Valora'!$Y$75)) -> 0 | V124: =IF(B124<=0,0,IF('Simulador Valora'!$X$41=1,'Simulador Valora'!$O$55,IF('Simulador Valora'!$X$41=2,'Simulador Valora'!$K$55,'Simulador Valora'!$E$55))) -> 0 | X124: 0 | AB124: 0 | AC124: 0.12 | AD124: 0 | AE124: 0 | AF124: 0 | AG124: 0 | AH124: 0 | AI124: =IF(AD124<=0,0,AD124*IF('Simulador Valora'!$AC$81=1,0,'Simulador Valora'!$Y$75))+IF(AD124<=0,0,IF('Simulador Valora'!$X$41=1,'Simulador Valora'!$O$55,IF('Simulador Valora'!$X$41=2,'Simulador Valora'!$K$55,'Simulador Valora'!$E$55))) -> 0 | AK124: 0 | AL124: 0 | AN124: 9 | AO124: 0 | AP124: 0 | AQ124: 0 | AR124: 0 | AS124: 133 | AU124: 0 | AV124: 108
A125: 109 | B125: 0 | D125: =IF(B125+F125-D124<=0,B125+F125,IF(A125=$B$9,$F$9,IF(A125=$B$10,$F$10,IF(AND('Simulador Valora'!$AH$45=2,L124=0),D124*(1+Z125),IF($AM$3=2,B125*AL125,D124*(1+Z125)))))) -> 0 | F125: 0 | H125: 0 | N125: =IF('Simulador Valora'!$V$66=1,0,L125*'Simulador Valora'!$O$69*'Simulador Valora'!$W$65) -> 0 | P125: 0 | R125: 0 | T125: =IF(B125<=0,0,B125*IF('Simulador Valora'!$AC$81=1,0,'Simulador Valora'!$Y$75)) -> 0 | V125: =IF(B125<=0,0,IF('Simulador Valora'!$X$41=1,'Simulador Valora'!$O$55,IF('Simulador Valora'!$X$41=2,'Simulador Valora'!$K$55,'Simulador Valora'!$E$55))) -> 0 | X125: 0 | Z125: =IF(B125<=0,0,'Simulador Valora'!$AI$54) -> 0 | AB125: 0 | AC125: =IF(AC124=$AC$6,AC124,IF(AC124=$AC$5,AC124,AC124-0.25%)) -> 0.12 | AD125: 0 | AE125: 0 | AF125: 0 | AG125: 0 | AH125: 0 | AI125: =IF(AD125<=0,0,AD125*IF('Simulador Valora'!$AC$81=1,0,'Simulador Valora'!$Y$75))+IF(AD125<=0,0,IF('Simulador Valora'!$X$41=1,'Simulador Valora'!$O$55,IF('Simulador Valora'!$X$41=2,'Simulador Valora'!$K$55,'Simulador Valora'!$E$55))) -> 0 | AJ125: =IF(AC125<=0,0,$AJ$29) -> 0 | AK125: 0 | AL125: 0 | AN125: 9 | AO125: 1 | AP125: 0 | AQ125: 0 | AR125: 0 | AS125: 132 | AU125: 0 | AV125: 109
A126: 110 | B126: 0 | D126: =IF(B126+F126-D125<=0,B126+F126,IF(A126=$B$9,$F$9,IF(A126=$B$10,$F$10,IF(AND('Simulador Valora'!$AH$45=2,L125=0),D125*(1+Z126),IF($AM$3=2,B126*AL126,D125*(1+Z126)))))) -> 0 | F126: 0 | H126: 0 | J126: =IF(B126-H126=0,0,J124*(1+(3%))) -> 0 | N126: =IF('Simulador Valora'!$V$66=1,0,L126*'Simulador Valora'!$O$69*'Simulador Valora'!$W$65) -> 0 | P126: 0 | R126: 0 | T126: =IF(B126<=0,0,B126*IF('Simulador Valora'!$AC$81=1,0,'Simulador Valora'!$Y$75)) -> 0 | V126: =IF(B126<=0,0,IF('Simulador Valora'!$X$41=1,'Simulador Valora'!$O$55,IF('Simulador Valora'!$X$41=2,'Simulador Valora'!$K$55,'Simulador Valora'!$E$55))) -> 0 | X126: 0 | AB126: 0 | AC126: =AC125 -> 0.12 | AD126: 0 | AE126: 0 | AF126: 0 | AG126: 0 | AH126: 0 | AI126: =IF(AD126<=0,0,AD126*IF('Simulador Valora'!$AC$81=1,0,'Simulador Valora'!$Y$75))+IF(AD126<=0,0,IF('Simulador Valora'!$X$41=1,'Simulador Valora'!$O$55,IF('Simulador Valora'!$X$41=2,'Simulador Valora'!$K$55,'Simulador Valora'!$E$55))) -> 0 | AK126: 0 | AL126: 0 | AN126: 9 | AO126: 2 | AP126: 0 | AQ126: 0 | AR126: 0 | AS126: 131 | AU126: 0 | AV126: 110
A127: 111 | B127: 0 | D127: =IF(B127+F127-D126<=0,B127+F127,IF(A127=$B$9,$F$9,IF(A127=$B$10,$F$10,IF(AND('Simulador Valora'!$AH$45=2,L126=0),D126*(1+Z127),IF($AM$3=2,B127*AL127,D126*(1+Z127)))))) -> 0 | F127: 0 | H127: 0 | N127: =IF('Simulador Valora'!$V$66=1,0,L127*'Simulador Valora'!$O$69*'Simulador Valora'!$W$65) -> 0 | P127: 0 | R127: 0 | T127: =IF(B127<=0,0,B127*IF('Simulador Valora'!$AC$81=1,0,'Simulador Valora'!$Y$75)) -> 0 | V127: =IF(B127<=0,0,IF('Simulador Valora'!$X$41=1,'Simulador Valora'!$O$55,IF('Simulador Valora'!$X$41=2,'Simulador Valora'!$K$55,'Simulador Valora'!$E$55))) -> 0 | X127: 0 | AB127: 0 | AC127: =AC126 -> 0.12 | AD127: 0 | AE127: 0 | AF127: 0 | AG127: 0 | AH127: 0 | AI127: =IF(AD127<=0,0,AD127*IF('Simulador Valora'!$AC$81=1,0,'Simulador Valora'!$Y$75))+IF(AD127<=0,0,IF('Simulador Valora'!$X$41=1,'Simulador Valora'!$O$55,IF('Simulador Valora'!$X$41=2,'Simulador Valora'!$K$55,'Simulador Valora'!$E$55))) -> 0 | AK127: 0 | AL127: 0 | AN127: 9 | AO127: 3 | AP127: 0 | AQ127: 0 | AR127: 0 | AS127: 130 | AU127: 0 | AV127: 111
A128: 112 | B128: 0 | D128: =IF(B128+F128-D127<=0,B128+F128,IF(A128=$B$9,$F$9,IF(A128=$B$10,$F$10,IF(AND('Simulador Valora'!$AH$45=2,L127=0),D127*(1+Z128),IF($AM$3=2,B128*AL128,D127*(1+Z128)))))) -> 0 | F128: 0 | H128: 0 | J128: =IF(B128-H128=0,0,J126) -> 0 | N128: =IF('Simulador Valora'!$V$66=1,0,L128*'Simulador Valora'!$O$69*'Simulador Valora'!$W$65) -> 0 | P128: 0 | R128: 0 | T128: =IF(B128<=0,0,B128*IF('Simulador Valora'!$AC$81=1,0,'Simulador Valora'!$Y$75)) -> 0 | V128: =IF(B128<=0,0,IF('Simulador Valora'!$X$41=1,'Simulador Valora'!$O$55,IF('Simulador Valora'!$X$41=2,'Simulador Valora'!$K$55,'Simulador Valora'!$E$55))) -> 0 | X128: 0 | AB128: 0 | AC128: 0.12 | AD128: 0 | AE128: 0 | AF128: 0 | AG128: 0 | AH128: 0 | AI128: =IF(AD128<=0,0,AD128*IF('Simulador Valora'!$AC$81=1,0,'Simulador Valora'!$Y$75))+IF(AD128<=0,0,IF('Simulador Valora'!$X$41=1,'Simulador Valora'!$O$55,IF('Simulador Valora'!$X$41=2,'Simulador Valora'!$K$55,'Simulador Valora'!$E$55))) -> 0 | AK128: 0 | AL128: 0 | AN128: 9 | AO128: 4 | AP128: 0 | AQ128: 0 | AR128: 0 | AS128: 129 | AU128: 0 | AV128: 112
A129: 113 | B129: 0 | D129: =IF(B129+F129-D128<=0,B129+F129,IF(A129=$B$9,$F$9,IF(A129=$B$10,$F$10,IF(AND('Simulador Valora'!$AH$45=2,L128=0),D128*(1+Z129),IF($AM$3=2,B129*AL129,D128*(1+Z129)))))) -> 0 | F129: 0 | H129: 0 | N129: =IF('Simulador Valora'!$V$66=1,0,L129*'Simulador Valora'!$O$69*'Simulador Valora'!$W$65) -> 0 | P129: 0 | R129: 0 | T129: =IF(B129<=0,0,B129*IF('Simulador Valora'!$AC$81=1,0,'Simulador Valora'!$Y$75)) -> 0 | V129: =IF(B129<=0,0,IF('Simulador Valora'!$X$41=1,'Simulador Valora'!$O$55,IF('Simulador Valora'!$X$41=2,'Simulador Valora'!$K$55,'Simulador Valora'!$E$55))) -> 0 | X129: 0 | AB129: 0 | AC129: 0.12 | AD129: 0 | AE129: 0 | AF129: 0 | AG129: 0 | AH129: 0 | AI129: =IF(AD129<=0,0,AD129*IF('Simulador Valora'!$AC$81=1,0,'Simulador Valora'!$Y$75))+IF(AD129<=0,0,IF('Simulador Valora'!$X$41=1,'Simulador Valora'!$O$55,IF('Simulador Valora'!$X$41=2,'Simulador Valora'!$K$55,'Simulador Valora'!$E$55))) -> 0 | AK129: 0 | AL129: 0 | AN129: 9 | AO129: 5 | AP129: 0 | AQ129: 0 | AR129: 0 | AS129: 128 | AU129: 0 | AV129: 113
A130: 114 | B130: 0 | D130: =IF(B130+F130-D129<=0,B130+F130,IF(A130=$B$9,$F$9,IF(A130=$B$10,$F$10,IF(AND('Simulador Valora'!$AH$45=2,L129=0),D129*(1+Z130),IF($AM$3=2,B130*AL130,D129*(1+Z130)))))) -> 0 | F130: 0 | H130: 0 | J130: =IF(B130-H130=0,0,J128) -> 0 | N130: =IF('Simulador Valora'!$V$66=1,0,L130*'Simulador Valora'!$O$69*'Simulador Valora'!$W$65) -> 0 | P130: 0 | R130: 0 | T130: =IF(B130<=0,0,B130*IF('Simulador Valora'!$AC$81=1,0,'Simulador Valora'!$Y$75)) -> 0 | V130: =IF(B130<=0,0,IF('Simulador Valora'!$X$41=1,'Simulador Valora'!$O$55,IF('Simulador Valora'!$X$41=2,'Simulador Valora'!$K$55,'Simulador Valora'!$E$55))) -> 0 | X130: 0 | AB130: 0 | AC130: 0.12 | AD130: 0 | AE130: 0 | AF130: 0 | AG130: 0 | AH130: 0 | AI130: =IF(AD130<=0,0,AD130*IF('Simulador Valora'!$AC$81=1,0,'Simulador Valora'!$Y$75))+IF(AD130<=0,0,IF('Simulador Valora'!$X$41=1,'Simulador Valora'!$O$55,IF('Simulador Valora'!$X$41=2,'Simulador Valora'!$K$55,'Simulador Valora'!$E$55))) -> 0 | AK130: 0 | AL130: 0 | AN130: 9 | AO130: 6 | AP130: 0 | AQ130: 0 | AR130: 0 | AS130: 127 | AU130: 0 | AV130: 114
A131: 115 | B131: 0 | D131: =IF(B131+F131-D130<=0,B131+F131,IF(A131=$B$9,$F$9,IF(A131=$B$10,$F$10,IF(AND('Simulador Valora'!$AH$45=2,L130=0),D130*(1+Z131),IF($AM$3=2,B131*AL131,D130*(1+Z131)))))) -> 0 | F131: 0 | H131: 0 | N131: =IF('Simulador Valora'!$V$66=1,0,L131*'Simulador Valora'!$O$69*'Simulador Valora'!$W$65) -> 0 | P131: 0 | R131: 0 | T131: =IF(B131<=0,0,B131*IF('Simulador Valora'!$AC$81=1,0,'Simulador Valora'!$Y$75)) -> 0 | V131: =IF(B131<=0,0,IF('Simulador Valora'!$X$41=1,'Simulador Valora'!$O$55,IF('Simulador Valora'!$X$41=2,'Simulador Valora'!$K$55,'Simulador Valora'!$E$55))) -> 0 | X131: 0 | AB131: 0 | AC131: 0.12 | AD131: 0 | AE131: 0 | AF131: 0 | AG131: 0 | AH131: 0 | AI131: =IF(AD131<=0,0,AD131*IF('Simulador Valora'!$AC$81=1,0,'Simulador Valora'!$Y$75))+IF(AD131<=0,0,IF('Simulador Valora'!$X$41=1,'Simulador Valora'!$O$55,IF('Simulador Valora'!$X$41=2,'Simulador Valora'!$K$55,'Simulador Valora'!$E$55))) -> 0 | AK131: 0 | AL131: 0 | AN131: 9 | AO131: 7 | AP131: 0 | AQ131: 0 | AR131: 0 | AS131: 126 | AU131: 0 | AV131: 115
A132: 116 | B132: 0 | D132: =IF(B132+F132-D131<=0,B132+F132,IF(A132=$B$9,$F$9,IF(A132=$B$10,$F$10,IF(AND('Simulador Valora'!$AH$45=2,L131=0),D131*(1+Z132),IF($AM$3=2,B132*AL132,D131*(1+Z132)))))) -> 0 | F132: 0 | H132: 0 | J132: =IF(B132-H132=0,0,J130) -> 0 | N132: =IF('Simulador Valora'!$V$66=1,0,L132*'Simulador Valora'!$O$69*'Simulador Valora'!$W$65) -> 0 | P132: 0 | R132: 0 | T132: =IF(B132<=0,0,B132*IF('Simulador Valora'!$AC$81=1,0,'Simulador Valora'!$Y$75)) -> 0 | V132: =IF(B132<=0,0,IF('Simulador Valora'!$X$41=1,'Simulador Valora'!$O$55,IF('Simulador Valora'!$X$41=2,'Simulador Valora'!$K$55,'Simulador Valora'!$E$55))) -> 0 | X132: 0 | AB132: 0 | AC132: 0.12 | AD132: 0 | AE132: 0 | AF132: 0 | AG132: 0 | AH132: 0 | AI132: =IF(AD132<=0,0,AD132*IF('Simulador Valora'!$AC$81=1,0,'Simulador Valora'!$Y$75))+IF(AD132<=0,0,IF('Simulador Valora'!$X$41=1,'Simulador Valora'!$O$55,IF('Simulador Valora'!$X$41=2,'Simulador Valora'!$K$55,'Simulador Valora'!$E$55))) -> 0 | AK132: 0 | AL132: 0 | AN132: 9 | AO132: 8 | AP132: 0 | AQ132: 0 | AR132: 0 | AS132: 125 | AU132: 0 | AV132: 116
A133: 117 | B133: 0 | D133: =IF(B133+F133-D132<=0,B133+F133,IF(A133=$B$9,$F$9,IF(A133=$B$10,$F$10,IF(AND('Simulador Valora'!$AH$45=2,L132=0),D132*(1+Z133),IF($AM$3=2,B133*AL133,D132*(1+Z133)))))) -> 0 | F133: 0 | H133: 0 | N133: =IF('Simulador Valora'!$V$66=1,0,L133*'Simulador Valora'!$O$69*'Simulador Valora'!$W$65) -> 0 | P133: 0 | R133: 0 | T133: =IF(B133<=0,0,B133*IF('Simulador Valora'!$AC$81=1,0,'Simulador Valora'!$Y$75)) -> 0 | V133: =IF(B133<=0,0,IF('Simulador Valora'!$X$41=1,'Simulador Valora'!$O$55,IF('Simulador Valora'!$X$41=2,'Simulador Valora'!$K$55,'Simulador Valora'!$E$55))) -> 0 | X133: 0 | AB133: 0 | AC133: 0.12 | AD133: 0 | AE133: 0 | AF133: 0 | AG133: 0 | AH133: 0 | AI133: =IF(AD133<=0,0,AD133*IF('Simulador Valora'!$AC$81=1,0,'Simulador Valora'!$Y$75))+IF(AD133<=0,0,IF('Simulador Valora'!$X$41=1,'Simulador Valora'!$O$55,IF('Simulador Valora'!$X$41=2,'Simulador Valora'!$K$55,'Simulador Valora'!$E$55))) -> 0 | AK133: 0 | AL133: 0 | AN133: 9 | AO133: 9 | AP133: 0 | AQ133: 0 | AR133: 0 | AS133: 124 | AU133: 0 | AV133: 117
A134: 118 | B134: 0 | D134: =IF(B134+F134-D133<=0,B134+F134,IF(A134=$B$9,$F$9,IF(A134=$B$10,$F$10,IF(AND('Simulador Valora'!$AH$45=2,L133=0),D133*(1+Z134),IF($AM$3=2,B134*AL134,D133*(1+Z134)))))) -> 0 | F134: 0 | H134: 0 | J134: =IF(B134-H134=0,0,J132) -> 0 | N134: =IF('Simulador Valora'!$V$66=1,0,L134*'Simulador Valora'!$O$69*'Simulador Valora'!$W$65) -> 0 | P134: 0 | R134: 0 | T134: =IF(B134<=0,0,B134*IF('Simulador Valora'!$AC$81=1,0,'Simulador Valora'!$Y$75)) -> 0 | V134: =IF(B134<=0,0,IF('Simulador Valora'!$X$41=1,'Simulador Valora'!$O$55,IF('Simulador Valora'!$X$41=2,'Simulador Valora'!$K$55,'Simulador Valora'!$E$55))) -> 0 | X134: 0 | AB134: 0 | AC134: 0.12 | AD134: 0 | AE134: 0 | AF134: 0 | AG134: 0 | AH134: 0 | AI134: =IF(AD134<=0,0,AD134*IF('Simulador Valora'!$AC$81=1,0,'Simulador Valora'!$Y$75))+IF(AD134<=0,0,IF('Simulador Valora'!$X$41=1,'Simulador Valora'!$O$55,IF('Simulador Valora'!$X$41=2,'Simulador Valora'!$K$55,'Simulador Valora'!$E$55))) -> 0 | AK134: 0 | AL134: 0 | AN134: 9 | AO134: 10 | AP134: 0 | AQ134: 0 | AR134: 0 | AS134: 123 | AU134: 0 | AV134: 118
A135: 119 | B135: 0 | D135: =IF(B135+F135-D134<=0,B135+F135,IF(A135=$B$9,$F$9,IF(A135=$B$10,$F$10,IF(AND('Simulador Valora'!$AH$45=2,L134=0),D134*(1+Z135),IF($AM$3=2,B135*AL135,D134*(1+Z135)))))) -> 0 | F135: 0 | H135: 0 | N135: =IF('Simulador Valora'!$V$66=1,0,L135*'Simulador Valora'!$O$69*'Simulador Valora'!$W$65) -> 0 | P135: 0 | R135: 0 | T135: =IF(B135<=0,0,B135*IF('Simulador Valora'!$AC$81=1,0,'Simulador Valora'!$Y$75)) -> 0 | V135: =IF(B135<=0,0,IF('Simulador Valora'!$X$41=1,'Simulador Valora'!$O$55,IF('Simulador Valora'!$X$41=2,'Simulador Valora'!$K$55,'Simulador Valora'!$E$55))) -> 0 | X135: 0 | AB135: 0 | AC135: 0.12 | AD135: 0 | AE135: 0 | AF135: 0 | AG135: 0 | AH135: 0 | AI135: =IF(AD135<=0,0,AD135*IF('Simulador Valora'!$AC$81=1,0,'Simulador Valora'!$Y$75))+IF(AD135<=0,0,IF('Simulador Valora'!$X$41=1,'Simulador Valora'!$O$55,IF('Simulador Valora'!$X$41=2,'Simulador Valora'!$K$55,'Simulador Valora'!$E$55))) -> 0 | AK135: 0 | AL135: 0 | AN135: 9 | AO135: 11 | AP135: 0 | AQ135: 0 | AR135: 0 | AS135: 122 | AU135: 0 | AV135: 119
A136: 120 | B136: 0 | D136: =IF(B136+F136-D135<=0,B136+F136,IF(A136=$B$9,$F$9,IF(A136=$B$10,$F$10,IF(AND('Simulador Valora'!$AH$45=2,L135=0),D135*(1+Z136),IF($AM$3=2,B136*AL136,D135*(1+Z136)))))) -> 0 | F136: 0 | H136: 0 | J136: =IF(B136-H136=0,0,J134) -> 0 | N136: =IF('Simulador Valora'!$V$66=1,0,L136*'Simulador Valora'!$O$69*'Simulador Valora'!$W$65) -> 0 | P136: 0 | R136: 0 | T136: =IF(B136<=0,0,B136*IF('Simulador Valora'!$AC$81=1,0,'Simulador Valora'!$Y$75)) -> 0 | V136: =IF(B136<=0,0,IF('Simulador Valora'!$X$41=1,'Simulador Valora'!$O$55,IF('Simulador Valora'!$X$41=2,'Simulador Valora'!$K$55,'Simulador Valora'!$E$55))) -> 0 | X136: 0 | AB136: 0 | AC136: 0.12 | AD136: 0 | AE136: 0 | AF136: 0 | AG136: 0 | AH136: 0 | AI136: =IF(AD136<=0,0,AD136*IF('Simulador Valora'!$AC$81=1,0,'Simulador Valora'!$Y$75))+IF(AD136<=0,0,IF('Simulador Valora'!$X$41=1,'Simulador Valora'!$O$55,IF('Simulador Valora'!$X$41=2,'Simulador Valora'!$K$55,'Simulador Valora'!$E$55))) -> 0 | AK136: 0 | AL136: 0 | AN136: 10 | AO136: 0 | AP136: 0 | AQ136: 0 | AR136: 0 | AS136: 121 | AU136: 0 | AV136: 120
A137: 121 | B137: 0 | D137: =IF(B137+F137-D136<=0,B137+F137,IF(A137=$B$9,$F$9,IF(A137=$B$10,$F$10,IF(AND('Simulador Valora'!$AH$45=2,L136=0),D136*(1+Z137),IF($AM$3=2,B137*AL137,D136*(1+Z137)))))) -> 0 | F137: 0 | H137: 0 | N137: =IF('Simulador Valora'!$V$66=1,0,L137*'Simulador Valora'!$O$69*'Simulador Valora'!$W$65) -> 0 | P137: 0 | R137: 0 | T137: =IF(B137<=0,0,B137*IF('Simulador Valora'!$AC$81=1,0,'Simulador Valora'!$Y$75)) -> 0 | V137: =IF(B137<=0,0,IF('Simulador Valora'!$X$41=1,'Simulador Valora'!$O$55,IF('Simulador Valora'!$X$41=2,'Simulador Valora'!$K$55,'Simulador Valora'!$E$55))) -> 0 | X137: 0 | Z137: =IF(B137<=0,0,'Simulador Valora'!$AI$54) -> 0 | AB137: 0 | AC137: =IF(AC136=$AC$6,AC136,IF(AC136=$AC$5,AC136,AC136-0.25%)) -> 0.12 | AD137: 0 | AE137: 0 | AF137: 0 | AG137: 0 | AH137: 0 | AI137: =IF(AD137<=0,0,AD137*IF('Simulador Valora'!$AC$81=1,0,'Simulador Valora'!$Y$75))+IF(AD137<=0,0,IF('Simulador Valora'!$X$41=1,'Simulador Valora'!$O$55,IF('Simulador Valora'!$X$41=2,'Simulador Valora'!$K$55,'Simulador Valora'!$E$55))) -> 0 | AJ137: =IF(AC137<=0,0,$AJ$29) -> 0 | AK137: 0 | AL137: 0 | AN137: 10 | AO137: 1 | AP137: 0 | AQ137: 0 | AR137: 0 | AS137: 120 | AU137: 0 | AV137: 121
A138: 122 | B138: 0 | D138: =IF(B138+F138-D137<=0,B138+F138,IF(A138=$B$9,$F$9,IF(A138=$B$10,$F$10,IF(AND('Simulador Valora'!$AH$45=2,L137=0),D137*(1+Z138),IF($AM$3=2,B138*AL138,D137*(1+Z138)))))) -> 0 | F138: 0 | H138: 0 | J138: =IF(B138-H138=0,0,J136*(1+(3%))) -> 0 | N138: =IF('Simulador Valora'!$V$66=1,0,L138*'Simulador Valora'!$O$69*'Simulador Valora'!$W$65) -> 0 | P138: 0 | R138: 0 | T138: =IF(B138<=0,0,B138*IF('Simulador Valora'!$AC$81=1,0,'Simulador Valora'!$Y$75)) -> 0 | V138: =IF(B138<=0,0,IF('Simulador Valora'!$X$41=1,'Simulador Valora'!$O$55,IF('Simulador Valora'!$X$41=2,'Simulador Valora'!$K$55,'Simulador Valora'!$E$55))) -> 0 | X138: 0 | AB138: 0 | AC138: =AC137 -> 0.12 | AD138: 0 | AE138: 0 | AF138: 0 | AG138: 0 | AH138: 0 | AI138: =IF(AD138<=0,0,AD138*IF('Simulador Valora'!$AC$81=1,0,'Simulador Valora'!$Y$75))+IF(AD138<=0,0,IF('Simulador Valora'!$X$41=1,'Simulador Valora'!$O$55,IF('Simulador Valora'!$X$41=2,'Simulador Valora'!$K$55,'Simulador Valora'!$E$55))) -> 0 | AK138: 0 | AL138: 0 | AN138: 10 | AO138: 2 | AP138: 0 | AQ138: 0 | AR138: 0 | AS138: 119 | AU138: 0 | AV138: 122
A139: 123 | B139: 0 | D139: =IF(B139+F139-D138<=0,B139+F139,IF(A139=$B$9,$F$9,IF(A139=$B$10,$F$10,IF(AND('Simulador Valora'!$AH$45=2,L138=0),D138*(1+Z139),IF($AM$3=2,B139*AL139,D138*(1+Z139)))))) -> 0 | F139: 0 | H139: 0 | N139: =IF('Simulador Valora'!$V$66=1,0,L139*'Simulador Valora'!$O$69*'Simulador Valora'!$W$65) -> 0 | P139: 0 | R139: 0 | T139: =IF(B139<=0,0,B139*IF('Simulador Valora'!$AC$81=1,0,'Simulador Valora'!$Y$75)) -> 0 | V139: =IF(B139<=0,0,IF('Simulador Valora'!$X$41=1,'Simulador Valora'!$O$55,IF('Simulador Valora'!$X$41=2,'Simulador Valora'!$K$55,'Simulador Valora'!$E$55))) -> 0 | X139: 0 | AB139: 0 | AC139: =AC138 -> 0.12 | AD139: 0 | AE139: 0 | AF139: 0 | AG139: 0 | AH139: 0 | AI139: =IF(AD139<=0,0,AD139*IF('Simulador Valora'!$AC$81=1,0,'Simulador Valora'!$Y$75))+IF(AD139<=0,0,IF('Simulador Valora'!$X$41=1,'Simulador Valora'!$O$55,IF('Simulador Valora'!$X$41=2,'Simulador Valora'!$K$55,'Simulador Valora'!$E$55))) -> 0 | AK139: 0 | AL139: 0 | AN139: 10 | AO139: 3 | AP139: 0 | AQ139: 0 | AR139: 0 | AS139: 118 | AU139: 0 | AV139: 123
A140: 124 | B140: 0 | D140: =IF(B140+F140-D139<=0,B140+F140,IF(A140=$B$9,$F$9,IF(A140=$B$10,$F$10,IF(AND('Simulador Valora'!$AH$45=2,L139=0),D139*(1+Z140),IF($AM$3=2,B140*AL140,D139*(1+Z140)))))) -> 0 | F140: 0 | H140: 0 | J140: =IF(B140-H140=0,0,J138) -> 0 | N140: =IF('Simulador Valora'!$V$66=1,0,L140*'Simulador Valora'!$O$69*'Simulador Valora'!$W$65) -> 0 | P140: 0 | R140: 0 | T140: =IF(B140<=0,0,B140*IF('Simulador Valora'!$AC$81=1,0,'Simulador Valora'!$Y$75)) -> 0 | V140: =IF(B140<=0,0,IF('Simulador Valora'!$X$41=1,'Simulador Valora'!$O$55,IF('Simulador Valora'!$X$41=2,'Simulador Valora'!$K$55,'Simulador Valora'!$E$55))) -> 0 | X140: 0 | AB140: 0 | AC140: 0.12 | AD140: 0 | AE140: 0 | AF140: 0 | AG140: 0 | AH140: 0 | AI140: =IF(AD140<=0,0,AD140*IF('Simulador Valora'!$AC$81=1,0,'Simulador Valora'!$Y$75))+IF(AD140<=0,0,IF('Simulador Valora'!$X$41=1,'Simulador Valora'!$O$55,IF('Simulador Valora'!$X$41=2,'Simulador Valora'!$K$55,'Simulador Valora'!$E$55))) -> 0 | AK140: 0 | AL140: 0 | AN140: 10 | AO140: 4 | AP140: 0 | AQ140: 0 | AR140: 0 | AS140: =IFERROR(IF(AC140<=0.01,0,AS139-1),0) -> 117 | AU140: 0 | AV140: 124
A141: 125 | B141: 0 | D141: =IF(B141+F141-D140<=0,B141+F141,IF(A141=$B$9,$F$9,IF(A141=$B$10,$F$10,IF(AND('Simulador Valora'!$AH$45=2,L140=0),D140*(1+Z141),IF($AM$3=2,B141*AL141,D140*(1+Z141)))))) -> 0 | F141: 0 | H141: 0 | N141: =IF('Simulador Valora'!$V$66=1,0,L141*'Simulador Valora'!$O$69*'Simulador Valora'!$W$65) -> 0 | P141: 0 | R141: 0 | T141: =IF(B141<=0,0,B141*IF('Simulador Valora'!$AC$81=1,0,'Simulador Valora'!$Y$75)) -> 0 | V141: =IF(B141<=0,0,IF('Simulador Valora'!$X$41=1,'Simulador Valora'!$O$55,IF('Simulador Valora'!$X$41=2,'Simulador Valora'!$K$55,'Simulador Valora'!$E$55))) -> 0 | X141: 0 | AB141: 0 | AC141: 0.12 | AD141: 0 | AE141: 0 | AF141: 0 | AG141: 0 | AH141: 0 | AI141: =IF(AD141<=0,0,AD141*IF('Simulador Valora'!$AC$81=1,0,'Simulador Valora'!$Y$75))+IF(AD141<=0,0,IF('Simulador Valora'!$X$41=1,'Simulador Valora'!$O$55,IF('Simulador Valora'!$X$41=2,'Simulador Valora'!$K$55,'Simulador Valora'!$E$55))) -> 0 | AK141: 0 | AL141: 0 | AN141: 10 | AO141: 5 | AP141: 0 | AQ141: 0 | AR141: 0 | AS141: 116 | AU141: 0 | AV141: 125
A142: 126 | B142: 0 | D142: =IF(B142+F142-D141<=0,B142+F142,IF(A142=$B$9,$F$9,IF(A142=$B$10,$F$10,IF(AND('Simulador Valora'!$AH$45=2,L141=0),D141*(1+Z142),IF($AM$3=2,B142*AL142,D141*(1+Z142)))))) -> 0 | F142: 0 | H142: 0 | J142: =IF(B142-H142=0,0,J140) -> 0 | N142: =IF('Simulador Valora'!$V$66=1,0,L142*'Simulador Valora'!$O$69*'Simulador Valora'!$W$65) -> 0 | P142: 0 | R142: 0 | T142: =IF(B142<=0,0,B142*IF('Simulador Valora'!$AC$81=1,0,'Simulador Valora'!$Y$75)) -> 0 | V142: =IF(B142<=0,0,IF('Simulador Valora'!$X$41=1,'Simulador Valora'!$O$55,IF('Simulador Valora'!$X$41=2,'Simulador Valora'!$K$55,'Simulador Valora'!$E$55))) -> 0 | X142: 0 | AB142: 0 | AC142: 0.12 | AD142: 0 | AE142: 0 | AF142: 0 | AG142: 0 | AH142: 0 | AI142: =IF(AD142<=0,0,AD142*IF('Simulador Valora'!$AC$81=1,0,'Simulador Valora'!$Y$75))+IF(AD142<=0,0,IF('Simulador Valora'!$X$41=1,'Simulador Valora'!$O$55,IF('Simulador Valora'!$X$41=2,'Simulador Valora'!$K$55,'Simulador Valora'!$E$55))) -> 0 | AK142: 0 | AL142: 0 | AN142: 10 | AO142: 6 | AP142: 0 | AQ142: 0 | AR142: 0 | AS142: 115 | AU142: 0 | AV142: 126
A143: 127 | B143: 0 | D143: =IF(B143+F143-D142<=0,B143+F143,IF(A143=$B$9,$F$9,IF(A143=$B$10,$F$10,IF(AND('Simulador Valora'!$AH$45=2,L142=0),D142*(1+Z143),IF($AM$3=2,B143*AL143,D142*(1+Z143)))))) -> 0 | F143: 0 | H143: 0 | N143: =IF('Simulador Valora'!$V$66=1,0,L143*'Simulador Valora'!$O$69*'Simulador Valora'!$W$65) -> 0 | P143: 0 | R143: 0 | T143: =IF(B143<=0,0,B143*IF('Simulador Valora'!$AC$81=1,0,'Simulador Valora'!$Y$75)) -> 0 | V143: =IF(B143<=0,0,IF('Simulador Valora'!$X$41=1,'Simulador Valora'!$O$55,IF('Simulador Valora'!$X$41=2,'Simulador Valora'!$K$55,'Simulador Valora'!$E$55))) -> 0 | X143: 0 | AB143: 0 | AC143: 0.12 | AD143: 0 | AE143: 0 | AF143: 0 | AG143: 0 | AH143: 0 | AI143: =IF(AD143<=0,0,AD143*IF('Simulador Valora'!$AC$81=1,0,'Simulador Valora'!$Y$75))+IF(AD143<=0,0,IF('Simulador Valora'!$X$41=1,'Simulador Valora'!$O$55,IF('Simulador Valora'!$X$41=2,'Simulador Valora'!$K$55,'Simulador Valora'!$E$55))) -> 0 | AK143: 0 | AL143: 0 | AN143: 10 | AO143: 7 | AP143: 0 | AQ143: 0 | AR143: 0 | AS143: 114 | AU143: 0 | AV143: 127
A144: 128 | B144: 0 | D144: =IF(B144+F144-D143<=0,B144+F144,IF(A144=$B$9,$F$9,IF(A144=$B$10,$F$10,IF(AND('Simulador Valora'!$AH$45=2,L143=0),D143*(1+Z144),IF($AM$3=2,B144*AL144,D143*(1+Z144)))))) -> 0 | F144: 0 | H144: 0 | J144: =IF(B144-H144=0,0,J142) -> 0 | N144: =IF('Simulador Valora'!$V$66=1,0,L144*'Simulador Valora'!$O$69*'Simulador Valora'!$W$65) -> 0 | P144: 0 | R144: 0 | T144: =IF(B144<=0,0,B144*IF('Simulador Valora'!$AC$81=1,0,'Simulador Valora'!$Y$75)) -> 0 | V144: =IF(B144<=0,0,IF('Simulador Valora'!$X$41=1,'Simulador Valora'!$O$55,IF('Simulador Valora'!$X$41=2,'Simulador Valora'!$K$55,'Simulador Valora'!$E$55))) -> 0 | X144: 0 | AB144: 0 | AC144: 0.12 | AD144: 0 | AE144: 0 | AF144: 0 | AG144: 0 | AH144: 0 | AI144: =IF(AD144<=0,0,AD144*IF('Simulador Valora'!$AC$81=1,0,'Simulador Valora'!$Y$75))+IF(AD144<=0,0,IF('Simulador Valora'!$X$41=1,'Simulador Valora'!$O$55,IF('Simulador Valora'!$X$41=2,'Simulador Valora'!$K$55,'Simulador Valora'!$E$55))) -> 0 | AK144: 0 | AL144: 0 | AN144: 10 | AO144: 8 | AP144: 0 | AQ144: 0 | AR144: 0 | AS144: 113 | AU144: 0 | AV144: 128
A145: 129 | B145: 0 | D145: =IF(B145+F145-D144<=0,B145+F145,IF(A145=$B$9,$F$9,IF(A145=$B$10,$F$10,IF(AND('Simulador Valora'!$AH$45=2,L144=0),D144*(1+Z145),IF($AM$3=2,B145*AL145,D144*(1+Z145)))))) -> 0 | F145: =IF(B145=0,0,P145/360*AU145*B145) -> 0 | H145: 0 | N145: =IF('Simulador Valora'!$V$66=1,0,L145*'Simulador Valora'!$O$69*'Simulador Valora'!$W$65) -> 0 | P145: 0 | R145: 0 | T145: =IF(B145<=0,0,B145*IF('Simulador Valora'!$AC$81=1,0,'Simulador Valora'!$Y$75)) -> 0 | V145: =IF(B145<=0,0,IF('Simulador Valora'!$X$41=1,'Simulador Valora'!$O$55,IF('Simulador Valora'!$X$41=2,'Simulador Valora'!$K$55,'Simulador Valora'!$E$55))) -> 0 | X145: 0 | AB145: 0 | AC145: 0.12 | AD145: 0 | AE145: 0 | AF145: =IFERROR(AC145/360*AU145*AD145,0) -> 0 | AG145: 0 | AH145: 0 | AI145: =IF(AD145<=0,0,AD145*IF('Simulador Valora'!$AC$81=1,0,'Simulador Valora'!$Y$75))+IF(AD145<=0,0,IF('Simulador Valora'!$X$41=1,'Simulador Valora'!$O$55,IF('Simulador Valora'!$X$41=2,'Simulador Valora'!$K$55,'Simulador Valora'!$E$55))) -> 0 | AK145: =IF(AD145<=0,0,AE145+AI145) -> 0 | AL145: =IFERROR(AE145/AD145,0) -> 0 | AN145: 10 | AO145: 9 | AP145: =+IF(R145<=0,IF(R144>0,+A145,0),0) -> 0 | AQ145: 0 | AR145: 0 | AS145: 112 | AU145: 0 | AV145: 129
A146: 130 | B146: =IF(R145<0,0,IF(A146=$B$9,R145+$D$9,IF(A146=$B$10,R145+$D$10,R145))) -> 0 | D146: =IF(B146+F146-D145<=0,B146+F146,IF(A146=$B$9,$F$9,IF(A146=$B$10,$F$10,IF(AND('Simulador Valora'!$AH$45=2,L145=0),D145*(1+Z146),IF($AM$3=2,B146*AL146,D145*(1+Z146)))))) -> 0 | F146: 0 | H146: 0 | J146: =IF(B146-H146=0,0,J144) -> 0 | N146: =IF('Simulador Valora'!$V$66=1,0,L146*'Simulador Valora'!$O$69*'Simulador Valora'!$W$65) -> 0 | P146: =IF(B146=0,0,AC146) -> 0 | R146: =B146-H146-J146-L146+N146 -> 0 | T146: =IF(B146<=0,0,B146*IF('Simulador Valora'!$AC$81=1,0,'Simulador Valora'!$Y$75)) -> 0 | V146: =IF(B146<=0,0,IF('Simulador Valora'!$X$41=1,'Simulador Valora'!$O$55,IF('Simulador Valora'!$X$41=2,'Simulador Valora'!$K$55,'Simulador Valora'!$E$55))) -> 0 | X146: =IF(B146<=0,0,(D146+L146+T146+V146)) -> 0 | AB146: =X146 -> 0 | AC146: 0.12 | AD146: 0 | AE146: 0 | AF146: 0 | AG146: 0 | AH146: =+AD146-AG146 -> 0 | AI146: =IF(AD146<=0,0,AD146*IF('Simulador Valora'!$AC$81=1,0,'Simulador Valora'!$Y$75))+IF(AD146<=0,0,IF('Simulador Valora'!$X$41=1,'Simulador Valora'!$O$55,IF('Simulador Valora'!$X$41=2,'Simulador Valora'!$K$55,'Simulador Valora'!$E$55))) -> 0 | AK146: 0 | AL146: 0 | AN146: 10 | AO146: 10 | AP146: 0 | AQ146: =+IF(AP146>0,+AN146,0) -> 0 | AR146: =+IF(AP146>0,+AO146,0) -> 0 | AS146: 111 | AU146: =IFERROR(DAY(DATE(YEAR(AT146),MONTH(AT146)+1,0)),0) -> 0 | AV146: 130
A147: 131 | B147: 0 | D147: =IF(B147+F147-D146<=0,B147+F147,IF(A147=$B$9,$F$9,IF(A147=$B$10,$F$10,IF(AND('Simulador Valora'!$AH$45=2,L146=0),D146*(1+Z147),IF($AM$3=2,B147*AL147,D146*(1+Z147)))))) -> 0 | F147: 0 | H147: =D147-F147 -> 0 | N147: =IF('Simulador Valora'!$V$66=1,0,L147*'Simulador Valora'!$O$69*'Simulador Valora'!$W$65) -> 0 | P147: 0 | R147: 0 | T147: =IF(B147<=0,0,B147*IF('Simulador Valora'!$AC$81=1,0,'Simulador Valora'!$Y$75)) -> 0 | V147: =IF(B147<=0,0,IF('Simulador Valora'!$X$41=1,'Simulador Valora'!$O$55,IF('Simulador Valora'!$X$41=2,'Simulador Valora'!$K$55,'Simulador Valora'!$E$55))) -> 0 | X147: 0 | AB147: 0 | AC147: 0.12 | AD147: =IF(AH146<0,0,IF($A147=$B$9,AH146+$D$9,IF($A147=$B$10,AH146+$D$10,AH146))) -> 0 | AE147: =IF(AD147+AF147-AE146<=0,AD147+AF147,IF($A147=$B$9,$F$9,IF($A147=$B$10,$F$10,AE146*(1+Z147)))) -> 0 | AF147: 0 | AG147: =+AE147-AF147 -> 0 | AH147: 0 | AI147: =IF(AD147<=0,0,AD147*IF('Simulador Valora'!$AC$81=1,0,'Simulador Valora'!$Y$75))+IF(AD147<=0,0,IF('Simulador Valora'!$X$41=1,'Simulador Valora'!$O$55,IF('Simulador Valora'!$X$41=2,'Simulador Valora'!$K$55,'Simulador Valora'!$E$55))) -> 0 | AK147: 0 | AL147: 0 | AN147: 10 | AO147: 11 | AP147: 0 | AQ147: 0 | AR147: 0 | AS147: 110 | AT147: =IF(AD147=0,"",DATE(YEAR(AT146),MONTH(AT146)+1,1)) ->  | AU147: 0 | AV147: 131
A148: 132 | B148: 0 | D148: =IF(B148+F148-D147<=0,B148+F148,IF(A148=$B$9,$F$9,IF(A148=$B$10,$F$10,IF(AND('Simulador Valora'!$AH$45=2,L147=0),D147*(1+Z148),IF($AM$3=2,B148*AL148,D147*(1+Z148)))))) -> 0 | F148: 0 | H148: 0 | J148: =IF(B148-H148=0,0,J146) -> 0 | N148: =IF('Simulador Valora'!$V$66=1,0,L148*'Simulador Valora'!$O$69*'Simulador Valora'!$W$65) -> 0 | P148: 0 | R148: 0 | T148: =IF(B148<=0,0,B148*IF('Simulador Valora'!$AC$81=1,0,'Simulador Valora'!$Y$75)) -> 0 | V148: =IF(B148<=0,0,IF('Simulador Valora'!$X$41=1,'Simulador Valora'!$O$55,IF('Simulador Valora'!$X$41=2,'Simulador Valora'!$K$55,'Simulador Valora'!$E$55))) -> 0 | X148: 0 | AB148: 0 | AC148: 0.12 | AD148: 0 | AE148: 0 | AF148: 0 | AG148: 0 | AH148: 0 | AI148: =IF(AD148<=0,0,AD148*IF('Simulador Valora'!$AC$81=1,0,'Simulador Valora'!$Y$75))+IF(AD148<=0,0,IF('Simulador Valora'!$X$41=1,'Simulador Valora'!$O$55,IF('Simulador Valora'!$X$41=2,'Simulador Valora'!$K$55,'Simulador Valora'!$E$55))) -> 0 | AK148: 0 | AL148: 0 | AN148: 11 | AO148: 0 | AP148: 0 | AQ148: 0 | AR148: 0 | AS148: 109 | AU148: 0 | AV148: 132
A149: 133 | B149: 0 | D149: =IF(B149+F149-D148<=0,B149+F149,IF(A149=$B$9,$F$9,IF(A149=$B$10,$F$10,IF(AND('Simulador Valora'!$AH$45=2,L148=0),D148*(1+Z149),IF($AM$3=2,B149*AL149,D148*(1+Z149)))))) -> 0 | F149: 0 | H149: 0 | N149: =IF('Simulador Valora'!$V$66=1,0,L149*'Simulador Valora'!$O$69*'Simulador Valora'!$W$65) -> 0 | P149: 0 | R149: 0 | T149: =IF(B149<=0,0,B149*IF('Simulador Valora'!$AC$81=1,0,'Simulador Valora'!$Y$75)) -> 0 | V149: =IF(B149<=0,0,IF('Simulador Valora'!$X$41=1,'Simulador Valora'!$O$55,IF('Simulador Valora'!$X$41=2,'Simulador Valora'!$K$55,'Simulador Valora'!$E$55))) -> 0 | X149: 0 | Z149: =IF(B149<=0,0,'Simulador Valora'!$AI$54) -> 0 | AB149: 0 | AC149: =IF(AC148=$AC$6,AC148,IF(AC148=$AC$5,AC148,AC148-0.25%)) -> 0.12 | AD149: 0 | AE149: 0 | AF149: 0 | AG149: 0 | AH149: 0 | AI149: =IF(AD149<=0,0,AD149*IF('Simulador Valora'!$AC$81=1,0,'Simulador Valora'!$Y$75))+IF(AD149<=0,0,IF('Simulador Valora'!$X$41=1,'Simulador Valora'!$O$55,IF('Simulador Valora'!$X$41=2,'Simulador Valora'!$K$55,'Simulador Valora'!$E$55))) -> 0 | AJ149: =IF(AC149<=0,0,$AJ$29) -> 0 | AK149: 0 | AL149: 0 | AN149: 11 | AO149: 1 | AP149: 0 | AQ149: 0 | AR149: 0 | AS149: 108 | AU149: 0 | AV149: 133
A150: 134 | B150: 0 | D150: =IF(B150+F150-D149<=0,B150+F150,IF(A150=$B$9,$F$9,IF(A150=$B$10,$F$10,IF(AND('Simulador Valora'!$AH$45=2,L149=0),D149*(1+Z150),IF($AM$3=2,B150*AL150,D149*(1+Z150)))))) -> 0 | F150: 0 | H150: 0 | J150: =IF(B150-H150=0,0,J148*(1+(3%))) -> 0 | N150: =IF('Simulador Valora'!$V$66=1,0,L150*'Simulador Valora'!$O$69*'Simulador Valora'!$W$65) -> 0 | P150: 0 | R150: 0 | T150: =IF(B150<=0,0,B150*IF('Simulador Valora'!$AC$81=1,0,'Simulador Valora'!$Y$75)) -> 0 | V150: =IF(B150<=0,0,IF('Simulador Valora'!$X$41=1,'Simulador Valora'!$O$55,IF('Simulador Valora'!$X$41=2,'Simulador Valora'!$K$55,'Simulador Valora'!$E$55))) -> 0 | X150: 0 | AB150: 0 | AC150: =AC149 -> 0.12 | AD150: 0 | AE150: 0 | AF150: 0 | AG150: 0 | AH150: 0 | AI150: =IF(AD150<=0,0,AD150*IF('Simulador Valora'!$AC$81=1,0,'Simulador Valora'!$Y$75))+IF(AD150<=0,0,IF('Simulador Valora'!$X$41=1,'Simulador Valora'!$O$55,IF('Simulador Valora'!$X$41=2,'Simulador Valora'!$K$55,'Simulador Valora'!$E$55))) -> 0 | AK150: 0 | AL150: 0 | AN150: 11 | AO150: 2 | AP150: 0 | AQ150: 0 | AR150: 0 | AS150: 107 | AU150: 0 | AV150: 134
A151: 135 | B151: 0 | D151: =IF(B151+F151-D150<=0,B151+F151,IF(A151=$B$9,$F$9,IF(A151=$B$10,$F$10,IF(AND('Simulador Valora'!$AH$45=2,L150=0),D150*(1+Z151),IF($AM$3=2,B151*AL151,D150*(1+Z151)))))) -> 0 | F151: 0 | H151: 0 | N151: =IF('Simulador Valora'!$V$66=1,0,L151*'Simulador Valora'!$O$69*'Simulador Valora'!$W$65) -> 0 | P151: 0 | R151: 0 | T151: =IF(B151<=0,0,B151*IF('Simulador Valora'!$AC$81=1,0,'Simulador Valora'!$Y$75)) -> 0 | V151: =IF(B151<=0,0,IF('Simulador Valora'!$X$41=1,'Simulador Valora'!$O$55,IF('Simulador Valora'!$X$41=2,'Simulador Valora'!$K$55,'Simulador Valora'!$E$55))) -> 0 | X151: 0 | AB151: 0 | AC151: =AC150 -> 0.12 | AD151: 0 | AE151: 0 | AF151: 0 | AG151: 0 | AH151: 0 | AI151: =IF(AD151<=0,0,AD151*IF('Simulador Valora'!$AC$81=1,0,'Simulador Valora'!$Y$75))+IF(AD151<=0,0,IF('Simulador Valora'!$X$41=1,'Simulador Valora'!$O$55,IF('Simulador Valora'!$X$41=2,'Simulador Valora'!$K$55,'Simulador Valora'!$E$55))) -> 0 | AK151: 0 | AL151: 0 | AN151: 11 | AO151: 3 | AP151: 0 | AQ151: 0 | AR151: 0 | AS151: 106 | AU151: 0 | AV151: 135
A152: 136 | B152: 0 | D152: =IF(B152+F152-D151<=0,B152+F152,IF(A152=$B$9,$F$9,IF(A152=$B$10,$F$10,IF(AND('Simulador Valora'!$AH$45=2,L151=0),D151*(1+Z152),IF($AM$3=2,B152*AL152,D151*(1+Z152)))))) -> 0 | F152: 0 | H152: 0 | J152: =IF(B152-H152=0,0,J150) -> 0 | N152: =IF('Simulador Valora'!$V$66=1,0,L152*'Simulador Valora'!$O$69*'Simulador Valora'!$W$65) -> 0 | P152: 0 | R152: 0 | T152: =IF(B152<=0,0,B152*IF('Simulador Valora'!$AC$81=1,0,'Simulador Valora'!$Y$75)) -> 0 | V152: =IF(B152<=0,0,IF('Simulador Valora'!$X$41=1,'Simulador Valora'!$O$55,IF('Simulador Valora'!$X$41=2,'Simulador Valora'!$K$55,'Simulador Valora'!$E$55))) -> 0 | X152: 0 | AB152: 0 | AC152: 0.12 | AD152: 0 | AE152: 0 | AF152: 0 | AG152: 0 | AH152: 0 | AI152: =IF(AD152<=0,0,AD152*IF('Simulador Valora'!$AC$81=1,0,'Simulador Valora'!$Y$75))+IF(AD152<=0,0,IF('Simulador Valora'!$X$41=1,'Simulador Valora'!$O$55,IF('Simulador Valora'!$X$41=2,'Simulador Valora'!$K$55,'Simulador Valora'!$E$55))) -> 0 | AK152: 0 | AL152: 0 | AN152: 11 | AO152: 4 | AP152: 0 | AQ152: 0 | AR152: 0 | AS152: 105 | AU152: 0 | AV152: 136
A153: 137 | B153: 0 | D153: =IF(B153+F153-D152<=0,B153+F153,IF(A153=$B$9,$F$9,IF(A153=$B$10,$F$10,IF(AND('Simulador Valora'!$AH$45=2,L152=0),D152*(1+Z153),IF($AM$3=2,B153*AL153,D152*(1+Z153)))))) -> 0 | F153: 0 | H153: 0 | N153: =IF('Simulador Valora'!$V$66=1,0,L153*'Simulador Valora'!$O$69*'Simulador Valora'!$W$65) -> 0 | P153: 0 | R153: 0 | T153: =IF(B153<=0,0,B153*IF('Simulador Valora'!$AC$81=1,0,'Simulador Valora'!$Y$75)) -> 0 | V153: =IF(B153<=0,0,IF('Simulador Valora'!$X$41=1,'Simulador Valora'!$O$55,IF('Simulador Valora'!$X$41=2,'Simulador Valora'!$K$55,'Simulador Valora'!$E$55))) -> 0 | X153: 0 | AB153: 0 | AC153: 0.12 | AD153: 0 | AE153: 0 | AF153: 0 | AG153: 0 | AH153: 0 | AI153: =IF(AD153<=0,0,AD153*IF('Simulador Valora'!$AC$81=1,0,'Simulador Valora'!$Y$75))+IF(AD153<=0,0,IF('Simulador Valora'!$X$41=1,'Simulador Valora'!$O$55,IF('Simulador Valora'!$X$41=2,'Simulador Valora'!$K$55,'Simulador Valora'!$E$55))) -> 0 | AK153: 0 | AL153: 0 | AN153: 11 | AO153: 5 | AP153: 0 | AQ153: 0 | AR153: 0 | AS153: 104 | AU153: 0 | AV153: 137
A154: 138 | B154: 0 | D154: =IF(B154+F154-D153<=0,B154+F154,IF(A154=$B$9,$F$9,IF(A154=$B$10,$F$10,IF(AND('Simulador Valora'!$AH$45=2,L153=0),D153*(1+Z154),IF($AM$3=2,B154*AL154,D153*(1+Z154)))))) -> 0 | F154: 0 | H154: 0 | J154: =IF(B154-H154=0,0,J152) -> 0 | N154: =IF('Simulador Valora'!$V$66=1,0,L154*'Simulador Valora'!$O$69*'Simulador Valora'!$W$65) -> 0 | P154: 0 | R154: 0 | T154: =IF(B154<=0,0,B154*IF('Simulador Valora'!$AC$81=1,0,'Simulador Valora'!$Y$75)) -> 0 | V154: =IF(B154<=0,0,IF('Simulador Valora'!$X$41=1,'Simulador Valora'!$O$55,IF('Simulador Valora'!$X$41=2,'Simulador Valora'!$K$55,'Simulador Valora'!$E$55))) -> 0 | X154: 0 | AB154: 0 | AC154: 0.12 | AD154: 0 | AE154: 0 | AF154: 0 | AG154: 0 | AH154: 0 | AI154: =IF(AD154<=0,0,AD154*IF('Simulador Valora'!$AC$81=1,0,'Simulador Valora'!$Y$75))+IF(AD154<=0,0,IF('Simulador Valora'!$X$41=1,'Simulador Valora'!$O$55,IF('Simulador Valora'!$X$41=2,'Simulador Valora'!$K$55,'Simulador Valora'!$E$55))) -> 0 | AK154: 0 | AL154: 0 | AN154: 11 | AO154: 6 | AP154: 0 | AQ154: 0 | AR154: 0 | AS154: 103 | AU154: 0 | AV154: 138
A155: 139 | B155: 0 | D155: =IF(B155+F155-D154<=0,B155+F155,IF(A155=$B$9,$F$9,IF(A155=$B$10,$F$10,IF(AND('Simulador Valora'!$AH$45=2,L154=0),D154*(1+Z155),IF($AM$3=2,B155*AL155,D154*(1+Z155)))))) -> 0 | F155: 0 | H155: 0 | N155: =IF('Simulador Valora'!$V$66=1,0,L155*'Simulador Valora'!$O$69*'Simulador Valora'!$W$65) -> 0 | P155: 0 | R155: 0 | T155: =IF(B155<=0,0,B155*IF('Simulador Valora'!$AC$81=1,0,'Simulador Valora'!$Y$75)) -> 0 | V155: =IF(B155<=0,0,IF('Simulador Valora'!$X$41=1,'Simulador Valora'!$O$55,IF('Simulador Valora'!$X$41=2,'Simulador Valora'!$K$55,'Simulador Valora'!$E$55))) -> 0 | X155: 0 | AB155: 0 | AC155: 0.12 | AD155: 0 | AE155: 0 | AF155: 0 | AG155: 0 | AH155: 0 | AI155: =IF(AD155<=0,0,AD155*IF('Simulador Valora'!$AC$81=1,0,'Simulador Valora'!$Y$75))+IF(AD155<=0,0,IF('Simulador Valora'!$X$41=1,'Simulador Valora'!$O$55,IF('Simulador Valora'!$X$41=2,'Simulador Valora'!$K$55,'Simulador Valora'!$E$55))) -> 0 | AK155: 0 | AL155: 0 | AN155: 11 | AO155: 7 | AP155: 0 | AQ155: 0 | AR155: 0 | AS155: 102 | AU155: 0 | AV155: 139
A156: 140 | B156: 0 | D156: =IF(B156+F156-D155<=0,B156+F156,IF(A156=$B$9,$F$9,IF(A156=$B$10,$F$10,IF(AND('Simulador Valora'!$AH$45=2,L155=0),D155*(1+Z156),IF($AM$3=2,B156*AL156,D155*(1+Z156)))))) -> 0 | F156: 0 | H156: 0 | J156: =IF(B156-H156=0,0,J154) -> 0 | N156: =IF('Simulador Valora'!$V$66=1,0,L156*'Simulador Valora'!$O$69*'Simulador Valora'!$W$65) -> 0 | P156: 0 | R156: 0 | T156: =IF(B156<=0,0,B156*IF('Simulador Valora'!$AC$81=1,0,'Simulador Valora'!$Y$75)) -> 0 | V156: =IF(B156<=0,0,IF('Simulador Valora'!$X$41=1,'Simulador Valora'!$O$55,IF('Simulador Valora'!$X$41=2,'Simulador Valora'!$K$55,'Simulador Valora'!$E$55))) -> 0 | X156: 0 | AB156: 0 | AC156: 0.12 | AD156: 0 | AE156: 0 | AF156: 0 | AG156: 0 | AH156: 0 | AI156: =IF(AD156<=0,0,AD156*IF('Simulador Valora'!$AC$81=1,0,'Simulador Valora'!$Y$75))+IF(AD156<=0,0,IF('Simulador Valora'!$X$41=1,'Simulador Valora'!$O$55,IF('Simulador Valora'!$X$41=2,'Simulador Valora'!$K$55,'Simulador Valora'!$E$55))) -> 0 | AK156: 0 | AL156: 0 | AN156: 11 | AO156: 8 | AP156: 0 | AQ156: 0 | AR156: 0 | AS156: 101 | AU156: 0 | AV156: 140
A157: 141 | B157: 0 | D157: =IF(B157+F157-D156<=0,B157+F157,IF(A157=$B$9,$F$9,IF(A157=$B$10,$F$10,IF(AND('Simulador Valora'!$AH$45=2,L156=0),D156*(1+Z157),IF($AM$3=2,B157*AL157,D156*(1+Z157)))))) -> 0 | F157: 0 | H157: 0 | N157: =IF('Simulador Valora'!$V$66=1,0,L157*'Simulador Valora'!$O$69*'Simulador Valora'!$W$65) -> 0 | P157: 0 | R157: 0 | T157: =IF(B157<=0,0,B157*IF('Simulador Valora'!$AC$81=1,0,'Simulador Valora'!$Y$75)) -> 0 | V157: =IF(B157<=0,0,IF('Simulador Valora'!$X$41=1,'Simulador Valora'!$O$55,IF('Simulador Valora'!$X$41=2,'Simulador Valora'!$K$55,'Simulador Valora'!$E$55))) -> 0 | X157: 0 | AB157: 0 | AC157: 0.12 | AD157: 0 | AE157: 0 | AF157: 0 | AG157: 0 | AH157: 0 | AI157: =IF(AD157<=0,0,AD157*IF('Simulador Valora'!$AC$81=1,0,'Simulador Valora'!$Y$75))+IF(AD157<=0,0,IF('Simulador Valora'!$X$41=1,'Simulador Valora'!$O$55,IF('Simulador Valora'!$X$41=2,'Simulador Valora'!$K$55,'Simulador Valora'!$E$55))) -> 0 | AK157: 0 | AL157: 0 | AN157: 11 | AO157: 9 | AP157: 0 | AQ157: 0 | AR157: 0 | AS157: 100 | AU157: 0 | AV157: 141
A158: 142 | B158: 0 | D158: =IF(B158+F158-D157<=0,B158+F158,IF(A158=$B$9,$F$9,IF(A158=$B$10,$F$10,IF(AND('Simulador Valora'!$AH$45=2,L157=0),D157*(1+Z158),IF($AM$3=2,B158*AL158,D157*(1+Z158)))))) -> 0 | F158: 0 | H158: 0 | J158: =IF(B158-H158=0,0,J156) -> 0 | N158: =IF('Simulador Valora'!$V$66=1,0,L158*'Simulador Valora'!$O$69*'Simulador Valora'!$W$65) -> 0 | P158: 0 | R158: 0 | T158: =IF(B158<=0,0,B158*IF('Simulador Valora'!$AC$81=1,0,'Simulador Valora'!$Y$75)) -> 0 | V158: =IF(B158<=0,0,IF('Simulador Valora'!$X$41=1,'Simulador Valora'!$O$55,IF('Simulador Valora'!$X$41=2,'Simulador Valora'!$K$55,'Simulador Valora'!$E$55))) -> 0 | X158: 0 | AB158: 0 | AC158: 0.12 | AD158: 0 | AE158: 0 | AF158: 0 | AG158: 0 | AH158: 0 | AI158: =IF(AD158<=0,0,AD158*IF('Simulador Valora'!$AC$81=1,0,'Simulador Valora'!$Y$75))+IF(AD158<=0,0,IF('Simulador Valora'!$X$41=1,'Simulador Valora'!$O$55,IF('Simulador Valora'!$X$41=2,'Simulador Valora'!$K$55,'Simulador Valora'!$E$55))) -> 0 | AK158: 0 | AL158: 0 | AN158: 11 | AO158: 10 | AP158: 0 | AQ158: 0 | AR158: 0 | AS158: 99 | AU158: 0 | AV158: 142
A159: 143 | B159: 0 | D159: =IF(B159+F159-D158<=0,B159+F159,IF(A159=$B$9,$F$9,IF(A159=$B$10,$F$10,IF(AND('Simulador Valora'!$AH$45=2,L158=0),D158*(1+Z159),IF($AM$3=2,B159*AL159,D158*(1+Z159)))))) -> 0 | F159: 0 | H159: 0 | N159: =IF('Simulador Valora'!$V$66=1,0,L159*'Simulador Valora'!$O$69*'Simulador Valora'!$W$65) -> 0 | P159: 0 | R159: 0 | T159: =IF(B159<=0,0,B159*IF('Simulador Valora'!$AC$81=1,0,'Simulador Valora'!$Y$75)) -> 0 | V159: =IF(B159<=0,0,IF('Simulador Valora'!$X$41=1,'Simulador Valora'!$O$55,IF('Simulador Valora'!$X$41=2,'Simulador Valora'!$K$55,'Simulador Valora'!$E$55))) -> 0 | X159: 0 | AB159: 0 | AC159: 0.12 | AD159: 0 | AE159: 0 | AF159: 0 | AG159: 0 | AH159: 0 | AI159: =IF(AD159<=0,0,AD159*IF('Simulador Valora'!$AC$81=1,0,'Simulador Valora'!$Y$75))+IF(AD159<=0,0,IF('Simulador Valora'!$X$41=1,'Simulador Valora'!$O$55,IF('Simulador Valora'!$X$41=2,'Simulador Valora'!$K$55,'Simulador Valora'!$E$55))) -> 0 | AK159: 0 | AL159: 0 | AN159: 11 | AO159: 11 | AP159: 0 | AQ159: 0 | AR159: 0 | AS159: 98 | AU159: 0 | AV159: 143
A160: 144 | B160: 0 | D160: =IF(B160+F160-D159<=0,B160+F160,IF(A160=$B$9,$F$9,IF(A160=$B$10,$F$10,IF(AND('Simulador Valora'!$AH$45=2,L159=0),D159*(1+Z160),IF($AM$3=2,B160*AL160,D159*(1+Z160)))))) -> 0 | F160: 0 | H160: 0 | J160: =IF(B160-H160=0,0,J158) -> 0 | N160: =IF('Simulador Valora'!$V$66=1,0,L160*'Simulador Valora'!$O$69*'Simulador Valora'!$W$65) -> 0 | P160: 0 | R160: 0 | T160: =IF(B160<=0,0,B160*IF('Simulador Valora'!$AC$81=1,0,'Simulador Valora'!$Y$75)) -> 0 | V160: =IF(B160<=0,0,IF('Simulador Valora'!$X$41=1,'Simulador Valora'!$O$55,IF('Simulador Valora'!$X$41=2,'Simulador Valora'!$K$55,'Simulador Valora'!$E$55))) -> 0 | X160: 0 | AB160: 0 | AC160: 0.12 | AD160: 0 | AE160: 0 | AF160: 0 | AG160: 0 | AH160: 0 | AI160: =IF(AD160<=0,0,AD160*IF('Simulador Valora'!$AC$81=1,0,'Simulador Valora'!$Y$75))+IF(AD160<=0,0,IF('Simulador Valora'!$X$41=1,'Simulador Valora'!$O$55,IF('Simulador Valora'!$X$41=2,'Simulador Valora'!$K$55,'Simulador Valora'!$E$55))) -> 0 | AK160: 0 | AL160: 0 | AN160: 12 | AO160: 0 | AP160: 0 | AQ160: 0 | AR160: 0 | AS160: 97 | AU160: 0 | AV160: 144
A161: 145 | B161: 0 | D161: =IF(B161+F161-D160<=0,B161+F161,IF(A161=$B$9,$F$9,IF(A161=$B$10,$F$10,IF(AND('Simulador Valora'!$AH$45=2,L160=0),D160*(1+Z161),IF($AM$3=2,B161*AL161,D160*(1+Z161)))))) -> 0 | F161: 0 | H161: 0 | N161: =IF('Simulador Valora'!$V$66=1,0,L161*'Simulador Valora'!$O$69*'Simulador Valora'!$W$65) -> 0 | P161: 0 | R161: 0 | T161: =IF(B161<=0,0,B161*IF('Simulador Valora'!$AC$81=1,0,'Simulador Valora'!$Y$75)) -> 0 | V161: =IF(B161<=0,0,IF('Simulador Valora'!$X$41=1,'Simulador Valora'!$O$55,IF('Simulador Valora'!$X$41=2,'Simulador Valora'!$K$55,'Simulador Valora'!$E$55))) -> 0 | X161: 0 | Z161: =IF(B161<=0,0,'Simulador Valora'!$AI$54) -> 0 | AB161: 0 | AC161: =IF(AC160=$AC$6,AC160,IF(AC160=$AC$5,AC160,AC160-0.25%)) -> 0.12 | AD161: 0 | AE161: 0 | AF161: 0 | AG161: 0 | AH161: 0 | AI161: =IF(AD161<=0,0,AD161*IF('Simulador Valora'!$AC$81=1,0,'Simulador Valora'!$Y$75))+IF(AD161<=0,0,IF('Simulador Valora'!$X$41=1,'Simulador Valora'!$O$55,IF('Simulador Valora'!$X$41=2,'Simulador Valora'!$K$55,'Simulador Valora'!$E$55))) -> 0 | AJ161: =IF(AC161<=0,0,$AJ$29) -> 0 | AK161: 0 | AL161: 0 | AN161: 12 | AO161: 1 | AP161: 0 | AQ161: 0 | AR161: 0 | AS161: 96 | AU161: 0 | AV161: 145
A162: 146 | B162: 0 | D162: =IF(B162+F162-D161<=0,B162+F162,IF(A162=$B$9,$F$9,IF(A162=$B$10,$F$10,IF(AND('Simulador Valora'!$AH$45=2,L161=0),D161*(1+Z162),IF($AM$3=2,B162*AL162,D161*(1+Z162)))))) -> 0 | F162: 0 | H162: 0 | J162: =IF(B162-H162=0,0,J160*(1+(3%))) -> 0 | N162: =IF('Simulador Valora'!$V$66=1,0,L162*'Simulador Valora'!$O$69*'Simulador Valora'!$W$65) -> 0 | P162: 0 | R162: 0 | T162: =IF(B162<=0,0,B162*IF('Simulador Valora'!$AC$81=1,0,'Simulador Valora'!$Y$75)) -> 0 | V162: =IF(B162<=0,0,IF('Simulador Valora'!$X$41=1,'Simulador Valora'!$O$55,IF('Simulador Valora'!$X$41=2,'Simulador Valora'!$K$55,'Simulador Valora'!$E$55))) -> 0 | X162: 0 | AB162: 0 | AC162: =AC161 -> 0.12 | AD162: 0 | AE162: 0 | AF162: 0 | AG162: 0 | AH162: 0 | AI162: =IF(AD162<=0,0,AD162*IF('Simulador Valora'!$AC$81=1,0,'Simulador Valora'!$Y$75))+IF(AD162<=0,0,IF('Simulador Valora'!$X$41=1,'Simulador Valora'!$O$55,IF('Simulador Valora'!$X$41=2,'Simulador Valora'!$K$55,'Simulador Valora'!$E$55))) -> 0 | AK162: 0 | AL162: 0 | AN162: 12 | AO162: 2 | AP162: 0 | AQ162: 0 | AR162: 0 | AS162: 95 | AU162: 0 | AV162: 146
A163: 147 | B163: 0 | D163: =IF(B163+F163-D162<=0,B163+F163,IF(A163=$B$9,$F$9,IF(A163=$B$10,$F$10,IF(AND('Simulador Valora'!$AH$45=2,L162=0),D162*(1+Z163),IF($AM$3=2,B163*AL163,D162*(1+Z163)))))) -> 0 | F163: 0 | H163: 0 | N163: =IF('Simulador Valora'!$V$66=1,0,L163*'Simulador Valora'!$O$69*'Simulador Valora'!$W$65) -> 0 | P163: 0 | R163: 0 | T163: =IF(B163<=0,0,B163*IF('Simulador Valora'!$AC$81=1,0,'Simulador Valora'!$Y$75)) -> 0 | V163: =IF(B163<=0,0,IF('Simulador Valora'!$X$41=1,'Simulador Valora'!$O$55,IF('Simulador Valora'!$X$41=2,'Simulador Valora'!$K$55,'Simulador Valora'!$E$55))) -> 0 | X163: 0 | AB163: 0 | AC163: =AC162 -> 0.12 | AD163: 0 | AE163: 0 | AF163: 0 | AG163: 0 | AH163: 0 | AI163: =IF(AD163<=0,0,AD163*IF('Simulador Valora'!$AC$81=1,0,'Simulador Valora'!$Y$75))+IF(AD163<=0,0,IF('Simulador Valora'!$X$41=1,'Simulador Valora'!$O$55,IF('Simulador Valora'!$X$41=2,'Simulador Valora'!$K$55,'Simulador Valora'!$E$55))) -> 0 | AK163: 0 | AL163: 0 | AN163: 12 | AO163: 3 | AP163: 0 | AQ163: 0 | AR163: 0 | AS163: 94 | AU163: 0 | AV163: 147
A164: 148 | B164: 0 | D164: =IF(B164+F164-D163<=0,B164+F164,IF(A164=$B$9,$F$9,IF(A164=$B$10,$F$10,IF(AND('Simulador Valora'!$AH$45=2,L163=0),D163*(1+Z164),IF($AM$3=2,B164*AL164,D163*(1+Z164)))))) -> 0 | F164: 0 | H164: 0 | J164: =IF(B164-H164=0,0,J162) -> 0 | N164: =IF('Simulador Valora'!$V$66=1,0,L164*'Simulador Valora'!$O$69*'Simulador Valora'!$W$65) -> 0 | P164: 0 | R164: 0 | T164: =IF(B164<=0,0,B164*IF('Simulador Valora'!$AC$81=1,0,'Simulador Valora'!$Y$75)) -> 0 | V164: =IF(B164<=0,0,IF('Simulador Valora'!$X$41=1,'Simulador Valora'!$O$55,IF('Simulador Valora'!$X$41=2,'Simulador Valora'!$K$55,'Simulador Valora'!$E$55))) -> 0 | X164: 0 | AB164: 0 | AC164: 0.12 | AD164: 0 | AE164: 0 | AF164: 0 | AG164: 0 | AH164: 0 | AI164: =IF(AD164<=0,0,AD164*IF('Simulador Valora'!$AC$81=1,0,'Simulador Valora'!$Y$75))+IF(AD164<=0,0,IF('Simulador Valora'!$X$41=1,'Simulador Valora'!$O$55,IF('Simulador Valora'!$X$41=2,'Simulador Valora'!$K$55,'Simulador Valora'!$E$55))) -> 0 | AK164: 0 | AL164: 0 | AN164: 12 | AO164: 4 | AP164: 0 | AQ164: 0 | AR164: 0 | AS164: 93 | AU164: 0 | AV164: 148
A165: 149 | B165: 0 | D165: =IF(B165+F165-D164<=0,B165+F165,IF(A165=$B$9,$F$9,IF(A165=$B$10,$F$10,IF(AND('Simulador Valora'!$AH$45=2,L164=0),D164*(1+Z165),IF($AM$3=2,B165*AL165,D164*(1+Z165)))))) -> 0 | F165: 0 | H165: 0 | N165: =IF('Simulador Valora'!$V$66=1,0,L165*'Simulador Valora'!$O$69*'Simulador Valora'!$W$65) -> 0 | P165: 0 | R165: 0 | T165: =IF(B165<=0,0,B165*IF('Simulador Valora'!$AC$81=1,0,'Simulador Valora'!$Y$75)) -> 0 | V165: =IF(B165<=0,0,IF('Simulador Valora'!$X$41=1,'Simulador Valora'!$O$55,IF('Simulador Valora'!$X$41=2,'Simulador Valora'!$K$55,'Simulador Valora'!$E$55))) -> 0 | X165: 0 | AB165: 0 | AC165: 0.12 | AD165: 0 | AE165: 0 | AF165: 0 | AG165: 0 | AH165: 0 | AI165: =IF(AD165<=0,0,AD165*IF('Simulador Valora'!$AC$81=1,0,'Simulador Valora'!$Y$75))+IF(AD165<=0,0,IF('Simulador Valora'!$X$41=1,'Simulador Valora'!$O$55,IF('Simulador Valora'!$X$41=2,'Simulador Valora'!$K$55,'Simulador Valora'!$E$55))) -> 0 | AK165: 0 | AL165: 0 | AN165: 12 | AO165: 5 | AP165: 0 | AQ165: 0 | AR165: 0 | AS165: 92 | AU165: 0 | AV165: 149
A166: 150 | B166: 0 | D166: =IF(B166+F166-D165<=0,B166+F166,IF(A166=$B$9,$F$9,IF(A166=$B$10,$F$10,IF(AND('Simulador Valora'!$AH$45=2,L165=0),D165*(1+Z166),IF($AM$3=2,B166*AL166,D165*(1+Z166)))))) -> 0 | F166: 0 | H166: 0 | J166: =IF(B166-H166=0,0,J164) -> 0 | N166: =IF('Simulador Valora'!$V$66=1,0,L166*'Simulador Valora'!$O$69*'Simulador Valora'!$W$65) -> 0 | P166: 0 | R166: 0 | T166: =IF(B166<=0,0,B166*IF('Simulador Valora'!$AC$81=1,0,'Simulador Valora'!$Y$75)) -> 0 | V166: =IF(B166<=0,0,IF('Simulador Valora'!$X$41=1,'Simulador Valora'!$O$55,IF('Simulador Valora'!$X$41=2,'Simulador Valora'!$K$55,'Simulador Valora'!$E$55))) -> 0 | X166: 0 | AB166: 0 | AC166: 0.12 | AD166: 0 | AE166: 0 | AF166: 0 | AG166: 0 | AH166: 0 | AI166: =IF(AD166<=0,0,AD166*IF('Simulador Valora'!$AC$81=1,0,'Simulador Valora'!$Y$75))+IF(AD166<=0,0,IF('Simulador Valora'!$X$41=1,'Simulador Valora'!$O$55,IF('Simulador Valora'!$X$41=2,'Simulador Valora'!$K$55,'Simulador Valora'!$E$55))) -> 0 | AK166: 0 | AL166: 0 | AN166: 12 | AO166: 6 | AP166: 0 | AQ166: 0 | AR166: 0 | AS166: 91 | AU166: 0 | AV166: 150
A167: 151 | B167: 0 | D167: =IF(B167+F167-D166<=0,B167+F167,IF(A167=$B$9,$F$9,IF(A167=$B$10,$F$10,IF(AND('Simulador Valora'!$AH$45=2,L166=0),D166*(1+Z167),IF($AM$3=2,B167*AL167,D166*(1+Z167)))))) -> 0 | F167: 0 | H167: 0 | N167: =IF('Simulador Valora'!$V$66=1,0,L167*'Simulador Valora'!$O$69*'Simulador Valora'!$W$65) -> 0 | P167: 0 | R167: 0 | T167: =IF(B167<=0,0,B167*IF('Simulador Valora'!$AC$81=1,0,'Simulador Valora'!$Y$75)) -> 0 | V167: =IF(B167<=0,0,IF('Simulador Valora'!$X$41=1,'Simulador Valora'!$O$55,IF('Simulador Valora'!$X$41=2,'Simulador Valora'!$K$55,'Simulador Valora'!$E$55))) -> 0 | X167: 0 | AB167: 0 | AC167: 0.12 | AD167: 0 | AE167: 0 | AF167: 0 | AG167: 0 | AH167: 0 | AI167: =IF(AD167<=0,0,AD167*IF('Simulador Valora'!$AC$81=1,0,'Simulador Valora'!$Y$75))+IF(AD167<=0,0,IF('Simulador Valora'!$X$41=1,'Simulador Valora'!$O$55,IF('Simulador Valora'!$X$41=2,'Simulador Valora'!$K$55,'Simulador Valora'!$E$55))) -> 0 | AK167: 0 | AL167: 0 | AN167: 12 | AO167: 7 | AP167: 0 | AQ167: 0 | AR167: 0 | AS167: 90 | AU167: 0 | AV167: 151
A168: 152 | B168: 0 | D168: =IF(B168+F168-D167<=0,B168+F168,IF(A168=$B$9,$F$9,IF(A168=$B$10,$F$10,IF(AND('Simulador Valora'!$AH$45=2,L167=0),D167*(1+Z168),IF($AM$3=2,B168*AL168,D167*(1+Z168)))))) -> 0 | F168: 0 | H168: 0 | J168: =IF(B168-H168=0,0,J166) -> 0 | N168: =IF('Simulador Valora'!$V$66=1,0,L168*'Simulador Valora'!$O$69*'Simulador Valora'!$W$65) -> 0 | P168: 0 | R168: 0 | T168: =IF(B168<=0,0,B168*IF('Simulador Valora'!$AC$81=1,0,'Simulador Valora'!$Y$75)) -> 0 | V168: =IF(B168<=0,0,IF('Simulador Valora'!$X$41=1,'Simulador Valora'!$O$55,IF('Simulador Valora'!$X$41=2,'Simulador Valora'!$K$55,'Simulador Valora'!$E$55))) -> 0 | X168: 0 | AB168: 0 | AC168: 0.12 | AD168: 0 | AE168: 0 | AF168: 0 | AG168: 0 | AH168: 0 | AI168: =IF(AD168<=0,0,AD168*IF('Simulador Valora'!$AC$81=1,0,'Simulador Valora'!$Y$75))+IF(AD168<=0,0,IF('Simulador Valora'!$X$41=1,'Simulador Valora'!$O$55,IF('Simulador Valora'!$X$41=2,'Simulador Valora'!$K$55,'Simulador Valora'!$E$55))) -> 0 | AK168: 0 | AL168: 0 | AN168: 12 | AO168: 8 | AP168: 0 | AQ168: 0 | AR168: 0 | AS168: 89 | AU168: 0 | AV168: 152
A169: 153 | B169: 0 | D169: =IF(B169+F169-D168<=0,B169+F169,IF(A169=$B$9,$F$9,IF(A169=$B$10,$F$10,IF(AND('Simulador Valora'!$AH$45=2,L168=0),D168*(1+Z169),IF($AM$3=2,B169*AL169,D168*(1+Z169)))))) -> 0 | F169: 0 | H169: 0 | N169: =IF('Simulador Valora'!$V$66=1,0,L169*'Simulador Valora'!$O$69*'Simulador Valora'!$W$65) -> 0 | P169: 0 | R169: 0 | T169: =IF(B169<=0,0,B169*IF('Simulador Valora'!$AC$81=1,0,'Simulador Valora'!$Y$75)) -> 0 | V169: =IF(B169<=0,0,IF('Simulador Valora'!$X$41=1,'Simulador Valora'!$O$55,IF('Simulador Valora'!$X$41=2,'Simulador Valora'!$K$55,'Simulador Valora'!$E$55))) -> 0 | X169: 0 | AB169: 0 | AC169: 0.12 | AD169: 0 | AE169: 0 | AF169: 0 | AG169: 0 | AH169: 0 | AI169: =IF(AD169<=0,0,AD169*IF('Simulador Valora'!$AC$81=1,0,'Simulador Valora'!$Y$75))+IF(AD169<=0,0,IF('Simulador Valora'!$X$41=1,'Simulador Valora'!$O$55,IF('Simulador Valora'!$X$41=2,'Simulador Valora'!$K$55,'Simulador Valora'!$E$55))) -> 0 | AK169: 0 | AL169: 0 | AN169: 12 | AO169: 9 | AP169: 0 | AQ169: 0 | AR169: 0 | AS169: 88 | AU169: 0 | AV169: 153
A170: 154 | B170: 0 | D170: =IF(B170+F170-D169<=0,B170+F170,IF(A170=$B$9,$F$9,IF(A170=$B$10,$F$10,IF(AND('Simulador Valora'!$AH$45=2,L169=0),D169*(1+Z170),IF($AM$3=2,B170*AL170,D169*(1+Z170)))))) -> 0 | F170: 0 | H170: 0 | J170: =IF(B170-H170=0,0,J168) -> 0 | N170: =IF('Simulador Valora'!$V$66=1,0,L170*'Simulador Valora'!$O$69*'Simulador Valora'!$W$65) -> 0 | P170: 0 | R170: 0 | T170: =IF(B170<=0,0,B170*IF('Simulador Valora'!$AC$81=1,0,'Simulador Valora'!$Y$75)) -> 0 | V170: =IF(B170<=0,0,IF('Simulador Valora'!$X$41=1,'Simulador Valora'!$O$55,IF('Simulador Valora'!$X$41=2,'Simulador Valora'!$K$55,'Simulador Valora'!$E$55))) -> 0 | X170: 0 | AB170: 0 | AC170: 0.12 | AD170: 0 | AE170: 0 | AF170: 0 | AG170: 0 | AH170: 0 | AI170: =IF(AD170<=0,0,AD170*IF('Simulador Valora'!$AC$81=1,0,'Simulador Valora'!$Y$75))+IF(AD170<=0,0,IF('Simulador Valora'!$X$41=1,'Simulador Valora'!$O$55,IF('Simulador Valora'!$X$41=2,'Simulador Valora'!$K$55,'Simulador Valora'!$E$55))) -> 0 | AK170: 0 | AL170: 0 | AN170: 12 | AO170: 10 | AP170: 0 | AQ170: 0 | AR170: 0 | AS170: 87 | AU170: 0 | AV170: 154
A171: 155 | B171: 0 | D171: =IF(B171+F171-D170<=0,B171+F171,IF(A171=$B$9,$F$9,IF(A171=$B$10,$F$10,IF(AND('Simulador Valora'!$AH$45=2,L170=0),D170*(1+Z171),IF($AM$3=2,B171*AL171,D170*(1+Z171)))))) -> 0 | F171: 0 | H171: 0 | N171: =IF('Simulador Valora'!$V$66=1,0,L171*'Simulador Valora'!$O$69*'Simulador Valora'!$W$65) -> 0 | P171: 0 | R171: 0 | T171: =IF(B171<=0,0,B171*IF('Simulador Valora'!$AC$81=1,0,'Simulador Valora'!$Y$75)) -> 0 | V171: =IF(B171<=0,0,IF('Simulador Valora'!$X$41=1,'Simulador Valora'!$O$55,IF('Simulador Valora'!$X$41=2,'Simulador Valora'!$K$55,'Simulador Valora'!$E$55))) -> 0 | X171: 0 | AB171: 0 | AC171: 0.12 | AD171: 0 | AE171: 0 | AF171: 0 | AG171: 0 | AH171: 0 | AI171: =IF(AD171<=0,0,AD171*IF('Simulador Valora'!$AC$81=1,0,'Simulador Valora'!$Y$75))+IF(AD171<=0,0,IF('Simulador Valora'!$X$41=1,'Simulador Valora'!$O$55,IF('Simulador Valora'!$X$41=2,'Simulador Valora'!$K$55,'Simulador Valora'!$E$55))) -> 0 | AK171: 0 | AL171: 0 | AN171: 12 | AO171: 11 | AP171: 0 | AQ171: 0 | AR171: 0 | AS171: 86 | AU171: 0 | AV171: 155
A172: 156 | B172: 0 | D172: =IF(B172+F172-D171<=0,B172+F172,IF(A172=$B$9,$F$9,IF(A172=$B$10,$F$10,IF(AND('Simulador Valora'!$AH$45=2,L171=0),D171*(1+Z172),IF($AM$3=2,B172*AL172,D171*(1+Z172)))))) -> 0 | F172: 0 | H172: 0 | J172: =IF(B172-H172=0,0,J170) -> 0 | N172: =IF('Simulador Valora'!$V$66=1,0,L172*'Simulador Valora'!$O$69*'Simulador Valora'!$W$65) -> 0 | P172: 0 | R172: 0 | T172: =IF(B172<=0,0,B172*IF('Simulador Valora'!$AC$81=1,0,'Simulador Valora'!$Y$75)) -> 0 | V172: =IF(B172<=0,0,IF('Simulador Valora'!$X$41=1,'Simulador Valora'!$O$55,IF('Simulador Valora'!$X$41=2,'Simulador Valora'!$K$55,'Simulador Valora'!$E$55))) -> 0 | X172: 0 | AB172: 0 | AC172: 0.12 | AD172: 0 | AE172: 0 | AF172: 0 | AG172: 0 | AH172: 0 | AI172: =IF(AD172<=0,0,AD172*IF('Simulador Valora'!$AC$81=1,0,'Simulador Valora'!$Y$75))+IF(AD172<=0,0,IF('Simulador Valora'!$X$41=1,'Simulador Valora'!$O$55,IF('Simulador Valora'!$X$41=2,'Simulador Valora'!$K$55,'Simulador Valora'!$E$55))) -> 0 | AK172: 0 | AL172: 0 | AN172: 13 | AO172: 0 | AP172: 0 | AQ172: 0 | AR172: 0 | AS172: =IFERROR(IF(AC172<=0.01,0,AS171-1),0) -> 85 | AU172: 0 | AV172: 156
A173: 157 | B173: 0 | D173: =IF(B173+F173-D172<=0,B173+F173,IF(A173=$B$9,$F$9,IF(A173=$B$10,$F$10,IF(AND('Simulador Valora'!$AH$45=2,L172=0),D172*(1+Z173),IF($AM$3=2,B173*AL173,D172*(1+Z173)))))) -> 0 | F173: 0 | H173: 0 | N173: =IF('Simulador Valora'!$V$66=1,0,L173*'Simulador Valora'!$O$69*'Simulador Valora'!$W$65) -> 0 | P173: 0 | R173: 0 | T173: =IF(B173<=0,0,B173*IF('Simulador Valora'!$AC$81=1,0,'Simulador Valora'!$Y$75)) -> 0 | V173: =IF(B173<=0,0,IF('Simulador Valora'!$X$41=1,'Simulador Valora'!$O$55,IF('Simulador Valora'!$X$41=2,'Simulador Valora'!$K$55,'Simulador Valora'!$E$55))) -> 0 | X173: 0 | Z173: =IF(B173<=0,0,'Simulador Valora'!$AI$54) -> 0 | AB173: 0 | AC173: =IF(AC172=$AC$6,AC172,IF(AC172=$AC$5,AC172,AC172-0.25%)) -> 0.12 | AD173: 0 | AE173: 0 | AF173: 0 | AG173: 0 | AH173: 0 | AI173: =IF(AD173<=0,0,AD173*IF('Simulador Valora'!$AC$81=1,0,'Simulador Valora'!$Y$75))+IF(AD173<=0,0,IF('Simulador Valora'!$X$41=1,'Simulador Valora'!$O$55,IF('Simulador Valora'!$X$41=2,'Simulador Valora'!$K$55,'Simulador Valora'!$E$55))) -> 0 | AJ173: =IF(AC173<=0,0,$AJ$29) -> 0 | AK173: 0 | AL173: 0 | AN173: 13 | AO173: 1 | AP173: 0 | AQ173: 0 | AR173: 0 | AS173: 84 | AU173: 0 | AV173: 157
A174: 158 | B174: 0 | D174: =IF(B174+F174-D173<=0,B174+F174,IF(A174=$B$9,$F$9,IF(A174=$B$10,$F$10,IF(AND('Simulador Valora'!$AH$45=2,L173=0),D173*(1+Z174),IF($AM$3=2,B174*AL174,D173*(1+Z174)))))) -> 0 | F174: 0 | H174: 0 | J174: =IF(B174-H174=0,0,J172*(1+(3%))) -> 0 | N174: =IF('Simulador Valora'!$V$66=1,0,L174*'Simulador Valora'!$O$69*'Simulador Valora'!$W$65) -> 0 | P174: 0 | R174: 0 | T174: =IF(B174<=0,0,B174*IF('Simulador Valora'!$AC$81=1,0,'Simulador Valora'!$Y$75)) -> 0 | V174: =IF(B174<=0,0,IF('Simulador Valora'!$X$41=1,'Simulador Valora'!$O$55,IF('Simulador Valora'!$X$41=2,'Simulador Valora'!$K$55,'Simulador Valora'!$E$55))) -> 0 | X174: 0 | AB174: 0 | AC174: =AC173 -> 0.12 | AD174: 0 | AE174: 0 | AF174: 0 | AG174: 0 | AH174: 0 | AI174: =IF(AD174<=0,0,AD174*IF('Simulador Valora'!$AC$81=1,0,'Simulador Valora'!$Y$75))+IF(AD174<=0,0,IF('Simulador Valora'!$X$41=1,'Simulador Valora'!$O$55,IF('Simulador Valora'!$X$41=2,'Simulador Valora'!$K$55,'Simulador Valora'!$E$55))) -> 0 | AK174: 0 | AL174: 0 | AN174: 13 | AO174: 2 | AP174: 0 | AQ174: 0 | AR174: 0 | AS174: 83 | AU174: 0 | AV174: 158
A175: 159 | B175: 0 | D175: =IF(B175+F175-D174<=0,B175+F175,IF(A175=$B$9,$F$9,IF(A175=$B$10,$F$10,IF(AND('Simulador Valora'!$AH$45=2,L174=0),D174*(1+Z175),IF($AM$3=2,B175*AL175,D174*(1+Z175)))))) -> 0 | F175: 0 | H175: 0 | N175: =IF('Simulador Valora'!$V$66=1,0,L175*'Simulador Valora'!$O$69*'Simulador Valora'!$W$65) -> 0 | P175: 0 | R175: 0 | T175: =IF(B175<=0,0,B175*IF('Simulador Valora'!$AC$81=1,0,'Simulador Valora'!$Y$75)) -> 0 | V175: =IF(B175<=0,0,IF('Simulador Valora'!$X$41=1,'Simulador Valora'!$O$55,IF('Simulador Valora'!$X$41=2,'Simulador Valora'!$K$55,'Simulador Valora'!$E$55))) -> 0 | X175: 0 | AB175: 0 | AC175: =AC174 -> 0.12 | AD175: 0 | AE175: 0 | AF175: 0 | AG175: 0 | AH175: 0 | AI175: =IF(AD175<=0,0,AD175*IF('Simulador Valora'!$AC$81=1,0,'Simulador Valora'!$Y$75))+IF(AD175<=0,0,IF('Simulador Valora'!$X$41=1,'Simulador Valora'!$O$55,IF('Simulador Valora'!$X$41=2,'Simulador Valora'!$K$55,'Simulador Valora'!$E$55))) -> 0 | AK175: 0 | AL175: 0 | AN175: 13 | AO175: 3 | AP175: 0 | AQ175: 0 | AR175: 0 | AS175: 82 | AU175: 0 | AV175: 159
A176: 160 | B176: 0 | D176: =IF(B176+F176-D175<=0,B176+F176,IF(A176=$B$9,$F$9,IF(A176=$B$10,$F$10,IF(AND('Simulador Valora'!$AH$45=2,L175=0),D175*(1+Z176),IF($AM$3=2,B176*AL176,D175*(1+Z176)))))) -> 0 | F176: 0 | H176: 0 | J176: =IF(B176-H176=0,0,J174) -> 0 | N176: =IF('Simulador Valora'!$V$66=1,0,L176*'Simulador Valora'!$O$69*'Simulador Valora'!$W$65) -> 0 | P176: 0 | R176: 0 | T176: =IF(B176<=0,0,B176*IF('Simulador Valora'!$AC$81=1,0,'Simulador Valora'!$Y$75)) -> 0 | V176: =IF(B176<=0,0,IF('Simulador Valora'!$X$41=1,'Simulador Valora'!$O$55,IF('Simulador Valora'!$X$41=2,'Simulador Valora'!$K$55,'Simulador Valora'!$E$55))) -> 0 | X176: 0 | AB176: 0 | AC176: 0.12 | AD176: 0 | AE176: 0 | AF176: 0 | AG176: 0 | AH176: 0 | AI176: =IF(AD176<=0,0,AD176*IF('Simulador Valora'!$AC$81=1,0,'Simulador Valora'!$Y$75))+IF(AD176<=0,0,IF('Simulador Valora'!$X$41=1,'Simulador Valora'!$O$55,IF('Simulador Valora'!$X$41=2,'Simulador Valora'!$K$55,'Simulador Valora'!$E$55))) -> 0 | AK176: 0 | AL176: 0 | AN176: 13 | AO176: 4 | AP176: 0 | AQ176: 0 | AR176: 0 | AS176: 81 | AU176: 0 | AV176: 160
A177: 161 | B177: 0 | D177: =IF(B177+F177-D176<=0,B177+F177,IF(A177=$B$9,$F$9,IF(A177=$B$10,$F$10,IF(AND('Simulador Valora'!$AH$45=2,L176=0),D176*(1+Z177),IF($AM$3=2,B177*AL177,D176*(1+Z177)))))) -> 0 | F177: 0 | H177: 0 | N177: =IF('Simulador Valora'!$V$66=1,0,L177*'Simulador Valora'!$O$69*'Simulador Valora'!$W$65) -> 0 | P177: 0 | R177: 0 | T177: =IF(B177<=0,0,B177*IF('Simulador Valora'!$AC$81=1,0,'Simulador Valora'!$Y$75)) -> 0 | V177: =IF(B177<=0,0,IF('Simulador Valora'!$X$41=1,'Simulador Valora'!$O$55,IF('Simulador Valora'!$X$41=2,'Simulador Valora'!$K$55,'Simulador Valora'!$E$55))) -> 0 | X177: 0 | AB177: 0 | AC177: 0.12 | AD177: 0 | AE177: 0 | AF177: 0 | AG177: 0 | AH177: 0 | AI177: =IF(AD177<=0,0,AD177*IF('Simulador Valora'!$AC$81=1,0,'Simulador Valora'!$Y$75))+IF(AD177<=0,0,IF('Simulador Valora'!$X$41=1,'Simulador Valora'!$O$55,IF('Simulador Valora'!$X$41=2,'Simulador Valora'!$K$55,'Simulador Valora'!$E$55))) -> 0 | AK177: 0 | AL177: 0 | AN177: 13 | AO177: 5 | AP177: 0 | AQ177: 0 | AR177: 0 | AS177: 80 | AU177: 0 | AV177: 161
A178: 162 | B178: 0 | D178: =IF(B178+F178-D177<=0,B178+F178,IF(A178=$B$9,$F$9,IF(A178=$B$10,$F$10,IF(AND('Simulador Valora'!$AH$45=2,L177=0),D177*(1+Z178),IF($AM$3=2,B178*AL178,D177*(1+Z178)))))) -> 0 | F178: 0 | H178: 0 | J178: =IF(B178-H178=0,0,J176) -> 0 | N178: =IF('Simulador Valora'!$V$66=1,0,L178*'Simulador Valora'!$O$69*'Simulador Valora'!$W$65) -> 0 | P178: 0 | R178: 0 | T178: =IF(B178<=0,0,B178*IF('Simulador Valora'!$AC$81=1,0,'Simulador Valora'!$Y$75)) -> 0 | V178: =IF(B178<=0,0,IF('Simulador Valora'!$X$41=1,'Simulador Valora'!$O$55,IF('Simulador Valora'!$X$41=2,'Simulador Valora'!$K$55,'Simulador Valora'!$E$55))) -> 0 | X178: 0 | AB178: 0 | AC178: 0.12 | AD178: 0 | AE178: 0 | AF178: 0 | AG178: 0 | AH178: 0 | AI178: =IF(AD178<=0,0,AD178*IF('Simulador Valora'!$AC$81=1,0,'Simulador Valora'!$Y$75))+IF(AD178<=0,0,IF('Simulador Valora'!$X$41=1,'Simulador Valora'!$O$55,IF('Simulador Valora'!$X$41=2,'Simulador Valora'!$K$55,'Simulador Valora'!$E$55))) -> 0 | AK178: 0 | AL178: 0 | AN178: 13 | AO178: 6 | AP178: 0 | AQ178: 0 | AR178: 0 | AS178: 79 | AU178: 0 | AV178: 162
A179: 163 | B179: 0 | D179: =IF(B179+F179-D178<=0,B179+F179,IF(A179=$B$9,$F$9,IF(A179=$B$10,$F$10,IF(AND('Simulador Valora'!$AH$45=2,L178=0),D178*(1+Z179),IF($AM$3=2,B179*AL179,D178*(1+Z179)))))) -> 0 | F179: 0 | H179: 0 | N179: =IF('Simulador Valora'!$V$66=1,0,L179*'Simulador Valora'!$O$69*'Simulador Valora'!$W$65) -> 0 | P179: 0 | R179: 0 | T179: =IF(B179<=0,0,B179*IF('Simulador Valora'!$AC$81=1,0,'Simulador Valora'!$Y$75)) -> 0 | V179: =IF(B179<=0,0,IF('Simulador Valora'!$X$41=1,'Simulador Valora'!$O$55,IF('Simulador Valora'!$X$41=2,'Simulador Valora'!$K$55,'Simulador Valora'!$E$55))) -> 0 | X179: 0 | AB179: 0 | AC179: 0.12 | AD179: 0 | AE179: 0 | AF179: 0 | AG179: 0 | AH179: 0 | AI179: =IF(AD179<=0,0,AD179*IF('Simulador Valora'!$AC$81=1,0,'Simulador Valora'!$Y$75))+IF(AD179<=0,0,IF('Simulador Valora'!$X$41=1,'Simulador Valora'!$O$55,IF('Simulador Valora'!$X$41=2,'Simulador Valora'!$K$55,'Simulador Valora'!$E$55))) -> 0 | AK179: 0 | AL179: 0 | AN179: 13 | AO179: 7 | AP179: 0 | AQ179: 0 | AR179: 0 | AS179: 78 | AU179: 0 | AV179: 163
A180: 164 | B180: 0 | D180: =IF(B180+F180-D179<=0,B180+F180,IF(A180=$B$9,$F$9,IF(A180=$B$10,$F$10,IF(AND('Simulador Valora'!$AH$45=2,L179=0),D179*(1+Z180),IF($AM$3=2,B180*AL180,D179*(1+Z180)))))) -> 0 | F180: 0 | H180: 0 | J180: =IF(B180-H180=0,0,J178) -> 0 | N180: =IF('Simulador Valora'!$V$66=1,0,L180*'Simulador Valora'!$O$69*'Simulador Valora'!$W$65) -> 0 | P180: 0 | R180: 0 | T180: =IF(B180<=0,0,B180*IF('Simulador Valora'!$AC$81=1,0,'Simulador Valora'!$Y$75)) -> 0 | V180: =IF(B180<=0,0,IF('Simulador Valora'!$X$41=1,'Simulador Valora'!$O$55,IF('Simulador Valora'!$X$41=2,'Simulador Valora'!$K$55,'Simulador Valora'!$E$55))) -> 0 | X180: 0 | AB180: 0 | AC180: 0.12 | AD180: 0 | AE180: 0 | AF180: 0 | AG180: 0 | AH180: 0 | AI180: =IF(AD180<=0,0,AD180*IF('Simulador Valora'!$AC$81=1,0,'Simulador Valora'!$Y$75))+IF(AD180<=0,0,IF('Simulador Valora'!$X$41=1,'Simulador Valora'!$O$55,IF('Simulador Valora'!$X$41=2,'Simulador Valora'!$K$55,'Simulador Valora'!$E$55))) -> 0 | AK180: 0 | AL180: 0 | AN180: 13 | AO180: 8 | AP180: 0 | AQ180: 0 | AR180: 0 | AS180: 77 | AU180: 0 | AV180: 164
A181: 165 | B181: 0 | D181: =IF(B181+F181-D180<=0,B181+F181,IF(A181=$B$9,$F$9,IF(A181=$B$10,$F$10,IF(AND('Simulador Valora'!$AH$45=2,L180=0),D180*(1+Z181),IF($AM$3=2,B181*AL181,D180*(1+Z181)))))) -> 0 | F181: 0 | H181: 0 | N181: =IF('Simulador Valora'!$V$66=1,0,L181*'Simulador Valora'!$O$69*'Simulador Valora'!$W$65) -> 0 | P181: 0 | R181: 0 | T181: =IF(B181<=0,0,B181*IF('Simulador Valora'!$AC$81=1,0,'Simulador Valora'!$Y$75)) -> 0 | V181: =IF(B181<=0,0,IF('Simulador Valora'!$X$41=1,'Simulador Valora'!$O$55,IF('Simulador Valora'!$X$41=2,'Simulador Valora'!$K$55,'Simulador Valora'!$E$55))) -> 0 | X181: 0 | AB181: 0 | AC181: 0.12 | AD181: 0 | AE181: 0 | AF181: 0 | AG181: 0 | AH181: 0 | AI181: =IF(AD181<=0,0,AD181*IF('Simulador Valora'!$AC$81=1,0,'Simulador Valora'!$Y$75))+IF(AD181<=0,0,IF('Simulador Valora'!$X$41=1,'Simulador Valora'!$O$55,IF('Simulador Valora'!$X$41=2,'Simulador Valora'!$K$55,'Simulador Valora'!$E$55))) -> 0 | AK181: 0 | AL181: 0 | AN181: 13 | AO181: 9 | AP181: 0 | AQ181: 0 | AR181: 0 | AS181: 76 | AU181: 0 | AV181: 165
A182: 166 | B182: 0 | D182: =IF(B182+F182-D181<=0,B182+F182,IF(A182=$B$9,$F$9,IF(A182=$B$10,$F$10,IF(AND('Simulador Valora'!$AH$45=2,L181=0),D181*(1+Z182),IF($AM$3=2,B182*AL182,D181*(1+Z182)))))) -> 0 | F182: 0 | H182: 0 | J182: =IF(B182-H182=0,0,J180) -> 0 | N182: =IF('Simulador Valora'!$V$66=1,0,L182*'Simulador Valora'!$O$69*'Simulador Valora'!$W$65) -> 0 | P182: 0 | R182: 0 | T182: =IF(B182<=0,0,B182*IF('Simulador Valora'!$AC$81=1,0,'Simulador Valora'!$Y$75)) -> 0 | V182: =IF(B182<=0,0,IF('Simulador Valora'!$X$41=1,'Simulador Valora'!$O$55,IF('Simulador Valora'!$X$41=2,'Simulador Valora'!$K$55,'Simulador Valora'!$E$55))) -> 0 | X182: 0 | AB182: 0 | AC182: 0.12 | AD182: 0 | AE182: 0 | AF182: 0 | AG182: 0 | AH182: 0 | AI182: =IF(AD182<=0,0,AD182*IF('Simulador Valora'!$AC$81=1,0,'Simulador Valora'!$Y$75))+IF(AD182<=0,0,IF('Simulador Valora'!$X$41=1,'Simulador Valora'!$O$55,IF('Simulador Valora'!$X$41=2,'Simulador Valora'!$K$55,'Simulador Valora'!$E$55))) -> 0 | AK182: 0 | AL182: 0 | AN182: 13 | AO182: 10 | AP182: 0 | AQ182: 0 | AR182: 0 | AS182: 75 | AU182: 0 | AV182: 166
A183: 167 | B183: 0 | D183: =IF(B183+F183-D182<=0,B183+F183,IF(A183=$B$9,$F$9,IF(A183=$B$10,$F$10,IF(AND('Simulador Valora'!$AH$45=2,L182=0),D182*(1+Z183),IF($AM$3=2,B183*AL183,D182*(1+Z183)))))) -> 0 | F183: 0 | H183: 0 | N183: =IF('Simulador Valora'!$V$66=1,0,L183*'Simulador Valora'!$O$69*'Simulador Valora'!$W$65) -> 0 | P183: 0 | R183: 0 | T183: =IF(B183<=0,0,B183*IF('Simulador Valora'!$AC$81=1,0,'Simulador Valora'!$Y$75)) -> 0 | V183: =IF(B183<=0,0,IF('Simulador Valora'!$X$41=1,'Simulador Valora'!$O$55,IF('Simulador Valora'!$X$41=2,'Simulador Valora'!$K$55,'Simulador Valora'!$E$55))) -> 0 | X183: 0 | AB183: 0 | AC183: 0.12 | AD183: 0 | AE183: 0 | AF183: 0 | AG183: 0 | AH183: 0 | AI183: =IF(AD183<=0,0,AD183*IF('Simulador Valora'!$AC$81=1,0,'Simulador Valora'!$Y$75))+IF(AD183<=0,0,IF('Simulador Valora'!$X$41=1,'Simulador Valora'!$O$55,IF('Simulador Valora'!$X$41=2,'Simulador Valora'!$K$55,'Simulador Valora'!$E$55))) -> 0 | AK183: 0 | AL183: 0 | AN183: 13 | AO183: 11 | AP183: 0 | AQ183: 0 | AR183: 0 | AS183: 74 | AU183: 0 | AV183: 167
A184: 168 | B184: 0 | D184: =IF(B184+F184-D183<=0,B184+F184,IF(A184=$B$9,$F$9,IF(A184=$B$10,$F$10,IF(AND('Simulador Valora'!$AH$45=2,L183=0),D183*(1+Z184),IF($AM$3=2,B184*AL184,D183*(1+Z184)))))) -> 0 | F184: 0 | H184: 0 | J184: =IF(B184-H184=0,0,J182) -> 0 | N184: =IF('Simulador Valora'!$V$66=1,0,L184*'Simulador Valora'!$O$69*'Simulador Valora'!$W$65) -> 0 | P184: 0 | R184: 0 | T184: =IF(B184<=0,0,B184*IF('Simulador Valora'!$AC$81=1,0,'Simulador Valora'!$Y$75)) -> 0 | V184: =IF(B184<=0,0,IF('Simulador Valora'!$X$41=1,'Simulador Valora'!$O$55,IF('Simulador Valora'!$X$41=2,'Simulador Valora'!$K$55,'Simulador Valora'!$E$55))) -> 0 | X184: 0 | AB184: 0 | AC184: 0.12 | AD184: 0 | AE184: 0 | AF184: 0 | AG184: 0 | AH184: 0 | AI184: =IF(AD184<=0,0,AD184*IF('Simulador Valora'!$AC$81=1,0,'Simulador Valora'!$Y$75))+IF(AD184<=0,0,IF('Simulador Valora'!$X$41=1,'Simulador Valora'!$O$55,IF('Simulador Valora'!$X$41=2,'Simulador Valora'!$K$55,'Simulador Valora'!$E$55))) -> 0 | AK184: 0 | AL184: 0 | AN184: 14 | AO184: 0 | AP184: 0 | AQ184: 0 | AR184: 0 | AS184: 73 | AU184: 0 | AV184: 168
A185: 169 | B185: 0 | D185: =IF(B185+F185-D184<=0,B185+F185,IF(A185=$B$9,$F$9,IF(A185=$B$10,$F$10,IF(AND('Simulador Valora'!$AH$45=2,L184=0),D184*(1+Z185),IF($AM$3=2,B185*AL185,D184*(1+Z185)))))) -> 0 | F185: 0 | H185: 0 | N185: =IF('Simulador Valora'!$V$66=1,0,L185*'Simulador Valora'!$O$69*'Simulador Valora'!$W$65) -> 0 | P185: 0 | R185: 0 | T185: =IF(B185<=0,0,B185*IF('Simulador Valora'!$AC$81=1,0,'Simulador Valora'!$Y$75)) -> 0 | V185: =IF(B185<=0,0,IF('Simulador Valora'!$X$41=1,'Simulador Valora'!$O$55,IF('Simulador Valora'!$X$41=2,'Simulador Valora'!$K$55,'Simulador Valora'!$E$55))) -> 0 | X185: 0 | Z185: =IF(B185<=0,0,'Simulador Valora'!$AI$54) -> 0 | AB185: 0 | AC185: =IF(AC184=$AC$6,AC184,IF(AC184=$AC$5,AC184,AC184-0.25%)) -> 0.12 | AD185: 0 | AE185: 0 | AF185: 0 | AG185: 0 | AH185: 0 | AI185: =IF(AD185<=0,0,AD185*IF('Simulador Valora'!$AC$81=1,0,'Simulador Valora'!$Y$75))+IF(AD185<=0,0,IF('Simulador Valora'!$X$41=1,'Simulador Valora'!$O$55,IF('Simulador Valora'!$X$41=2,'Simulador Valora'!$K$55,'Simulador Valora'!$E$55))) -> 0 | AJ185: =IF(AC185<=0,0,$AJ$29) -> 0 | AK185: 0 | AL185: 0 | AN185: 14 | AO185: 1 | AP185: 0 | AQ185: 0 | AR185: 0 | AS185: 72 | AU185: 0 | AV185: 169
A186: 170 | B186: 0 | D186: =IF(B186+F186-D185<=0,B186+F186,IF(A186=$B$9,$F$9,IF(A186=$B$10,$F$10,IF(AND('Simulador Valora'!$AH$45=2,L185=0),D185*(1+Z186),IF($AM$3=2,B186*AL186,D185*(1+Z186)))))) -> 0 | F186: 0 | H186: 0 | J186: =IF(B186-H186=0,0,J184*(1+(3%))) -> 0 | N186: =IF('Simulador Valora'!$V$66=1,0,L186*'Simulador Valora'!$O$69*'Simulador Valora'!$W$65) -> 0 | P186: 0 | R186: 0 | T186: =IF(B186<=0,0,B186*IF('Simulador Valora'!$AC$81=1,0,'Simulador Valora'!$Y$75)) -> 0 | V186: =IF(B186<=0,0,IF('Simulador Valora'!$X$41=1,'Simulador Valora'!$O$55,IF('Simulador Valora'!$X$41=2,'Simulador Valora'!$K$55,'Simulador Valora'!$E$55))) -> 0 | X186: 0 | AB186: 0 | AC186: =AC185 -> 0.12 | AD186: 0 | AE186: 0 | AF186: 0 | AG186: 0 | AH186: 0 | AI186: =IF(AD186<=0,0,AD186*IF('Simulador Valora'!$AC$81=1,0,'Simulador Valora'!$Y$75))+IF(AD186<=0,0,IF('Simulador Valora'!$X$41=1,'Simulador Valora'!$O$55,IF('Simulador Valora'!$X$41=2,'Simulador Valora'!$K$55,'Simulador Valora'!$E$55))) -> 0 | AK186: 0 | AL186: 0 | AN186: 14 | AO186: 2 | AP186: 0 | AQ186: 0 | AR186: 0 | AS186: 71 | AU186: 0 | AV186: 170
A187: 171 | B187: 0 | D187: =IF(B187+F187-D186<=0,B187+F187,IF(A187=$B$9,$F$9,IF(A187=$B$10,$F$10,IF(AND('Simulador Valora'!$AH$45=2,L186=0),D186*(1+Z187),IF($AM$3=2,B187*AL187,D186*(1+Z187)))))) -> 0 | F187: 0 | H187: 0 | N187: =IF('Simulador Valora'!$V$66=1,0,L187*'Simulador Valora'!$O$69*'Simulador Valora'!$W$65) -> 0 | P187: 0 | R187: 0 | T187: =IF(B187<=0,0,B187*IF('Simulador Valora'!$AC$81=1,0,'Simulador Valora'!$Y$75)) -> 0 | V187: =IF(B187<=0,0,IF('Simulador Valora'!$X$41=1,'Simulador Valora'!$O$55,IF('Simulador Valora'!$X$41=2,'Simulador Valora'!$K$55,'Simulador Valora'!$E$55))) -> 0 | X187: 0 | AB187: 0 | AC187: =AC186 -> 0.12 | AD187: 0 | AE187: 0 | AF187: 0 | AG187: 0 | AH187: 0 | AI187: =IF(AD187<=0,0,AD187*IF('Simulador Valora'!$AC$81=1,0,'Simulador Valora'!$Y$75))+IF(AD187<=0,0,IF('Simulador Valora'!$X$41=1,'Simulador Valora'!$O$55,IF('Simulador Valora'!$X$41=2,'Simulador Valora'!$K$55,'Simulador Valora'!$E$55))) -> 0 | AK187: 0 | AL187: 0 | AN187: 14 | AO187: 3 | AP187: 0 | AQ187: 0 | AR187: 0 | AS187: 70 | AU187: 0 | AV187: 171
A188: 172 | B188: 0 | D188: =IF(B188+F188-D187<=0,B188+F188,IF(A188=$B$9,$F$9,IF(A188=$B$10,$F$10,IF(AND('Simulador Valora'!$AH$45=2,L187=0),D187*(1+Z188),IF($AM$3=2,B188*AL188,D187*(1+Z188)))))) -> 0 | F188: 0 | H188: 0 | J188: =IF(B188-H188=0,0,J186) -> 0 | N188: =IF('Simulador Valora'!$V$66=1,0,L188*'Simulador Valora'!$O$69*'Simulador Valora'!$W$65) -> 0 | P188: 0 | R188: 0 | T188: =IF(B188<=0,0,B188*IF('Simulador Valora'!$AC$81=1,0,'Simulador Valora'!$Y$75)) -> 0 | V188: =IF(B188<=0,0,IF('Simulador Valora'!$X$41=1,'Simulador Valora'!$O$55,IF('Simulador Valora'!$X$41=2,'Simulador Valora'!$K$55,'Simulador Valora'!$E$55))) -> 0 | X188: 0 | AB188: 0 | AC188: 0.12 | AD188: 0 | AE188: 0 | AF188: 0 | AG188: 0 | AH188: 0 | AI188: =IF(AD188<=0,0,AD188*IF('Simulador Valora'!$AC$81=1,0,'Simulador Valora'!$Y$75))+IF(AD188<=0,0,IF('Simulador Valora'!$X$41=1,'Simulador Valora'!$O$55,IF('Simulador Valora'!$X$41=2,'Simulador Valora'!$K$55,'Simulador Valora'!$E$55))) -> 0 | AK188: 0 | AL188: 0 | AN188: 14 | AO188: 4 | AP188: 0 | AQ188: 0 | AR188: 0 | AS188: 69 | AU188: 0 | AV188: 172
A189: 173 | B189: 0 | D189: =IF(B189+F189-D188<=0,B189+F189,IF(A189=$B$9,$F$9,IF(A189=$B$10,$F$10,IF(AND('Simulador Valora'!$AH$45=2,L188=0),D188*(1+Z189),IF($AM$3=2,B189*AL189,D188*(1+Z189)))))) -> 0 | F189: 0 | H189: 0 | N189: =IF('Simulador Valora'!$V$66=1,0,L189*'Simulador Valora'!$O$69*'Simulador Valora'!$W$65) -> 0 | P189: 0 | R189: 0 | T189: =IF(B189<=0,0,B189*IF('Simulador Valora'!$AC$81=1,0,'Simulador Valora'!$Y$75)) -> 0 | V189: =IF(B189<=0,0,IF('Simulador Valora'!$X$41=1,'Simulador Valora'!$O$55,IF('Simulador Valora'!$X$41=2,'Simulador Valora'!$K$55,'Simulador Valora'!$E$55))) -> 0 | X189: 0 | AB189: 0 | AC189: 0.12 | AD189: 0 | AE189: 0 | AF189: 0 | AG189: 0 | AH189: 0 | AI189: =IF(AD189<=0,0,AD189*IF('Simulador Valora'!$AC$81=1,0,'Simulador Valora'!$Y$75))+IF(AD189<=0,0,IF('Simulador Valora'!$X$41=1,'Simulador Valora'!$O$55,IF('Simulador Valora'!$X$41=2,'Simulador Valora'!$K$55,'Simulador Valora'!$E$55))) -> 0 | AK189: 0 | AL189: 0 | AN189: 14 | AO189: 5 | AP189: 0 | AQ189: 0 | AR189: 0 | AS189: 68 | AU189: 0 | AV189: 173
A190: 174 | B190: 0 | D190: =IF(B190+F190-D189<=0,B190+F190,IF(A190=$B$9,$F$9,IF(A190=$B$10,$F$10,IF(AND('Simulador Valora'!$AH$45=2,L189=0),D189*(1+Z190),IF($AM$3=2,B190*AL190,D189*(1+Z190)))))) -> 0 | F190: 0 | H190: 0 | J190: =IF(B190-H190=0,0,J188) -> 0 | N190: =IF('Simulador Valora'!$V$66=1,0,L190*'Simulador Valora'!$O$69*'Simulador Valora'!$W$65) -> 0 | P190: 0 | R190: 0 | T190: =IF(B190<=0,0,B190*IF('Simulador Valora'!$AC$81=1,0,'Simulador Valora'!$Y$75)) -> 0 | V190: =IF(B190<=0,0,IF('Simulador Valora'!$X$41=1,'Simulador Valora'!$O$55,IF('Simulador Valora'!$X$41=2,'Simulador Valora'!$K$55,'Simulador Valora'!$E$55))) -> 0 | X190: 0 | AB190: 0 | AC190: 0.12 | AD190: 0 | AE190: 0 | AF190: 0 | AG190: 0 | AH190: 0 | AI190: =IF(AD190<=0,0,AD190*IF('Simulador Valora'!$AC$81=1,0,'Simulador Valora'!$Y$75))+IF(AD190<=0,0,IF('Simulador Valora'!$X$41=1,'Simulador Valora'!$O$55,IF('Simulador Valora'!$X$41=2,'Simulador Valora'!$K$55,'Simulador Valora'!$E$55))) -> 0 | AK190: 0 | AL190: 0 | AN190: 14 | AO190: 6 | AP190: 0 | AQ190: 0 | AR190: 0 | AS190: 67 | AU190: 0 | AV190: 174
A191: 175 | B191: 0 | D191: =IF(B191+F191-D190<=0,B191+F191,IF(A191=$B$9,$F$9,IF(A191=$B$10,$F$10,IF(AND('Simulador Valora'!$AH$45=2,L190=0),D190*(1+Z191),IF($AM$3=2,B191*AL191,D190*(1+Z191)))))) -> 0 | F191: 0 | H191: 0 | N191: =IF('Simulador Valora'!$V$66=1,0,L191*'Simulador Valora'!$O$69*'Simulador Valora'!$W$65) -> 0 | P191: 0 | R191: 0 | T191: =IF(B191<=0,0,B191*IF('Simulador Valora'!$AC$81=1,0,'Simulador Valora'!$Y$75)) -> 0 | V191: =IF(B191<=0,0,IF('Simulador Valora'!$X$41=1,'Simulador Valora'!$O$55,IF('Simulador Valora'!$X$41=2,'Simulador Valora'!$K$55,'Simulador Valora'!$E$55))) -> 0 | X191: 0 | AB191: 0 | AC191: 0.12 | AD191: 0 | AE191: 0 | AF191: 0 | AG191: 0 | AH191: 0 | AI191: =IF(AD191<=0,0,AD191*IF('Simulador Valora'!$AC$81=1,0,'Simulador Valora'!$Y$75))+IF(AD191<=0,0,IF('Simulador Valora'!$X$41=1,'Simulador Valora'!$O$55,IF('Simulador Valora'!$X$41=2,'Simulador Valora'!$K$55,'Simulador Valora'!$E$55))) -> 0 | AK191: 0 | AL191: 0 | AN191: 14 | AO191: 7 | AP191: 0 | AQ191: 0 | AR191: 0 | AS191: 66 | AU191: 0 | AV191: 175
A192: 176 | B192: 0 | D192: =IF(B192+F192-D191<=0,B192+F192,IF(A192=$B$9,$F$9,IF(A192=$B$10,$F$10,IF(AND('Simulador Valora'!$AH$45=2,L191=0),D191*(1+Z192),IF($AM$3=2,B192*AL192,D191*(1+Z192)))))) -> 0 | F192: 0 | H192: 0 | J192: =IF(B192-H192=0,0,J190) -> 0 | N192: =IF('Simulador Valora'!$V$66=1,0,L192*'Simulador Valora'!$O$69*'Simulador Valora'!$W$65) -> 0 | P192: 0 | R192: 0 | T192: =IF(B192<=0,0,B192*IF('Simulador Valora'!$AC$81=1,0,'Simulador Valora'!$Y$75)) -> 0 | V192: =IF(B192<=0,0,IF('Simulador Valora'!$X$41=1,'Simulador Valora'!$O$55,IF('Simulador Valora'!$X$41=2,'Simulador Valora'!$K$55,'Simulador Valora'!$E$55))) -> 0 | X192: 0 | AB192: 0 | AC192: 0.12 | AD192: 0 | AE192: 0 | AF192: 0 | AG192: 0 | AH192: 0 | AI192: =IF(AD192<=0,0,AD192*IF('Simulador Valora'!$AC$81=1,0,'Simulador Valora'!$Y$75))+IF(AD192<=0,0,IF('Simulador Valora'!$X$41=1,'Simulador Valora'!$O$55,IF('Simulador Valora'!$X$41=2,'Simulador Valora'!$K$55,'Simulador Valora'!$E$55))) -> 0 | AK192: 0 | AL192: 0 | AN192: 14 | AO192: 8 | AP192: 0 | AQ192: 0 | AR192: 0 | AS192: 65 | AU192: 0 | AV192: 176
A193: 177 | B193: 0 | D193: =IF(B193+F193-D192<=0,B193+F193,IF(A193=$B$9,$F$9,IF(A193=$B$10,$F$10,IF(AND('Simulador Valora'!$AH$45=2,L192=0),D192*(1+Z193),IF($AM$3=2,B193*AL193,D192*(1+Z193)))))) -> 0 | F193: 0 | H193: 0 | N193: =IF('Simulador Valora'!$V$66=1,0,L193*'Simulador Valora'!$O$69*'Simulador Valora'!$W$65) -> 0 | P193: 0 | R193: 0 | T193: =IF(B193<=0,0,B193*IF('Simulador Valora'!$AC$81=1,0,'Simulador Valora'!$Y$75)) -> 0 | V193: =IF(B193<=0,0,IF('Simulador Valora'!$X$41=1,'Simulador Valora'!$O$55,IF('Simulador Valora'!$X$41=2,'Simulador Valora'!$K$55,'Simulador Valora'!$E$55))) -> 0 | X193: 0 | AB193: 0 | AC193: 0.12 | AD193: 0 | AE193: 0 | AF193: 0 | AG193: 0 | AH193: 0 | AI193: =IF(AD193<=0,0,AD193*IF('Simulador Valora'!$AC$81=1,0,'Simulador Valora'!$Y$75))+IF(AD193<=0,0,IF('Simulador Valora'!$X$41=1,'Simulador Valora'!$O$55,IF('Simulador Valora'!$X$41=2,'Simulador Valora'!$K$55,'Simulador Valora'!$E$55))) -> 0 | AK193: 0 | AL193: 0 | AN193: 14 | AO193: 9 | AP193: 0 | AQ193: 0 | AR193: 0 | AS193: 64 | AU193: 0 | AV193: 177
A194: 178 | B194: 0 | D194: =IF(B194+F194-D193<=0,B194+F194,IF(A194=$B$9,$F$9,IF(A194=$B$10,$F$10,IF(AND('Simulador Valora'!$AH$45=2,L193=0),D193*(1+Z194),IF($AM$3=2,B194*AL194,D193*(1+Z194)))))) -> 0 | F194: 0 | H194: 0 | J194: =IF(B194-H194=0,0,J192) -> 0 | N194: =IF('Simulador Valora'!$V$66=1,0,L194*'Simulador Valora'!$O$69*'Simulador Valora'!$W$65) -> 0 | P194: 0 | R194: 0 | T194: =IF(B194<=0,0,B194*IF('Simulador Valora'!$AC$81=1,0,'Simulador Valora'!$Y$75)) -> 0 | V194: =IF(B194<=0,0,IF('Simulador Valora'!$X$41=1,'Simulador Valora'!$O$55,IF('Simulador Valora'!$X$41=2,'Simulador Valora'!$K$55,'Simulador Valora'!$E$55))) -> 0 | X194: 0 | AB194: 0 | AC194: 0.12 | AD194: 0 | AE194: 0 | AF194: 0 | AG194: 0 | AH194: 0 | AI194: =IF(AD194<=0,0,AD194*IF('Simulador Valora'!$AC$81=1,0,'Simulador Valora'!$Y$75))+IF(AD194<=0,0,IF('Simulador Valora'!$X$41=1,'Simulador Valora'!$O$55,IF('Simulador Valora'!$X$41=2,'Simulador Valora'!$K$55,'Simulador Valora'!$E$55))) -> 0 | AK194: 0 | AL194: 0 | AN194: 14 | AO194: 10 | AP194: 0 | AQ194: 0 | AR194: 0 | AS194: 63 | AU194: 0 | AV194: 178
A195: 179 | B195: 0 | D195: =IF(B195+F195-D194<=0,B195+F195,IF(A195=$B$9,$F$9,IF(A195=$B$10,$F$10,IF(AND('Simulador Valora'!$AH$45=2,L194=0),D194*(1+Z195),IF($AM$3=2,B195*AL195,D194*(1+Z195)))))) -> 0 | F195: 0 | H195: 0 | N195: =IF('Simulador Valora'!$V$66=1,0,L195*'Simulador Valora'!$O$69*'Simulador Valora'!$W$65) -> 0 | P195: 0 | R195: 0 | T195: =IF(B195<=0,0,B195*IF('Simulador Valora'!$AC$81=1,0,'Simulador Valora'!$Y$75)) -> 0 | V195: =IF(B195<=0,0,IF('Simulador Valora'!$X$41=1,'Simulador Valora'!$O$55,IF('Simulador Valora'!$X$41=2,'Simulador Valora'!$K$55,'Simulador Valora'!$E$55))) -> 0 | X195: 0 | AB195: 0 | AC195: 0.12 | AD195: 0 | AE195: 0 | AF195: 0 | AG195: 0 | AH195: 0 | AI195: =IF(AD195<=0,0,AD195*IF('Simulador Valora'!$AC$81=1,0,'Simulador Valora'!$Y$75))+IF(AD195<=0,0,IF('Simulador Valora'!$X$41=1,'Simulador Valora'!$O$55,IF('Simulador Valora'!$X$41=2,'Simulador Valora'!$K$55,'Simulador Valora'!$E$55))) -> 0 | AK195: 0 | AL195: 0 | AN195: 14 | AO195: 11 | AP195: 0 | AQ195: 0 | AR195: 0 | AS195: 62 | AU195: 0 | AV195: 179
A196: 180 | B196: 0 | D196: =IF(B196+F196-D195<=0,B196+F196,IF(A196=$B$9,$F$9,IF(A196=$B$10,$F$10,IF(AND('Simulador Valora'!$AH$45=2,L195=0),D195*(1+Z196),IF($AM$3=2,B196*AL196,D195*(1+Z196)))))) -> 0 | F196: 0 | H196: 0 | J196: =IF(B196-H196=0,0,J194) -> 0 | N196: =IF('Simulador Valora'!$V$66=1,0,L196*'Simulador Valora'!$O$69*'Simulador Valora'!$W$65) -> 0 | P196: 0 | R196: 0 | T196: =IF(B196<=0,0,B196*IF('Simulador Valora'!$AC$81=1,0,'Simulador Valora'!$Y$75)) -> 0 | V196: =IF(B196<=0,0,IF('Simulador Valora'!$X$41=1,'Simulador Valora'!$O$55,IF('Simulador Valora'!$X$41=2,'Simulador Valora'!$K$55,'Simulador Valora'!$E$55))) -> 0 | X196: 0 | AB196: 0 | AC196: 0.12 | AD196: 0 | AE196: 0 | AF196: 0 | AG196: 0 | AH196: 0 | AI196: =IF(AD196<=0,0,AD196*IF('Simulador Valora'!$AC$81=1,0,'Simulador Valora'!$Y$75))+IF(AD196<=0,0,IF('Simulador Valora'!$X$41=1,'Simulador Valora'!$O$55,IF('Simulador Valora'!$X$41=2,'Simulador Valora'!$K$55,'Simulador Valora'!$E$55))) -> 0 | AK196: 0 | AL196: 0 | AN196: 15 | AO196: 0 | AP196: 0 | AQ196: 0 | AR196: 0 | AS196: 61 | AU196: 0 | AV196: 180
A197: 181 | B197: 0 | D197: =IF(B197+F197-D196<=0,B197+F197,IF(A197=$B$9,$F$9,IF(A197=$B$10,$F$10,IF(AND('Simulador Valora'!$AH$45=2,L196=0),D196*(1+Z197),IF($AM$3=2,B197*AL197,D196*(1+Z197)))))) -> 0 | F197: 0 | H197: 0 | N197: =IF('Simulador Valora'!$V$66=1,0,L197*'Simulador Valora'!$O$69*'Simulador Valora'!$W$65) -> 0 | P197: 0 | R197: 0 | T197: =IF(B197<=0,0,B197*IF('Simulador Valora'!$AC$81=1,0,'Simulador Valora'!$Y$75)) -> 0 | V197: =IF(B197<=0,0,IF('Simulador Valora'!$X$41=1,'Simulador Valora'!$O$55,IF('Simulador Valora'!$X$41=2,'Simulador Valora'!$K$55,'Simulador Valora'!$E$55))) -> 0 | X197: 0 | Z197: =IF(B197<=0,0,'Simulador Valora'!$AI$54) -> 0 | AB197: 0 | AC197: =IF(AC196=$AC$6,AC196,IF(AC196=$AC$5,AC196,AC196-0.25%)) -> 0.12 | AD197: 0 | AE197: 0 | AF197: 0 | AG197: 0 | AH197: 0 | AI197: =IF(AD197<=0,0,AD197*IF('Simulador Valora'!$AC$81=1,0,'Simulador Valora'!$Y$75))+IF(AD197<=0,0,IF('Simulador Valora'!$X$41=1,'Simulador Valora'!$O$55,IF('Simulador Valora'!$X$41=2,'Simulador Valora'!$K$55,'Simulador Valora'!$E$55))) -> 0 | AJ197: =IF(AC197<=0,0,$AJ$29) -> 0 | AK197: 0 | AL197: 0 | AN197: 15 | AO197: 1 | AP197: 0 | AQ197: 0 | AR197: 0 | AS197: 60 | AU197: 0 | AV197: 181
A198: 182 | B198: 0 | D198: =IF(B198+F198-D197<=0,B198+F198,IF(A198=$B$9,$F$9,IF(A198=$B$10,$F$10,IF(AND('Simulador Valora'!$AH$45=2,L197=0),D197*(1+Z198),IF($AM$3=2,B198*AL198,D197*(1+Z198)))))) -> 0 | F198: 0 | H198: 0 | J198: =IF(B198-H198=0,0,J196*(1+(3%))) -> 0 | N198: =IF('Simulador Valora'!$V$66=1,0,L198*'Simulador Valora'!$O$69*'Simulador Valora'!$W$65) -> 0 | P198: 0 | R198: 0 | T198: =IF(B198<=0,0,B198*IF('Simulador Valora'!$AC$81=1,0,'Simulador Valora'!$Y$75)) -> 0 | V198: =IF(B198<=0,0,IF('Simulador Valora'!$X$41=1,'Simulador Valora'!$O$55,IF('Simulador Valora'!$X$41=2,'Simulador Valora'!$K$55,'Simulador Valora'!$E$55))) -> 0 | X198: 0 | AB198: 0 | AC198: =AC197 -> 0.12 | AD198: 0 | AE198: 0 | AF198: 0 | AG198: 0 | AH198: 0 | AI198: =IF(AD198<=0,0,AD198*IF('Simulador Valora'!$AC$81=1,0,'Simulador Valora'!$Y$75))+IF(AD198<=0,0,IF('Simulador Valora'!$X$41=1,'Simulador Valora'!$O$55,IF('Simulador Valora'!$X$41=2,'Simulador Valora'!$K$55,'Simulador Valora'!$E$55))) -> 0 | AK198: 0 | AL198: 0 | AN198: 15 | AO198: 2 | AP198: 0 | AQ198: 0 | AR198: 0 | AS198: 59 | AU198: 0 | AV198: 182
A199: 183 | B199: 0 | D199: =IF(B199+F199-D198<=0,B199+F199,IF(A199=$B$9,$F$9,IF(A199=$B$10,$F$10,IF(AND('Simulador Valora'!$AH$45=2,L198=0),D198*(1+Z199),IF($AM$3=2,B199*AL199,D198*(1+Z199)))))) -> 0 | F199: 0 | H199: 0 | N199: =IF('Simulador Valora'!$V$66=1,0,L199*'Simulador Valora'!$O$69*'Simulador Valora'!$W$65) -> 0 | P199: 0 | R199: 0 | T199: =IF(B199<=0,0,B199*IF('Simulador Valora'!$AC$81=1,0,'Simulador Valora'!$Y$75)) -> 0 | V199: =IF(B199<=0,0,IF('Simulador Valora'!$X$41=1,'Simulador Valora'!$O$55,IF('Simulador Valora'!$X$41=2,'Simulador Valora'!$K$55,'Simulador Valora'!$E$55))) -> 0 | X199: 0 | AB199: 0 | AC199: =AC198 -> 0.12 | AD199: 0 | AE199: 0 | AF199: 0 | AG199: 0 | AH199: 0 | AI199: =IF(AD199<=0,0,AD199*IF('Simulador Valora'!$AC$81=1,0,'Simulador Valora'!$Y$75))+IF(AD199<=0,0,IF('Simulador Valora'!$X$41=1,'Simulador Valora'!$O$55,IF('Simulador Valora'!$X$41=2,'Simulador Valora'!$K$55,'Simulador Valora'!$E$55))) -> 0 | AK199: 0 | AL199: 0 | AN199: 15 | AO199: 3 | AP199: 0 | AQ199: 0 | AR199: 0 | AS199: 58 | AU199: 0 | AV199: 183
A200: 184 | B200: 0 | D200: =IF(B200+F200-D199<=0,B200+F200,IF(A200=$B$9,$F$9,IF(A200=$B$10,$F$10,IF(AND('Simulador Valora'!$AH$45=2,L199=0),D199*(1+Z200),IF($AM$3=2,B200*AL200,D199*(1+Z200)))))) -> 0 | F200: 0 | H200: 0 | J200: =IF(B200-H200=0,0,J198) -> 0 | N200: =IF('Simulador Valora'!$V$66=1,0,L200*'Simulador Valora'!$O$69*'Simulador Valora'!$W$65) -> 0 | P200: 0 | R200: 0 | T200: =IF(B200<=0,0,B200*IF('Simulador Valora'!$AC$81=1,0,'Simulador Valora'!$Y$75)) -> 0 | V200: =IF(B200<=0,0,IF('Simulador Valora'!$X$41=1,'Simulador Valora'!$O$55,IF('Simulador Valora'!$X$41=2,'Simulador Valora'!$K$55,'Simulador Valora'!$E$55))) -> 0 | X200: 0 | AB200: 0 | AC200: 0.12 | AD200: 0 | AE200: 0 | AF200: 0 | AG200: 0 | AH200: 0 | AI200: =IF(AD200<=0,0,AD200*IF('Simulador Valora'!$AC$81=1,0,'Simulador Valora'!$Y$75))+IF(AD200<=0,0,IF('Simulador Valora'!$X$41=1,'Simulador Valora'!$O$55,IF('Simulador Valora'!$X$41=2,'Simulador Valora'!$K$55,'Simulador Valora'!$E$55))) -> 0 | AK200: 0 | AL200: 0 | AN200: 15 | AO200: 4 | AP200: 0 | AQ200: 0 | AR200: 0 | AS200: 57 | AU200: 0 | AV200: 184
A201: 185 | B201: 0 | D201: =IF(B201+F201-D200<=0,B201+F201,IF(A201=$B$9,$F$9,IF(A201=$B$10,$F$10,IF(AND('Simulador Valora'!$AH$45=2,L200=0),D200*(1+Z201),IF($AM$3=2,B201*AL201,D200*(1+Z201)))))) -> 0 | F201: 0 | H201: 0 | N201: =IF('Simulador Valora'!$V$66=1,0,L201*'Simulador Valora'!$O$69*'Simulador Valora'!$W$65) -> 0 | P201: 0 | R201: 0 | T201: =IF(B201<=0,0,B201*IF('Simulador Valora'!$AC$81=1,0,'Simulador Valora'!$Y$75)) -> 0 | V201: =IF(B201<=0,0,IF('Simulador Valora'!$X$41=1,'Simulador Valora'!$O$55,IF('Simulador Valora'!$X$41=2,'Simulador Valora'!$K$55,'Simulador Valora'!$E$55))) -> 0 | X201: 0 | AB201: 0 | AC201: 0.12 | AD201: 0 | AE201: 0 | AF201: 0 | AG201: 0 | AH201: 0 | AI201: =IF(AD201<=0,0,AD201*IF('Simulador Valora'!$AC$81=1,0,'Simulador Valora'!$Y$75))+IF(AD201<=0,0,IF('Simulador Valora'!$X$41=1,'Simulador Valora'!$O$55,IF('Simulador Valora'!$X$41=2,'Simulador Valora'!$K$55,'Simulador Valora'!$E$55))) -> 0 | AK201: 0 | AL201: 0 | AN201: 15 | AO201: 5 | AP201: 0 | AQ201: 0 | AR201: 0 | AS201: 56 | AU201: 0 | AV201: 185
... 58 more rows

Sheet Exclusivo Bco Carta Bienvenida (hidden)
A1: Liga para obtener certificado vida | D1: Certificado de seguro de vida
A2: Liga para obtener certificado daños | D2: Certificado de seguro de daños
A3: Liga para obtener certificado obra civil | D3: Certificado de seguro obra civil
A4: Datos de entrada
A5: Fecha de Operación (cuando se depositó el crédito): | F5: (DD/MM/AAAA) | N5: Crédito | O5: ='Tabla Valora'!B17 -> 0 | Q5: dia | R5: =DAY(E5) -> 0
A6: Numero de crédito: | N6: Tasa | O6: ='Tabla Valora'!P17 -> 0 | Q6: Mes | R6: =MONTH(E5) -> 1
N7: Fecha de vencimiento | O7: =VALUE(CONCATENATE("17","-",R7,"-",R9)) -> 1900-01-17 | Q7: Mes siguiente | R7: =IF(R5<17,R6,IF(R6=12,1,R6+1)) -> 1
N8: Días transcurridos | O8: =O7-E5 -> 17 | Q8: Año | R8: =YEAR(E5) -> 1900
N9: Intereses | O9: =ROUND($O$5*O6/360*$O$8,2) -> 0 | Q9: Año siguiente | R9: =IF(AND(R6=12,R5>=17),R8+1,R8) -> 1900
A10: Para que los calculos de la carta sean correctos es necesario que en el simulador se simule el crédito autorizado y el esquema que el cliente escogió | N10: Seguro hipotecario | O10: =ROUND($O$5*E7/360*$O$8,2) -> 0
N11: Total | O11: =IF(R5=17,0,O9+O10) -> 0
G18: =E5 -> 00:00:00
A21: Estimado (s) Clientes (s):
A23: ScotiaBank lo(s) felicita por la adquisición de su nueva casa y se complace en ser parte importante de la
A24: consolidación de su patrimonio familiar, a través de su crédito hipotecario Scotiabank.
A26: A continuación le proporcionamos información importante relativa a su Financiamiento:
A28: =CONCATENATE("Su número de crédito es el No ",E6," que le servirá como referencia para cualquier aclaración") -> Su número de crédito es el No que le servirá como referencia para cualquier aclaración
A29: futura que tenga con su crédito, en caso de querer realizar anticipos a capital, deberá abonar a este
A30: número a través de nuestra red de sucursales con cheque a favor de Scotiabank Inverlat S.A.
A32: La fecha de pago de sus mensualidades serán los días 17 de cada mes. Este pago lo realizará mediante
A33: cargo automático a su cuenta de cheques. Si el día de pago fuera inhábil, el cargo automático a su
A34: cuenta de cheques se realizará el día hábil inmediato siguiente.
A36: Le recomendamos depositar el importe de su pago mensual antes de la fecha de pago, especialmente
A37: si su depósito es con cheque de otro banco.
A39: Es importante mencionar que el cálculo del seguro de daños se realiza con base en el valor
A40: destructible del inmueble, por lo que es posible que difiera de las tablas de amortización que le hemos
A41: entregado, y además tenga variaciones en el tiempo.
A43: =IF(R5=17,"Su primer pago deberá ser por la mensualidad completa que se establece en su contrato","El importe de su primer pago será por la cantidad de $"&TEXT(O11,"#,##0.00")&" que corresponden a los intereses") -> El importe de su primer pago será por la cantidad de $0.00 que corresponden a los intereses
A44: =IF(R5=17,"de crédito y que le será informada mediante su estado de cuenta.","que se devengarán entre hoy y el próximo día 17.") -> que se devengarán entre hoy y el próximo día 17.
A45: =IF(AND(E7>0,R5<>17),"Esta cantidad ya tiene incluida la parte proporcional de la prima de seguro de crédito a la vivienda","") -> 
A47: A partir de este momento, usted cuenta con un seguro de vida e invalidez total y permanente, un
A48: seguro de obra civil, durante la etapa de construcción del inmueble y un seguro de daños sobre la
A49: propiedad ya construida, anexo a la presente, las cartas de cobertura correspondientes.
A51: Si por algún motivo no recibiera su estado de cuenta con oportunidad o tuviera dudas relacionadas
A52: con su crédito, le sugerimos llamar a nuestro Centro de Atención Telefónica a los teléfonos
A53: 5728-1900 para el D.F. y para el interior de la República, sin costo para usted, al 01-800-70459-00;
A54: donde con gusto le atenderán.
A56: Con su financiamiento Scotiabank, el hogar de sus sueños es hoy una realidad.
A58: Atentamente
A62: Ejecutivo Especializado
A63: Crédito Hipotecario.

Sheet Oferta Vinculante (hidden)
A7: Scotiabank Inverlat, S.A.,
A8: Institución de Banca Múltiple,
A9: Grupo Financiero Scotiabank Inverlat
B10: OFERTA VINCULANTE
A13: Lugar y Fecha:
A15: Nombre del Solicitante y Cónyuge, en su caso:
A17: Destino del crédito: | B17: Adquisición de vivienda en proceso de construcción
A20: Importe del Crédito Solicitado: | B20: ='Tabla Valora'!H9 -> 0
A22: Valor Estimado de la garantía*: | C22: Aforo (máximo 80%)*: | E22: =B20/B22 -> 
A24: Comisión por Apertura: | B24: ='Tabla Valora'!AK3 -> 0 | C24: Comisión por dictámen técnico: | E24: ='Tabla Valora'!AK5 -> 0
A26: Seguro de Vida: | B26: =B20*0.0005 -> 0 | C26: Seguro de Daños: | E26: =B22*0.0002623 -> 0
C28: Gastos Notariales y
A29: Costo de Avalúo*: | B29: ='Tabla Valora'!AK4 -> 0 | C29: de Escrituración (Aprox): | E29: =B22*7% -> 0
A31: *El valor real se conocerá hasta tener el avalúo correspondiente del inmueble
A33: Condiciones del Crédito:
A34: Tasa de interés ordinaria anual: | B34: ='Tabla Valora'!P17 -> 0 | C34: Fija inicial
A35: Tasa Moratoria anual: | B35: =B34*1.5 -> 0 | C35: Fija inicial
A36: Pago por cada mil pesos de préstamo: | B36: =#REF! ->  | C36: Inicial
A37: Plazo: | B37: =#REF! -> 
A38: Financiamiento Máximo (Aforo) | B38: 0.8
A39: Costo Anual Total (1): | B39: ='Tabla Valora'!P13 -> 0 | I39: 0.0005
A40: Forma de Amortización: | B40: Amortización mensual creciente
A41: Gastos Notariales y de Escrituración (Aproximados): | B41: 0.07 | C41: sobre valor del inmueble
A42: Forma de entrega del préstamo | B42: En parcialidades de acuerdo con los avances de obra que se fijen
A44: Comisiones del Crédito:
A46: Comisión por Apertura de Crédito (2) | B46: 2% sobre el importe de crédito autorizado.
A47: Comisión por Pago Anticipado de Crédito (2) | B47: 3% más impuesto al valor agregado (I.V.A.) sobre el importe a anticipar
A49: Comisiones Adicionales del Crédito:
A51: Por copia de documento o certificación del estado de cuenta (copia del estado de cuenta, certificación del saldo, integración, amortización o desglose). Costo por hoja. | B51: $25.00 (veinticinco pesos, moneda nacional) más el impuesto al valor agregado (I.V.A.)
A52: Por concepto de gastos de cobranza, por cada mensualidad no pagada | B52: $350.00 (trescientos cincuenta pesos, moneda nacional) más el impuesto al valor agragado (I.V.A.)
A53: Nota: Las comisiones adicionales al crédito se cobrarán en caso de que el cliente solicite el servicio o incurra en ellos.
A55: Costos del Crédito:
A57: Seguro de Vida | B57: 0.50 al millar sobre el saldo insoluto del crédito
A58: Seguro de Daños | B58: 0.2623 al millar sobre el valor de construcción
A59: Costo del Avalúo | B59: Depende del valor del inmueble (ver tabla de costos anexa)
A60: Dictamen Técnico | B60: 1% sobre el monto del crédito autorizado, con un costo máximo de $12,000 y mínimo de $4,500.
A64: (1)Costo Anual Total (CAT promedio sin IVA)): factor que anualiza la totalidad de los costos por el Crédito Garantizado (Hipotecario), incluyendo seguro de vida y daños,
A65: avalúo, comisiones e intereses, excluyendo las contribuciones federales y locales, así como los costos correspondientes a trámites y servicios prestados por terceros.
A66: Costo Anual Total de créditos denominados en moneda nacional a tasa fija para fines informativos y de comparación exclusivamente. Este CAT sólo es comprable con el
A67: CAT de otros créditos denominados en moneda nacional a tasa fija.
A69: (2) El cliente elige entre la comisión por apertura o la comisión por pagos anticipados, esta opción solo aplica para el esquema de Valora (I.V.A.: Impuesto al valor agregado)
A73: Condiciones y Especificaciones de la Oferta Vinculante.
A169: =#REF! ->  | D169: =B15 -> 0
A170: Nombre del Ejecutivo | D170: Firma del Solicitante
B176: Fecha de Recepción

Sheet Carat_Pre_VA
A2: Carátula de Crédito
D3: Nombre del Acreditado y/o Coacreditado:
D4: =IF('Simulador Valora'!C13="","",'Simulador Valora'!C13) -> 
D5: Número de Crédito:
A7: Nombre comercial del producto: | B7: ="PREVENTA VALORA"&" "&A18 -> PREVENTA VALORA 20 Años
A9: Tipo de Crédito: Crédito Hipotecario
A10: CAT | B10: TASA DE INTERES | C10: MONTO O LINEA DE | D10: MONTO TOTAL A PAGAR O
A11: (Costo Anual Total) | B11: ANUAL ORDINARIA | C11: CRÉDITO | D11: MINIMO A PAGAR
A12: ='Tabla Valora'!$P$13 -> 0 | B12: =IFERROR(IF('Simulador Valora'!$C$23=0,0,'Simulador Valora'!$AC$77),"") -> 0 | C12: ='Simulador Valora'!$AC$78 -> 0 | D12: =IFERROR(SUM('Tabla Valora'!$X$17:$X$256),0) -> 0
A13: Sin IVA | D13: Moneda en
A14: Para fines | D14: Pesos
A15: informativos y de | D15: Mexicanos
A16: comparación | B16: Tasa Fija
A17: PLAZO DEL CRÉDITO: | B17: Fecha Límite de pago: Si tu fecha de corte es el día 3, tu fecha de pago es el día 3 de cada mes. Si tu fecha de corte es el día 17, tu fecha de pago es el día 17 de cada mes.
A18: ='Simulador Valora'!$AC$76 -> 20 Años | B18: Fecha de corte: Si tu fecha de disposición es entre el dia 3 y 16, tu fecha de corte será el día 3 de cada mes. Si tu fecha de disposición es entre el día 17 y 2, tu fecha de corte será el día 17 de cada mes.
A19: COMISIONES RELEVANTES
A20: ="Apertura: "&TEXT('Tabla Valora'!$AK$3,"$###,###.00") -> Apertura: $.00 | C20: Cobranza: $500.00 más IVA por pago tardío
A21: ="Prepago: "&IF('Simulador Valora'!$V$66=1,"0% ","3% ")&"más IVA sobre el monto anticipado" -> Prepago: 0% más IVA sobre el monto anticipado | C21: Para otras comisiones consulte la cláusula décimo tercera
A22: ADVERTENCIAS
A24: Incumplir tus obligaciones te puede generar comisiones e intereses moratorios.
A25: Contratar créditos por arriba de tu capacidad de pago puede afectar tu historial crediticio.
A26: El avalista, obligado solidario o coacreditado responderá como obligado principal por el total del pago frente a la Institución Financiera.
A27: SEGUROS
A28: Seguros Obligatorios: | B28: Aseguradora: | C28: Cláusulas:
A30: Vida y Desempleo | B30: Cardif México Seguros de Vida, S.A. de C.V. | C30: Vigésima Cuarta
C31: Scotiabank Inverlat le ofrece al acreditado y/o coacreditado, la posibilidad de contratar a nombre de este (os) último(s) los seguros establecidos en la cláusula vigésima cuarta. Lo anterior sin perjuicio del derecho innegable que el cliente tiene de contratarlos a través de terceros.
A32: Daños y Responsabilidad Civil | B32: Cardif México Seguros Generales, S.A. de C.V.
A35: ESTADO DE CUENTA
A36: Envío a Domicilio ü Consulta vía Internet ___ Envío por Correo Electrónico ___
A37: Aclaraciones y reclamaciones:
A38: Unidad Especializada de Aclaraciones:
A39: Domicilio: Río Usumacinta S/N, esq. con Fernando Montes de Oca, Col. La Presita, Municipio de Cuautitlán Izcalli, Estado de México, C.P. 54763
A40: Teléfono: (55) 5123 0990
A41: Correo electrónico: une@scotiabank.com.mx
A42: Página de Internet: www.scotiabank.com.mx
A43: ="Registro de Contratos de Adhesión Núm: "&IF('Simulador Valora'!C23=0,"",IFERROR(VLOOKUP('Simulador Valora'!$AH$45&"-1-1",RECAS!$A$3:$D$6,4,0),"Revisa los datos ingresados")) -> Registro de Contratos de Adhesión Núm:
A44: Comisión Nacional para la Protección y Defensa de los Usuarios de Servicios Financieros (CONDUSEF):
A45: Teléfono: 800 999 8080 y (55) 5340 0999. Página de Internet. www.condusef.gob.mx

Sheet Simulador Pagos Oportunos
S1: . | AT1: .
C3: SIMULADOR CREDITO HIPOTECARIO
C4: FINANCIAMIENTO PARA ADQUISICION EN PREVENTA SCOTIABANK
C5: PAGOS OPORTUNOS
C7: =TODAY() -> 2025-04-10
C9: Lugar | G9: Sucursal | J9: Sucursal
G10: Princiapl
C12: Nombre del cliente / Conyuge en su caso. | J12: Ejecutivo / Broker que le atendió
C15: Telefonos del cliente | J15: Teléfonos del ejecutivo
C18: Paso 1 | J18: =IF(AM66=1,"Paso 3","") -> Paso 3 | O18: =IF(AM66=1,"Paso 6","Paso 5") -> Paso 6
C19: Escoja su base de cálculo | J19: =IF(AM66=1,"Escoja la opción de su interés:","") -> Escoja la opción de su interés: | O19: Con Apoyo Infonavit:
C20: Campaña
O21: =IF(AND(AD46=1,AH45=2),"Paso 7","") -> Paso 7
C22: Paso 2 | J22: =IF(AM66=1,"Comisión Manual por Apertura","") -> Comisión Manual por Apertura | O22: =IF(AND(AD46=1,AH45=2),"Teclee su sueldo bruto:","") -> Teclee su sueldo bruto:
J23: =IF(AM66=1,"Paso 4","Paso 3") -> Paso 4
E24: =IF(AD46=1,"Valor proyectado del inmueble (valor final)","Ingresos brutos mensuales") -> Valor proyectado del inmueble (valor final) | J24: El cliente opta por seguros externos:
E25: =IF(AD46=1,"Enganche","") -> Enganche
C26: =IFERROR(IF(AND($AD$46=1,$C$25/$C$24<$AF$45),"Se requiere un enganche mínimo del "&AF45*100&"%",""),"") ->  | J26: =IF(AM66=1,"Paso 5","Paso 4") -> Paso 5
C27: =IF(C24="","","Línea máxima a otorgar puede ser menor por perfil del cliente") ->  | J27: Actividad Económica
C28: =IF(AND(AD46=1,C24=0,C25=0),"",IF(AND(AD46=1,C25>=C24),"El enganche es más alto o igual que el valor del inmueble","")) -> 
C30: =IF(AND(AD46=2,C24<$AC$81,C24>0),"Los ingresos mínimos requeridos son $9,000","") -> 
E33: Valor Destructible del Inmueble (si conoce el dato) | W33: CAMPAÑA
V34: 1 | W34: Ninguna | AB34: maximo monto | AC34: =MAX(E49:P49) -> 0
W35: ="Premium / WM" -> Premium / WM | AB35: LTV | AC35: =O49/O47 ->  | AD35: =M49/M47 ->  | AE35: =K49/K47 ->  | AF35: =I49/I47 ->  | AH35: =MAX(AC35:AF35) -> 
C36: SIMULADOR CREDITO HIPOTECARIO | T36: =IF(OR(E47<500000,G47<500000,K47<500000,M47<500000,O47<500000),1,0) -> 1 | W36: Vinculación
C37: FINANCIAMIENTO PARA ADQUISICION EN PREVENTA SCOTIABANK
T38: =IF(OR(E49<250000,G49<250000,K49<250000,M49<250000,O49<250000),1,0) -> 1
I39: PAGOS OPORTUNOS | AC39: Calculo de credito construcción
AC40: =(C24+C25)*0.5 -> 0 | AE40: =IF(AND(AD46=1,C24>0,C25>0),C24-AC43,"") ->  | AG40: capital invertido
C41: Plazo | I41: 7 AÑOS | K41: 10 AÑOS | M41: 15 AÑOS | O41: 20 AÑOS | U41: Esquemas | X41: 3 | AC41: =C24*0.75 -> 0
V42: Tasa Fija Pago Red 15 | AC42: =IF(AC40<AC41,AC40,AC41) -> 0 | AE42: =IFERROR(IF((C26+C25)<((C24+C25)*0.5),"Se necesita mayor capital invertido",""),0) -> 0 | AH42: 1 | AS42: 1
C43: Tasa de Interés | I43: ="1 año / "&TEXT(AA55,"0.00%")& " 2 año / "&TEXT(AA55-0.002,"0.00%")& " 3 año / "&TEXT(AA55-0.004,"0.00%")& " 4 año / "&TEXT(AA55-0.006,"0.00%")& " 5 al 7 / "&TEXT(AA55-0.0075,"0.00%") -> 1 año / 13.00% 2 año / 12.80% 3 año / 12.60% 4 año / 12.40% 5 al 7 / 12.25% | K43: ="1 año / "&TEXT(AA55,"0.00%")& " 2 año / "&TEXT(AA55-0.002,"0.00%")& " 3 año / "&TEXT(AA55-0.004,"0.00%")& " 4 año / "&TEXT(AA55-0.006,"0.00%")& " 5 al 10 / "&TEXT(AA55-0.0075,"0.00%") -> 1 año / 13.00% 2 año / 12.80% 3 año / 12.60% 4 año / 12.40% 5 al 10 / 12.25% | M43: ="1 año / "&TEXT(AA55,"0.00%")& " 2 año / "&TEXT(AA55-0.002,"0.00%")& " 3 año / "&TEXT(AA55-0.004,"0.00%")& " 4 año / "&TEXT(AA55-0.006,"0.00%")& " 5 al 15 / "&TEXT(AA55-0.0075,"0.00%") -> 1 año / 13.00% 2 año / 12.80% 3 año / 12.60% 4 año / 12.40% 5 al 15 / 12.25% | O43: ="1 año / "&TEXT(AA55,"0.00%")& " 2 año / "&TEXT(AA55-0.002,"0.00%")& " 3 año / "&TEXT(AA55-0.004,"0.00%")& " 4 año / "&TEXT(AA55-0.006,"0.00%")& " 5 al 20 / "&TEXT(AA55-0.0075,"0.00%") -> 1 año / 13.00% 2 año / 12.80% 3 año / 12.60% 4 año / 12.40% 5 al 20 / 12.25% | U43: =IFERROR(E49/E47,0) -> 0 | V43: Pagos reducidos 20 años | AC43: =IFERROR(IF(C26+AC42<=C24,AC42,IF(C26>C24,0,IF(AC42+C26>C24,C24-C26,""))),0) -> 0
C44: % máximo de financiamiento | I44: =TEXT($AI$45,"#,##0%")&IF($AB$71=2,"",IF($AH$45=1," sin apoyo"," con apoyo")) -> 95% con apoyo | K44: =TEXT($AI$45,"#,##0%")&IF($AB$71=2,"",IF($AH$45=1," sin apoyo"," con apoyo")) -> 95% con apoyo | M44: =TEXT($AI$45,"#,##0%")&IF($AB$71=2,"",IF($AH$45=1," sin apoyo"," con apoyo")) -> 95% con apoyo | O44: =TEXT($AI$45,"#,##0%")&IF($AB$71=2,"",IF($AH$45=1," sin apoyo"," con apoyo")) -> 95% con apoyo | V44: Pago 9.9 | Y44: Cambio de etiqueta | Z44: =IF(AD46=1,"Valor del inmueble","Ingresos Brutos Mensuales") -> Valor del inmueble | AG44: Apoyo Infonavit
V45: Tasa 1234 | AF45: =1-AI45 -> 0.05 | AG45: NO | AH45: 2 | AI45: =IF($AB$71=1,$AN$56,$AO$56) -> 0.95
U46: Adquisición | V46: 1 | X46: % de enganche | Y46: =IF(IF(C24=0,0,IF(C25>0,C25,IF(C25/C24>1,0,C25/C24)))>0,IF(C24=0,0,IF(C25>0,C25,IF(C25/C24>1,0,C25/C24))),IF($AH$45=1,$AF$45,$AF$46)) -> 0.05 | Z46: =IF(V46=2," ","Monto a Financiar") -> Monto a Financiar | AB46: Pago por mil | AC46: Por Valor del Inmueble | AD46: 1 | AF46: =1-AI46 -> 0.05 | AG46: SI | AI46: =IF($AB$71=1,$AN$56,$AO$56) -> 0.95
C47: Valor de la vivienda | I47: =IF($AD$46=1,$C$24,I49/$AB$81) -> 0 | K47: =IF($AD$46=1,$C$24,K49/$AB$81) -> 0 | M47: =IF($AD$46=1,$C$24,M49/$AB$81) -> 0 | O47: =IF($AD$46=1,$C$24,O49/$AB$81) -> 0 | U47: Pasivo Hipotecario | W47: Cambio de pasivo o adquisi | Y47: =IF(AND(V46=1,AD46=1),"Enganche",IF(AND(V46=2,AD46=1),"Saldo actual","")) -> Enganche | Z47: =IF($X$41=4,I49,IF($X$41=1,K49,IF($X$41=2,M49,IF($X$41=3,O49,0)))) -> 0 | AB47: =IF($X$41=4,AA52,IF($X$41=1,AB52,IF($X$41=2,AD52,IF($X$41=3,AE52,0)))) -> 11.86 | AC47: Por Ingresos | AO47: Rango | AP47: =VLOOKUP($X$41,$AO$48:$AR$51,2,0) -> 94971.44757 | AQ47: =VLOOKUP($X$41,$AO$48:$AR$51,3,0) -> 123462.8761 | AR47: =VLOOKUP($X$41,$AO$48:$AR$51,4,0) -> 123462.8761
AG48: Ingresos | AH48: =IF(AND(AH45=2,AD46=1),O23,C24) -> 0 | AO48: 1 | AP48: 136571.4559 | AQ48: 152100.0234 | AR48: 177542.8845
C49: Monto del crédito | I49: =AA62 -> 0 | K49: =AB62 -> 0 | M49: =AD62 -> 0 | O49: =AE62 -> 0 | W49: Pag Red 10.90 | Y49: Pag Red 10.90 | AA49: Pagos oportunos | AB49: Pagos oportunos | AD49: Pagos oportunos | AE49: Pagos oportunos | AF49: Pagos oportunos | AO49: 2 | AP49: 108000.0216 | AQ49: 119340.0015 | AR49: 140400.0216
T50: Plazo | W50: 15 | Y50: 20 | AA50: 7 | AB50: 10 | AD50: 15 | AE50: 20 | AF50: 30 | AO50: 3 | AP50: 94971.44757 | AQ50: 123462.8761 | AR50: 123462.8761
C51: Erogación inicial | I51: =IF($AD$46=1,I49/1000*AA52,$C$24*$AD$81) -> 0 | K51: =IF($AD$46=1,K49/1000*AB52,$C$24*$AD$81) -> 0 | M51: =IF($AD$46=1,M49/1000*AD52,$C$24*$AD$81) -> 0 | O51: =IF($AD$46=1,O49/1000*AE52,$C$24*$AD$81) -> 0 | W51: 1 | Y51: 2 | AA51: 4 | AB51: 1 | AD51: 2 | AE51: 3 | AO51: 4
T52: Pago x mil | W52: 7.8 | Y52: 9.76 | AA52: =IF($AM$66=1,AO67,IF($AM$66=2,AO68,IF($AM$66=3,AO69,""))) -> 18.38 | AB52: =IF($AM$66=1,AP67,IF($AM$66=2,AP68,IF($AM$66=3,AP69,""))) -> 15.05 | AD52: =IF($AM$66=1,AQ67,IF($AM$66=2,AQ68,IF($AM$66=3,AQ69,""))) -> 12.79 | AE52: =IF($AM$66=1,AR67,IF($AM$66=2,AR68,IF($AM$66=3,AR69,""))) -> 11.86 | AI52: =IF($X$41=1,I49,IF($X$41=2,K49,IF($X$41=3,M49,O49))) -> 0 | AP52: 5000000 | AQ52: 6500000 | AR52: 8000000
C53: Seguro de vida | I53: =I49*IF($Y$71=1,0,$Y$74) -> 0 | K53: =K49*IF($Y$71=1,0,$Y$74) -> 0 | M53: =M49*IF($Y$71=1,0,$Y$74) -> 0 | O53: =O49*IF($Y$71=1,0,$Y$74) -> 0 | AP53: 1 | AQ53: 2 | AR53: 3
T54: Incremento anual | AA54: 0 | AB54: 0 | AD54: 0 | AE54: 0 | AF54: 0 | AI54: 0 | AM54: Aforo para créditos <= $5'000,000 Valora y Pagos Oportunos | AP54: Aforo p/créd > $5'000,000 VA y PO
C55: Seguro de daños | I55: =IF($C$33>0,$C$33,I47)*IF($Y$71=1,0,$Y$75) -> 0 | K55: =IF($C$33>0,$C$33,K47)*IF($Y$71=1,0,$Y$75) -> 0 | M55: =IF($C$33>0,$C$33,M47)*IF($Y$71=1,0,$Y$75) -> 0 | O55: =IF($C$33>0,$C$33,O47)*IF($Y$71=1,0,$Y$75) -> 0 | T55: Tasa de int. | AA55: =IF($AM$66=1,AN67,IF($AM$66=2,AN68,IF($AM$66=3,AN69,""))) -> 0.13 | AB55: =AA55 -> 0.13 | AD55: =AA55 -> 0.13 | AE55: =AA55 -> 0.13 | AF55: 0 | AM55: Emp. con apoyo | AN55: Emp. Sin apoyo | AO55: Independientes | AP55: <= $6.5mdp | AQ55: <= $8mdp | AR55: > $8 mdp | AS55: PTI
AA56: PO 7 años | AB56: PO 10 años | AD56: PO 15 años | AE56: PO 20 años | AL56: 1 | AM56: 0.95 | AN56: 0.95 | AO56: 0.9 | AP56: 0.8 | AQ56: 0.8 | AR56: 0.65 | AS56: 0.4
C57: Total mensualidad inicial | I57: =I55+I53+I51 -> 0 | K57: =K55+K53+K51 -> 0 | M57: =M55+M53+M51 -> 0 | O57: =O55+O53+O51 -> 0 | T57: Monto a financiar adquisición | W57: =IF(AND($AD$46=1,$Y$46>=0.2),$C$24-$C$25,IF($AD$46=2,$E$51/W52*1000,0)) -> 0 | Y57: =IF(AND($AD$46=1,$Y$46>=0.2),$C$24-$C$25,IF($AD$46=2,G51/Y52*1000,0)) -> 0 | AA57: =IF(AND($AH$45=1,$AD$46=1,$Y$46>=$AF$45),IF($C$25>0,$C$24-$C$25,$C$24-$C$24*$Y$46),IF(AND($AH$45=2,$AD$46=1,$Y$46>=$AF$46),IF($C$25>0,$C$24-$C$25,$C$24-$C$24*$Y$46),IF($AD$46=2,$O$51/AA52*1000,0))) -> 0 | AB57: =IF(AND($AH$45=1,$AD$46=1,$Y$46>=$AF$45),IF($C$25>0,$C$24-$C$25,$C$24-$C$24*$Y$46),IF(AND($AH$45=2,$AD$46=1,$Y$46>=$AF$46),IF($C$25>0,$C$24-$C$25,$C$24-$C$24*$Y$46),IF($AD$46=2,$O$51/AB52*1000,0))) -> 0 | AD57: =IF(AND($AH$45=1,$AD$46=1,$Y$46>=$AF$45),IF($C$25>0,$C$24-$C$25,$C$24-$C$24*$Y$46),IF(AND($AH$45=2,$AD$46=1,$Y$46>=$AF$46),IF($C$25>0,$C$24-$C$25,$C$24-$C$24*$Y$46),IF($AD$46=2,$O$51/AD52*1000,0))) -> 0 | AE57: =IF(AND($AH$45=1,$AD$46=1,$Y$46>=$AF$45),IF($C$25>0,$C$24-$C$25,$C$24-$C$24*$Y$46),IF(AND($AH$45=2,$AD$46=1,$Y$46>=$AF$46),IF($C$25>0,$C$24-$C$25,$C$24-$C$24*$Y$46),IF($AD$46=2,$O$51/AE52*1000,0))) -> 0 | AF57: =IF(AND($AD$46=1,$Y$46>=0.2),$C$24-$C$25,IF($AD$46=2,#REF!/AF52*1000,0)) -> 0 | AL57: 2 | AM57: 0.95 | AN57: 0.95 | AO57: 0.9 | AP57: 0.8 | AQ57: 0.8 | AR57: 0.65 | AS57: 0.4
T58: Monto a financiar adquisición | W58: =IF(W57>4000000,4000000,W57) -> 0 | Y58: =IF(Y57>4000000,4000000,Y57) -> 0 | AA58: =IF(AA57>4000000,4000000,AA57) -> 0 | AB58: =IF(AB57>4000000,4000000,AB57) -> 0 | AD58: =IF(AD57>4000000,4000000,AD57) -> 0 | AE58: =IF(AE57>4000000,4000000,AE57) -> 0 | AF58: =IF(AF57>4000000,4000000,AF57) -> 0 | AL58: 3 | AM58: 0.95 | AN58: 0.9 | AO58: 0.9 | AP58: 0.8 | AQ58: 0.8 | AR58: 0.65 | AS58: 0.35
C59: Incremento anual del pago | I59: No aplica | K59: No aplica | M59: No aplica | O59: No aplica | T59: erogación adquisición | W59: =W58/1000*W52 -> 0 | Y59: =Y58/1000*Y52 -> 0 | AA59: =AA58/1000*AA52 -> 0 | AB59: =AB58/1000*AB52 -> 0 | AD59: =AD58/1000*AD52 -> 0 | AE59: =AE58/1000*AE52 -> 0 | AF59: =AF58/1000*AF52 -> 0 | AL59: 4 | AM59: 0.95 | AN59: 0.85 | AO59: 0.85 | AP59: 0.7 | AQ59: 0.7 | AR59: 0.55 | AS59: 0.35
T60: Monto a financiar pasivo | AL60: 5 | AM60: 0.85 | AN60: 0.8 | AO60: 0.75 | AP60: 0.65 | AQ60: 0.55 | AR60: 0.55 | AS60: 0.3
C61: Ingresos brutos por comprobar | I61: =IF(AND($AD$46=1,I51/$AD$81>$AC$81),I51/$AD$81,IF(AND($AD$46=1,I51/$AD$81<$AC$81),$AC$81,$C$24)) -> 10000 | K61: =IF(AND($AD$46=1,K51/$AD$81>$AC$81),K51/$AD$81,IF(AND($AD$46=1,K51/$AD$81<$AC$81),$AC$81,$C$24)) -> 10000 | M61: =IF(AND($AD$46=1,M51/$AD$81>$AC$81),M51/$AD$81,IF(AND($AD$46=1,M51/$AD$81<$AC$81),$AC$81,$C$24)) -> 10000 | O61: =IF(AND($AD$46=1,O51/$AD$81>$AC$81),O51/$AD$81,IF(AND($AD$46=1,O51/$AD$81<$AC$81),$AC$81,$C$24)) -> 10000 | T61: Monto a financiar pasivo | AL61: 6 | AM61: 0.8 | AN61: 0.7 | AO61: 0.5 | AP61: 0.5 | AQ61: 0.5 | AR61: 0.5 | AS61: 0.3
T62: Desición de monto a financiar | W62: =IF(AND($AH$45=2,$AD$46=1,$C$24<0),0,IF(AND($AD$46=2,$C$24<$AC$81),0,W57)) -> 0 | Y62: =IF(AND($AH$45=2,$AD$46=1,$C$24<0),0,IF(AND($AD$46=2,$C$24<$AC$81),0,Y57)) -> 0 | AA62: =IF(AND($AH$45=2,$AD$46=1,$C$24<0),0,IF(AND($AD$46=2,$C$24<$AC$81),0,AA57)) -> 0 | AB62: =IF(AND($AH$45=2,$AD$46=1,$C$24<0),0,IF(AND($AD$46=2,$C$24<$AC$81),0,AB57)) -> 0 | AD62: =IF(AND($AH$45=2,$AD$46=1,$C$24<0),0,IF(AND($AD$46=2,$C$24<$AC$81),0,AD57)) -> 0 | AE62: =IF(AND($AH$45=2,$AD$46=1,$C$24<0),0,IF(AND($AD$46=2,$C$24<$AC$81),0,AE57)) -> 0 | AF62: =IF(AND($AH$45=2,$AD$46=1,$C$24<0),0,IF(AND($AD$46=2,$C$24<$AC$81),0,AF57)) -> 0 | AL62: 7 | AM62: 0.8 | AN62: 0.7 | AO62: 0.5 | AP62: 0.5 | AQ62: 0.5 | AR62: 0.5 | AS62: 0.3
C63: Comisión por apertura | I63: =IF(OR(AM66=2,AM66=3),0,IF(V66=1,I49*MIN(1%,M22),0)) -> 0 | K63: =IF(OR(AM66=2,AM66=3),0,IF(V66=1,K49*MIN(1%,M22),0)) -> 0 | M63: =IF(OR(AM66=2,AM66=3),0,IF(V66=1,M49*MIN(1%,M22),0)) -> 0 | O63: =IF(OR(AM66=2,AM66=3),0,IF(V66=1,O49*MIN(1%,M22),0)) -> 0 | AP63: =IF($AD$46=2,IF($C$24>AR47,3,IF($C$24>AQ47,2,IF($C$24>AP47,1,0))),IF($C$24>AR52,3,IF($C$24>AQ52,2,IF($C$24>AP52,1,0)))) -> 0
T64: Frontera | U64: NO
C65: ="Avalúo "&IF(OR(AND($AD$46=1,$C$24>$U$91),AND($AD$46=2,I47>$U$91)),"'Favor de Cotizar.' - Val. apróx.","") -> Avalúo | I65: =IF(AM66=2,0,IFERROR(IF(AND($AD$46=1,$C$24<=$U$91),VLOOKUP($C$24,$T$71:$V$92,3),IF(AND($AD$46=2,I47<=$U$91),VLOOKUP(I47,$T$71:$V$92,3),$V$92)),0)) -> 0 | K65: =IF(AM66=2,0,IFERROR(IF(AND($AD$46=1,$C$24<=$U$89),VLOOKUP($C$24,$T$71:$V$89,3),IF(AND($AD$46=2,K47<=$U$89),VLOOKUP(K47,$T$71:$V$89,3),$V$92)),0)) -> 0 | M65: =IF(AM66=2,0,IFERROR(IF(AND($AD$46=1,$C$24<=$U$89),VLOOKUP($C$24,$T$71:$V$89,3),IF(AND($AD$46=2,M47<=$U$89),VLOOKUP(M47,$T$71:$V$89,3),$V$92)),0)) -> 0 | O65: =IF(AM66=2,0,IFERROR(IF(AND($AD$46=1,$C$24<=$U$89),VLOOKUP($C$24,$T$71:$V$89,3),IF(AND($AD$46=2,O47<=$U$89),VLOOKUP(O47,$T$71:$V$89,3),$V$92)),0)) -> 0 | T65: IVA | U65: SI | V65: 2 | W65: =IF(V65=1,1.16,1.16) -> 1.16
T66: Comisión de apertura | V66: 1 | W66: =IF(AM66=1,"Comisión por apertura "&TEXT($Y$81,"##.00%")&" y comisión por prepago 0%","Comisión por apertura 0% y comisión por prepago 0%") -> Comisión por apertura 1.00% y comisión por prepago 0% | AM66: 1 | AO66: 7 | AP66: 10 | AQ66: 15 | AR66: 20
C67: Dictamen técnico | I67: =IF(I47*$Y$84>$Z$84,$Z$84,I47*$Y$84) -> 0 | K67: =IF(K47*$Y$84>$Z$84,$Z$84,K47*$Y$84) -> 0 | M67: =IF(M47*$Y$84>$Z$84,$Z$84,M47*$Y$84) -> 0 | O67: =IF(O47*$Y$84>$Z$84,$Z$84,O47*$Y$84) -> 0 | T67: Comisión por prepago | V67: =IF(V66=2,3%,"NO APLICA") -> NO APLICA | W67: =IF(AM66=1,"Comisión por apertura 0% y comisión por prepago 3% más IVA","") -> Comisión por apertura 0% y comisión por prepago 3% más IVA | AM67: Ninguna | AN67: 0.13 | AO67: 18.38 | AP67: 15.05 | AQ67: 12.79 | AR67: 11.86
T68: Com Aut Dif | U68: 250 | V68: 250 | W68: 250 | X68: 250 | Y68: 250 | Z68: 250 | AM68: Premium | AN68: 0.0975 | AO68: 16.55 | AP68: 13.16 | AQ68: 10.7 | AR68: 9.59
C69: Comisión por pagos anticipados | I69: =$V$67 -> NO APLICA | K69: =$V$67 -> NO APLICA | M69: =$V$67 -> NO APLICA | O69: =$V$67 -> NO APLICA | T69: Avalúo | U69: =IFERROR(IF(C24<$U$91,VLOOKUP(C24,$T$71:$V$92,3),"Cotización especial"),0) -> 0 | AM69: Vinculación | AN69: 0.1075 | AO69: 17.1 | AP69: 13.73 | AQ69: 11.32 | AR69: 10.27
T70: Mayor a | U70: Hasta a | V70: Importe | X70: Contratación de Seguros | AA70: Actividad Económca
T71: 0.01 | U71: 500000 | V71: 1900 | X71: SI | Y71: 2 | AA71: Empleado | AB71: 1
C72: Ver tabla de amortización | T72: 500001 | U72: 1000000 | V72: 3300 | X72: NO | AA72: =IF(AH45=2,"","Independiente") -> 
T73: 1000001 | U73: 1500000 | V73: 4500 | X73: Seguros
T74: 1500001 | U74: 2000000 | V74: 5750 | X74: Vida | Y74: 0.0006 | Z74: =Y74 -> 0.0006 | AB74: Valor del inmueble | AC74: =IF($X$41=4,$I$47,IF($X$41=1,$K$47,IF($X$41=2,$M$47,IF($X$41=3,$O$47,0)))) -> 0
C75: Observaciones: | T75: 2000001 | U75: 2500000 | V75: 7000 | X75: Daños | Y75: 0.00031 | Z75: =Y75 -> 0.00031 | AB75: Pago por mil | AC75: =IF($X$41=4,$AA$52,IF($X$41=1,$AB$52,IF($X$41=2,$AD$52,IF($X$41=3,$AE$52,0)))) -> 11.86
C76: -No se incluyen los gastos notariales, los cuales se pagaran al momento de la firma del crédito | T76: 2500001 | U76: 3000000 | V76: 8200 | AB76: Plazo | AC76: =IF($X$41=4,"7 Años",IF($X$41=1,"10 Años",IF($X$41=2,"15 Años",IF($X$41=3,"20 Años",0)))) -> 20 Años
C77: - El crédito solicitado dependerá de la capacidad de pago de cada cliente | T77: 3000001 | U77: 4000000 | V77: 11000 | AB77: Tasa | AC77: =IF($X$41=4,$AA$55,IF($X$41=1,$AB$55,IF($X$41=2,$AD$55,IF($X$41=3,$AE$55,0)))) -> 0.13 | AF77: CALCULO PARA EL IMPORTE MAXIMO DE APORTACION PATRONAL
C78: - Scotiabank se reserva el derecho de solicitar información adicional y/o restringir parámetros de enganche, monto, plazo o tasa en función de las características específicas del solicitante | T78: 4000001 | U78: 5000000 | V78: 13900 | AB78: Monto Crédito | AC78: =IF($X$41=4,$I$49,IF($X$41=1,$K$49,IF($X$41=2,$M$49,IF($X$41=3,$O$49,0)))) -> 0 | AF78: ='Simulador Valora'!AF78 -> Salario diario nominal (UMA enero 2024) | AH78: ='Simulador Valora'!$AH$78 -> 108.57
C79: y del inmueble objeto de la operación. | T79: 5000001 | U79: 6000000 | V79: 15500 | AF79: Tope de aportación patronal | AH79: 25
C80: - En caso de que aplique, la comisión por pagos anticipados causa I.V.A. | T80: 6000001 | U80: 7000000 | V80: 19000 | X80: Comisión por aut difer = | Y80: 250 | AB80: Aforo | AC80: Ingresos Mínimos | AD80: RPI | AF80: Aportación patronal | AH80: =+AH78*AH79 -> 2714.25
C81: - Esta cotización tiene carácter informativo, Scotiabank se reserva el derecho de cambiar cualquier condición sin previo aviso. | T81: 7000001 | U81: 8000000 | V81: 20000 | X81: Comisión por Apertura = | Y81: =IFERROR(IF($M$22<>"",$M$22,1%),0) -> 0.01 | AB81: =IF(AH45=1,AI45,AI46) -> 0.95 | AC81: 10000 | AD81: 0.35 | AF81: Aportación Patronal 5% | AH81: =+AH80*0.05 -> 135.7125
C82: - Este documento NO implica que el crédito ha sido autorizado, ni establece obligación alguna para Scotiabank. | T82: 8000001 | U82: 9000000 | V82: 20100 | X82: Comisión por Prepago = | Y82: 0.03 | AG82: 0.05
C83: - Para los esquemas de "Pagos Oportunos" y "Valora" se deberá cumplir con las reglas establecidas en los programas para la disminución de la tasa de interés | O83: ='Simulador Valora'!O83 -> v2025.04 | T83: 9000001 | U83: 10000000 | V83: 22500 | X83: Avalúo | Y83: 0.001 | AF83: No. de días del bimestre (promedio 60 días) | AH83: ='Simulador Valora'!$AH$83 -> 60.8
T84: 10000001 | U84: 11000000 | V84: 27000 | X84: Dictamen técnico | Y84: 0.01 | Z84: 18000 | AF84: Aportación Patronal bimestral | AH84: =+AH81*AH83 -> 8251.32
T85: 11000001 | U85: 12000000 | V85: 28000 | Z85: Máximo | AF85: Incremento anual promedio para las aportaciones = | AH85: 0.03
T86: 12000001 | U86: 13000000 | V86: 30000 | Z86: Ya no hay minimo
T87: 13000001 | U87: 14000000 | V87: 32000
T88: 14000001 | U88: 15000000 | V88: 34000
T89: 15000001 | U89: 20000000 | V89: 37000
T90: 20000001 | U90: 25000000 | V90: 39000
T91: 25000001 | U91: 30000000 | V91: 40000
T92: 30000001 | U92: 30000000 | V92: 40000

Sheet Tabla Pagos Oportunos
A1: Scotiabank Inverlat, S.A., Institución de Banca Múltiple, Grupo Financiero Scotiabank Inverlat | CA1: -
A2: SIMULADOR CREDITO HIPOTECARIO
A3: FINANCIAMIENTO PARA ADQUISICION EN PREVENTA SCOTIABANK | AG3: Comision por apertura | AJ3: =IF('Simulador Pagos Oportunos'!$X$41=4,'Simulador Pagos Oportunos'!I63,IF('Simulador Pagos Oportunos'!$X$41=1,'Simulador Pagos Oportunos'!K63,IF('Simulador Pagos Oportunos'!$X$41=2,'Simulador Pagos Oportunos'!M63,IF('Simulador Pagos Oportunos'!$X$41=3,'Simulador Pagos Oportunos'!O63,0)))) -> 0 | AL3: 1
A4: ="PAGOS OPORTUNOS "&IF('Simulador Pagos Oportunos'!$X$41=4,'Simulador Pagos Oportunos'!I41,IF('Simulador Pagos Oportunos'!$X$41=1,'Simulador Pagos Oportunos'!K41,IF('Simulador Pagos Oportunos'!$X$41=2,'Simulador Pagos Oportunos'!M41,IF('Simulador Pagos Oportunos'!$X$41=3,'Simulador Pagos Oportunos'!O41,"")))) -> PAGOS OPORTUNOS 20 AÑOS | AG4: Avalúo | AJ4: =IF('Simulador Pagos Oportunos'!$X$41=4,'Simulador Pagos Oportunos'!I65,IF('Simulador Pagos Oportunos'!$X$41=1,'Simulador Pagos Oportunos'!K65,IF('Simulador Pagos Oportunos'!$X$41=2,'Simulador Pagos Oportunos'!M65,IF('Simulador Pagos Oportunos'!$X$41=3,'Simulador Pagos Oportunos'!O65,0)))) -> 0 | AL4: Disminución de plazo
N5: Observaciones | AG5: Dictámen Técnico | AJ5: =IF('Simulador Pagos Oportunos'!$X$41=4,'Simulador Pagos Oportunos'!I67,IF('Simulador Pagos Oportunos'!$X$41=1,'Simulador Pagos Oportunos'!K67,IF('Simulador Pagos Oportunos'!$X$41=2,'Simulador Pagos Oportunos'!M67,IF('Simulador Pagos Oportunos'!$X$41=3,'Simulador Pagos Oportunos'!O67,0)))) -> 0 | AL5: Disminución de pago
B6: Teclear los datos con las celdas en blanco | N6: - La comisión por prepagos causa IVA y en la corrida ya lo incluye | X6: ='Simulador Pagos Oportunos'!C7 -> 2025-04-10
B7: Período | D7: Monto | F7: Erogación | N7: - El escenario que se presenta en la tabla de amortización siempre es considerando que se paga de manera puntual. | AG7: Total | AJ7: =SUM(AJ3:AJ5) -> 0
B8: 1 | D8: ='Simulador Pagos Oportunos'!$AC$78 -> 0 | F8: =(D8/1000)*'Simulador Pagos Oportunos'!AB47 -> 0 | H8: Linea máxima de crédito | N8: - Esta cotización tiene carácter informativo, Scotiabank se reserva el derecho de cambiar cualquier condición sin previo aviso.
F9: =IF(B9>12,((D9+D8)/1000*'Simulador Pagos Oportunos'!AB47*Z29)+((D9+D8)/1000*'Simulador Pagos Oportunos'!AB47),(D9+D8)/1000*'Simulador Pagos Oportunos'!AB47) -> 0 | H9: ='Simulador Pagos Oportunos'!Z47 -> 0 | N9: - Este documento NO implica que el crédito ha sido autorizado, ni establece obligación alguna para Scotiabank.
D10: =IF('Simulador Pagos Oportunos'!AC78-D8-D9<0,0,'Simulador Pagos Oportunos'!AC78-D8-D9) -> 0 | F10: =IF(B10>12,((D10+D9+D8)/1000*'Simulador Pagos Oportunos'!AB47*Z29)+((D10+D9+D8)/1000*'Simulador Pagos Oportunos'!AB47),(D10+D9+D8)/1000*'Simulador Pagos Oportunos'!AB47) -> 0 | H10: =IF((D9+D8)>H9,"Se excede de la línea autorizada","") ->  | N10: - Para los esquemas "Pagos Oportunos" y "Valora" se deberá cumplir con las reglas establecidas en los programas | AW10: Corrida para CAT
N11: para la disminución de la tasa de interés. | AE11: Tasa pagos oportunos | AW11: =AW14*12 -> 0
AB12: =IFERROR(IRR(AB16:AB256,0),0) -> 0 | AC12: =AB12*12 -> 0 | AD12: =((1+AB12)^12)-1 -> 0 | AW12: =((1+AW14)^12)-1 -> 0
H13: El crédito se liquida | J13: =AM16 -> 0 | K13: Años | N13: - CAT =. | P13: =AW12 -> 0 | Q13: "Para fines informativos de comparación exclusivamente sin IVA" | AW13: TIR
H14: por pago puntual en: | J14: =AN16 -> 0 | K14: Meses | N14: - En caso de anticipos a capital escoja la opción: | AW14: =IFERROR(IRR(AW15:AW256,0),0) -> 0
AW15: =AJ7-H9 -> 0
A16: Período | B16: Saldo Inicial | D16: Erogación | F16: Interés | H16: Amortización | J16: Aportación Bimestral | L16: Prepagos a capital | N16: Comisión por prepagos | P16: Tasa aplicada | R16: Saldo Final | T16: Seguro de vida y desempleo | V16: Seguro de daños | X16: Pago Mensual | Z16: Inc. Pago | AB16: =AJ7-H9 -> 0 | AC16: Tasa Aplic. | AD16: 7 años | AE16: 10 años | AF16: 15 años | AG16: 20 años | AH16: 30 años | AI16: factor de pago | AJ16: años | AK16: meses | AL16: =SUM(AL17:AL256) -> 1 | AM16: =SUM(AM17:AM256) -> 0 | AN16: =SUM(AN17:AN256) -> 0 | AO16: Saldo Inicial | AP16: Erogación | AQ16: Interés | AR16: Amortización | AS16: Saldo Final | AT16: Tasa Aplic. | AU16: Seguros | AV16: Incremento Pago | AW16: Pago Mensual | AX16: Plazo | AY16: Fecha | AZ16: Dias | BA16: Período | BB16: Año actual | BC16: Mes actual | BD16: Día actual | BE16: Dia/corte | BF16: sumar a mes
A17: 1 | B17: =IFERROR(VLOOKUP(A17,$B$8:$F$10,3,0),0) -> 0 | D17: =F8 -> 0 | F17: =IF(B17=0,0,P17/360*AZ17*B17) -> 0 | H17: =D17-F17 -> 0 | N17: =IF('Simulador Pagos Oportunos'!$V$66=1,0,L17*'Simulador Pagos Oportunos'!$O$69*'Simulador Pagos Oportunos'!$W$65) -> 0 | P17: =IF(B17=0,"",IF('Simulador Pagos Oportunos'!$X$41=4,AD17,IF('Simulador Pagos Oportunos'!$X$41=1,AE17,IF('Simulador Pagos Oportunos'!$X$41=2,AF17,IF('Simulador Pagos Oportunos'!$X$41=3,AG17,AC17))))) ->  | R17: =B17-H17-J17-L17+N17 -> 0 | T17: =IF(B17<=0,0,B17*IF('Simulador Pagos Oportunos'!$Y$71=1,0,'Simulador Pagos Oportunos'!$Y$74)) -> 0 | V17: =IF(B17=0,0,IF('Simulador Pagos Oportunos'!$X$41=4,'Simulador Pagos Oportunos'!$I$55,IF('Simulador Pagos Oportunos'!$X$41=1,'Simulador Pagos Oportunos'!$K$55,IF('Simulador Pagos Oportunos'!$X$41=2,'Simulador Pagos Oportunos'!$M$55,IF('Simulador Pagos Oportunos'!$X$41=3,'Simulador Pagos Oportunos'!$O$55,0))))) -> 0 | X17: =IF(B17<=0,0,(D17+L17+T17+V17)) -> 0 | AB17: =X17 -> 0 | AC17: ='Simulador Pagos Oportunos'!$AC$77 -> 0.13 | AD17: ='Simulador Pagos Oportunos'!AA55 -> 0.13 | AE17: ='Simulador Pagos Oportunos'!AB55 -> 0.13 | AF17: ='Simulador Pagos Oportunos'!AD55 -> 0.13 | AG17: ='Simulador Pagos Oportunos'!AE55 -> 0.13 | AH17: 0 | AI17: =IFERROR(AP17/AO17,0) -> 0 | AJ17: 0 | AK17: =IF(B17=0,0,1) -> 0 | AL17: =+IF(R17<=0,IF(R16>0,+A17,0),0) -> 1 | AM17: =+IF(AL17>0,+AJ17,0) -> 0 | AN17: =+IF(AL17>0,+AK17,0) -> 0 | AO17: =B17 -> 0 | AP17: =D17 -> 0 | AQ17: =IFERROR((AT17/360*AZ17*AO17),0) -> 0 | AR17: =+AP17-AQ17 -> 0 | AS17: =+AO17-AR17 -> 0 | AT17: =IF(AO17=0,"",IF('Simulador Pagos Oportunos'!$X$41=4,AD17,IF('Simulador Pagos Oportunos'!$X$41=1,AE17,IF('Simulador Pagos Oportunos'!$X$41=2,AF17,IF('Simulador Pagos Oportunos'!$X$41=3,AG17,AC17))))) ->  | AU17: =IF(AO17<=0,0,IF('Simulador Pagos Oportunos'!$Y$71=1,0,AO17*'Simulador Pagos Oportunos'!$Y$74))+IF(AO17<=0,0,IF('Simulador Pagos Oportunos'!$X$41=4,'Simulador Pagos Oportunos'!$I$55,IF('Simulador Pagos Oportunos'!$X$41=1,'Simulador Pagos Oportunos'!$K$55,IF('Simulador Pagos Oportunos'!$X$41=2,'Simulador Pagos Oportunos'!$M$55,'Simulador Pagos Oportunos'!$O$55)))) -> 0 | AW17: =AQ17+AR17+AU17 -> 0 | AX17: =IF('Simulador Pagos Oportunos'!$X$41=4,84,IF('Simulador Pagos Oportunos'!$X$41=1,120,IF('Simulador Pagos Oportunos'!$X$41=2,180,IF('Simulador Pagos Oportunos'!$X$41=3,240,0)))) -> 240 | AY17: =IF(AO17=0,"",DATE(BB17,BC17+BF17,BE17)) ->  | AZ17: =IFERROR(DAY(DATE(YEAR(AY17),MONTH(AY17)+1,0)),0) -> 0 | BA17: 1 | BB17: =IFERROR(YEAR('Simulador Pagos Oportunos'!C7),YEAR('Simulador Pagos Oportunos'!C7)) -> 2025 | BC17: =IFERROR(MONTH('Simulador Pagos Oportunos'!C7),MONTH('Simulador Pagos Oportunos'!C7)) -> 4 | BD17: =IFERROR(DAY('Simulador Pagos Oportunos'!C7),DAY('Simulador Pagos Oportunos'!C7)) -> 10 | BE17: =IF(AND(DAY('Simulador Pagos Oportunos'!C7)>=3,DAY('Simulador Pagos Oportunos'!C7)<=16),3,17) -> 3 | BF17: =IF(BD17>BE17,1,0) -> 1
A18: 2 | B18: =IF(R17<0,0,IF(A18=$B$9,R17+$D$9,IF(A18=$B$10,R17+$D$10,R17))) -> 0 | D18: =IF(B18+F18-D17<=0,B18+F18,IF(A18=$B$9,$F$9,IF(A18=$B$10,$F$10,IF(AND('Simulador Pagos Oportunos'!$AH$45=2,L17=0),D17*(1+Z18),IF($AL$3=2,B18*AI18,D17*(1+Z18)))))) -> 0 | F18: =IF(B18=0,0,P18/360*AZ18*B18) -> 0 | H18: =D18-F18 -> 0 | J18: =IF(B18=0,0,IF('Simulador Pagos Oportunos'!$AH$45=1,0,IF('Simulador Pagos Oportunos'!$AH$48*'Simulador Pagos Oportunos'!$AG$82*2>'Simulador Pagos Oportunos'!$AH$84,'Simulador Pagos Oportunos'!$AH$84,IF(B18=0,0,'Simulador Pagos Oportunos'!$AH$48*'Simulador Pagos Oportunos'!$AG$82*2)))) -> 0 | N18: =IF('Simulador Pagos Oportunos'!$V$66=1,0,L18*'Simulador Pagos Oportunos'!$O$69*'Simulador Pagos Oportunos'!$W$65) -> 0 | P18: =IF(B18=0,"",IF('Simulador Pagos Oportunos'!$X$41=4,AD18,IF('Simulador Pagos Oportunos'!$X$41=1,AE18,IF('Simulador Pagos Oportunos'!$X$41=2,AF18,IF('Simulador Pagos Oportunos'!$X$41=3,AG18,AC18))))) ->  | R18: =B18-H18-J18-L18+N18 -> 0 | T18: =IF(B18<=0,0,B18*IF('Simulador Pagos Oportunos'!$Y$71=1,0,'Simulador Pagos Oportunos'!$Y$74)) -> 0 | V18: =IF(B18=0,0,IF('Simulador Pagos Oportunos'!$X$41=4,'Simulador Pagos Oportunos'!$I$55,IF('Simulador Pagos Oportunos'!$X$41=1,'Simulador Pagos Oportunos'!$K$55,IF('Simulador Pagos Oportunos'!$X$41=2,'Simulador Pagos Oportunos'!$M$55,IF('Simulador Pagos Oportunos'!$X$41=3,'Simulador Pagos Oportunos'!$O$55,0))))) -> 0 | X18: =IF(B18<=0,0,(D18+L18+T18+V18)) -> 0 | AB18: =X18 -> 0 | AC18: ='Simulador Pagos Oportunos'!$AC$77 -> 0.13 | AD18: =AD17 -> 0.13 | AE18: =AE17 -> 0.13 | AF18: 0.13 | AG18: 0.13 | AH18: 0 | AI18: =IFERROR(AP18/AO18,0) -> 0 | AJ18: 0 | AK18: 2 | AL18: 0 | AM18: =+IF(AL18>0,+AJ18,0) -> 0 | AN18: =+IF(AL18>0,+AK18,0) -> 0 | AO18: =IF(AS17<0,0,IF($A18=$B$9,AS17+$D$9,IF($A18=$B$10,AS17+$D$10,AS17))) -> 0 | AP18: =IF(AO18+AQ18-AP17<=0,AO18+AQ18,IF($A18=$B$9,$F$9,IF($A18=$B$10,$F$10,AP17*(1+AV18)))) -> 0 | AQ18: =IFERROR((AT18/360*AZ18*AO18),0) -> 0 | AR18: 0 | AS18: 0 | AT18: =IF(AO18=0,"",IF('Simulador Pagos Oportunos'!$X$41=4,AD18,IF('Simulador Pagos Oportunos'!$X$41=1,AE18,IF('Simulador Pagos Oportunos'!$X$41=2,AF18,IF('Simulador Pagos Oportunos'!$X$41=3,AG18,AC18))))) ->  | AU18: =IF(AO18<=0,0,IF('Simulador Pagos Oportunos'!$Y$71=1,0,AO18*'Simulador Pagos Oportunos'!$Y$74))+IF(AO18<=0,0,IF('Simulador Pagos Oportunos'!$X$41=4,'Simulador Pagos Oportunos'!$I$55,IF('Simulador Pagos Oportunos'!$X$41=1,'Simulador Pagos Oportunos'!$K$55,IF('Simulador Pagos Oportunos'!$X$41=2,'Simulador Pagos Oportunos'!$M$55,'Simulador Pagos Oportunos'!$O$55)))) -> 0 | AW18: 0 | AX18: =IFERROR(IF(AP18<=0.01,0,AX17-1),0) -> 0 | AY18: =IF(AO18=0,"",DATE(YEAR(AY17),MONTH(AY17)+1,1)) ->  | AZ18: =IFERROR(DAY(DATE(YEAR(AY18),MONTH(AY18)+1,0)),0) -> 0 | BA18: 2
A19: 3 | B19: 0 | D19: =IF(B19+F19-D18<=0,B19+F19,IF(A19=$B$9,$F$9,IF(A19=$B$10,$F$10,IF(AND('Simulador Pagos Oportunos'!$AH$45=2,L18=0),D18*(1+Z19),IF($AL$3=2,B19*AI19,D18*(1+Z19)))))) -> 0 | F19: 0 | H19: =D19-F19 -> 0 | N19: =IF('Simulador Pagos Oportunos'!$V$66=1,0,L19*'Simulador Pagos Oportunos'!$O$69*'Simulador Pagos Oportunos'!$W$65) -> 0 | P19: =IF(B19=0,"",IF('Simulador Pagos Oportunos'!$X$41=4,AD19,IF('Simulador Pagos Oportunos'!$X$41=1,AE19,IF('Simulador Pagos Oportunos'!$X$41=2,AF19,IF('Simulador Pagos Oportunos'!$X$41=3,AG19,AC19))))) ->  | R19: 0 | T19: =IF(B19<=0,0,B19*IF('Simulador Pagos Oportunos'!$Y$71=1,0,'Simulador Pagos Oportunos'!$Y$74)) -> 0 | V19: =IF(B19=0,0,IF('Simulador Pagos Oportunos'!$X$41=4,'Simulador Pagos Oportunos'!$I$55,IF('Simulador Pagos Oportunos'!$X$41=1,'Simulador Pagos Oportunos'!$K$55,IF('Simulador Pagos Oportunos'!$X$41=2,'Simulador Pagos Oportunos'!$M$55,IF('Simulador Pagos Oportunos'!$X$41=3,'Simulador Pagos Oportunos'!$O$55,0))))) -> 0 | X19: 0 | AB19: 0 | AC19: ='Simulador Pagos Oportunos'!$AC$77 -> 0.13 | AD19: =AD18 -> 0.13 | AE19: 0.13 | AF19: 0.13 | AG19: 0.13 | AH19: 0 | AI19: 0 | AJ19: 0 | AK19: 3 | AL19: 0 | AM19: 0 | AN19: 0 | AO19: =IF(AS18<0,0,IF($A19=$B$9,AS18+$D$9,IF($A19=$B$10,AS18+$D$10,AS18))) -> 0 | AP19: =IF(AO19+AQ19-AP18<=0,AO19+AQ19,IF($A19=$B$9,$F$9,IF($A19=$B$10,$F$10,AP18*(1+AV19)))) -> 0 | AQ19: 0 | AR19: 0 | AS19: 0 | AT19: =IF(AO19=0,"",IF('Simulador Pagos Oportunos'!$X$41=4,AD19,IF('Simulador Pagos Oportunos'!$X$41=1,AE19,IF('Simulador Pagos Oportunos'!$X$41=2,AF19,IF('Simulador Pagos Oportunos'!$X$41=3,AG19,AC19))))) ->  | AU19: =IF(AO19<=0,0,IF('Simulador Pagos Oportunos'!$Y$71=1,0,AO19*'Simulador Pagos Oportunos'!$Y$74))+IF(AO19<=0,0,IF('Simulador Pagos Oportunos'!$X$41=4,'Simulador Pagos Oportunos'!$I$55,IF('Simulador Pagos Oportunos'!$X$41=1,'Simulador Pagos Oportunos'!$K$55,IF('Simulador Pagos Oportunos'!$X$41=2,'Simulador Pagos Oportunos'!$M$55,'Simulador Pagos Oportunos'!$O$55)))) -> 0 | AW19: 0 | AX19: 0 | AY19: =IF(AO19=0,"",DATE(YEAR(AY18),MONTH(AY18)+1,1)) ->  | AZ19: 0 | BA19: 3 | BB19: Días/Mes | BC19: =365.25/12 -> 30.4375
A20: 4 | B20: 0 | D20: =IF(B20+F20-D19<=0,B20+F20,IF(A20=$B$9,$F$9,IF(A20=$B$10,$F$10,IF(AND('Simulador Pagos Oportunos'!$AH$45=2,L19=0),D19*(1+Z20),IF($AL$3=2,B20*AI20,D19*(1+Z20)))))) -> 0 | F20: 0 | H20: 0 | J20: =IF(B20-H20=0,0,J18) -> 0 | N20: =IF('Simulador Pagos Oportunos'!$V$66=1,0,L20*'Simulador Pagos Oportunos'!$O$69*'Simulador Pagos Oportunos'!$W$65) -> 0 | P20: =IF(B20=0,"",IF('Simulador Pagos Oportunos'!$X$41=4,AD20,IF('Simulador Pagos Oportunos'!$X$41=1,AE20,IF('Simulador Pagos Oportunos'!$X$41=2,AF20,IF('Simulador Pagos Oportunos'!$X$41=3,AG20,AC20))))) ->  | R20: 0 | T20: =IF(B20<=0,0,B20*IF('Simulador Pagos Oportunos'!$Y$71=1,0,'Simulador Pagos Oportunos'!$Y$74)) -> 0 | V20: =IF(B20=0,0,IF('Simulador Pagos Oportunos'!$X$41=4,'Simulador Pagos Oportunos'!$I$55,IF('Simulador Pagos Oportunos'!$X$41=1,'Simulador Pagos Oportunos'!$K$55,IF('Simulador Pagos Oportunos'!$X$41=2,'Simulador Pagos Oportunos'!$M$55,IF('Simulador Pagos Oportunos'!$X$41=3,'Simulador Pagos Oportunos'!$O$55,0))))) -> 0 | X20: 0 | AB20: 0 | AC20: ='Simulador Pagos Oportunos'!$AC$77 -> 0.13 | AD20: 0.13 | AE20: 0.13 | AF20: 0.13 | AG20: 0.13 | AH20: 0 | AI20: 0 | AJ20: 0 | AK20: 4 | AL20: 0 | AM20: 0 | AN20: 0 | AO20: 0 | AP20: 0 | AQ20: 0 | AR20: 0 | AS20: 0 | AT20: =IF(AO20=0,"",IF('Simulador Pagos Oportunos'!$X$41=4,AD20,IF('Simulador Pagos Oportunos'!$X$41=1,AE20,IF('Simulador Pagos Oportunos'!$X$41=2,AF20,IF('Simulador Pagos Oportunos'!$X$41=3,AG20,AC20))))) ->  | AU20: =IF(AO20<=0,0,IF('Simulador Pagos Oportunos'!$Y$71=1,0,AO20*'Simulador Pagos Oportunos'!$Y$74))+IF(AO20<=0,0,IF('Simulador Pagos Oportunos'!$X$41=4,'Simulador Pagos Oportunos'!$I$55,IF('Simulador Pagos Oportunos'!$X$41=1,'Simulador Pagos Oportunos'!$K$55,IF('Simulador Pagos Oportunos'!$X$41=2,'Simulador Pagos Oportunos'!$M$55,'Simulador Pagos Oportunos'!$O$55)))) -> 0 | AW20: 0 | AX20: 0 | AZ20: 0 | BA20: 4 | BC20: Interés mensual = Sdo inicial x tasa / 360 x # días del mes
A21: 5 | B21: 0 | D21: =IF(B21+F21-D20<=0,B21+F21,IF(A21=$B$9,$F$9,IF(A21=$B$10,$F$10,IF(AND('Simulador Pagos Oportunos'!$AH$45=2,L20=0),D20*(1+Z21),IF($AL$3=2,B21*AI21,D20*(1+Z21)))))) -> 0 | F21: 0 | H21: 0 | N21: =IF('Simulador Pagos Oportunos'!$V$66=1,0,L21*'Simulador Pagos Oportunos'!$O$69*'Simulador Pagos Oportunos'!$W$65) -> 0 | P21: =IF(B21=0,"",IF('Simulador Pagos Oportunos'!$X$41=4,AD21,IF('Simulador Pagos Oportunos'!$X$41=1,AE21,IF('Simulador Pagos Oportunos'!$X$41=2,AF21,IF('Simulador Pagos Oportunos'!$X$41=3,AG21,AC21))))) ->  | R21: 0 | T21: =IF(B21<=0,0,B21*IF('Simulador Pagos Oportunos'!$Y$71=1,0,'Simulador Pagos Oportunos'!$Y$74)) -> 0 | V21: =IF(B21=0,0,IF('Simulador Pagos Oportunos'!$X$41=4,'Simulador Pagos Oportunos'!$I$55,IF('Simulador Pagos Oportunos'!$X$41=1,'Simulador Pagos Oportunos'!$K$55,IF('Simulador Pagos Oportunos'!$X$41=2,'Simulador Pagos Oportunos'!$M$55,IF('Simulador Pagos Oportunos'!$X$41=3,'Simulador Pagos Oportunos'!$O$55,0))))) -> 0 | X21: 0 | AB21: 0 | AC21: ='Simulador Pagos Oportunos'!$AC$77 -> 0.13 | AD21: 0.13 | AE21: 0.13 | AF21: 0.13 | AG21: 0.13 | AH21: 0 | AI21: 0 | AJ21: 0 | AK21: 5 | AL21: 0 | AM21: 0 | AN21: 0 | AO21: 0 | AP21: 0 | AQ21: 0 | AR21: 0 | AS21: 0 | AT21: =IF(AO21=0,"",IF('Simulador Pagos Oportunos'!$X$41=4,AD21,IF('Simulador Pagos Oportunos'!$X$41=1,AE21,IF('Simulador Pagos Oportunos'!$X$41=2,AF21,IF('Simulador Pagos Oportunos'!$X$41=3,AG21,AC21))))) ->  | AU21: =IF(AO21<=0,0,IF('Simulador Pagos Oportunos'!$Y$71=1,0,AO21*'Simulador Pagos Oportunos'!$Y$74))+IF(AO21<=0,0,IF('Simulador Pagos Oportunos'!$X$41=4,'Simulador Pagos Oportunos'!$I$55,IF('Simulador Pagos Oportunos'!$X$41=1,'Simulador Pagos Oportunos'!$K$55,IF('Simulador Pagos Oportunos'!$X$41=2,'Simulador Pagos Oportunos'!$M$55,'Simulador Pagos Oportunos'!$O$55)))) -> 0 | AW21: 0 | AX21: 0 | AZ21: 0 | BA21: 5
A22: 6 | B22: 0 | D22: =IF(B22+F22-D21<=0,B22+F22,IF(A22=$B$9,$F$9,IF(A22=$B$10,$F$10,IF(AND('Simulador Pagos Oportunos'!$AH$45=2,L21=0),D21*(1+Z22),IF($AL$3=2,B22*AI22,D21*(1+Z22)))))) -> 0 | F22: 0 | H22: 0 | J22: =IF(B22-H22=0,0,J20) -> 0 | N22: =IF('Simulador Pagos Oportunos'!$V$66=1,0,L22*'Simulador Pagos Oportunos'!$O$69*'Simulador Pagos Oportunos'!$W$65) -> 0 | P22: =IF(B22=0,"",IF('Simulador Pagos Oportunos'!$X$41=4,AD22,IF('Simulador Pagos Oportunos'!$X$41=1,AE22,IF('Simulador Pagos Oportunos'!$X$41=2,AF22,IF('Simulador Pagos Oportunos'!$X$41=3,AG22,AC22))))) ->  | R22: 0 | T22: =IF(B22<=0,0,B22*IF('Simulador Pagos Oportunos'!$Y$71=1,0,'Simulador Pagos Oportunos'!$Y$74)) -> 0 | V22: =IF(B22=0,0,IF('Simulador Pagos Oportunos'!$X$41=4,'Simulador Pagos Oportunos'!$I$55,IF('Simulador Pagos Oportunos'!$X$41=1,'Simulador Pagos Oportunos'!$K$55,IF('Simulador Pagos Oportunos'!$X$41=2,'Simulador Pagos Oportunos'!$M$55,IF('Simulador Pagos Oportunos'!$X$41=3,'Simulador Pagos Oportunos'!$O$55,0))))) -> 0 | X22: 0 | AB22: 0 | AC22: ='Simulador Pagos Oportunos'!$AC$77 -> 0.13 | AD22: 0.13 | AE22: 0.13 | AF22: 0.13 | AG22: 0.13 | AH22: 0 | AI22: 0 | AJ22: 0 | AK22: 6 | AL22: 0 | AM22: 0 | AN22: 0 | AO22: 0 | AP22: 0 | AQ22: 0 | AR22: 0 | AS22: 0 | AT22: =IF(AO22=0,"",IF('Simulador Pagos Oportunos'!$X$41=4,AD22,IF('Simulador Pagos Oportunos'!$X$41=1,AE22,IF('Simulador Pagos Oportunos'!$X$41=2,AF22,IF('Simulador Pagos Oportunos'!$X$41=3,AG22,AC22))))) ->  | AU22: =IF(AO22<=0,0,IF('Simulador Pagos Oportunos'!$Y$71=1,0,AO22*'Simulador Pagos Oportunos'!$Y$74))+IF(AO22<=0,0,IF('Simulador Pagos Oportunos'!$X$41=4,'Simulador Pagos Oportunos'!$I$55,IF('Simulador Pagos Oportunos'!$X$41=1,'Simulador Pagos Oportunos'!$K$55,IF('Simulador Pagos Oportunos'!$X$41=2,'Simulador Pagos Oportunos'!$M$55,'Simulador Pagos Oportunos'!$O$55)))) -> 0 | AW22: 0 | AX22: 0 | AZ22: 0 | BA22: 6
A23: 7 | B23: 0 | D23: =IF(B23+F23-D22<=0,B23+F23,IF(A23=$B$9,$F$9,IF(A23=$B$10,$F$10,IF(AND('Simulador Pagos Oportunos'!$AH$45=2,L22=0),D22*(1+Z23),IF($AL$3=2,B23*AI23,D22*(1+Z23)))))) -> 0 | F23: 0 | H23: 0 | N23: =IF('Simulador Pagos Oportunos'!$V$66=1,0,L23*'Simulador Pagos Oportunos'!$O$69*'Simulador Pagos Oportunos'!$W$65) -> 0 | P23: =IF(B23=0,"",IF('Simulador Pagos Oportunos'!$X$41=4,AD23,IF('Simulador Pagos Oportunos'!$X$41=1,AE23,IF('Simulador Pagos Oportunos'!$X$41=2,AF23,IF('Simulador Pagos Oportunos'!$X$41=3,AG23,AC23))))) ->  | R23: 0 | T23: =IF(B23<=0,0,B23*IF('Simulador Pagos Oportunos'!$Y$71=1,0,'Simulador Pagos Oportunos'!$Y$74)) -> 0 | V23: =IF(B23=0,0,IF('Simulador Pagos Oportunos'!$X$41=4,'Simulador Pagos Oportunos'!$I$55,IF('Simulador Pagos Oportunos'!$X$41=1,'Simulador Pagos Oportunos'!$K$55,IF('Simulador Pagos Oportunos'!$X$41=2,'Simulador Pagos Oportunos'!$M$55,IF('Simulador Pagos Oportunos'!$X$41=3,'Simulador Pagos Oportunos'!$O$55,0))))) -> 0 | X23: 0 | AB23: 0 | AC23: ='Simulador Pagos Oportunos'!$AC$77 -> 0.13 | AD23: 0.13 | AE23: 0.13 | AF23: 0.13 | AG23: 0.13 | AH23: 0 | AI23: 0 | AJ23: 0 | AK23: 7 | AL23: 0 | AM23: 0 | AN23: 0 | AO23: 0 | AP23: 0 | AQ23: 0 | AR23: 0 | AS23: 0 | AT23: =IF(AO23=0,"",IF('Simulador Pagos Oportunos'!$X$41=4,AD23,IF('Simulador Pagos Oportunos'!$X$41=1,AE23,IF('Simulador Pagos Oportunos'!$X$41=2,AF23,IF('Simulador Pagos Oportunos'!$X$41=3,AG23,AC23))))) ->  | AU23: =IF(AO23<=0,0,IF('Simulador Pagos Oportunos'!$Y$71=1,0,AO23*'Simulador Pagos Oportunos'!$Y$74))+IF(AO23<=0,0,IF('Simulador Pagos Oportunos'!$X$41=4,'Simulador Pagos Oportunos'!$I$55,IF('Simulador Pagos Oportunos'!$X$41=1,'Simulador Pagos Oportunos'!$K$55,IF('Simulador Pagos Oportunos'!$X$41=2,'Simulador Pagos Oportunos'!$M$55,'Simulador Pagos Oportunos'!$O$55)))) -> 0 | AW23: 0 | AX23: 0 | AZ23: 0 | BA23: 7
A24: 8 | B24: 0 | D24: =IF(B24+F24-D23<=0,B24+F24,IF(A24=$B$9,$F$9,IF(A24=$B$10,$F$10,IF(AND('Simulador Pagos Oportunos'!$AH$45=2,L23=0),D23*(1+Z24),IF($AL$3=2,B24*AI24,D23*(1+Z24)))))) -> 0 | F24: 0 | H24: 0 | J24: =IF(B24-H24=0,0,J22) -> 0 | N24: =IF('Simulador Pagos Oportunos'!$V$66=1,0,L24*'Simulador Pagos Oportunos'!$O$69*'Simulador Pagos Oportunos'!$W$65) -> 0 | P24: =IF(B24=0,"",IF('Simulador Pagos Oportunos'!$X$41=4,AD24,IF('Simulador Pagos Oportunos'!$X$41=1,AE24,IF('Simulador Pagos Oportunos'!$X$41=2,AF24,IF('Simulador Pagos Oportunos'!$X$41=3,AG24,AC24))))) ->  | R24: 0 | T24: =IF(B24<=0,0,B24*IF('Simulador Pagos Oportunos'!$Y$71=1,0,'Simulador Pagos Oportunos'!$Y$74)) -> 0 | V24: =IF(B24=0,0,IF('Simulador Pagos Oportunos'!$X$41=4,'Simulador Pagos Oportunos'!$I$55,IF('Simulador Pagos Oportunos'!$X$41=1,'Simulador Pagos Oportunos'!$K$55,IF('Simulador Pagos Oportunos'!$X$41=2,'Simulador Pagos Oportunos'!$M$55,IF('Simulador Pagos Oportunos'!$X$41=3,'Simulador Pagos Oportunos'!$O$55,0))))) -> 0 | X24: 0 | AB24: 0 | AC24: ='Simulador Pagos Oportunos'!$AC$77 -> 0.13 | AD24: 0.13 | AE24: 0.13 | AF24: 0.13 | AG24: 0.13 | AH24: 0 | AI24: 0 | AJ24: 0 | AK24: 8 | AL24: 0 | AM24: 0 | AN24: 0 | AO24: 0 | AP24: 0 | AQ24: 0 | AR24: 0 | AS24: 0 | AT24: =IF(AO24=0,"",IF('Simulador Pagos Oportunos'!$X$41=4,AD24,IF('Simulador Pagos Oportunos'!$X$41=1,AE24,IF('Simulador Pagos Oportunos'!$X$41=2,AF24,IF('Simulador Pagos Oportunos'!$X$41=3,AG24,AC24))))) ->  | AU24: =IF(AO24<=0,0,IF('Simulador Pagos Oportunos'!$Y$71=1,0,AO24*'Simulador Pagos Oportunos'!$Y$74))+IF(AO24<=0,0,IF('Simulador Pagos Oportunos'!$X$41=4,'Simulador Pagos Oportunos'!$I$55,IF('Simulador Pagos Oportunos'!$X$41=1,'Simulador Pagos Oportunos'!$K$55,IF('Simulador Pagos Oportunos'!$X$41=2,'Simulador Pagos Oportunos'!$M$55,'Simulador Pagos Oportunos'!$O$55)))) -> 0 | AW24: 0 | AX24: 0 | AZ24: 0 | BA24: 8
A25: 9 | B25: 0 | D25: =IF(B25+F25-D24<=0,B25+F25,IF(A25=$B$9,$F$9,IF(A25=$B$10,$F$10,IF(AND('Simulador Pagos Oportunos'!$AH$45=2,L24=0),D24*(1+Z25),IF($AL$3=2,B25*AI25,D24*(1+Z25)))))) -> 0 | F25: 0 | H25: 0 | N25: =IF('Simulador Pagos Oportunos'!$V$66=1,0,L25*'Simulador Pagos Oportunos'!$O$69*'Simulador Pagos Oportunos'!$W$65) -> 0 | P25: =IF(B25=0,"",IF('Simulador Pagos Oportunos'!$X$41=4,AD25,IF('Simulador Pagos Oportunos'!$X$41=1,AE25,IF('Simulador Pagos Oportunos'!$X$41=2,AF25,IF('Simulador Pagos Oportunos'!$X$41=3,AG25,AC25))))) ->  | R25: 0 | T25: =IF(B25<=0,0,B25*IF('Simulador Pagos Oportunos'!$Y$71=1,0,'Simulador Pagos Oportunos'!$Y$74)) -> 0 | V25: =IF(B25=0,0,IF('Simulador Pagos Oportunos'!$X$41=4,'Simulador Pagos Oportunos'!$I$55,IF('Simulador Pagos Oportunos'!$X$41=1,'Simulador Pagos Oportunos'!$K$55,IF('Simulador Pagos Oportunos'!$X$41=2,'Simulador Pagos Oportunos'!$M$55,IF('Simulador Pagos Oportunos'!$X$41=3,'Simulador Pagos Oportunos'!$O$55,0))))) -> 0 | X25: 0 | AB25: 0 | AC25: ='Simulador Pagos Oportunos'!$AC$77 -> 0.13 | AD25: 0.13 | AE25: 0.13 | AF25: 0.13 | AG25: 0.13 | AH25: 0 | AI25: 0 | AJ25: 0 | AK25: 9 | AL25: 0 | AM25: 0 | AN25: 0 | AO25: 0 | AP25: 0 | AQ25: 0 | AR25: 0 | AS25: 0 | AT25: =IF(AO25=0,"",IF('Simulador Pagos Oportunos'!$X$41=4,AD25,IF('Simulador Pagos Oportunos'!$X$41=1,AE25,IF('Simulador Pagos Oportunos'!$X$41=2,AF25,IF('Simulador Pagos Oportunos'!$X$41=3,AG25,AC25))))) ->  | AU25: =IF(AO25<=0,0,IF('Simulador Pagos Oportunos'!$Y$71=1,0,AO25*'Simulador Pagos Oportunos'!$Y$74))+IF(AO25<=0,0,IF('Simulador Pagos Oportunos'!$X$41=4,'Simulador Pagos Oportunos'!$I$55,IF('Simulador Pagos Oportunos'!$X$41=1,'Simulador Pagos Oportunos'!$K$55,IF('Simulador Pagos Oportunos'!$X$41=2,'Simulador Pagos Oportunos'!$M$55,'Simulador Pagos Oportunos'!$O$55)))) -> 0 | AW25: 0 | AX25: 0 | AZ25: 0 | BA25: 9
A26: 10 | B26: 0 | D26: =IF(B26+F26-D25<=0,B26+F26,IF(A26=$B$9,$F$9,IF(A26=$B$10,$F$10,IF(AND('Simulador Pagos Oportunos'!$AH$45=2,L25=0),D25*(1+Z26),IF($AL$3=2,B26*AI26,D25*(1+Z26)))))) -> 0 | F26: 0 | H26: 0 | J26: =IF(B26-H26=0,0,J24) -> 0 | N26: =IF('Simulador Pagos Oportunos'!$V$66=1,0,L26*'Simulador Pagos Oportunos'!$O$69*'Simulador Pagos Oportunos'!$W$65) -> 0 | P26: =IF(B26=0,"",IF('Simulador Pagos Oportunos'!$X$41=4,AD26,IF('Simulador Pagos Oportunos'!$X$41=1,AE26,IF('Simulador Pagos Oportunos'!$X$41=2,AF26,IF('Simulador Pagos Oportunos'!$X$41=3,AG26,AC26))))) ->  | R26: 0 | T26: =IF(B26<=0,0,B26*IF('Simulador Pagos Oportunos'!$Y$71=1,0,'Simulador Pagos Oportunos'!$Y$74)) -> 0 | V26: =IF(B26=0,0,IF('Simulador Pagos Oportunos'!$X$41=4,'Simulador Pagos Oportunos'!$I$55,IF('Simulador Pagos Oportunos'!$X$41=1,'Simulador Pagos Oportunos'!$K$55,IF('Simulador Pagos Oportunos'!$X$41=2,'Simulador Pagos Oportunos'!$M$55,IF('Simulador Pagos Oportunos'!$X$41=3,'Simulador Pagos Oportunos'!$O$55,0))))) -> 0 | X26: 0 | AB26: 0 | AC26: ='Simulador Pagos Oportunos'!$AC$77 -> 0.13 | AD26: 0.13 | AE26: 0.13 | AF26: 0.13 | AG26: 0.13 | AH26: 0 | AI26: 0 | AJ26: 0 | AK26: 10 | AL26: 0 | AM26: 0 | AN26: 0 | AO26: 0 | AP26: 0 | AQ26: 0 | AR26: 0 | AS26: 0 | AT26: =IF(AO26=0,"",IF('Simulador Pagos Oportunos'!$X$41=4,AD26,IF('Simulador Pagos Oportunos'!$X$41=1,AE26,IF('Simulador Pagos Oportunos'!$X$41=2,AF26,IF('Simulador Pagos Oportunos'!$X$41=3,AG26,AC26))))) ->  | AU26: =IF(AO26<=0,0,IF('Simulador Pagos Oportunos'!$Y$71=1,0,AO26*'Simulador Pagos Oportunos'!$Y$74))+IF(AO26<=0,0,IF('Simulador Pagos Oportunos'!$X$41=4,'Simulador Pagos Oportunos'!$I$55,IF('Simulador Pagos Oportunos'!$X$41=1,'Simulador Pagos Oportunos'!$K$55,IF('Simulador Pagos Oportunos'!$X$41=2,'Simulador Pagos Oportunos'!$M$55,'Simulador Pagos Oportunos'!$O$55)))) -> 0 | AW26: 0 | AX26: 0 | AZ26: 0 | BA26: 10
A27: 11 | B27: 0 | D27: =IF(B27+F27-D26<=0,B27+F27,IF(A27=$B$9,$F$9,IF(A27=$B$10,$F$10,IF(AND('Simulador Pagos Oportunos'!$AH$45=2,L26=0),D26*(1+Z27),IF($AL$3=2,B27*AI27,D26*(1+Z27)))))) -> 0 | F27: 0 | H27: 0 | N27: =IF('Simulador Pagos Oportunos'!$V$66=1,0,L27*'Simulador Pagos Oportunos'!$O$69*'Simulador Pagos Oportunos'!$W$65) -> 0 | P27: =IF(B27=0,"",IF('Simulador Pagos Oportunos'!$X$41=4,AD27,IF('Simulador Pagos Oportunos'!$X$41=1,AE27,IF('Simulador Pagos Oportunos'!$X$41=2,AF27,IF('Simulador Pagos Oportunos'!$X$41=3,AG27,AC27))))) ->  | R27: 0 | T27: =IF(B27<=0,0,B27*IF('Simulador Pagos Oportunos'!$Y$71=1,0,'Simulador Pagos Oportunos'!$Y$74)) -> 0 | V27: =IF(B27=0,0,IF('Simulador Pagos Oportunos'!$X$41=4,'Simulador Pagos Oportunos'!$I$55,IF('Simulador Pagos Oportunos'!$X$41=1,'Simulador Pagos Oportunos'!$K$55,IF('Simulador Pagos Oportunos'!$X$41=2,'Simulador Pagos Oportunos'!$M$55,IF('Simulador Pagos Oportunos'!$X$41=3,'Simulador Pagos Oportunos'!$O$55,0))))) -> 0 | X27: 0 | AB27: 0 | AC27: ='Simulador Pagos Oportunos'!$AC$77 -> 0.13 | AD27: 0.13 | AE27: 0.13 | AF27: 0.13 | AG27: 0.13 | AH27: 0 | AI27: 0 | AJ27: 0 | AK27: 11 | AL27: 0 | AM27: 0 | AN27: 0 | AO27: 0 | AP27: 0 | AQ27: 0 | AR27: 0 | AS27: 0 | AT27: =IF(AO27=0,"",IF('Simulador Pagos Oportunos'!$X$41=4,AD27,IF('Simulador Pagos Oportunos'!$X$41=1,AE27,IF('Simulador Pagos Oportunos'!$X$41=2,AF27,IF('Simulador Pagos Oportunos'!$X$41=3,AG27,AC27))))) ->  | AU27: =IF(AO27<=0,0,IF('Simulador Pagos Oportunos'!$Y$71=1,0,AO27*'Simulador Pagos Oportunos'!$Y$74))+IF(AO27<=0,0,IF('Simulador Pagos Oportunos'!$X$41=4,'Simulador Pagos Oportunos'!$I$55,IF('Simulador Pagos Oportunos'!$X$41=1,'Simulador Pagos Oportunos'!$K$55,IF('Simulador Pagos Oportunos'!$X$41=2,'Simulador Pagos Oportunos'!$M$55,'Simulador Pagos Oportunos'!$O$55)))) -> 0 | AW27: 0 | AX27: 0 | AZ27: 0 | BA27: 11
A28: 12 | B28: 0 | D28: =IF(B28+F28-D27<=0,B28+F28,IF(A28=$B$9,$F$9,IF(A28=$B$10,$F$10,IF(AND('Simulador Pagos Oportunos'!$AH$45=2,L27=0),D27*(1+Z28),IF($AL$3=2,B28*AI28,D27*(1+Z28)))))) -> 0 | F28: 0 | H28: 0 | J28: =IF(B28-H28=0,0,J26) -> 0 | N28: =IF('Simulador Pagos Oportunos'!$V$66=1,0,L28*'Simulador Pagos Oportunos'!$O$69*'Simulador Pagos Oportunos'!$W$65) -> 0 | P28: =IF(B28=0,"",IF('Simulador Pagos Oportunos'!$X$41=4,AD28,IF('Simulador Pagos Oportunos'!$X$41=1,AE28,IF('Simulador Pagos Oportunos'!$X$41=2,AF28,IF('Simulador Pagos Oportunos'!$X$41=3,AG28,AC28))))) ->  | R28: 0 | T28: =IF(B28<=0,0,B28*IF('Simulador Pagos Oportunos'!$Y$71=1,0,'Simulador Pagos Oportunos'!$Y$74)) -> 0 | V28: =IF(B28=0,0,IF('Simulador Pagos Oportunos'!$X$41=4,'Simulador Pagos Oportunos'!$I$55,IF('Simulador Pagos Oportunos'!$X$41=1,'Simulador Pagos Oportunos'!$K$55,IF('Simulador Pagos Oportunos'!$X$41=2,'Simulador Pagos Oportunos'!$M$55,IF('Simulador Pagos Oportunos'!$X$41=3,'Simulador Pagos Oportunos'!$O$55,0))))) -> 0 | X28: 0 | AB28: 0 | AC28: ='Simulador Pagos Oportunos'!$AC$77 -> 0.13 | AD28: 0.13 | AE28: 0.13 | AF28: 0.13 | AG28: 0.13 | AH28: 0 | AI28: 0 | AJ28: 1 | AK28: 0 | AL28: 0 | AM28: 0 | AN28: 0 | AO28: 0 | AP28: 0 | AQ28: 0 | AR28: 0 | AS28: 0 | AT28: =IF(AO28=0,"",IF('Simulador Pagos Oportunos'!$X$41=4,AD28,IF('Simulador Pagos Oportunos'!$X$41=1,AE28,IF('Simulador Pagos Oportunos'!$X$41=2,AF28,IF('Simulador Pagos Oportunos'!$X$41=3,AG28,AC28))))) ->  | AU28: =IF(AO28<=0,0,IF('Simulador Pagos Oportunos'!$Y$71=1,0,AO28*'Simulador Pagos Oportunos'!$Y$74))+IF(AO28<=0,0,IF('Simulador Pagos Oportunos'!$X$41=4,'Simulador Pagos Oportunos'!$I$55,IF('Simulador Pagos Oportunos'!$X$41=1,'Simulador Pagos Oportunos'!$K$55,IF('Simulador Pagos Oportunos'!$X$41=2,'Simulador Pagos Oportunos'!$M$55,'Simulador Pagos Oportunos'!$O$55)))) -> 0 | AW28: 0 | AX28: 0 | AZ28: 0 | BA28: 12
A29: 13 | B29: 0 | D29: =IF(B29+F29-D28<=0,B29+F29,IF(A29=$B$9,$F$9,IF(A29=$B$10,$F$10,IF(AND('Simulador Pagos Oportunos'!$AH$45=2,L28=0),D28*(1+Z29),IF($AL$3=2,B29*AI29,D28*(1+Z29)))))) -> 0 | F29: 0 | H29: 0 | N29: =IF('Simulador Pagos Oportunos'!$V$66=1,0,L29*'Simulador Pagos Oportunos'!$O$69*'Simulador Pagos Oportunos'!$W$65) -> 0 | P29: =IF(B29=0,"",IF('Simulador Pagos Oportunos'!$X$41=4,AD29,IF('Simulador Pagos Oportunos'!$X$41=1,AE29,IF('Simulador Pagos Oportunos'!$X$41=2,AF29,IF('Simulador Pagos Oportunos'!$X$41=3,AG29,AC29))))) ->  | R29: 0 | T29: =IF(B29<=0,0,B29*IF('Simulador Pagos Oportunos'!$Y$71=1,0,'Simulador Pagos Oportunos'!$Y$74)) -> 0 | V29: =IF(B29=0,0,IF('Simulador Pagos Oportunos'!$X$41=4,'Simulador Pagos Oportunos'!$I$55,IF('Simulador Pagos Oportunos'!$X$41=1,'Simulador Pagos Oportunos'!$K$55,IF('Simulador Pagos Oportunos'!$X$41=2,'Simulador Pagos Oportunos'!$M$55,IF('Simulador Pagos Oportunos'!$X$41=3,'Simulador Pagos Oportunos'!$O$55,0))))) -> 0 | X29: 0 | Z29: =IF(B29<=0,0,'Simulador Pagos Oportunos'!$AI$54) -> 0 | AB29: 0 | AC29: ='Simulador Pagos Oportunos'!$AC$77 -> 0.13 | AD29: =AD28-0.2% -> 0.128 | AE29: =AE28-0.2% -> 0.128 | AF29: =AF28-0.2% -> 0.128 | AG29: =AG28-0.2% -> 0.128 | AH29: 0 | AI29: 0 | AJ29: 1 | AK29: 1 | AL29: 0 | AM29: 0 | AN29: 0 | AO29: 0 | AP29: 0 | AQ29: 0 | AR29: 0 | AS29: 0 | AT29: =IF(AO29=0,"",IF('Simulador Pagos Oportunos'!$X$41=4,AD29,IF('Simulador Pagos Oportunos'!$X$41=1,AE29,IF('Simulador Pagos Oportunos'!$X$41=2,AF29,IF('Simulador Pagos Oportunos'!$X$41=3,AG29,AC29))))) ->  | AU29: =IF(AO29<=0,0,IF('Simulador Pagos Oportunos'!$Y$71=1,0,AO29*'Simulador Pagos Oportunos'!$Y$74))+IF(AO29<=0,0,IF('Simulador Pagos Oportunos'!$X$41=4,'Simulador Pagos Oportunos'!$I$55,IF('Simulador Pagos Oportunos'!$X$41=1,'Simulador Pagos Oportunos'!$K$55,IF('Simulador Pagos Oportunos'!$X$41=2,'Simulador Pagos Oportunos'!$M$55,'Simulador Pagos Oportunos'!$O$55)))) -> 0 | AV29: =IF(B29<=0,0,'Simulador Pagos Oportunos'!$AI$54) -> 0 | AW29: 0 | AX29: 0 | AZ29: 0 | BA29: 13
A30: 14 | B30: 0 | D30: =IF(B30+F30-D29<=0,B30+F30,IF(A30=$B$9,$F$9,IF(A30=$B$10,$F$10,IF(AND('Simulador Pagos Oportunos'!$AH$45=2,L29=0),D29*(1+Z30),IF($AL$3=2,B30*AI30,D29*(1+Z30)))))) -> 0 | F30: 0 | H30: 0 | J30: =IF(B30-H30=0,0,J28*(1+(3%))) -> 0 | N30: =IF('Simulador Pagos Oportunos'!$V$66=1,0,L30*'Simulador Pagos Oportunos'!$O$69*'Simulador Pagos Oportunos'!$W$65) -> 0 | P30: =IF(B30=0,"",IF('Simulador Pagos Oportunos'!$X$41=4,AD30,IF('Simulador Pagos Oportunos'!$X$41=1,AE30,IF('Simulador Pagos Oportunos'!$X$41=2,AF30,IF('Simulador Pagos Oportunos'!$X$41=3,AG30,AC30))))) ->  | R30: 0 | T30: =IF(B30<=0,0,B30*IF('Simulador Pagos Oportunos'!$Y$71=1,0,'Simulador Pagos Oportunos'!$Y$74)) -> 0 | V30: =IF(B30=0,0,IF('Simulador Pagos Oportunos'!$X$41=4,'Simulador Pagos Oportunos'!$I$55,IF('Simulador Pagos Oportunos'!$X$41=1,'Simulador Pagos Oportunos'!$K$55,IF('Simulador Pagos Oportunos'!$X$41=2,'Simulador Pagos Oportunos'!$M$55,IF('Simulador Pagos Oportunos'!$X$41=3,'Simulador Pagos Oportunos'!$O$55,0))))) -> 0 | X30: 0 | AB30: 0 | AC30: ='Simulador Pagos Oportunos'!$AC$77 -> 0.13 | AD30: =AD29 -> 0.128 | AE30: =AE29 -> 0.128 | AF30: 0.128 | AG30: 0.128 | AH30: 0 | AI30: 0 | AJ30: 1 | AK30: 2 | AL30: 0 | AM30: 0 | AN30: 0 | AO30: 0 | AP30: 0 | AQ30: 0 | AR30: 0 | AS30: 0 | AT30: =IF(AO30=0,"",IF('Simulador Pagos Oportunos'!$X$41=4,AD30,IF('Simulador Pagos Oportunos'!$X$41=1,AE30,IF('Simulador Pagos Oportunos'!$X$41=2,AF30,IF('Simulador Pagos Oportunos'!$X$41=3,AG30,AC30))))) ->  | AU30: =IF(AO30<=0,0,IF('Simulador Pagos Oportunos'!$Y$71=1,0,AO30*'Simulador Pagos Oportunos'!$Y$74))+IF(AO30<=0,0,IF('Simulador Pagos Oportunos'!$X$41=4,'Simulador Pagos Oportunos'!$I$55,IF('Simulador Pagos Oportunos'!$X$41=1,'Simulador Pagos Oportunos'!$K$55,IF('Simulador Pagos Oportunos'!$X$41=2,'Simulador Pagos Oportunos'!$M$55,'Simulador Pagos Oportunos'!$O$55)))) -> 0 | AW30: 0 | AX30: 0 | AZ30: 0 | BA30: 14
A31: 15 | B31: 0 | D31: =IF(B31+F31-D30<=0,B31+F31,IF(A31=$B$9,$F$9,IF(A31=$B$10,$F$10,IF(AND('Simulador Pagos Oportunos'!$AH$45=2,L30=0),D30*(1+Z31),IF($AL$3=2,B31*AI31,D30*(1+Z31)))))) -> 0 | F31: 0 | H31: 0 | N31: =IF('Simulador Pagos Oportunos'!$V$66=1,0,L31*'Simulador Pagos Oportunos'!$O$69*'Simulador Pagos Oportunos'!$W$65) -> 0 | P31: =IF(B31=0,"",IF('Simulador Pagos Oportunos'!$X$41=4,AD31,IF('Simulador Pagos Oportunos'!$X$41=1,AE31,IF('Simulador Pagos Oportunos'!$X$41=2,AF31,IF('Simulador Pagos Oportunos'!$X$41=3,AG31,AC31))))) ->  | R31: 0 | T31: =IF(B31<=0,0,B31*IF('Simulador Pagos Oportunos'!$Y$71=1,0,'Simulador Pagos Oportunos'!$Y$74)) -> 0 | V31: =IF(B31=0,0,IF('Simulador Pagos Oportunos'!$X$41=4,'Simulador Pagos Oportunos'!$I$55,IF('Simulador Pagos Oportunos'!$X$41=1,'Simulador Pagos Oportunos'!$K$55,IF('Simulador Pagos Oportunos'!$X$41=2,'Simulador Pagos Oportunos'!$M$55,IF('Simulador Pagos Oportunos'!$X$41=3,'Simulador Pagos Oportunos'!$O$55,0))))) -> 0 | X31: 0 | AB31: 0 | AC31: ='Simulador Pagos Oportunos'!$AC$77 -> 0.13 | AD31: =AD30 -> 0.128 | AE31: 0.128 | AF31: 0.128 | AG31: 0.128 | AH31: 0 | AI31: 0 | AJ31: 1 | AK31: 3 | AL31: 0 | AM31: 0 | AN31: 0 | AO31: 0 | AP31: 0 | AQ31: 0 | AR31: 0 | AS31: 0 | AT31: =IF(AO31=0,"",IF('Simulador Pagos Oportunos'!$X$41=4,AD31,IF('Simulador Pagos Oportunos'!$X$41=1,AE31,IF('Simulador Pagos Oportunos'!$X$41=2,AF31,IF('Simulador Pagos Oportunos'!$X$41=3,AG31,AC31))))) ->  | AU31: =IF(AO31<=0,0,IF('Simulador Pagos Oportunos'!$Y$71=1,0,AO31*'Simulador Pagos Oportunos'!$Y$74))+IF(AO31<=0,0,IF('Simulador Pagos Oportunos'!$X$41=4,'Simulador Pagos Oportunos'!$I$55,IF('Simulador Pagos Oportunos'!$X$41=1,'Simulador Pagos Oportunos'!$K$55,IF('Simulador Pagos Oportunos'!$X$41=2,'Simulador Pagos Oportunos'!$M$55,'Simulador Pagos Oportunos'!$O$55)))) -> 0 | AW31: 0 | AX31: 0 | AZ31: 0 | BA31: 15
A32: 16 | B32: 0 | D32: =IF(B32+F32-D31<=0,B32+F32,IF(A32=$B$9,$F$9,IF(A32=$B$10,$F$10,IF(AND('Simulador Pagos Oportunos'!$AH$45=2,L31=0),D31*(1+Z32),IF($AL$3=2,B32*AI32,D31*(1+Z32)))))) -> 0 | F32: 0 | H32: 0 | J32: =IF(B32-H32=0,0,J30) -> 0 | N32: =IF('Simulador Pagos Oportunos'!$V$66=1,0,L32*'Simulador Pagos Oportunos'!$O$69*'Simulador Pagos Oportunos'!$W$65) -> 0 | P32: =IF(B32=0,"",IF('Simulador Pagos Oportunos'!$X$41=4,AD32,IF('Simulador Pagos Oportunos'!$X$41=1,AE32,IF('Simulador Pagos Oportunos'!$X$41=2,AF32,IF('Simulador Pagos Oportunos'!$X$41=3,AG32,AC32))))) ->  | R32: 0 | T32: =IF(B32<=0,0,B32*IF('Simulador Pagos Oportunos'!$Y$71=1,0,'Simulador Pagos Oportunos'!$Y$74)) -> 0 | V32: =IF(B32=0,0,IF('Simulador Pagos Oportunos'!$X$41=4,'Simulador Pagos Oportunos'!$I$55,IF('Simulador Pagos Oportunos'!$X$41=1,'Simulador Pagos Oportunos'!$K$55,IF('Simulador Pagos Oportunos'!$X$41=2,'Simulador Pagos Oportunos'!$M$55,IF('Simulador Pagos Oportunos'!$X$41=3,'Simulador Pagos Oportunos'!$O$55,0))))) -> 0 | X32: 0 | AB32: 0 | AC32: ='Simulador Pagos Oportunos'!$AC$77 -> 0.13 | AD32: 0.128 | AE32: 0.128 | AF32: 0.128 | AG32: 0.128 | AH32: 0 | AI32: 0 | AJ32: 1 | AK32: 4 | AL32: 0 | AM32: 0 | AN32: 0 | AO32: 0 | AP32: 0 | AQ32: 0 | AR32: 0 | AS32: 0 | AT32: =IF(AO32=0,"",IF('Simulador Pagos Oportunos'!$X$41=4,AD32,IF('Simulador Pagos Oportunos'!$X$41=1,AE32,IF('Simulador Pagos Oportunos'!$X$41=2,AF32,IF('Simulador Pagos Oportunos'!$X$41=3,AG32,AC32))))) ->  | AU32: =IF(AO32<=0,0,IF('Simulador Pagos Oportunos'!$Y$71=1,0,AO32*'Simulador Pagos Oportunos'!$Y$74))+IF(AO32<=0,0,IF('Simulador Pagos Oportunos'!$X$41=4,'Simulador Pagos Oportunos'!$I$55,IF('Simulador Pagos Oportunos'!$X$41=1,'Simulador Pagos Oportunos'!$K$55,IF('Simulador Pagos Oportunos'!$X$41=2,'Simulador Pagos Oportunos'!$M$55,'Simulador Pagos Oportunos'!$O$55)))) -> 0 | AW32: 0 | AX32: 0 | AZ32: 0 | BA32: 16
